Workbook

Sheet AER Amendments
A1: The AER's final decision amendments, compared to the revised proposal, are highlighted in blue
A2: # | B2: Sheet | C2: Name | D2: Reference | E2: Notes
A3: 1 | B3: RAB input | C3: 2024-25 actual capex | D3: V27: V76 | E3: Consistent with final decision RFM, inputs updated to reflect unrounded values from the 2024-25 Annual information orders
A4: 2 | B4: TAB Input | C4: ERC - Tax remaining life as at 2021-22 | D4: G229 | E4: Consistent with draft decision DTM, updated this input to reflect the tax remaining life in the 2021-26 PTRM
A5: 3 | B5: RAB input | C5: 2006-10 RAB standard lives | D5: F195, F238 | E5: Consistent with draft decision DTM, updated these inputs to n/a to reflect these asset classes not existing in the 2006-10 reset.
A6: 4 | B6: RAB input | C6: ERC - RAB standard life | D6: S238 | E6: Consistent with final decision RFM, input updated to n/a to reflect the standard asset life for ERC in the 2021-26 PTRM
A7: 5 | B7: RAB Input | C7: Closing RAB 2025-26 | D7: W458:W507 | E7: Updated to reflect final decision RFM closing RAB Source: AER -Powercor 2026-31 - Final decision - SCS RFM - public.xlsx. Worksheet: PTRM input summary, opening asset value, cells J7: J56

Sheet Intro
G2: Electricity distribution network service provider
I3: RFM - Depreciation tracking module
L4: Version: | M4: 1
L5: Date: | M5: April 2020
B8: Introduction | J8: Electricity distribution module
C14: This attachment to the RFM is used by the AER to determine the forecast regulatory asset base (RAB) and tax asset base (TAB) depreciation for a distribution network service provider.
C15: It also calculates the actual tax depreciation for use in the RFM.
C17: INSTRUCTIONS FOR USE
C18: The RFM handbook, which contains information on this depreciation tracking module, is available on the AER website at http://www.aer.gov.au
C20: a. Fill out input cells on the 'RAB input' and 'TAB input' sheets. These input cells are highlighted blue.
C21: This provides the data for the depreciation tracking calculations.
C22: In general, input expenditure data should be valued in nominal dollar terms of the year indicated.
C23: Units and basis for entry are specified where required for each data table.
C24: Not all input cells require an input - be sure to read and follow the instructions contained within the comments for each section heading.
C25: All relevant inputs are to be filled on an ongoing basis, with the details of past expenditure and asset lives to be preserved.
C27: b. The values in the 'Tracking output' sheet
C28: This sheet summarises the key outputs of the year-by-year tracking approach, which includes forecast RAB and TAB depreciation to be input into the PTRM
C29: as well as actual tax depreciation for the current regulatory period to be input into the RFM.
C31: VERSION RECORD
C33: Version | D33: Date | F33: Description
C34: 1 | D34: April 2020 | F34: Initial module

Sheet RAB input
E2: =IF($F$8='TAB input'!$F$8, $F$8, 'TAB input'!$F$8) & " - RAB input - Elec DNSP "&Intro!$I$3&" - version "& Intro!$M$4 -> Powercor - RAB input - Elec DNSP RFM - Depreciation tracking module - version 1 | J2: Input cells in blue
J3: AER final decision
E4: Year | F4: =IF(LEN($H$9)>4, CONCATENATE(LEFT($H$9, 4)-2 & "-" & IF(AND(RIGHT($H$9, 2)<"12", RIGHT($H$9, 2)>"01"), "0", "") & IF(RIGHT($H$9, 2)="00", "98", IF(RIGHT($H$9, 2)="01", "99", RIGHT($H$9, 2)-2))), $H$9-2) -> 2009 | G4: =IF(LEN(F4)>4,CONCATENATE(LEFT(F4,4)+1&"-"&IF(RIGHT(F4, 2)<"09", "0","")&IF(RIGHT(F4, 2)="99", "00", RIGHT(F4,2)+1)),F4+1) -> 2010 | H4: =IF(LEN(G4)>4,CONCATENATE(LEFT(G4,4)+1&"-"&IF(RIGHT(G4, 2)<"09", "0","")&IF(RIGHT(G4, 2)="99", "00", RIGHT(G4,2)+1)),G4+1) -> 2011 | I4: =IF(I$11<>"", IF(INT($G$5+SUM($H$11:H$11))=$G$5+SUM($H$11:H$11), VALUE(LEFT(I$10, 4)), CONCATENATE(LEFT(I$10,4)&"-"&IF(MID(I$10, 3, 2)<"09", "0","")&IF(MID(I$10, 3, 2)="99", "00", MID(I$10, 3, 2)+1))), IF(AND(I$5<>INT(I$5), COUNTA($H$4:H$4)=ROUNDUP(I$5, 0)), IF($G$5+SUM($11:$11)=INT($G$5+SUM($11:$11)), VALUE(CONCATENATE(IF(RIGHT(H$4, 2)="99", LEFT(H$4, 2)+1, LEFT(H$4, 2))&RIGHT(H$4, 2))), CONCATENATE(LEFT(H$4, 2)&RIGHT(H$4, 2)&"-"&IF(RIGHT(H$4, 2)<"09", "0", "")&IF(RIGHT(H$4, 2)="99", "00", RIGHT(H$4, 2)+1))), IF(LEN(H4)>4,CONCATENATE(LEFT(H4,4)+1&"-"&IF(RIGHT(H4, 2)<"09", "0","")&IF(RIGHT(H4, 2)="99", "00", RIGHT(H4,2)+1)),VALUE(H4+1)))) -> 2012 | J4: =IF(J$11<>"", IF(INT($G$5+SUM($H$11:I$11))=$G$5+SUM($H$11:I$11), VALUE(LEFT(J$10, 4)), CONCATENATE(LEFT(J$10,4)&"-"&IF(MID(J$10, 3, 2)<"09", "0","")&IF(MID(J$10, 3, 2)="99", "00", MID(J$10, 3, 2)+1))), IF(AND(J$5<>INT(J$5), COUNTA($H$4:I$4)=ROUNDUP(J$5, 0)), IF($G$5+SUM($11:$11)=INT($G$5+SUM($11:$11)), VALUE(CONCATENATE(IF(RIGHT(I$4, 2)="99", LEFT(I$4, 2)+1, LEFT(I$4, 2))&RIGHT(I$4, 2))), CONCATENATE(LEFT(I$4, 2)&RIGHT(I$4, 2)&"-"&IF(RIGHT(I$4, 2)<"09", "0", "")&IF(RIGHT(I$4, 2)="99", "00", RIGHT(I$4, 2)+1))), IF(LEN(I4)>4,CONCATENATE(LEFT(I4,4)+1&"-"&IF(RIGHT(I4, 2)<"09", "0","")&IF(RIGHT(I4, 2)="99", "00", RIGHT(I4,2)+1)),VALUE(I4+1)))) -> 2013 | K4: =IF(K$11<>"", IF(INT($G$5+SUM($H$11:J$11))=$G$5+SUM($H$11:J$11), VALUE(LEFT(K$10, 4)), CONCATENATE(LEFT(K$10,4)&"-"&IF(MID(K$10, 3, 2)<"09", "0","")&IF(MID(K$10, 3, 2)="99", "00", MID(K$10, 3, 2)+1))), IF(AND(K$5<>INT(K$5), COUNTA($H$4:J$4)=ROUNDUP(K$5, 0)), IF($G$5+SUM($11:$11)=INT($G$5+SUM($11:$11)), VALUE(CONCATENATE(IF(RIGHT(J$4, 2)="99", LEFT(J$4, 2)+1, LEFT(J$4, 2))&RIGHT(J$4, 2))), CONCATENATE(LEFT(J$4, 2)&RIGHT(J$4, 2)&"-"&IF(RIGHT(J$4, 2)<"09", "0", "")&IF(RIGHT(J$4, 2)="99", "00", RIGHT(J$4, 2)+1))), IF(LEN(J4)>4,CONCATENATE(LEFT(J4,4)+1&"-"&IF(RIGHT(J4, 2)<"09", "0","")&IF(RIGHT(J4, 2)="99", "00", RIGHT(J4,2)+1)),VALUE(J4+1)))) -> 2014 | L4: =IF(L$11<>"", IF(INT($G$5+SUM($H$11:K$11))=$G$5+SUM($H$11:K$11), VALUE(LEFT(L$10, 4)), CONCATENATE(LEFT(L$10,4)&"-"&IF(MID(L$10, 3, 2)<"09", "0","")&IF(MID(L$10, 3, 2)="99", "00", MID(L$10, 3, 2)+1))), IF(AND(L$5<>INT(L$5), COUNTA($H$4:K$4)=ROUNDUP(L$5, 0)), IF($G$5+SUM($11:$11)=INT($G$5+SUM($11:$11)), VALUE(CONCATENATE(IF(RIGHT(K$4, 2)="99", LEFT(K$4, 2)+1, LEFT(K$4, 2))&RIGHT(K$4, 2))), CONCATENATE(LEFT(K$4, 2)&RIGHT(K$4, 2)&"-"&IF(RIGHT(K$4, 2)<"09", "0", "")&IF(RIGHT(K$4, 2)="99", "00", RIGHT(K$4, 2)+1))), IF(LEN(K4)>4,CONCATENATE(LEFT(K4,4)+1&"-"&IF(RIGHT(K4, 2)<"09", "0","")&IF(RIGHT(K4, 2)="99", "00", RIGHT(K4,2)+1)),VALUE(K4+1)))) -> 2015 | M4: =IF(M$11<>"", IF(INT($G$5+SUM($H$11:L$11))=$G$5+SUM($H$11:L$11), VALUE(LEFT(M$10, 4)), CONCATENATE(LEFT(M$10,4)&"-"&IF(MID(M$10, 3, 2)<"09", "0","")&IF(MID(M$10, 3, 2)="99", "00", MID(M$10, 3, 2)+1))), IF(AND(M$5<>INT(M$5), COUNTA($H$4:L$4)=ROUNDUP(M$5, 0)), IF($G$5+SUM($11:$11)=INT($G$5+SUM($11:$11)), VALUE(CONCATENATE(IF(RIGHT(L$4, 2)="99", LEFT(L$4, 2)+1, LEFT(L$4, 2))&RIGHT(L$4, 2))), CONCATENATE(LEFT(L$4, 2)&RIGHT(L$4, 2)&"-"&IF(RIGHT(L$4, 2)<"09", "0", "")&IF(RIGHT(L$4, 2)="99", "00", RIGHT(L$4, 2)+1))), IF(LEN(L4)>4,CONCATENATE(LEFT(L4,4)+1&"-"&IF(RIGHT(L4, 2)<"09", "0","")&IF(RIGHT(L4, 2)="99", "00", RIGHT(L4,2)+1)),VALUE(L4+1)))) -> 2016 | N4: =IF(N$11<>"", IF(INT($G$5+SUM($H$11:M$11))=$G$5+SUM($H$11:M$11), VALUE(LEFT(N$10, 4)), CONCATENATE(LEFT(N$10,4)&"-"&IF(MID(N$10, 3, 2)<"09", "0","")&IF(MID(N$10, 3, 2)="99", "00", MID(N$10, 3, 2)+1))), IF(AND(N$5<>INT(N$5), COUNTA($H$4:M$4)=ROUNDUP(N$5, 0)), IF($G$5+SUM($11:$11)=INT($G$5+SUM($11:$11)), VALUE(CONCATENATE(IF(RIGHT(M$4, 2)="99", LEFT(M$4, 2)+1, LEFT(M$4, 2))&RIGHT(M$4, 2))), CONCATENATE(LEFT(M$4, 2)&RIGHT(M$4, 2)&"-"&IF(RIGHT(M$4, 2)<"09", "0", "")&IF(RIGHT(M$4, 2)="99", "00", RIGHT(M$4, 2)+1))), IF(LEN(M4)>4,CONCATENATE(LEFT(M4,4)+1&"-"&IF(RIGHT(M4, 2)<"09", "0","")&IF(RIGHT(M4, 2)="99", "00", RIGHT(M4,2)+1)),VALUE(M4+1)))) -> 2017 | O4: =IF(O$11<>"", IF(INT($G$5+SUM($H$11:N$11))=$G$5+SUM($H$11:N$11), VALUE(LEFT(O$10, 4)), CONCATENATE(LEFT(O$10,4)&"-"&IF(MID(O$10, 3, 2)<"09", "0","")&IF(MID(O$10, 3, 2)="99", "00", MID(O$10, 3, 2)+1))), IF(AND(O$5<>INT(O$5), COUNTA($H$4:N$4)=ROUNDUP(O$5, 0)), IF($G$5+SUM($11:$11)=INT($G$5+SUM($11:$11)), VALUE(CONCATENATE(IF(RIGHT(N$4, 2)="99", LEFT(N$4, 2)+1, LEFT(N$4, 2))&RIGHT(N$4, 2))), CONCATENATE(LEFT(N$4, 2)&RIGHT(N$4, 2)&"-"&IF(RIGHT(N$4, 2)<"09", "0", "")&IF(RIGHT(N$4, 2)="99", "00", RIGHT(N$4, 2)+1))), IF(LEN(N4)>4,CONCATENATE(LEFT(N4,4)+1&"-"&IF(RIGHT(N4, 2)<"09", "0","")&IF(RIGHT(N4, 2)="99", "00", RIGHT(N4,2)+1)),VALUE(N4+1)))) -> 2018 | P4: =IF(P$11<>"", IF(INT($G$5+SUM($H$11:O$11))=$G$5+SUM($H$11:O$11), VALUE(LEFT(P$10, 4)), CONCATENATE(LEFT(P$10,4)&"-"&IF(MID(P$10, 3, 2)<"09", "0","")&IF(MID(P$10, 3, 2)="99", "00", MID(P$10, 3, 2)+1))), IF(AND(P$5<>INT(P$5), COUNTA($H$4:O$4)=ROUNDUP(P$5, 0)), IF($G$5+SUM($11:$11)=INT($G$5+SUM($11:$11)), VALUE(CONCATENATE(IF(RIGHT(O$4, 2)="99", LEFT(O$4, 2)+1, LEFT(O$4, 2))&RIGHT(O$4, 2))), CONCATENATE(LEFT(O$4, 2)&RIGHT(O$4, 2)&"-"&IF(RIGHT(O$4, 2)<"09", "0", "")&IF(RIGHT(O$4, 2)="99", "00", RIGHT(O$4, 2)+1))), IF(LEN(O4)>4,CONCATENATE(LEFT(O4,4)+1&"-"&IF(RIGHT(O4, 2)<"09", "0","")&IF(RIGHT(O4, 2)="99", "00", RIGHT(O4,2)+1)),VALUE(O4+1)))) -> 2019 | Q4: =IF(Q$11<>"", IF(INT($G$5+SUM($H$11:P$11))=$G$5+SUM($H$11:P$11), VALUE(LEFT(Q$10, 4)), CONCATENATE(LEFT(Q$10,4)&"-"&IF(MID(Q$10, 3, 2)<"09", "0","")&IF(MID(Q$10, 3, 2)="99", "00", MID(Q$10, 3, 2)+1))), IF(AND(Q$5<>INT(Q$5), COUNTA($H$4:P$4)=ROUNDUP(Q$5, 0)), IF($G$5+SUM($11:$11)=INT($G$5+SUM($11:$11)), VALUE(CONCATENATE(IF(RIGHT(P$4, 2)="99", LEFT(P$4, 2)+1, LEFT(P$4, 2))&RIGHT(P$4, 2))), CONCATENATE(LEFT(P$4, 2)&RIGHT(P$4, 2)&"-"&IF(RIGHT(P$4, 2)<"09", "0", "")&IF(RIGHT(P$4, 2)="99", "00", RIGHT(P$4, 2)+1))), IF(LEN(P4)>4,CONCATENATE(LEFT(P4,4)+1&"-"&IF(RIGHT(P4, 2)<"09", "0","")&IF(RIGHT(P4, 2)="99", "00", RIGHT(P4,2)+1)),VALUE(P4+1)))) -> 2020 | R4: =IF(R$11<>"", IF(INT($G$5+SUM($H$11:Q$11))=$G$5+SUM($H$11:Q$11), VALUE(LEFT(R$10, 4)), CONCATENATE(LEFT(R$10,4)&"-"&IF(MID(R$10, 3, 2)<"09", "0","")&IF(MID(R$10, 3, 2)="99", "00", MID(R$10, 3, 2)+1))), IF(AND(R$5<>INT(R$5), COUNTA($H$4:Q$4)=ROUNDUP(R$5, 0)), IF($G$5+SUM($11:$11)=INT($G$5+SUM($11:$11)), VALUE(CONCATENATE(IF(RIGHT(Q$4, 2)="99", LEFT(Q$4, 2)+1, LEFT(Q$4, 2))&RIGHT(Q$4, 2))), CONCATENATE(LEFT(Q$4, 2)&RIGHT(Q$4, 2)&"-"&IF(RIGHT(Q$4, 2)<"09", "0", "")&IF(RIGHT(Q$4, 2)="99", "00", RIGHT(Q$4, 2)+1))), IF(LEN(Q4)>4,CONCATENATE(LEFT(Q4,4)+1&"-"&IF(RIGHT(Q4, 2)<"09", "0","")&IF(RIGHT(Q4, 2)="99", "00", RIGHT(Q4,2)+1)),VALUE(Q4+1)))) -> 2021 | S4: =IF(S$11<>"", IF(INT($G$5+SUM($H$11:R$11))=$G$5+SUM($H$11:R$11), VALUE(LEFT(S$10, 4)), CONCATENATE(LEFT(S$10,4)&"-"&IF(MID(S$10, 3, 2)<"09", "0","")&IF(MID(S$10, 3, 2)="99", "00", MID(S$10, 3, 2)+1))), IF(AND(S$5<>INT(S$5), COUNTA($H$4:R$4)=ROUNDUP(S$5, 0)), IF($G$5+SUM($11:$11)=INT($G$5+SUM($11:$11)), VALUE(CONCATENATE(IF(RIGHT(R$4, 2)="99", LEFT(R$4, 2)+1, LEFT(R$4, 2))&RIGHT(R$4, 2))), CONCATENATE(LEFT(R$4, 2)&RIGHT(R$4, 2)&"-"&IF(RIGHT(R$4, 2)<"09", "0", "")&IF(RIGHT(R$4, 2)="99", "00", RIGHT(R$4, 2)+1))), IF(LEN(R4)>4,CONCATENATE(LEFT(R4,4)+1&"-"&IF(RIGHT(R4, 2)<"09", "0","")&IF(RIGHT(R4, 2)="99", "00", RIGHT(R4,2)+1)),VALUE(R4+1)))) -> 2021-22 | T4: =IF(T$11<>"", IF(INT($G$5+SUM($H$11:S$11))=$G$5+SUM($H$11:S$11), VALUE(LEFT(T$10, 4)), CONCATENATE(LEFT(T$10,4)&"-"&IF(MID(T$10, 3, 2)<"09", "0","")&IF(MID(T$10, 3, 2)="99", "00", MID(T$10, 3, 2)+1))), IF(AND(T$5<>INT(T$5), COUNTA($H$4:S$4)=ROUNDUP(T$5, 0)), IF($G$5+SUM($11:$11)=INT($G$5+SUM($11:$11)), VALUE(CONCATENATE(IF(RIGHT(S$4, 2)="99", LEFT(S$4, 2)+1, LEFT(S$4, 2))&RIGHT(S$4, 2))), CONCATENATE(LEFT(S$4, 2)&RIGHT(S$4, 2)&"-"&IF(RIGHT(S$4, 2)<"09", "0", "")&IF(RIGHT(S$4, 2)="99", "00", RIGHT(S$4, 2)+1))), IF(LEN(S4)>4,CONCATENATE(LEFT(S4,4)+1&"-"&IF(RIGHT(S4, 2)<"09", "0","")&IF(RIGHT(S4, 2)="99", "00", RIGHT(S4,2)+1)),VALUE(S4+1)))) -> 2022-23 | U4: =IF(U$11<>"", IF(INT($G$5+SUM($H$11:T$11))=$G$5+SUM($H$11:T$11), VALUE(LEFT(U$10, 4)), CONCATENATE(LEFT(U$10,4)&"-"&IF(MID(U$10, 3, 2)<"09", "0","")&IF(MID(U$10, 3, 2)="99", "00", MID(U$10, 3, 2)+1))), IF(AND(U$5<>INT(U$5), COUNTA($H$4:T$4)=ROUNDUP(U$5, 0)), IF($G$5+SUM($11:$11)=INT($G$5+SUM($11:$11)), VALUE(CONCATENATE(IF(RIGHT(T$4, 2)="99", LEFT(T$4, 2)+1, LEFT(T$4, 2))&RIGHT(T$4, 2))), CONCATENATE(LEFT(T$4, 2)&RIGHT(T$4, 2)&"-"&IF(RIGHT(T$4, 2)<"09", "0", "")&IF(RIGHT(T$4, 2)="99", "00", RIGHT(T$4, 2)+1))), IF(LEN(T4)>4,CONCATENATE(LEFT(T4,4)+1&"-"&IF(RIGHT(T4, 2)<"09", "0","")&IF(RIGHT(T4, 2)="99", "00", RIGHT(T4,2)+1)),VALUE(T4+1)))) -> 2023-24 | V4: =IF(V$11<>"", IF(INT($G$5+SUM($H$11:U$11))=$G$5+SUM($H$11:U$11), VALUE(LEFT(V$10, 4)), CONCATENATE(LEFT(V$10,4)&"-"&IF(MID(V$10, 3, 2)<"09", "0","")&IF(MID(V$10, 3, 2)="99", "00", MID(V$10, 3, 2)+1))), IF(AND(V$5<>INT(V$5), COUNTA($H$4:U$4)=ROUNDUP(V$5, 0)), IF($G$5+SUM($11:$11)=INT($G$5+SUM($11:$11)), VALUE(CONCATENATE(IF(RIGHT(U$4, 2)="99", LEFT(U$4, 2)+1, LEFT(U$4, 2))&RIGHT(U$4, 2))), CONCATENATE(LEFT(U$4, 2)&RIGHT(U$4, 2)&"-"&IF(RIGHT(U$4, 2)<"09", "0", "")&IF(RIGHT(U$4, 2)="99", "00", RIGHT(U$4, 2)+1))), IF(LEN(U4)>4,CONCATENATE(LEFT(U4,4)+1&"-"&IF(RIGHT(U4, 2)<"09", "0","")&IF(RIGHT(U4, 2)="99", "00", RIGHT(U4,2)+1)),VALUE(U4+1)))) -> 2024-25 | W4: =IF(W$11<>"", IF(INT($G$5+SUM($H$11:V$11))=$G$5+SUM($H$11:V$11), VALUE(LEFT(W$10, 4)), CONCATENATE(LEFT(W$10,4)&"-"&IF(MID(W$10, 3, 2)<"09", "0","")&IF(MID(W$10, 3, 2)="99", "00", MID(W$10, 3, 2)+1))), IF(AND(W$5<>INT(W$5), COUNTA($H$4:V$4)=ROUNDUP(W$5, 0)), IF($G$5+SUM($11:$11)=INT($G$5+SUM($11:$11)), VALUE(CONCATENATE(IF(RIGHT(V$4, 2)="99", LEFT(V$4, 2)+1, LEFT(V$4, 2))&RIGHT(V$4, 2))), CONCATENATE(LEFT(V$4, 2)&RIGHT(V$4, 2)&"-"&IF(RIGHT(V$4, 2)<"09", "0", "")&IF(RIGHT(V$4, 2)="99", "00", RIGHT(V$4, 2)+1))), IF(LEN(V4)>4,CONCATENATE(LEFT(V4,4)+1&"-"&IF(RIGHT(V4, 2)<"09", "0","")&IF(RIGHT(V4, 2)="99", "00", RIGHT(V4,2)+1)),VALUE(V4+1)))) -> 2025-26 | X4: =IF(X$11<>"", IF(INT($G$5+SUM($H$11:W$11))=$G$5+SUM($H$11:W$11), VALUE(LEFT(X$10, 4)), CONCATENATE(LEFT(X$10,4)&"-"&IF(MID(X$10, 3, 2)<"09", "0","")&IF(MID(X$10, 3, 2)="99", "00", MID(X$10, 3, 2)+1))), IF(AND(X$5<>INT(X$5), COUNTA($H$4:W$4)=ROUNDUP(X$5, 0)), IF($G$5+SUM($11:$11)=INT($G$5+SUM($11:$11)), VALUE(CONCATENATE(IF(RIGHT(W$4, 2)="99", LEFT(W$4, 2)+1, LEFT(W$4, 2))&RIGHT(W$4, 2))), CONCATENATE(LEFT(W$4, 2)&RIGHT(W$4, 2)&"-"&IF(RIGHT(W$4, 2)<"09", "0", "")&IF(RIGHT(W$4, 2)="99", "00", RIGHT(W$4, 2)+1))), IF(LEN(W4)>4,CONCATENATE(LEFT(W4,4)+1&"-"&IF(RIGHT(W4, 2)<"09", "0","")&IF(RIGHT(W4, 2)="99", "00", RIGHT(W4,2)+1)),VALUE(W4+1)))) -> 2026-27 | Y4: =IF(Y$11<>"", IF(INT($G$5+SUM($H$11:X$11))=$G$5+SUM($H$11:X$11), VALUE(LEFT(Y$10, 4)), CONCATENATE(LEFT(Y$10,4)&"-"&IF(MID(Y$10, 3, 2)<"09", "0","")&IF(MID(Y$10, 3, 2)="99", "00", MID(Y$10, 3, 2)+1))), IF(AND(Y$5<>INT(Y$5), COUNTA($H$4:X$4)=ROUNDUP(Y$5, 0)), IF($G$5+SUM($11:$11)=INT($G$5+SUM($11:$11)), VALUE(CONCATENATE(IF(RIGHT(X$4, 2)="99", LEFT(X$4, 2)+1, LEFT(X$4, 2))&RIGHT(X$4, 2))), CONCATENATE(LEFT(X$4, 2)&RIGHT(X$4, 2)&"-"&IF(RIGHT(X$4, 2)<"09", "0", "")&IF(RIGHT(X$4, 2)="99", "00", RIGHT(X$4, 2)+1))), IF(LEN(X4)>4,CONCATENATE(LEFT(X4,4)+1&"-"&IF(RIGHT(X4, 2)<"09", "0","")&IF(RIGHT(X4, 2)="99", "00", RIGHT(X4,2)+1)),VALUE(X4+1)))) -> 2027-28 | Z4: =IF(Z$11<>"", IF(INT($G$5+SUM($H$11:Y$11))=$G$5+SUM($H$11:Y$11), VALUE(LEFT(Z$10, 4)), CONCATENATE(LEFT(Z$10,4)&"-"&IF(MID(Z$10, 3, 2)<"09", "0","")&IF(MID(Z$10, 3, 2)="99", "00", MID(Z$10, 3, 2)+1))), IF(AND(Z$5<>INT(Z$5), COUNTA($H$4:Y$4)=ROUNDUP(Z$5, 0)), IF($G$5+SUM($11:$11)=INT($G$5+SUM($11:$11)), VALUE(CONCATENATE(IF(RIGHT(Y$4, 2)="99", LEFT(Y$4, 2)+1, LEFT(Y$4, 2))&RIGHT(Y$4, 2))), CONCATENATE(LEFT(Y$4, 2)&RIGHT(Y$4, 2)&"-"&IF(RIGHT(Y$4, 2)<"09", "0", "")&IF(RIGHT(Y$4, 2)="99", "00", RIGHT(Y$4, 2)+1))), IF(LEN(Y4)>4,CONCATENATE(LEFT(Y4,4)+1&"-"&IF(RIGHT(Y4, 2)<"09", "0","")&IF(RIGHT(Y4, 2)="99", "00", RIGHT(Y4,2)+1)),VALUE(Y4+1)))) -> 2028-29 | AA4: =IF(AA$11<>"", IF(INT($G$5+SUM($H$11:Z$11))=$G$5+SUM($H$11:Z$11), VALUE(LEFT(AA$10, 4)), CONCATENATE(LEFT(AA$10,4)&"-"&IF(MID(AA$10, 3, 2)<"09", "0","")&IF(MID(AA$10, 3, 2)="99", "00", MID(AA$10, 3, 2)+1))), IF(AND(AA$5<>INT(AA$5), COUNTA($H$4:Z$4)=ROUNDUP(AA$5, 0)), IF($G$5+SUM($11:$11)=INT($G$5+SUM($11:$11)), VALUE(CONCATENATE(IF(RIGHT(Z$4, 2)="99", LEFT(Z$4, 2)+1, LEFT(Z$4, 2))&RIGHT(Z$4, 2))), CONCATENATE(LEFT(Z$4, 2)&RIGHT(Z$4, 2)&"-"&IF(RIGHT(Z$4, 2)<"09", "0", "")&IF(RIGHT(Z$4, 2)="99", "00", RIGHT(Z$4, 2)+1))), IF(LEN(Z4)>4,CONCATENATE(LEFT(Z4,4)+1&"-"&IF(RIGHT(Z4, 2)<"09", "0","")&IF(RIGHT(Z4, 2)="99", "00", RIGHT(Z4,2)+1)),VALUE(Z4+1)))) -> 2029-30 | AB4: =IF(AB$11<>"", IF(INT($G$5+SUM($H$11:AA$11))=$G$5+SUM($H$11:AA$11), VALUE(LEFT(AB$10, 4)), CONCATENATE(LEFT(AB$10,4)&"-"&IF(MID(AB$10, 3, 2)<"09", "0","")&IF(MID(AB$10, 3, 2)="99", "00", MID(AB$10, 3, 2)+1))), IF(AND(AB$5<>INT(AB$5), COUNTA($H$4:AA$4)=ROUNDUP(AB$5, 0)), IF($G$5+SUM($11:$11)=INT($G$5+SUM($11:$11)), VALUE(CONCATENATE(IF(RIGHT(AA$4, 2)="99", LEFT(AA$4, 2)+1, LEFT(AA$4, 2))&RIGHT(AA$4, 2))), CONCATENATE(LEFT(AA$4, 2)&RIGHT(AA$4, 2)&"-"&IF(RIGHT(AA$4, 2)<"09", "0", "")&IF(RIGHT(AA$4, 2)="99", "00", RIGHT(AA$4, 2)+1))), IF(LEN(AA4)>4,CONCATENATE(LEFT(AA4,4)+1&"-"&IF(RIGHT(AA4, 2)<"09", "0","")&IF(RIGHT(AA4, 2)="99", "00", RIGHT(AA4,2)+1)),VALUE(AA4+1)))) -> 2030-31 | AC4: =IF(AC$11<>"", IF(INT($G$5+SUM($H$11:AB$11))=$G$5+SUM($H$11:AB$11), VALUE(LEFT(AC$10, 4)), CONCATENATE(LEFT(AC$10,4)&"-"&IF(MID(AC$10, 3, 2)<"09", "0","")&IF(MID(AC$10, 3, 2)="99", "00", MID(AC$10, 3, 2)+1))), IF(AND(AC$5<>INT(AC$5), COUNTA($H$4:AB$4)=ROUNDUP(AC$5, 0)), IF($G$5+SUM($11:$11)=INT($G$5+SUM($11:$11)), VALUE(CONCATENATE(IF(RIGHT(AB$4, 2)="99", LEFT(AB$4, 2)+1, LEFT(AB$4, 2))&RIGHT(AB$4, 2))), CONCATENATE(LEFT(AB$4, 2)&RIGHT(AB$4, 2)&"-"&IF(RIGHT(AB$4, 2)<"09", "0", "")&IF(RIGHT(AB$4, 2)="99", "00", RIGHT(AB$4, 2)+1))), IF(LEN(AB4)>4,CONCATENATE(LEFT(AB4,4)+1&"-"&IF(RIGHT(AB4, 2)<"09", "0","")&IF(RIGHT(AB4, 2)="99", "00", RIGHT(AB4,2)+1)),VALUE(AB4+1)))) -> 2031-32 | AD4: =IF(AD$11<>"", IF(INT($G$5+SUM($H$11:AC$11))=$G$5+SUM($H$11:AC$11), VALUE(LEFT(AD$10, 4)), CONCATENATE(LEFT(AD$10,4)&"-"&IF(MID(AD$10, 3, 2)<"09", "0","")&IF(MID(AD$10, 3, 2)="99", "00", MID(AD$10, 3, 2)+1))), IF(AND(AD$5<>INT(AD$5), COUNTA($H$4:AC$4)=ROUNDUP(AD$5, 0)), IF($G$5+SUM($11:$11)=INT($G$5+SUM($11:$11)), VALUE(CONCATENATE(IF(RIGHT(AC$4, 2)="99", LEFT(AC$4, 2)+1, LEFT(AC$4, 2))&RIGHT(AC$4, 2))), CONCATENATE(LEFT(AC$4, 2)&RIGHT(AC$4, 2)&"-"&IF(RIGHT(AC$4, 2)<"09", "0", "")&IF(RIGHT(AC$4, 2)="99", "00", RIGHT(AC$4, 2)+1))), IF(LEN(AC4)>4,CONCATENATE(LEFT(AC4,4)+1&"-"&IF(RIGHT(AC4, 2)<"09", "0","")&IF(RIGHT(AC4, 2)="99", "00", RIGHT(AC4,2)+1)),VALUE(AC4+1)))) -> 2032-33 | AE4: =IF(AE$11<>"", IF(INT($G$5+SUM($H$11:AD$11))=$G$5+SUM($H$11:AD$11), VALUE(LEFT(AE$10, 4)), CONCATENATE(LEFT(AE$10,4)&"-"&IF(MID(AE$10, 3, 2)<"09", "0","")&IF(MID(AE$10, 3, 2)="99", "00", MID(AE$10, 3, 2)+1))), IF(AND(AE$5<>INT(AE$5), COUNTA($H$4:AD$4)=ROUNDUP(AE$5, 0)), IF($G$5+SUM($11:$11)=INT($G$5+SUM($11:$11)), VALUE(CONCATENATE(IF(RIGHT(AD$4, 2)="99", LEFT(AD$4, 2)+1, LEFT(AD$4, 2))&RIGHT(AD$4, 2))), CONCATENATE(LEFT(AD$4, 2)&RIGHT(AD$4, 2)&"-"&IF(RIGHT(AD$4, 2)<"09", "0", "")&IF(RIGHT(AD$4, 2)="99", "00", RIGHT(AD$4, 2)+1))), IF(LEN(AD4)>4,CONCATENATE(LEFT(AD4,4)+1&"-"&IF(RIGHT(AD4, 2)<"09", "0","")&IF(RIGHT(AD4, 2)="99", "00", RIGHT(AD4,2)+1)),VALUE(AD4+1)))) -> 2033-34 | AF4: =IF(AF$11<>"", IF(INT($G$5+SUM($H$11:AE$11))=$G$5+SUM($H$11:AE$11), VALUE(LEFT(AF$10, 4)), CONCATENATE(LEFT(AF$10,4)&"-"&IF(MID(AF$10, 3, 2)<"09", "0","")&IF(MID(AF$10, 3, 2)="99", "00", MID(AF$10, 3, 2)+1))), IF(AND(AF$5<>INT(AF$5), COUNTA($H$4:AE$4)=ROUNDUP(AF$5, 0)), IF($G$5+SUM($11:$11)=INT($G$5+SUM($11:$11)), VALUE(CONCATENATE(IF(RIGHT(AE$4, 2)="99", LEFT(AE$4, 2)+1, LEFT(AE$4, 2))&RIGHT(AE$4, 2))), CONCATENATE(LEFT(AE$4, 2)&RIGHT(AE$4, 2)&"-"&IF(RIGHT(AE$4, 2)<"09", "0", "")&IF(RIGHT(AE$4, 2)="99", "00", RIGHT(AE$4, 2)+1))), IF(LEN(AE4)>4,CONCATENATE(LEFT(AE4,4)+1&"-"&IF(RIGHT(AE4, 2)<"09", "0","")&IF(RIGHT(AE4, 2)="99", "00", RIGHT(AE4,2)+1)),VALUE(AE4+1)))) -> 2034-35 | AG4: =IF(AG$11<>"", IF(INT($G$5+SUM($H$11:AF$11))=$G$5+SUM($H$11:AF$11), VALUE(LEFT(AG$10, 4)), CONCATENATE(LEFT(AG$10,4)&"-"&IF(MID(AG$10, 3, 2)<"09", "0","")&IF(MID(AG$10, 3, 2)="99", "00", MID(AG$10, 3, 2)+1))), IF(AND(AG$5<>INT(AG$5), COUNTA($H$4:AF$4)=ROUNDUP(AG$5, 0)), IF($G$5+SUM($11:$11)=INT($G$5+SUM($11:$11)), VALUE(CONCATENATE(IF(RIGHT(AF$4, 2)="99", LEFT(AF$4, 2)+1, LEFT(AF$4, 2))&RIGHT(AF$4, 2))), CONCATENATE(LEFT(AF$4, 2)&RIGHT(AF$4, 2)&"-"&IF(RIGHT(AF$4, 2)<"09", "0", "")&IF(RIGHT(AF$4, 2)="99", "00", RIGHT(AF$4, 2)+1))), IF(LEN(AF4)>4,CONCATENATE(LEFT(AF4,4)+1&"-"&IF(RIGHT(AF4, 2)<"09", "0","")&IF(RIGHT(AF4, 2)="99", "00", RIGHT(AF4,2)+1)),VALUE(AF4+1)))) -> 2035-36 | AH4: =IF(AH$11<>"", IF(INT($G$5+SUM($H$11:AG$11))=$G$5+SUM($H$11:AG$11), VALUE(LEFT(AH$10, 4)), CONCATENATE(LEFT(AH$10,4)&"-"&IF(MID(AH$10, 3, 2)<"09", "0","")&IF(MID(AH$10, 3, 2)="99", "00", MID(AH$10, 3, 2)+1))), IF(AND(AH$5<>INT(AH$5), COUNTA($H$4:AG$4)=ROUNDUP(AH$5, 0)), IF($G$5+SUM($11:$11)=INT($G$5+SUM($11:$11)), VALUE(CONCATENATE(IF(RIGHT(AG$4, 2)="99", LEFT(AG$4, 2)+1, LEFT(AG$4, 2))&RIGHT(AG$4, 2))), CONCATENATE(LEFT(AG$4, 2)&RIGHT(AG$4, 2)&"-"&IF(RIGHT(AG$4, 2)<"09", "0", "")&IF(RIGHT(AG$4, 2)="99", "00", RIGHT(AG$4, 2)+1))), IF(LEN(AG4)>4,CONCATENATE(LEFT(AG4,4)+1&"-"&IF(RIGHT(AG4, 2)<"09", "0","")&IF(RIGHT(AG4, 2)="99", "00", RIGHT(AG4,2)+1)),VALUE(AG4+1)))) -> 2036-37 | AI4: =IF(AI$11<>"", IF(INT($G$5+SUM($H$11:AH$11))=$G$5+SUM($H$11:AH$11), VALUE(LEFT(AI$10, 4)), CONCATENATE(LEFT(AI$10,4)&"-"&IF(MID(AI$10, 3, 2)<"09", "0","")&IF(MID(AI$10, 3, 2)="99", "00", MID(AI$10, 3, 2)+1))), IF(AND(AI$5<>INT(AI$5), COUNTA($H$4:AH$4)=ROUNDUP(AI$5, 0)), IF($G$5+SUM($11:$11)=INT($G$5+SUM($11:$11)), VALUE(CONCATENATE(IF(RIGHT(AH$4, 2)="99", LEFT(AH$4, 2)+1, LEFT(AH$4, 2))&RIGHT(AH$4, 2))), CONCATENATE(LEFT(AH$4, 2)&RIGHT(AH$4, 2)&"-"&IF(RIGHT(AH$4, 2)<"09", "0", "")&IF(RIGHT(AH$4, 2)="99", "00", RIGHT(AH$4, 2)+1))), IF(LEN(AH4)>4,CONCATENATE(LEFT(AH4,4)+1&"-"&IF(RIGHT(AH4, 2)<"09", "0","")&IF(RIGHT(AH4, 2)="99", "00", RIGHT(AH4,2)+1)),VALUE(AH4+1)))) -> 2037-38 | AJ4: =IF(AJ$11<>"", IF(INT($G$5+SUM($H$11:AI$11))=$G$5+SUM($H$11:AI$11), VALUE(LEFT(AJ$10, 4)), CONCATENATE(LEFT(AJ$10,4)&"-"&IF(MID(AJ$10, 3, 2)<"09", "0","")&IF(MID(AJ$10, 3, 2)="99", "00", MID(AJ$10, 3, 2)+1))), IF(AND(AJ$5<>INT(AJ$5), COUNTA($H$4:AI$4)=ROUNDUP(AJ$5, 0)), IF($G$5+SUM($11:$11)=INT($G$5+SUM($11:$11)), VALUE(CONCATENATE(IF(RIGHT(AI$4, 2)="99", LEFT(AI$4, 2)+1, LEFT(AI$4, 2))&RIGHT(AI$4, 2))), CONCATENATE(LEFT(AI$4, 2)&RIGHT(AI$4, 2)&"-"&IF(RIGHT(AI$4, 2)<"09", "0", "")&IF(RIGHT(AI$4, 2)="99", "00", RIGHT(AI$4, 2)+1))), IF(LEN(AI4)>4,CONCATENATE(LEFT(AI4,4)+1&"-"&IF(RIGHT(AI4, 2)<"09", "0","")&IF(RIGHT(AI4, 2)="99", "00", RIGHT(AI4,2)+1)),VALUE(AI4+1)))) -> 2038-39 | AK4: =IF(AK$11<>"", IF(INT($G$5+SUM($H$11:AJ$11))=$G$5+SUM($H$11:AJ$11), VALUE(LEFT(AK$10, 4)), CONCATENATE(LEFT(AK$10,4)&"-"&IF(MID(AK$10, 3, 2)<"09", "0","")&IF(MID(AK$10, 3, 2)="99", "00", MID(AK$10, 3, 2)+1))), IF(AND(AK$5<>INT(AK$5), COUNTA($H$4:AJ$4)=ROUNDUP(AK$5, 0)), IF($G$5+SUM($11:$11)=INT($G$5+SUM($11:$11)), VALUE(CONCATENATE(IF(RIGHT(AJ$4, 2)="99", LEFT(AJ$4, 2)+1, LEFT(AJ$4, 2))&RIGHT(AJ$4, 2))), CONCATENATE(LEFT(AJ$4, 2)&RIGHT(AJ$4, 2)&"-"&IF(RIGHT(AJ$4, 2)<"09", "0", "")&IF(RIGHT(AJ$4, 2)="99", "00", RIGHT(AJ$4, 2)+1))), IF(LEN(AJ4)>4,CONCATENATE(LEFT(AJ4,4)+1&"-"&IF(RIGHT(AJ4, 2)<"09", "0","")&IF(RIGHT(AJ4, 2)="99", "00", RIGHT(AJ4,2)+1)),VALUE(AJ4+1)))) -> 2039-40 | AL4: =IF(AL$11<>"", IF(INT($G$5+SUM($H$11:AK$11))=$G$5+SUM($H$11:AK$11), VALUE(LEFT(AL$10, 4)), CONCATENATE(LEFT(AL$10,4)&"-"&IF(MID(AL$10, 3, 2)<"09", "0","")&IF(MID(AL$10, 3, 2)="99", "00", MID(AL$10, 3, 2)+1))), IF(AND(AL$5<>INT(AL$5), COUNTA($H$4:AK$4)=ROUNDUP(AL$5, 0)), IF($G$5+SUM($11:$11)=INT($G$5+SUM($11:$11)), VALUE(CONCATENATE(IF(RIGHT(AK$4, 2)="99", LEFT(AK$4, 2)+1, LEFT(AK$4, 2))&RIGHT(AK$4, 2))), CONCATENATE(LEFT(AK$4, 2)&RIGHT(AK$4, 2)&"-"&IF(RIGHT(AK$4, 2)<"09", "0", "")&IF(RIGHT(AK$4, 2)="99", "00", RIGHT(AK$4, 2)+1))), IF(LEN(AK4)>4,CONCATENATE(LEFT(AK4,4)+1&"-"&IF(RIGHT(AK4, 2)<"09", "0","")&IF(RIGHT(AK4, 2)="99", "00", RIGHT(AK4,2)+1)),VALUE(AK4+1)))) -> 2040-41 | AM4: =IF(AM$11<>"", IF(INT($G$5+SUM($H$11:AL$11))=$G$5+SUM($H$11:AL$11), VALUE(LEFT(AM$10, 4)), CONCATENATE(LEFT(AM$10,4)&"-"&IF(MID(AM$10, 3, 2)<"09", "0","")&IF(MID(AM$10, 3, 2)="99", "00", MID(AM$10, 3, 2)+1))), IF(AND(AM$5<>INT(AM$5), COUNTA($H$4:AL$4)=ROUNDUP(AM$5, 0)), IF($G$5+SUM($11:$11)=INT($G$5+SUM($11:$11)), VALUE(CONCATENATE(IF(RIGHT(AL$4, 2)="99", LEFT(AL$4, 2)+1, LEFT(AL$4, 2))&RIGHT(AL$4, 2))), CONCATENATE(LEFT(AL$4, 2)&RIGHT(AL$4, 2)&"-"&IF(RIGHT(AL$4, 2)<"09", "0", "")&IF(RIGHT(AL$4, 2)="99", "00", RIGHT(AL$4, 2)+1))), IF(LEN(AL4)>4,CONCATENATE(LEFT(AL4,4)+1&"-"&IF(RIGHT(AL4, 2)<"09", "0","")&IF(RIGHT(AL4, 2)="99", "00", RIGHT(AL4,2)+1)),VALUE(AL4+1)))) -> 2041-42 | AN4: =IF(AN$11<>"", IF(INT($G$5+SUM($H$11:AM$11))=$G$5+SUM($H$11:AM$11), VALUE(LEFT(AN$10, 4)), CONCATENATE(LEFT(AN$10,4)&"-"&IF(MID(AN$10, 3, 2)<"09", "0","")&IF(MID(AN$10, 3, 2)="99", "00", MID(AN$10, 3, 2)+1))), IF(AND(AN$5<>INT(AN$5), COUNTA($H$4:AM$4)=ROUNDUP(AN$5, 0)), IF($G$5+SUM($11:$11)=INT($G$5+SUM($11:$11)), VALUE(CONCATENATE(IF(RIGHT(AM$4, 2)="99", LEFT(AM$4, 2)+1, LEFT(AM$4, 2))&RIGHT(AM$4, 2))), CONCATENATE(LEFT(AM$4, 2)&RIGHT(AM$4, 2)&"-"&IF(RIGHT(AM$4, 2)<"09", "0", "")&IF(RIGHT(AM$4, 2)="99", "00", RIGHT(AM$4, 2)+1))), IF(LEN(AM4)>4,CONCATENATE(LEFT(AM4,4)+1&"-"&IF(RIGHT(AM4, 2)<"09", "0","")&IF(RIGHT(AM4, 2)="99", "00", RIGHT(AM4,2)+1)),VALUE(AM4+1)))) -> 2042-43 | AO4: =IF(AO$11<>"", IF(INT($G$5+SUM($H$11:AN$11))=$G$5+SUM($H$11:AN$11), VALUE(LEFT(AO$10, 4)), CONCATENATE(LEFT(AO$10,4)&"-"&IF(MID(AO$10, 3, 2)<"09", "0","")&IF(MID(AO$10, 3, 2)="99", "00", MID(AO$10, 3, 2)+1))), IF(AND(AO$5<>INT(AO$5), COUNTA($H$4:AN$4)=ROUNDUP(AO$5, 0)), IF($G$5+SUM($11:$11)=INT($G$5+SUM($11:$11)), VALUE(CONCATENATE(IF(RIGHT(AN$4, 2)="99", LEFT(AN$4, 2)+1, LEFT(AN$4, 2))&RIGHT(AN$4, 2))), CONCATENATE(LEFT(AN$4, 2)&RIGHT(AN$4, 2)&"-"&IF(RIGHT(AN$4, 2)<"09", "0", "")&IF(RIGHT(AN$4, 2)="99", "00", RIGHT(AN$4, 2)+1))), IF(LEN(AN4)>4,CONCATENATE(LEFT(AN4,4)+1&"-"&IF(RIGHT(AN4, 2)<"09", "0","")&IF(RIGHT(AN4, 2)="99", "00", RIGHT(AN4,2)+1)),VALUE(AN4+1)))) -> 2043-44 | AP4: =IF(AP$11<>"", IF(INT($G$5+SUM($H$11:AO$11))=$G$5+SUM($H$11:AO$11), VALUE(LEFT(AP$10, 4)), CONCATENATE(LEFT(AP$10,4)&"-"&IF(MID(AP$10, 3, 2)<"09", "0","")&IF(MID(AP$10, 3, 2)="99", "00", MID(AP$10, 3, 2)+1))), IF(AND(AP$5<>INT(AP$5), COUNTA($H$4:AO$4)=ROUNDUP(AP$5, 0)), IF($G$5+SUM($11:$11)=INT($G$5+SUM($11:$11)), VALUE(CONCATENATE(IF(RIGHT(AO$4, 2)="99", LEFT(AO$4, 2)+1, LEFT(AO$4, 2))&RIGHT(AO$4, 2))), CONCATENATE(LEFT(AO$4, 2)&RIGHT(AO$4, 2)&"-"&IF(RIGHT(AO$4, 2)<"09", "0", "")&IF(RIGHT(AO$4, 2)="99", "00", RIGHT(AO$4, 2)+1))), IF(LEN(AO4)>4,CONCATENATE(LEFT(AO4,4)+1&"-"&IF(RIGHT(AO4, 2)<"09", "0","")&IF(RIGHT(AO4, 2)="99", "00", RIGHT(AO4,2)+1)),VALUE(AO4+1)))) -> 2044-45 | AQ4: =IF(AQ$11<>"", IF(INT($G$5+SUM($H$11:AP$11))=$G$5+SUM($H$11:AP$11), VALUE(LEFT(AQ$10, 4)), CONCATENATE(LEFT(AQ$10,4)&"-"&IF(MID(AQ$10, 3, 2)<"09", "0","")&IF(MID(AQ$10, 3, 2)="99", "00", MID(AQ$10, 3, 2)+1))), IF(AND(AQ$5<>INT(AQ$5), COUNTA($H$4:AP$4)=ROUNDUP(AQ$5, 0)), IF($G$5+SUM($11:$11)=INT($G$5+SUM($11:$11)), VALUE(CONCATENATE(IF(RIGHT(AP$4, 2)="99", LEFT(AP$4, 2)+1, LEFT(AP$4, 2))&RIGHT(AP$4, 2))), CONCATENATE(LEFT(AP$4, 2)&RIGHT(AP$4, 2)&"-"&IF(RIGHT(AP$4, 2)<"09", "0", "")&IF(RIGHT(AP$4, 2)="99", "00", RIGHT(AP$4, 2)+1))), IF(LEN(AP4)>4,CONCATENATE(LEFT(AP4,4)+1&"-"&IF(RIGHT(AP4, 2)<"09", "0","")&IF(RIGHT(AP4, 2)="99", "00", RIGHT(AP4,2)+1)),VALUE(AP4+1)))) -> 2045-46 | AR4: =IF(AR$11<>"", IF(INT($G$5+SUM($H$11:AQ$11))=$G$5+SUM($H$11:AQ$11), VALUE(LEFT(AR$10, 4)), CONCATENATE(LEFT(AR$10,4)&"-"&IF(MID(AR$10, 3, 2)<"09", "0","")&IF(MID(AR$10, 3, 2)="99", "00", MID(AR$10, 3, 2)+1))), IF(AND(AR$5<>INT(AR$5), COUNTA($H$4:AQ$4)=ROUNDUP(AR$5, 0)), IF($G$5+SUM($11:$11)=INT($G$5+SUM($11:$11)), VALUE(CONCATENATE(IF(RIGHT(AQ$4, 2)="99", LEFT(AQ$4, 2)+1, LEFT(AQ$4, 2))&RIGHT(AQ$4, 2))), CONCATENATE(LEFT(AQ$4, 2)&RIGHT(AQ$4, 2)&"-"&IF(RIGHT(AQ$4, 2)<"09", "0", "")&IF(RIGHT(AQ$4, 2)="99", "00", RIGHT(AQ$4, 2)+1))), IF(LEN(AQ4)>4,CONCATENATE(LEFT(AQ4,4)+1&"-"&IF(RIGHT(AQ4, 2)<"09", "0","")&IF(RIGHT(AQ4, 2)="99", "00", RIGHT(AQ4,2)+1)),VALUE(AQ4+1)))) -> 2046-47 | AS4: =IF(AS$11<>"", IF(INT($G$5+SUM($H$11:AR$11))=$G$5+SUM($H$11:AR$11), VALUE(LEFT(AS$10, 4)), CONCATENATE(LEFT(AS$10,4)&"-"&IF(MID(AS$10, 3, 2)<"09", "0","")&IF(MID(AS$10, 3, 2)="99", "00", MID(AS$10, 3, 2)+1))), IF(AND(AS$5<>INT(AS$5), COUNTA($H$4:AR$4)=ROUNDUP(AS$5, 0)), IF($G$5+SUM($11:$11)=INT($G$5+SUM($11:$11)), VALUE(CONCATENATE(IF(RIGHT(AR$4, 2)="99", LEFT(AR$4, 2)+1, LEFT(AR$4, 2))&RIGHT(AR$4, 2))), CONCATENATE(LEFT(AR$4, 2)&RIGHT(AR$4, 2)&"-"&IF(RIGHT(AR$4, 2)<"09", "0", "")&IF(RIGHT(AR$4, 2)="99", "00", RIGHT(AR$4, 2)+1))), IF(LEN(AR4)>4,CONCATENATE(LEFT(AR4,4)+1&"-"&IF(RIGHT(AR4, 2)<"09", "0","")&IF(RIGHT(AR4, 2)="99", "00", RIGHT(AR4,2)+1)),VALUE(AR4+1)))) -> 2047-48 | AT4: =IF(AT$11<>"", IF(INT($G$5+SUM($H$11:AS$11))=$G$5+SUM($H$11:AS$11), VALUE(LEFT(AT$10, 4)), CONCATENATE(LEFT(AT$10,4)&"-"&IF(MID(AT$10, 3, 2)<"09", "0","")&IF(MID(AT$10, 3, 2)="99", "00", MID(AT$10, 3, 2)+1))), IF(AND(AT$5<>INT(AT$5), COUNTA($H$4:AS$4)=ROUNDUP(AT$5, 0)), IF($G$5+SUM($11:$11)=INT($G$5+SUM($11:$11)), VALUE(CONCATENATE(IF(RIGHT(AS$4, 2)="99", LEFT(AS$4, 2)+1, LEFT(AS$4, 2))&RIGHT(AS$4, 2))), CONCATENATE(LEFT(AS$4, 2)&RIGHT(AS$4, 2)&"-"&IF(RIGHT(AS$4, 2)<"09", "0", "")&IF(RIGHT(AS$4, 2)="99", "00", RIGHT(AS$4, 2)+1))), IF(LEN(AS4)>4,CONCATENATE(LEFT(AS4,4)+1&"-"&IF(RIGHT(AS4, 2)<"09", "0","")&IF(RIGHT(AS4, 2)="99", "00", RIGHT(AS4,2)+1)),VALUE(AS4+1)))) -> 2048-49 | AU4: =IF(AU$11<>"", IF(INT($G$5+SUM($H$11:AT$11))=$G$5+SUM($H$11:AT$11), VALUE(LEFT(AU$10, 4)), CONCATENATE(LEFT(AU$10,4)&"-"&IF(MID(AU$10, 3, 2)<"09", "0","")&IF(MID(AU$10, 3, 2)="99", "00", MID(AU$10, 3, 2)+1))), IF(AND(AU$5<>INT(AU$5), COUNTA($H$4:AT$4)=ROUNDUP(AU$5, 0)), IF($G$5+SUM($11:$11)=INT($G$5+SUM($11:$11)), VALUE(CONCATENATE(IF(RIGHT(AT$4, 2)="99", LEFT(AT$4, 2)+1, LEFT(AT$4, 2))&RIGHT(AT$4, 2))), CONCATENATE(LEFT(AT$4, 2)&RIGHT(AT$4, 2)&"-"&IF(RIGHT(AT$4, 2)<"09", "0", "")&IF(RIGHT(AT$4, 2)="99", "00", RIGHT(AT$4, 2)+1))), IF(LEN(AT4)>4,CONCATENATE(LEFT(AT4,4)+1&"-"&IF(RIGHT(AT4, 2)<"09", "0","")&IF(RIGHT(AT4, 2)="99", "00", RIGHT(AT4,2)+1)),VALUE(AT4+1)))) -> 2049-50 | AV4: =IF(AV$11<>"", IF(INT($G$5+SUM($H$11:AU$11))=$G$5+SUM($H$11:AU$11), VALUE(LEFT(AV$10, 4)), CONCATENATE(LEFT(AV$10,4)&"-"&IF(MID(AV$10, 3, 2)<"09", "0","")&IF(MID(AV$10, 3, 2)="99", "00", MID(AV$10, 3, 2)+1))), IF(AND(AV$5<>INT(AV$5), COUNTA($H$4:AU$4)=ROUNDUP(AV$5, 0)), IF($G$5+SUM($11:$11)=INT($G$5+SUM($11:$11)), VALUE(CONCATENATE(IF(RIGHT(AU$4, 2)="99", LEFT(AU$4, 2)+1, LEFT(AU$4, 2))&RIGHT(AU$4, 2))), CONCATENATE(LEFT(AU$4, 2)&RIGHT(AU$4, 2)&"-"&IF(RIGHT(AU$4, 2)<"09", "0", "")&IF(RIGHT(AU$4, 2)="99", "00", RIGHT(AU$4, 2)+1))), IF(LEN(AU4)>4,CONCATENATE(LEFT(AU4,4)+1&"-"&IF(RIGHT(AU4, 2)<"09", "0","")&IF(RIGHT(AU4, 2)="99", "00", RIGHT(AU4,2)+1)),VALUE(AU4+1)))) -> 2050-51 | AW4: =IF(AW$11<>"", IF(INT($G$5+SUM($H$11:AV$11))=$G$5+SUM($H$11:AV$11), VALUE(LEFT(AW$10, 4)), CONCATENATE(LEFT(AW$10,4)&"-"&IF(MID(AW$10, 3, 2)<"09", "0","")&IF(MID(AW$10, 3, 2)="99", "00", MID(AW$10, 3, 2)+1))), IF(AND(AW$5<>INT(AW$5), COUNTA($H$4:AV$4)=ROUNDUP(AW$5, 0)), IF($G$5+SUM($11:$11)=INT($G$5+SUM($11:$11)), VALUE(CONCATENATE(IF(RIGHT(AV$4, 2)="99", LEFT(AV$4, 2)+1, LEFT(AV$4, 2))&RIGHT(AV$4, 2))), CONCATENATE(LEFT(AV$4, 2)&RIGHT(AV$4, 2)&"-"&IF(RIGHT(AV$4, 2)<"09", "0", "")&IF(RIGHT(AV$4, 2)="99", "00", RIGHT(AV$4, 2)+1))), IF(LEN(AV4)>4,CONCATENATE(LEFT(AV4,4)+1&"-"&IF(RIGHT(AV4, 2)<"09", "0","")&IF(RIGHT(AV4, 2)="99", "00", RIGHT(AV4,2)+1)),VALUE(AV4+1)))) -> 2051-52 | AX4: =IF(AX$11<>"", IF(INT($G$5+SUM($H$11:AW$11))=$G$5+SUM($H$11:AW$11), VALUE(LEFT(AX$10, 4)), CONCATENATE(LEFT(AX$10,4)&"-"&IF(MID(AX$10, 3, 2)<"09", "0","")&IF(MID(AX$10, 3, 2)="99", "00", MID(AX$10, 3, 2)+1))), IF(AND(AX$5<>INT(AX$5), COUNTA($H$4:AW$4)=ROUNDUP(AX$5, 0)), IF($G$5+SUM($11:$11)=INT($G$5+SUM($11:$11)), VALUE(CONCATENATE(IF(RIGHT(AW$4, 2)="99", LEFT(AW$4, 2)+1, LEFT(AW$4, 2))&RIGHT(AW$4, 2))), CONCATENATE(LEFT(AW$4, 2)&RIGHT(AW$4, 2)&"-"&IF(RIGHT(AW$4, 2)<"09", "0", "")&IF(RIGHT(AW$4, 2)="99", "00", RIGHT(AW$4, 2)+1))), IF(LEN(AW4)>4,CONCATENATE(LEFT(AW4,4)+1&"-"&IF(RIGHT(AW4, 2)<"09", "0","")&IF(RIGHT(AW4, 2)="99", "00", RIGHT(AW4,2)+1)),VALUE(AW4+1)))) -> 2052-53 | AY4: =IF(AY$11<>"", IF(INT($G$5+SUM($H$11:AX$11))=$G$5+SUM($H$11:AX$11), VALUE(LEFT(AY$10, 4)), CONCATENATE(LEFT(AY$10,4)&"-"&IF(MID(AY$10, 3, 2)<"09", "0","")&IF(MID(AY$10, 3, 2)="99", "00", MID(AY$10, 3, 2)+1))), IF(AND(AY$5<>INT(AY$5), COUNTA($H$4:AX$4)=ROUNDUP(AY$5, 0)), IF($G$5+SUM($11:$11)=INT($G$5+SUM($11:$11)), VALUE(CONCATENATE(IF(RIGHT(AX$4, 2)="99", LEFT(AX$4, 2)+1, LEFT(AX$4, 2))&RIGHT(AX$4, 2))), CONCATENATE(LEFT(AX$4, 2)&RIGHT(AX$4, 2)&"-"&IF(RIGHT(AX$4, 2)<"09", "0", "")&IF(RIGHT(AX$4, 2)="99", "00", RIGHT(AX$4, 2)+1))), IF(LEN(AX4)>4,CONCATENATE(LEFT(AX4,4)+1&"-"&IF(RIGHT(AX4, 2)<"09", "0","")&IF(RIGHT(AX4, 2)="99", "00", RIGHT(AX4,2)+1)),VALUE(AX4+1)))) -> 2053-54 | AZ4: =IF(AZ$11<>"", IF(INT($G$5+SUM($H$11:AY$11))=$G$5+SUM($H$11:AY$11), VALUE(LEFT(AZ$10, 4)), CONCATENATE(LEFT(AZ$10,4)&"-"&IF(MID(AZ$10, 3, 2)<"09", "0","")&IF(MID(AZ$10, 3, 2)="99", "00", MID(AZ$10, 3, 2)+1))), IF(AND(AZ$5<>INT(AZ$5), COUNTA($H$4:AY$4)=ROUNDUP(AZ$5, 0)), IF($G$5+SUM($11:$11)=INT($G$5+SUM($11:$11)), VALUE(CONCATENATE(IF(RIGHT(AY$4, 2)="99", LEFT(AY$4, 2)+1, LEFT(AY$4, 2))&RIGHT(AY$4, 2))), CONCATENATE(LEFT(AY$4, 2)&RIGHT(AY$4, 2)&"-"&IF(RIGHT(AY$4, 2)<"09", "0", "")&IF(RIGHT(AY$4, 2)="99", "00", RIGHT(AY$4, 2)+1))), IF(LEN(AY4)>4,CONCATENATE(LEFT(AY4,4)+1&"-"&IF(RIGHT(AY4, 2)<"09", "0","")&IF(RIGHT(AY4, 2)="99", "00", RIGHT(AY4,2)+1)),VALUE(AY4+1)))) -> 2054-55 | BA4: =IF(BA$11<>"", IF(INT($G$5+SUM($H$11:AZ$11))=$G$5+SUM($H$11:AZ$11), VALUE(LEFT(BA$10, 4)), CONCATENATE(LEFT(BA$10,4)&"-"&IF(MID(BA$10, 3, 2)<"09", "0","")&IF(MID(BA$10, 3, 2)="99", "00", MID(BA$10, 3, 2)+1))), IF(AND(BA$5<>INT(BA$5), COUNTA($H$4:AZ$4)=ROUNDUP(BA$5, 0)), IF($G$5+SUM($11:$11)=INT($G$5+SUM($11:$11)), VALUE(CONCATENATE(IF(RIGHT(AZ$4, 2)="99", LEFT(AZ$4, 2)+1, LEFT(AZ$4, 2))&RIGHT(AZ$4, 2))), CONCATENATE(LEFT(AZ$4, 2)&RIGHT(AZ$4, 2)&"-"&IF(RIGHT(AZ$4, 2)<"09", "0", "")&IF(RIGHT(AZ$4, 2)="99", "00", RIGHT(AZ$4, 2)+1))), IF(LEN(AZ4)>4,CONCATENATE(LEFT(AZ4,4)+1&"-"&IF(RIGHT(AZ4, 2)<"09", "0","")&IF(RIGHT(AZ4, 2)="99", "00", RIGHT(AZ4,2)+1)),VALUE(AZ4+1)))) -> 2055-56 | BB4: =IF(BB$11<>"", IF(INT($G$5+SUM($H$11:BA$11))=$G$5+SUM($H$11:BA$11), VALUE(LEFT(BB$10, 4)), CONCATENATE(LEFT(BB$10,4)&"-"&IF(MID(BB$10, 3, 2)<"09", "0","")&IF(MID(BB$10, 3, 2)="99", "00", MID(BB$10, 3, 2)+1))), IF(AND(BB$5<>INT(BB$5), COUNTA($H$4:BA$4)=ROUNDUP(BB$5, 0)), IF($G$5+SUM($11:$11)=INT($G$5+SUM($11:$11)), VALUE(CONCATENATE(IF(RIGHT(BA$4, 2)="99", LEFT(BA$4, 2)+1, LEFT(BA$4, 2))&RIGHT(BA$4, 2))), CONCATENATE(LEFT(BA$4, 2)&RIGHT(BA$4, 2)&"-"&IF(RIGHT(BA$4, 2)<"09", "0", "")&IF(RIGHT(BA$4, 2)="99", "00", RIGHT(BA$4, 2)+1))), IF(LEN(BA4)>4,CONCATENATE(LEFT(BA4,4)+1&"-"&IF(RIGHT(BA4, 2)<"09", "0","")&IF(RIGHT(BA4, 2)="99", "00", RIGHT(BA4,2)+1)),VALUE(BA4+1)))) -> 2056-57 | BC4: =IF(BC$11<>"", IF(INT($G$5+SUM($H$11:BB$11))=$G$5+SUM($H$11:BB$11), VALUE(LEFT(BC$10, 4)), CONCATENATE(LEFT(BC$10,4)&"-"&IF(MID(BC$10, 3, 2)<"09", "0","")&IF(MID(BC$10, 3, 2)="99", "00", MID(BC$10, 3, 2)+1))), IF(AND(BC$5<>INT(BC$5), COUNTA($H$4:BB$4)=ROUNDUP(BC$5, 0)), IF($G$5+SUM($11:$11)=INT($G$5+SUM($11:$11)), VALUE(CONCATENATE(IF(RIGHT(BB$4, 2)="99", LEFT(BB$4, 2)+1, LEFT(BB$4, 2))&RIGHT(BB$4, 2))), CONCATENATE(LEFT(BB$4, 2)&RIGHT(BB$4, 2)&"-"&IF(RIGHT(BB$4, 2)<"09", "0", "")&IF(RIGHT(BB$4, 2)="99", "00", RIGHT(BB$4, 2)+1))), IF(LEN(BB4)>4,CONCATENATE(LEFT(BB4,4)+1&"-"&IF(RIGHT(BB4, 2)<"09", "0","")&IF(RIGHT(BB4, 2)="99", "00", RIGHT(BB4,2)+1)),VALUE(BB4+1)))) -> 2057-58 | BD4: =IF(BD$11<>"", IF(INT($G$5+SUM($H$11:BC$11))=$G$5+SUM($H$11:BC$11), VALUE(LEFT(BD$10, 4)), CONCATENATE(LEFT(BD$10,4)&"-"&IF(MID(BD$10, 3, 2)<"09", "0","")&IF(MID(BD$10, 3, 2)="99", "00", MID(BD$10, 3, 2)+1))), IF(AND(BD$5<>INT(BD$5), COUNTA($H$4:BC$4)=ROUNDUP(BD$5, 0)), IF($G$5+SUM($11:$11)=INT($G$5+SUM($11:$11)), VALUE(CONCATENATE(IF(RIGHT(BC$4, 2)="99", LEFT(BC$4, 2)+1, LEFT(BC$4, 2))&RIGHT(BC$4, 2))), CONCATENATE(LEFT(BC$4, 2)&RIGHT(BC$4, 2)&"-"&IF(RIGHT(BC$4, 2)<"09", "0", "")&IF(RIGHT(BC$4, 2)="99", "00", RIGHT(BC$4, 2)+1))), IF(LEN(BC4)>4,CONCATENATE(LEFT(BC4,4)+1&"-"&IF(RIGHT(BC4, 2)<"09", "0","")&IF(RIGHT(BC4, 2)="99", "00", RIGHT(BC4,2)+1)),VALUE(BC4+1)))) -> 2058-59 | BE4: =IF(BE$11<>"", IF(INT($G$5+SUM($H$11:BD$11))=$G$5+SUM($H$11:BD$11), VALUE(LEFT(BE$10, 4)), CONCATENATE(LEFT(BE$10,4)&"-"&IF(MID(BE$10, 3, 2)<"09", "0","")&IF(MID(BE$10, 3, 2)="99", "00", MID(BE$10, 3, 2)+1))), IF(AND(BE$5<>INT(BE$5), COUNTA($H$4:BD$4)=ROUNDUP(BE$5, 0)), IF($G$5+SUM($11:$11)=INT($G$5+SUM($11:$11)), VALUE(CONCATENATE(IF(RIGHT(BD$4, 2)="99", LEFT(BD$4, 2)+1, LEFT(BD$4, 2))&RIGHT(BD$4, 2))), CONCATENATE(LEFT(BD$4, 2)&RIGHT(BD$4, 2)&"-"&IF(RIGHT(BD$4, 2)<"09", "0", "")&IF(RIGHT(BD$4, 2)="99", "00", RIGHT(BD$4, 2)+1))), IF(LEN(BD4)>4,CONCATENATE(LEFT(BD4,4)+1&"-"&IF(RIGHT(BD4, 2)<"09", "0","")&IF(RIGHT(BD4, 2)="99", "00", RIGHT(BD4,2)+1)),VALUE(BD4+1)))) -> 2059-60 | BF4: =IF(BF$11<>"", IF(INT($G$5+SUM($H$11:BE$11))=$G$5+SUM($H$11:BE$11), VALUE(LEFT(BF$10, 4)), CONCATENATE(LEFT(BF$10,4)&"-"&IF(MID(BF$10, 3, 2)<"09", "0","")&IF(MID(BF$10, 3, 2)="99", "00", MID(BF$10, 3, 2)+1))), IF(AND(BF$5<>INT(BF$5), COUNTA($H$4:BE$4)=ROUNDUP(BF$5, 0)), IF($G$5+SUM($11:$11)=INT($G$5+SUM($11:$11)), VALUE(CONCATENATE(IF(RIGHT(BE$4, 2)="99", LEFT(BE$4, 2)+1, LEFT(BE$4, 2))&RIGHT(BE$4, 2))), CONCATENATE(LEFT(BE$4, 2)&RIGHT(BE$4, 2)&"-"&IF(RIGHT(BE$4, 2)<"09", "0", "")&IF(RIGHT(BE$4, 2)="99", "00", RIGHT(BE$4, 2)+1))), IF(LEN(BE4)>4,CONCATENATE(LEFT(BE4,4)+1&"-"&IF(RIGHT(BE4, 2)<"09", "0","")&IF(RIGHT(BE4, 2)="99", "00", RIGHT(BE4,2)+1)),VALUE(BE4+1)))) -> 2060-61 | BG4: =IF(BG$11<>"", IF(INT($G$5+SUM($H$11:BF$11))=$G$5+SUM($H$11:BF$11), VALUE(LEFT(BG$10, 4)), CONCATENATE(LEFT(BG$10,4)&"-"&IF(MID(BG$10, 3, 2)<"09", "0","")&IF(MID(BG$10, 3, 2)="99", "00", MID(BG$10, 3, 2)+1))), IF(AND(BG$5<>INT(BG$5), COUNTA($H$4:BF$4)=ROUNDUP(BG$5, 0)), IF($G$5+SUM($11:$11)=INT($G$5+SUM($11:$11)), VALUE(CONCATENATE(IF(RIGHT(BF$4, 2)="99", LEFT(BF$4, 2)+1, LEFT(BF$4, 2))&RIGHT(BF$4, 2))), CONCATENATE(LEFT(BF$4, 2)&RIGHT(BF$4, 2)&"-"&IF(RIGHT(BF$4, 2)<"09", "0", "")&IF(RIGHT(BF$4, 2)="99", "00", RIGHT(BF$4, 2)+1))), IF(LEN(BF4)>4,CONCATENATE(LEFT(BF4,4)+1&"-"&IF(RIGHT(BF4, 2)<"09", "0","")&IF(RIGHT(BF4, 2)="99", "00", RIGHT(BF4,2)+1)),VALUE(BF4+1)))) -> 2061-62 | BH4: =IF(BH$11<>"", IF(INT($G$5+SUM($H$11:BG$11))=$G$5+SUM($H$11:BG$11), VALUE(LEFT(BH$10, 4)), CONCATENATE(LEFT(BH$10,4)&"-"&IF(MID(BH$10, 3, 2)<"09", "0","")&IF(MID(BH$10, 3, 2)="99", "00", MID(BH$10, 3, 2)+1))), IF(AND(BH$5<>INT(BH$5), COUNTA($H$4:BG$4)=ROUNDUP(BH$5, 0)), IF($G$5+SUM($11:$11)=INT($G$5+SUM($11:$11)), VALUE(CONCATENATE(IF(RIGHT(BG$4, 2)="99", LEFT(BG$4, 2)+1, LEFT(BG$4, 2))&RIGHT(BG$4, 2))), CONCATENATE(LEFT(BG$4, 2)&RIGHT(BG$4, 2)&"-"&IF(RIGHT(BG$4, 2)<"09", "0", "")&IF(RIGHT(BG$4, 2)="99", "00", RIGHT(BG$4, 2)+1))), IF(LEN(BG4)>4,CONCATENATE(LEFT(BG4,4)+1&"-"&IF(RIGHT(BG4, 2)<"09", "0","")&IF(RIGHT(BG4, 2)="99", "00", RIGHT(BG4,2)+1)),VALUE(BG4+1)))) -> 2062-63 | BI4: =IF(BI$11<>"", IF(INT($G$5+SUM($H$11:BH$11))=$G$5+SUM($H$11:BH$11), VALUE(LEFT(BI$10, 4)), CONCATENATE(LEFT(BI$10,4)&"-"&IF(MID(BI$10, 3, 2)<"09", "0","")&IF(MID(BI$10, 3, 2)="99", "00", MID(BI$10, 3, 2)+1))), IF(AND(BI$5<>INT(BI$5), COUNTA($H$4:BH$4)=ROUNDUP(BI$5, 0)), IF($G$5+SUM($11:$11)=INT($G$5+SUM($11:$11)), VALUE(CONCATENATE(IF(RIGHT(BH$4, 2)="99", LEFT(BH$4, 2)+1, LEFT(BH$4, 2))&RIGHT(BH$4, 2))), CONCATENATE(LEFT(BH$4, 2)&RIGHT(BH$4, 2)&"-"&IF(RIGHT(BH$4, 2)<"09", "0", "")&IF(RIGHT(BH$4, 2)="99", "00", RIGHT(BH$4, 2)+1))), IF(LEN(BH4)>4,CONCATENATE(LEFT(BH4,4)+1&"-"&IF(RIGHT(BH4, 2)<"09", "0","")&IF(RIGHT(BH4, 2)="99", "00", RIGHT(BH4,2)+1)),VALUE(BH4+1)))) -> 2063-64 | BJ4: =IF(BJ$11<>"", IF(INT($G$5+SUM($H$11:BI$11))=$G$5+SUM($H$11:BI$11), VALUE(LEFT(BJ$10, 4)), CONCATENATE(LEFT(BJ$10,4)&"-"&IF(MID(BJ$10, 3, 2)<"09", "0","")&IF(MID(BJ$10, 3, 2)="99", "00", MID(BJ$10, 3, 2)+1))), IF(AND(BJ$5<>INT(BJ$5), COUNTA($H$4:BI$4)=ROUNDUP(BJ$5, 0)), IF($G$5+SUM($11:$11)=INT($G$5+SUM($11:$11)), VALUE(CONCATENATE(IF(RIGHT(BI$4, 2)="99", LEFT(BI$4, 2)+1, LEFT(BI$4, 2))&RIGHT(BI$4, 2))), CONCATENATE(LEFT(BI$4, 2)&RIGHT(BI$4, 2)&"-"&IF(RIGHT(BI$4, 2)<"09", "0", "")&IF(RIGHT(BI$4, 2)="99", "00", RIGHT(BI$4, 2)+1))), IF(LEN(BI4)>4,CONCATENATE(LEFT(BI4,4)+1&"-"&IF(RIGHT(BI4, 2)<"09", "0","")&IF(RIGHT(BI4, 2)="99", "00", RIGHT(BI4,2)+1)),VALUE(BI4+1)))) -> 2064-65 | BK4: =IF(BK$11<>"", IF(INT($G$5+SUM($H$11:BJ$11))=$G$5+SUM($H$11:BJ$11), VALUE(LEFT(BK$10, 4)), CONCATENATE(LEFT(BK$10,4)&"-"&IF(MID(BK$10, 3, 2)<"09", "0","")&IF(MID(BK$10, 3, 2)="99", "00", MID(BK$10, 3, 2)+1))), IF(AND(BK$5<>INT(BK$5), COUNTA($H$4:BJ$4)=ROUNDUP(BK$5, 0)), IF($G$5+SUM($11:$11)=INT($G$5+SUM($11:$11)), VALUE(CONCATENATE(IF(RIGHT(BJ$4, 2)="99", LEFT(BJ$4, 2)+1, LEFT(BJ$4, 2))&RIGHT(BJ$4, 2))), CONCATENATE(LEFT(BJ$4, 2)&RIGHT(BJ$4, 2)&"-"&IF(RIGHT(BJ$4, 2)<"09", "0", "")&IF(RIGHT(BJ$4, 2)="99", "00", RIGHT(BJ$4, 2)+1))), IF(LEN(BJ4)>4,CONCATENATE(LEFT(BJ4,4)+1&"-"&IF(RIGHT(BJ4, 2)<"09", "0","")&IF(RIGHT(BJ4, 2)="99", "00", RIGHT(BJ4,2)+1)),VALUE(BJ4+1)))) -> 2065-66 | BL4: =IF(BL$11<>"", IF(INT($G$5+SUM($H$11:BK$11))=$G$5+SUM($H$11:BK$11), VALUE(LEFT(BL$10, 4)), CONCATENATE(LEFT(BL$10,4)&"-"&IF(MID(BL$10, 3, 2)<"09", "0","")&IF(MID(BL$10, 3, 2)="99", "00", MID(BL$10, 3, 2)+1))), IF(AND(BL$5<>INT(BL$5), COUNTA($H$4:BK$4)=ROUNDUP(BL$5, 0)), IF($G$5+SUM($11:$11)=INT($G$5+SUM($11:$11)), VALUE(CONCATENATE(IF(RIGHT(BK$4, 2)="99", LEFT(BK$4, 2)+1, LEFT(BK$4, 2))&RIGHT(BK$4, 2))), CONCATENATE(LEFT(BK$4, 2)&RIGHT(BK$4, 2)&"-"&IF(RIGHT(BK$4, 2)<"09", "0", "")&IF(RIGHT(BK$4, 2)="99", "00", RIGHT(BK$4, 2)+1))), IF(LEN(BK4)>4,CONCATENATE(LEFT(BK4,4)+1&"-"&IF(RIGHT(BK4, 2)<"09", "0","")&IF(RIGHT(BK4, 2)="99", "00", RIGHT(BK4,2)+1)),VALUE(BK4+1)))) -> 2066-67 | BM4: =IF(BM$11<>"", IF(INT($G$5+SUM($H$11:BL$11))=$G$5+SUM($H$11:BL$11), VALUE(LEFT(BM$10, 4)), CONCATENATE(LEFT(BM$10,4)&"-"&IF(MID(BM$10, 3, 2)<"09", "0","")&IF(MID(BM$10, 3, 2)="99", "00", MID(BM$10, 3, 2)+1))), IF(AND(BM$5<>INT(BM$5), COUNTA($H$4:BL$4)=ROUNDUP(BM$5, 0)), IF($G$5+SUM($11:$11)=INT($G$5+SUM($11:$11)), VALUE(CONCATENATE(IF(RIGHT(BL$4, 2)="99", LEFT(BL$4, 2)+1, LEFT(BL$4, 2))&RIGHT(BL$4, 2))), CONCATENATE(LEFT(BL$4, 2)&RIGHT(BL$4, 2)&"-"&IF(RIGHT(BL$4, 2)<"09", "0", "")&IF(RIGHT(BL$4, 2)="99", "00", RIGHT(BL$4, 2)+1))), IF(LEN(BL4)>4,CONCATENATE(LEFT(BL4,4)+1&"-"&IF(RIGHT(BL4, 2)<"09", "0","")&IF(RIGHT(BL4, 2)="99", "00", RIGHT(BL4,2)+1)),VALUE(BL4+1)))) -> 2067-68 | BN4: =IF(BN$11<>"", IF(INT($G$5+SUM($H$11:BM$11))=$G$5+SUM($H$11:BM$11), VALUE(LEFT(BN$10, 4)), CONCATENATE(LEFT(BN$10,4)&"-"&IF(MID(BN$10, 3, 2)<"09", "0","")&IF(MID(BN$10, 3, 2)="99", "00", MID(BN$10, 3, 2)+1))), IF(AND(BN$5<>INT(BN$5), COUNTA($H$4:BM$4)=ROUNDUP(BN$5, 0)), IF($G$5+SUM($11:$11)=INT($G$5+SUM($11:$11)), VALUE(CONCATENATE(IF(RIGHT(BM$4, 2)="99", LEFT(BM$4, 2)+1, LEFT(BM$4, 2))&RIGHT(BM$4, 2))), CONCATENATE(LEFT(BM$4, 2)&RIGHT(BM$4, 2)&"-"&IF(RIGHT(BM$4, 2)<"09", "0", "")&IF(RIGHT(BM$4, 2)="99", "00", RIGHT(BM$4, 2)+1))), IF(LEN(BM4)>4,CONCATENATE(LEFT(BM4,4)+1&"-"&IF(RIGHT(BM4, 2)<"09", "0","")&IF(RIGHT(BM4, 2)="99", "00", RIGHT(BM4,2)+1)),VALUE(BM4+1)))) -> 2068-69 | BO4: =IF(BO$11<>"", IF(INT($G$5+SUM($H$11:BN$11))=$G$5+SUM($H$11:BN$11), VALUE(LEFT(BO$10, 4)), CONCATENATE(LEFT(BO$10,4)&"-"&IF(MID(BO$10, 3, 2)<"09", "0","")&IF(MID(BO$10, 3, 2)="99", "00", MID(BO$10, 3, 2)+1))), IF(AND(BO$5<>INT(BO$5), COUNTA($H$4:BN$4)=ROUNDUP(BO$5, 0)), IF($G$5+SUM($11:$11)=INT($G$5+SUM($11:$11)), VALUE(CONCATENATE(IF(RIGHT(BN$4, 2)="99", LEFT(BN$4, 2)+1, LEFT(BN$4, 2))&RIGHT(BN$4, 2))), CONCATENATE(LEFT(BN$4, 2)&RIGHT(BN$4, 2)&"-"&IF(RIGHT(BN$4, 2)<"09", "0", "")&IF(RIGHT(BN$4, 2)="99", "00", RIGHT(BN$4, 2)+1))), IF(LEN(BN4)>4,CONCATENATE(LEFT(BN4,4)+1&"-"&IF(RIGHT(BN4, 2)<"09", "0","")&IF(RIGHT(BN4, 2)="99", "00", RIGHT(BN4,2)+1)),VALUE(BN4+1)))) -> 2069-70 | BP4: =IF(BP$11<>"", IF(INT($G$5+SUM($H$11:BO$11))=$G$5+SUM($H$11:BO$11), VALUE(LEFT(BP$10, 4)), CONCATENATE(LEFT(BP$10,4)&"-"&IF(MID(BP$10, 3, 2)<"09", "0","")&IF(MID(BP$10, 3, 2)="99", "00", MID(BP$10, 3, 2)+1))), IF(AND(BP$5<>INT(BP$5), COUNTA($H$4:BO$4)=ROUNDUP(BP$5, 0)), IF($G$5+SUM($11:$11)=INT($G$5+SUM($11:$11)), VALUE(CONCATENATE(IF(RIGHT(BO$4, 2)="99", LEFT(BO$4, 2)+1, LEFT(BO$4, 2))&RIGHT(BO$4, 2))), CONCATENATE(LEFT(BO$4, 2)&RIGHT(BO$4, 2)&"-"&IF(RIGHT(BO$4, 2)<"09", "0", "")&IF(RIGHT(BO$4, 2)="99", "00", RIGHT(BO$4, 2)+1))), IF(LEN(BO4)>4,CONCATENATE(LEFT(BO4,4)+1&"-"&IF(RIGHT(BO4, 2)<"09", "0","")&IF(RIGHT(BO4, 2)="99", "00", RIGHT(BO4,2)+1)),VALUE(BO4+1)))) -> 2070-71 | BQ4: =IF(BQ$11<>"", IF(INT($G$5+SUM($H$11:BP$11))=$G$5+SUM($H$11:BP$11), VALUE(LEFT(BQ$10, 4)), CONCATENATE(LEFT(BQ$10,4)&"-"&IF(MID(BQ$10, 3, 2)<"09", "0","")&IF(MID(BQ$10, 3, 2)="99", "00", MID(BQ$10, 3, 2)+1))), IF(AND(BQ$5<>INT(BQ$5), COUNTA($H$4:BP$4)=ROUNDUP(BQ$5, 0)), IF($G$5+SUM($11:$11)=INT($G$5+SUM($11:$11)), VALUE(CONCATENATE(IF(RIGHT(BP$4, 2)="99", LEFT(BP$4, 2)+1, LEFT(BP$4, 2))&RIGHT(BP$4, 2))), CONCATENATE(LEFT(BP$4, 2)&RIGHT(BP$4, 2)&"-"&IF(RIGHT(BP$4, 2)<"09", "0", "")&IF(RIGHT(BP$4, 2)="99", "00", RIGHT(BP$4, 2)+1))), IF(LEN(BP4)>4,CONCATENATE(LEFT(BP4,4)+1&"-"&IF(RIGHT(BP4, 2)<"09", "0","")&IF(RIGHT(BP4, 2)="99", "00", RIGHT(BP4,2)+1)),VALUE(BP4+1)))) -> 2071-72 | BR4: =IF(BR$11<>"", IF(INT($G$5+SUM($H$11:BQ$11))=$G$5+SUM($H$11:BQ$11), VALUE(LEFT(BR$10, 4)), CONCATENATE(LEFT(BR$10,4)&"-"&IF(MID(BR$10, 3, 2)<"09", "0","")&IF(MID(BR$10, 3, 2)="99", "00", MID(BR$10, 3, 2)+1))), IF(AND(BR$5<>INT(BR$5), COUNTA($H$4:BQ$4)=ROUNDUP(BR$5, 0)), IF($G$5+SUM($11:$11)=INT($G$5+SUM($11:$11)), VALUE(CONCATENATE(IF(RIGHT(BQ$4, 2)="99", LEFT(BQ$4, 2)+1, LEFT(BQ$4, 2))&RIGHT(BQ$4, 2))), CONCATENATE(LEFT(BQ$4, 2)&RIGHT(BQ$4, 2)&"-"&IF(RIGHT(BQ$4, 2)<"09", "0", "")&IF(RIGHT(BQ$4, 2)="99", "00", RIGHT(BQ$4, 2)+1))), IF(LEN(BQ4)>4,CONCATENATE(LEFT(BQ4,4)+1&"-"&IF(RIGHT(BQ4, 2)<"09", "0","")&IF(RIGHT(BQ4, 2)="99", "00", RIGHT(BQ4,2)+1)),VALUE(BQ4+1)))) -> 2072-73 | BS4: =IF(BS$11<>"", IF(INT($G$5+SUM($H$11:BR$11))=$G$5+SUM($H$11:BR$11), VALUE(LEFT(BS$10, 4)), CONCATENATE(LEFT(BS$10,4)&"-"&IF(MID(BS$10, 3, 2)<"09", "0","")&IF(MID(BS$10, 3, 2)="99", "00", MID(BS$10, 3, 2)+1))), IF(AND(BS$5<>INT(BS$5), COUNTA($H$4:BR$4)=ROUNDUP(BS$5, 0)), IF($G$5+SUM($11:$11)=INT($G$5+SUM($11:$11)), VALUE(CONCATENATE(IF(RIGHT(BR$4, 2)="99", LEFT(BR$4, 2)+1, LEFT(BR$4, 2))&RIGHT(BR$4, 2))), CONCATENATE(LEFT(BR$4, 2)&RIGHT(BR$4, 2)&"-"&IF(RIGHT(BR$4, 2)<"09", "0", "")&IF(RIGHT(BR$4, 2)="99", "00", RIGHT(BR$4, 2)+1))), IF(LEN(BR4)>4,CONCATENATE(LEFT(BR4,4)+1&"-"&IF(RIGHT(BR4, 2)<"09", "0","")&IF(RIGHT(BR4, 2)="99", "00", RIGHT(BR4,2)+1)),VALUE(BR4+1)))) -> 2073-74 | BT4: =IF(BT$11<>"", IF(INT($G$5+SUM($H$11:BS$11))=$G$5+SUM($H$11:BS$11), VALUE(LEFT(BT$10, 4)), CONCATENATE(LEFT(BT$10,4)&"-"&IF(MID(BT$10, 3, 2)<"09", "0","")&IF(MID(BT$10, 3, 2)="99", "00", MID(BT$10, 3, 2)+1))), IF(AND(BT$5<>INT(BT$5), COUNTA($H$4:BS$4)=ROUNDUP(BT$5, 0)), IF($G$5+SUM($11:$11)=INT($G$5+SUM($11:$11)), VALUE(CONCATENATE(IF(RIGHT(BS$4, 2)="99", LEFT(BS$4, 2)+1, LEFT(BS$4, 2))&RIGHT(BS$4, 2))), CONCATENATE(LEFT(BS$4, 2)&RIGHT(BS$4, 2)&"-"&IF(RIGHT(BS$4, 2)<"09", "0", "")&IF(RIGHT(BS$4, 2)="99", "00", RIGHT(BS$4, 2)+1))), IF(LEN(BS4)>4,CONCATENATE(LEFT(BS4,4)+1&"-"&IF(RIGHT(BS4, 2)<"09", "0","")&IF(RIGHT(BS4, 2)="99", "00", RIGHT(BS4,2)+1)),VALUE(BS4+1)))) -> 2074-75 | BU4: =IF(BU$11<>"", IF(INT($G$5+SUM($H$11:BT$11))=$G$5+SUM($H$11:BT$11), VALUE(LEFT(BU$10, 4)), CONCATENATE(LEFT(BU$10,4)&"-"&IF(MID(BU$10, 3, 2)<"09", "0","")&IF(MID(BU$10, 3, 2)="99", "00", MID(BU$10, 3, 2)+1))), IF(AND(BU$5<>INT(BU$5), COUNTA($H$4:BT$4)=ROUNDUP(BU$5, 0)), IF($G$5+SUM($11:$11)=INT($G$5+SUM($11:$11)), VALUE(CONCATENATE(IF(RIGHT(BT$4, 2)="99", LEFT(BT$4, 2)+1, LEFT(BT$4, 2))&RIGHT(BT$4, 2))), CONCATENATE(LEFT(BT$4, 2)&RIGHT(BT$4, 2)&"-"&IF(RIGHT(BT$4, 2)<"09", "0", "")&IF(RIGHT(BT$4, 2)="99", "00", RIGHT(BT$4, 2)+1))), IF(LEN(BT4)>4,CONCATENATE(LEFT(BT4,4)+1&"-"&IF(RIGHT(BT4, 2)<"09", "0","")&IF(RIGHT(BT4, 2)="99", "00", RIGHT(BT4,2)+1)),VALUE(BT4+1)))) -> 2075-76 | BV4: =IF(BV$11<>"", IF(INT($G$5+SUM($H$11:BU$11))=$G$5+SUM($H$11:BU$11), VALUE(LEFT(BV$10, 4)), CONCATENATE(LEFT(BV$10,4)&"-"&IF(MID(BV$10, 3, 2)<"09", "0","")&IF(MID(BV$10, 3, 2)="99", "00", MID(BV$10, 3, 2)+1))), IF(AND(BV$5<>INT(BV$5), COUNTA($H$4:BU$4)=ROUNDUP(BV$5, 0)), IF($G$5+SUM($11:$11)=INT($G$5+SUM($11:$11)), VALUE(CONCATENATE(IF(RIGHT(BU$4, 2)="99", LEFT(BU$4, 2)+1, LEFT(BU$4, 2))&RIGHT(BU$4, 2))), CONCATENATE(LEFT(BU$4, 2)&RIGHT(BU$4, 2)&"-"&IF(RIGHT(BU$4, 2)<"09", "0", "")&IF(RIGHT(BU$4, 2)="99", "00", RIGHT(BU$4, 2)+1))), IF(LEN(BU4)>4,CONCATENATE(LEFT(BU4,4)+1&"-"&IF(RIGHT(BU4, 2)<"09", "0","")&IF(RIGHT(BU4, 2)="99", "00", RIGHT(BU4,2)+1)),VALUE(BU4+1)))) -> 2076-77 | BW4: =IF(BW$11<>"", IF(INT($G$5+SUM($H$11:BV$11))=$G$5+SUM($H$11:BV$11), VALUE(LEFT(BW$10, 4)), CONCATENATE(LEFT(BW$10,4)&"-"&IF(MID(BW$10, 3, 2)<"09", "0","")&IF(MID(BW$10, 3, 2)="99", "00", MID(BW$10, 3, 2)+1))), IF(AND(BW$5<>INT(BW$5), COUNTA($H$4:BV$4)=ROUNDUP(BW$5, 0)), IF($G$5+SUM($11:$11)=INT($G$5+SUM($11:$11)), VALUE(CONCATENATE(IF(RIGHT(BV$4, 2)="99", LEFT(BV$4, 2)+1, LEFT(BV$4, 2))&RIGHT(BV$4, 2))), CONCATENATE(LEFT(BV$4, 2)&RIGHT(BV$4, 2)&"-"&IF(RIGHT(BV$4, 2)<"09", "0", "")&IF(RIGHT(BV$4, 2)="99", "00", RIGHT(BV$4, 2)+1))), IF(LEN(BV4)>4,CONCATENATE(LEFT(BV4,4)+1&"-"&IF(RIGHT(BV4, 2)<"09", "0","")&IF(RIGHT(BV4, 2)="99", "00", RIGHT(BV4,2)+1)),VALUE(BV4+1)))) -> 2077-78 | BX4: =IF(BX$11<>"", IF(INT($G$5+SUM($H$11:BW$11))=$G$5+SUM($H$11:BW$11), VALUE(LEFT(BX$10, 4)), CONCATENATE(LEFT(BX$10,4)&"-"&IF(MID(BX$10, 3, 2)<"09", "0","")&IF(MID(BX$10, 3, 2)="99", "00", MID(BX$10, 3, 2)+1))), IF(AND(BX$5<>INT(BX$5), COUNTA($H$4:BW$4)=ROUNDUP(BX$5, 0)), IF($G$5+SUM($11:$11)=INT($G$5+SUM($11:$11)), VALUE(CONCATENATE(IF(RIGHT(BW$4, 2)="99", LEFT(BW$4, 2)+1, LEFT(BW$4, 2))&RIGHT(BW$4, 2))), CONCATENATE(LEFT(BW$4, 2)&RIGHT(BW$4, 2)&"-"&IF(RIGHT(BW$4, 2)<"09", "0", "")&IF(RIGHT(BW$4, 2)="99", "00", RIGHT(BW$4, 2)+1))), IF(LEN(BW4)>4,CONCATENATE(LEFT(BW4,4)+1&"-"&IF(RIGHT(BW4, 2)<"09", "0","")&IF(RIGHT(BW4, 2)="99", "00", RIGHT(BW4,2)+1)),VALUE(BW4+1)))) -> 2078-79 | BY4: =IF(BY$11<>"", IF(INT($G$5+SUM($H$11:BX$11))=$G$5+SUM($H$11:BX$11), VALUE(LEFT(BY$10, 4)), CONCATENATE(LEFT(BY$10,4)&"-"&IF(MID(BY$10, 3, 2)<"09", "0","")&IF(MID(BY$10, 3, 2)="99", "00", MID(BY$10, 3, 2)+1))), IF(AND(BY$5<>INT(BY$5), COUNTA($H$4:BX$4)=ROUNDUP(BY$5, 0)), IF($G$5+SUM($11:$11)=INT($G$5+SUM($11:$11)), VALUE(CONCATENATE(IF(RIGHT(BX$4, 2)="99", LEFT(BX$4, 2)+1, LEFT(BX$4, 2))&RIGHT(BX$4, 2))), CONCATENATE(LEFT(BX$4, 2)&RIGHT(BX$4, 2)&"-"&IF(RIGHT(BX$4, 2)<"09", "0", "")&IF(RIGHT(BX$4, 2)="99", "00", RIGHT(BX$4, 2)+1))), IF(LEN(BX4)>4,CONCATENATE(LEFT(BX4,4)+1&"-"&IF(RIGHT(BX4, 2)<"09", "0","")&IF(RIGHT(BX4, 2)="99", "00", RIGHT(BX4,2)+1)),VALUE(BX4+1)))) -> 2079-80 | BZ4: =IF(BZ$11<>"", IF(INT($G$5+SUM($H$11:BY$11))=$G$5+SUM($H$11:BY$11), VALUE(LEFT(BZ$10, 4)), CONCATENATE(LEFT(BZ$10,4)&"-"&IF(MID(BZ$10, 3, 2)<"09", "0","")&IF(MID(BZ$10, 3, 2)="99", "00", MID(BZ$10, 3, 2)+1))), IF(AND(BZ$5<>INT(BZ$5), COUNTA($H$4:BY$4)=ROUNDUP(BZ$5, 0)), IF($G$5+SUM($11:$11)=INT($G$5+SUM($11:$11)), VALUE(CONCATENATE(IF(RIGHT(BY$4, 2)="99", LEFT(BY$4, 2)+1, LEFT(BY$4, 2))&RIGHT(BY$4, 2))), CONCATENATE(LEFT(BY$4, 2)&RIGHT(BY$4, 2)&"-"&IF(RIGHT(BY$4, 2)<"09", "0", "")&IF(RIGHT(BY$4, 2)="99", "00", RIGHT(BY$4, 2)+1))), IF(LEN(BY4)>4,CONCATENATE(LEFT(BY4,4)+1&"-"&IF(RIGHT(BY4, 2)<"09", "0","")&IF(RIGHT(BY4, 2)="99", "00", RIGHT(BY4,2)+1)),VALUE(BY4+1)))) -> 2080-81
G5: =IF(LEN($H$9)=4, 0, IF(AND(ISNUMBER(SEARCH("Ausnet", $F$8)), Intro!$J$8="Electricity transmission module"), 0.25, 0.5)) -> 0 | H5: =H$11 -> 5 | I5: =IF(I$11<>"",SUM(ROUNDUP(H$5,0),I$11),H$5) -> 5 | J5: =IF(J$11<>"",SUM(ROUNDUP(I$5,0),J$11),I$5) -> 5 | K5: 5 | L5: 5 | M5: 10.5 | N5: 10.5 | O5: 10.5 | P5: 10.5 | Q5: 10.5 | R5: 10.5 | S5: 16 | T5: 16 | U5: 16 | V5: 16 | W5: 16 | X5: 16 | Y5: 16 | Z5: 16 | AA5: 16 | AB5: 16 | AC5: 16 | AD5: 16 | AE5: 16 | AF5: 16 | AG5: 16 | AH5: 16 | AI5: 16 | AJ5: 16 | AK5: 16 | AL5: 16 | AM5: 16 | AN5: 16 | AO5: 16 | AP5: 16 | AQ5: 16 | AR5: 16 | AS5: 16 | AT5: 16 | AU5: 16 | AV5: 16 | AW5: 16 | AX5: 16 | AY5: 16 | AZ5: 16 | BA5: 16 | BB5: 16 | BC5: 16 | BD5: 16 | BE5: 16 | BF5: 16 | BG5: 16 | BH5: 16 | BI5: 16 | BJ5: 16 | BK5: 16 | BL5: 16 | BM5: 16 | BN5: 16 | BO5: 16 | BP5: 16 | BQ5: 16 | BR5: 16 | BS5: 16 | BT5: 16 | BU5: 16 | BV5: 16 | BW5: 16 | BX5: 16 | BY5: 16 | BZ5: 16
D6: General information
E8: Business name | F8: Powercor
E9: First regulatory year for tracking | H9: 2011 | I9: =IF(ROUNDUP(J$5, 0)=COUNTA($H$9:H$9), "Input for next period", "") ->  | J9: =IF(ROUNDUP(K$5, 0)=COUNTA($H$9:I$9), "Input for next period", "") ->  | K9: =IF(ROUNDUP(L$5, 0)=COUNTA($H$9:J$9), "Input for next period", "") ->  | L9: =IF(ROUNDUP(M$5, 0)=COUNTA($H$9:K$9), "Input for next period", "") ->  | M9: =IF(ROUNDUP(N$5, 0)=COUNTA($H$9:L$9), "Input for next period", "") ->  | N9: =IF(ROUNDUP(O$5, 0)=COUNTA($H$9:M$9), "Input for next period", "") ->  | O9: =IF(ROUNDUP(P$5, 0)=COUNTA($H$9:N$9), "Input for next period", "") ->  | P9: =IF(ROUNDUP(Q$5, 0)=COUNTA($H$9:O$9), "Input for next period", "") ->  | Q9: =IF(ROUNDUP(R$5, 0)=COUNTA($H$9:P$9), "Input for next period", "") ->  | R9: =IF(ROUNDUP(S$5, 0)=COUNTA($H$9:Q$9), "Input for next period", "") ->  | S9: =IF(ROUNDUP(T$5, 0)=COUNTA($H$9:R$9), "Input for next period", "") ->  | T9: =IF(ROUNDUP(U$5, 0)=COUNTA($H$9:S$9), "Input for next period", "") ->  | U9: =IF(ROUNDUP(V$5, 0)=COUNTA($H$9:T$9), "Input for next period", "") ->  | V9: =IF(ROUNDUP(W$5, 0)=COUNTA($H$9:U$9), "Input for next period", "") ->  | W9: =IF(ROUNDUP(X$5, 0)=COUNTA($H$9:V$9), "Input for next period", "") ->  | X9: =IF(ROUNDUP(Y$5, 0)=COUNTA($H$9:W$9), "Input for next period", "") -> Input for next period | Y9: =IF(ROUNDUP(Z$5, 0)=COUNTA($H$9:X$9), "Input for next period", "") ->  | Z9: =IF(ROUNDUP(AA$5, 0)=COUNTA($H$9:Y$9), "Input for next period", "") ->  | AA9: =IF(ROUNDUP(AB$5, 0)=COUNTA($H$9:Z$9), "Input for next period", "") ->  | AB9: =IF(ROUNDUP(AC$5, 0)=COUNTA($H$9:AA$9), "Input for next period", "") ->  | AC9: =IF(ROUNDUP(AD$5, 0)=COUNTA($H$9:AB$9), "Input for next period", "") ->  | AD9: =IF(ROUNDUP(AE$5, 0)=COUNTA($H$9:AC$9), "Input for next period", "") ->  | AE9: =IF(ROUNDUP(AF$5, 0)=COUNTA($H$9:AD$9), "Input for next period", "") ->  | AF9: =IF(ROUNDUP(AG$5, 0)=COUNTA($H$9:AE$9), "Input for next period", "") ->  | AG9: =IF(ROUNDUP(AH$5, 0)=COUNTA($H$9:AF$9), "Input for next period", "") ->  | AH9: =IF(ROUNDUP(AI$5, 0)=COUNTA($H$9:AG$9), "Input for next period", "") ->  | AI9: =IF(ROUNDUP(AJ$5, 0)=COUNTA($H$9:AH$9), "Input for next period", "") ->  | AJ9: =IF(ROUNDUP(AK$5, 0)=COUNTA($H$9:AI$9), "Input for next period", "") ->  | AK9: =IF(ROUNDUP(AL$5, 0)=COUNTA($H$9:AJ$9), "Input for next period", "") ->  | AL9: =IF(ROUNDUP(AM$5, 0)=COUNTA($H$9:AK$9), "Input for next period", "") ->  | AM9: =IF(ROUNDUP(AN$5, 0)=COUNTA($H$9:AL$9), "Input for next period", "") ->  | AN9: =IF(ROUNDUP(AO$5, 0)=COUNTA($H$9:AM$9), "Input for next period", "") ->  | AO9: =IF(ROUNDUP(AP$5, 0)=COUNTA($H$9:AN$9), "Input for next period", "") ->  | AP9: =IF(ROUNDUP(AQ$5, 0)=COUNTA($H$9:AO$9), "Input for next period", "") ->  | AQ9: =IF(ROUNDUP(AR$5, 0)=COUNTA($H$9:AP$9), "Input for next period", "") ->  | AR9: =IF(ROUNDUP(AS$5, 0)=COUNTA($H$9:AQ$9), "Input for next period", "") ->  | AS9: =IF(ROUNDUP(AT$5, 0)=COUNTA($H$9:AR$9), "Input for next period", "") ->  | AT9: =IF(ROUNDUP(AU$5, 0)=COUNTA($H$9:AS$9), "Input for next period", "") ->  | AU9: =IF(ROUNDUP(AV$5, 0)=COUNTA($H$9:AT$9), "Input for next period", "") ->  | AV9: =IF(ROUNDUP(AW$5, 0)=COUNTA($H$9:AU$9), "Input for next period", "") ->  | AW9: =IF(ROUNDUP(AX$5, 0)=COUNTA($H$9:AV$9), "Input for next period", "") ->  | AX9: =IF(ROUNDUP(AY$5, 0)=COUNTA($H$9:AW$9), "Input for next period", "") ->  | AY9: =IF(ROUNDUP(AZ$5, 0)=COUNTA($H$9:AX$9), "Input for next period", "") ->  | AZ9: =IF(ROUNDUP(BA$5, 0)=COUNTA($H$9:AY$9), "Input for next period", "") ->  | BA9: =IF(ROUNDUP(BB$5, 0)=COUNTA($H$9:AZ$9), "Input for next period", "") ->  | BB9: =IF(ROUNDUP(BC$5, 0)=COUNTA($H$9:BA$9), "Input for next period", "") ->  | BC9: =IF(ROUNDUP(BD$5, 0)=COUNTA($H$9:BB$9), "Input for next period", "") ->  | BD9: =IF(ROUNDUP(BE$5, 0)=COUNTA($H$9:BC$9), "Input for next period", "") ->  | BE9: =IF(ROUNDUP(BF$5, 0)=COUNTA($H$9:BD$9), "Input for next period", "") ->  | BF9: =IF(ROUNDUP(BG$5, 0)=COUNTA($H$9:BE$9), "Input for next period", "") ->  | BG9: =IF(ROUNDUP(BH$5, 0)=COUNTA($H$9:BF$9), "Input for next period", "") ->  | BH9: =IF(ROUNDUP(BI$5, 0)=COUNTA($H$9:BG$9), "Input for next period", "") ->  | BI9: =IF(ROUNDUP(BJ$5, 0)=COUNTA($H$9:BH$9), "Input for next period", "") ->  | BJ9: =IF(ROUNDUP(BK$5, 0)=COUNTA($H$9:BI$9), "Input for next period", "") ->  | BK9: =IF(ROUNDUP(BL$5, 0)=COUNTA($H$9:BJ$9), "Input for next period", "") ->  | BL9: =IF(ROUNDUP(BM$5, 0)=COUNTA($H$9:BK$9), "Input for next period", "") ->  | BM9: =IF(ROUNDUP(BN$5, 0)=COUNTA($H$9:BL$9), "Input for next period", "") ->  | BN9: =IF(ROUNDUP(BO$5, 0)=COUNTA($H$9:BM$9), "Input for next period", "") ->  | BO9: =IF(ROUNDUP(BP$5, 0)=COUNTA($H$9:BN$9), "Input for next period", "") ->  | BP9: =IF(ROUNDUP(BQ$5, 0)=COUNTA($H$9:BO$9), "Input for next period", "") ->  | BQ9: =IF(ROUNDUP(BR$5, 0)=COUNTA($H$9:BP$9), "Input for next period", "") ->  | BR9: =IF(ROUNDUP(BS$5, 0)=COUNTA($H$9:BQ$9), "Input for next period", "") ->  | BS9: =IF(ROUNDUP(BT$5, 0)=COUNTA($H$9:BR$9), "Input for next period", "") ->  | BT9: =IF(ROUNDUP(BU$5, 0)=COUNTA($H$9:BS$9), "Input for next period", "") ->  | BU9: =IF(ROUNDUP(BV$5, 0)=COUNTA($H$9:BT$9), "Input for next period", "") ->  | BV9: =IF(ROUNDUP(BW$5, 0)=COUNTA($H$9:BU$9), "Input for next period", "") ->  | BW9: =IF(ROUNDUP(BX$5, 0)=COUNTA($H$9:BV$9), "Input for next period", "") ->  | BX9: =IF(ROUNDUP(BY$5, 0)=COUNTA($H$9:BW$9), "Input for next period", "") ->  | BY9: =IF(ROUNDUP(BZ$5, 0)=COUNTA($H$9:BX$9), "Input for next period", "") ->  | BZ9: =IF(ROUNDUP(CA$5, 0)=COUNTA($H$9:BY$9), "Input for next period", "") -> 
E10: Regulatory period | H10: =CONCATENATE(LEFT(H9,4)&"-"&IF(RIGHT(H9, 2)<"06", "0","")&RIGHT(H9,2)-1+H11) -> 2011-15 | M10: 2016-21 | S10: 2021-26
E11: Years in regulatory period | H11: 5 | M11: 5.5 | S11: 5
E13: Lagged inflation approach | F13: All-lagged
E14: =IF($F$13="All-lagged", "Lagged actual", "Actual")& " CPI inflation rate" -> Lagged actual CPI inflation rate | G14: 0.01261261261 | H14: 0.02787663108 | I14: 0.03519907675 | J14: 0.02004008016 | K14: 0.02161100196 | L14: 0.02307692308 | M14: 0.01510859301 | N14: 0.01023255814 | O14: 0.01933701657 | P14: 0.02077687444 | Q14: 0.01592920354 | R14: 0.01219512195 | S14: 0.008605851979 | T14: 0.03498293515 | U14: 0.07831821929 | V14: 0.04051987768 | W14: 0.0242468773
E15: Actual CPI (one year lagged) | F15: =G15/IF($F$13="Partially-lagged", (1+F14), (1+G14)) -> 0.987544484 | G15: 1 | H15: =G15*(1+IF($F$13="Partially-lagged",G14,H14)) -> 1.027876631 | I15: 1.06405694 | J15: 1.085380726 | K15: 1.108836891 | L15: 1.134425434 | M15: 1.151565007 | N15: 1.163348463 | O15: 1.185844151 | P15: =O15*(1+IF($F$13="Partially-lagged",O14,P14)) -> 1.210482286 | Q15: 1.229764305 | R15: 1.24476143 | S15: 1.255473663 | T15: 1.299393817 | U15: 1.401160027 | V15: 1.45793486 | W15: 1.493285227 | X15: 1.493285227 | Y15: 1.493285227 | Z15: 1.493285227 | AA15: 1.493285227 | AB15: 1.493285227 | AC15: 1.493285227 | AD15: 1.493285227 | AE15: 1.493285227 | AF15: 1.493285227 | AG15: 1.493285227 | AH15: 1.493285227 | AI15: 1.493285227 | AJ15: 1.493285227 | AK15: 1.493285227 | AL15: 1.493285227 | AM15: 1.493285227 | AN15: =AM15*(1+IF($F$13="Partially-lagged",AM14,AN14)) -> 1.493285227 | AO15: 1.493285227 | AP15: 1.493285227 | AQ15: 1.493285227 | AR15: 1.493285227 | AS15: 1.493285227 | AT15: 1.493285227 | AU15: 1.493285227 | AV15: 1.493285227 | AW15: 1.493285227 | AX15: 1.493285227 | AY15: 1.493285227 | AZ15: 1.493285227 | BA15: 1.493285227 | BB15: 1.493285227 | BC15: 1.493285227 | BD15: 1.493285227 | BE15: 1.493285227 | BF15: 1.493285227 | BG15: 1.493285227 | BH15: 1.493285227 | BI15: 1.493285227 | BJ15: 1.493285227 | BK15: 1.493285227 | BL15: 1.493285227 | BM15: 1.493285227 | BN15: 1.493285227 | BO15: 1.493285227 | BP15: 1.493285227 | BQ15: 1.493285227 | BR15: 1.493285227 | BS15: 1.493285227 | BT15: =BS15*(1+IF($F$13="Partially-lagged",BS14,BT14)) -> 1.493285227 | BU15: 1.493285227 | BV15: 1.493285227 | BW15: 1.493285227 | BX15: 1.493285227 | BY15: 1.493285227 | BZ15: 1.493285227
E17: Nominal vanilla WACC (fixed real time varying) | H17: 0.09716905348 | I17: 0.1049851284 | J17: 0.08880421582 | K17: 0.09048103844 | L17: 0.09204578194 | M17: 0.05236310284 | N17: 0.0467298044 | O17: 0.05565648259 | P17: 0.0565862118 | Q17: 0.05008580414 | R17: 0.02390216175 | S17: 0.03557462675 | T17: 0.06173789371 | U17: 0.1067227992 | V17: 0.06812500017 | W17: 0.05161632898
E18: Nominal vanilla WACC index | F18: =G18/(1+G17) -> 1 | G18: 1 | H18: =G18*(1+H17) -> 1.097169053 | I18: 1.212355487 | J18: 1.320017766 | K18: 1.439454344 | L18: 1.571950045 | M18: 1.654262227 | N18: 1.731565577 | O18: 1.827938426 | P18: 1.931374537 | Q18: 2.028108984
E19: Real vanilla WACC | H19: 0.06741317032 | I19: 0.06741317032 | J19: 0.06741317032 | K19: 0.06741317032 | L19: 0.06741317032 | M19: 0.0367000241 | N19: 0.03612756881 | O19: 0.03563047885 | P19: 0.03508047475 | Q19: 0.03362104414 | R19: 0.01156599113 | S19: 0.02673866577 | T19: 0.02585062773 | U19: 0.02634155618 | V19: 0.02653012507 | W19: 0.02672153784
E20: Real vanilla WACC index | F20: =G20/(1+G19) -> 1 | G20: 1 | H20: =G20*(1+H19) -> 1.06741317 | I20: 1.139370876 | J20: 1.216179479 | K20: 1.298165993 | L20: 1.385679479 | M20: 1.436533949 | N20: 1.488432428 | O20: 1.541465988 | P20: 1.595541347 | Q20: 1.649185113 | R20: 1.668259573 | S20: 1.712866608 | T20: 1.757145286 | U20: 1.803431227 | V20: 1.851276483 | W20: 1.900745437 | X20: 1.900745437 | Y20: 1.900745437 | Z20: 1.900745437 | AA20: 1.900745437 | AB20: 1.900745437 | AC20: 1.900745437 | AD20: 1.900745437 | AE20: 1.900745437 | AF20: 1.900745437 | AG20: 1.900745437 | AH20: 1.900745437 | AI20: 1.900745437 | AJ20: 1.900745437 | AK20: 1.900745437 | AL20: 1.900745437 | AM20: 1.900745437 | AN20: 1.900745437 | AO20: 1.900745437 | AP20: 1.900745437 | AQ20: 1.900745437 | AR20: 1.900745437 | AS20: 1.900745437 | AT20: 1.900745437 | AU20: 1.900745437 | AV20: 1.900745437 | AW20: 1.900745437 | AX20: 1.900745437 | AY20: 1.900745437 | AZ20: 1.900745437 | BA20: 1.900745437 | BB20: 1.900745437 | BC20: 1.900745437 | BD20: 1.900745437 | BE20: 1.900745437 | BF20: 1.900745437 | BG20: 1.900745437 | BH20: 1.900745437 | BI20: 1.900745437 | BJ20: 1.900745437 | BK20: 1.900745437 | BL20: 1.900745437 | BM20: 1.900745437 | BN20: 1.900745437 | BO20: 1.900745437 | BP20: 1.900745437 | BQ20: 1.900745437 | BR20: 1.900745437 | BS20: 1.900745437 | BT20: =BS20*(1+BT19) -> 1.900745437 | BU20: 1.900745437 | BV20: 1.900745437 | BW20: 1.900745437 | BX20: 1.900745437 | BY20: 1.900745437 | BZ20: 1.900745437
E22: Partial year extension? | F22: No
D24: Starting RAB and actual gross capex - As incurred ($m, nominal)
E25: Asset class | G25: ="RAB (closing as at "&$G$4&")" -> RAB (closing as at 2010) | H25: ="Actual gross capex ("&H4&")" -> Actual gross capex (2011) | I25: =IF(COUNTA($H$25:H$25)<IF($F$22="Yes", INT(I$5), I$5), "Actual gross capex ("&I4&")", "") -> Actual gross capex (2012) | J25: =IF(COUNTA($H$25:I$25)<IF($F$22="Yes", INT(J$5), J$5), "Actual gross capex ("&J4&")", "") -> Actual gross capex (2013) | K25: =IF(COUNTA($H$25:J$25)<IF($F$22="Yes", INT(K$5), K$5), "Actual gross capex ("&K4&")", "") -> Actual gross capex (2014) | L25: =IF(COUNTA($H$25:K$25)<IF($F$22="Yes", INT(L$5), L$5), "Actual gross capex ("&L4&")", "") -> Actual gross capex (2015) | M25: =IF(COUNTA($H$25:L$25)<IF($F$22="Yes", INT(M$5), M$5), "Actual gross capex ("&M4&")", "") -> Actual gross capex (2016) | N25: =IF(COUNTA($H$25:M$25)<IF($F$22="Yes", INT(N$5), N$5), "Actual gross capex ("&N4&")", "") -> Actual gross capex (2017) | O25: =IF(COUNTA($H$25:N$25)<IF($F$22="Yes", INT(O$5), O$5), "Actual gross capex ("&O4&")", "") -> Actual gross capex (2018) | P25: =IF(COUNTA($H$25:O$25)<IF($F$22="Yes", INT(P$5), P$5), "Actual gross capex ("&P4&")", "") -> Actual gross capex (2019) | Q25: =IF(COUNTA($H$25:P$25)<IF($F$22="Yes", INT(Q$5), Q$5), "Actual gross capex ("&Q4&")", "") -> Actual gross capex (2020) | R25: =IF(COUNTA($H$25:Q$25)<IF($F$22="Yes", INT(R$5), R$5), "Actual gross capex ("&R4&")", "") -> Actual gross capex (2021) | S25: =IF(COUNTA($H$25:R$25)<IF($F$22="Yes", INT(S$5), S$5), "Actual gross capex ("&S4&")", "") -> Actual gross capex (2021-22) | T25: =IF(COUNTA($H$25:S$25)<IF($F$22="Yes", INT(T$5), T$5), "Actual gross capex ("&T4&")", "") -> Actual gross capex (2022-23) | U25: =IF(COUNTA($H$25:T$25)<IF($F$22="Yes", INT(U$5), U$5), "Actual gross capex ("&U4&")", "") -> Actual gross capex (2023-24) | V25: =IF(COUNTA($H$25:U$25)<IF($F$22="Yes", INT(V$5), V$5), "Actual gross capex ("&V4&")", "") -> Actual gross capex (2024-25) | W25: =IF(COUNTA($H$25:V$25)<IF($F$22="Yes", INT(W$5), W$5), "Actual gross capex ("&W4&")", "") -> Actual gross capex (2025-26) | X25: =IF(COUNTA($H$25:W$25)<IF($F$22="Yes", INT(X$5), X$5), "Actual gross capex ("&X4&")", "") ->  | Y25: =IF(COUNTA($H$25:X$25)<IF($F$22="Yes", INT(Y$5), Y$5), "Actual gross capex ("&Y4&")", "") ->  | Z25: =IF(COUNTA($H$25:Y$25)<IF($F$22="Yes", INT(Z$5), Z$5), "Actual gross capex ("&Z4&")", "") ->  | AA25: =IF(COUNTA($H$25:Z$25)<IF($F$22="Yes", INT(AA$5), AA$5), "Actual gross capex ("&AA4&")", "") ->  | AB25: =IF(COUNTA($H$25:AA$25)<IF($F$22="Yes", INT(AB$5), AB$5), "Actual gross capex ("&AB4&")", "") ->  | AC25: =IF(COUNTA($H$25:AB$25)<IF($F$22="Yes", INT(AC$5), AC$5), "Actual gross capex ("&AC4&")", "") ->  | AD25: =IF(COUNTA($H$25:AC$25)<IF($F$22="Yes", INT(AD$5), AD$5), "Actual gross capex ("&AD4&")", "") ->  | AE25: =IF(COUNTA($H$25:AD$25)<IF($F$22="Yes", INT(AE$5), AE$5), "Actual gross capex ("&AE4&")", "") ->  | AF25: =IF(COUNTA($H$25:AE$25)<IF($F$22="Yes", INT(AF$5), AF$5), "Actual gross capex ("&AF4&")", "") ->  | AG25: =IF(COUNTA($H$25:AF$25)<IF($F$22="Yes", INT(AG$5), AG$5), "Actual gross capex ("&AG4&")", "") ->  | AH25: =IF(COUNTA($H$25:AG$25)<IF($F$22="Yes", INT(AH$5), AH$5), "Actual gross capex ("&AH4&")", "") ->  | AI25: =IF(COUNTA($H$25:AH$25)<IF($F$22="Yes", INT(AI$5), AI$5), "Actual gross capex ("&AI4&")", "") ->  | AJ25: =IF(COUNTA($H$25:AI$25)<IF($F$22="Yes", INT(AJ$5), AJ$5), "Actual gross capex ("&AJ4&")", "") ->  | AK25: =IF(COUNTA($H$25:AJ$25)<IF($F$22="Yes", INT(AK$5), AK$5), "Actual gross capex ("&AK4&")", "") ->  | AL25: =IF(COUNTA($H$25:AK$25)<IF($F$22="Yes", INT(AL$5), AL$5), "Actual gross capex ("&AL4&")", "") ->  | AM25: =IF(COUNTA($H$25:AL$25)<IF($F$22="Yes", INT(AM$5), AM$5), "Actual gross capex ("&AM4&")", "") ->  | AN25: =IF(COUNTA($H$25:AM$25)<IF($F$22="Yes", INT(AN$5), AN$5), "Actual gross capex ("&AN4&")", "") ->  | AO25: =IF(COUNTA($H$25:AN$25)<IF($F$22="Yes", INT(AO$5), AO$5), "Actual gross capex ("&AO4&")", "") ->  | AP25: =IF(COUNTA($H$25:AO$25)<IF($F$22="Yes", INT(AP$5), AP$5), "Actual gross capex ("&AP4&")", "") ->  | AQ25: =IF(COUNTA($H$25:AP$25)<IF($F$22="Yes", INT(AQ$5), AQ$5), "Actual gross capex ("&AQ4&")", "") ->  | AR25: =IF(COUNTA($H$25:AQ$25)<IF($F$22="Yes", INT(AR$5), AR$5), "Actual gross capex ("&AR4&")", "") ->  | AS25: =IF(COUNTA($H$25:AR$25)<IF($F$22="Yes", INT(AS$5), AS$5), "Actual gross capex ("&AS4&")", "") ->  | AT25: =IF(COUNTA($H$25:AS$25)<IF($F$22="Yes", INT(AT$5), AT$5), "Actual gross capex ("&AT4&")", "") ->  | AU25: =IF(COUNTA($H$25:AT$25)<IF($F$22="Yes", INT(AU$5), AU$5), "Actual gross capex ("&AU4&")", "") ->  | AV25: =IF(COUNTA($H$25:AU$25)<IF($F$22="Yes", INT(AV$5), AV$5), "Actual gross capex ("&AV4&")", "") ->  | AW25: =IF(COUNTA($H$25:AV$25)<IF($F$22="Yes", INT(AW$5), AW$5), "Actual gross capex ("&AW4&")", "") ->  | AX25: =IF(COUNTA($H$25:AW$25)<IF($F$22="Yes", INT(AX$5), AX$5), "Actual gross capex ("&AX4&")", "") ->  | AY25: =IF(COUNTA($H$25:AX$25)<IF($F$22="Yes", INT(AY$5), AY$5), "Actual gross capex ("&AY4&")", "") ->  | AZ25: =IF(COUNTA($H$25:AY$25)<IF($F$22="Yes", INT(AZ$5), AZ$5), "Actual gross capex ("&AZ4&")", "") ->  | BA25: =IF(COUNTA($H$25:AZ$25)<IF($F$22="Yes", INT(BA$5), BA$5), "Actual gross capex ("&BA4&")", "") ->  | BB25: =IF(COUNTA($H$25:BA$25)<IF($F$22="Yes", INT(BB$5), BB$5), "Actual gross capex ("&BB4&")", "") ->  | BC25: =IF(COUNTA($H$25:BB$25)<IF($F$22="Yes", INT(BC$5), BC$5), "Actual gross capex ("&BC4&")", "") ->  | BD25: =IF(COUNTA($H$25:BC$25)<IF($F$22="Yes", INT(BD$5), BD$5), "Actual gross capex ("&BD4&")", "") ->  | BE25: =IF(COUNTA($H$25:BD$25)<IF($F$22="Yes", INT(BE$5), BE$5), "Actual gross capex ("&BE4&")", "") ->  | BF25: =IF(COUNTA($H$25:BE$25)<IF($F$22="Yes", INT(BF$5), BF$5), "Actual gross capex ("&BF4&")", "") ->  | BG25: =IF(COUNTA($H$25:BF$25)<IF($F$22="Yes", INT(BG$5), BG$5), "Actual gross capex ("&BG4&")", "") ->  | BH25: =IF(COUNTA($H$25:BG$25)<IF($F$22="Yes", INT(BH$5), BH$5), "Actual gross capex ("&BH4&")", "") ->  | BI25: =IF(COUNTA($H$25:BH$25)<IF($F$22="Yes", INT(BI$5), BI$5), "Actual gross capex ("&BI4&")", "") ->  | BJ25: =IF(COUNTA($H$25:BI$25)<IF($F$22="Yes", INT(BJ$5), BJ$5), "Actual gross capex ("&BJ4&")", "") ->  | BK25: =IF(COUNTA($H$25:BJ$25)<IF($F$22="Yes", INT(BK$5), BK$5), "Actual gross capex ("&BK4&")", "") ->  | BL25: =IF(COUNTA($H$25:BK$25)<IF($F$22="Yes", INT(BL$5), BL$5), "Actual gross capex ("&BL4&")", "") ->  | BM25: =IF(COUNTA($H$25:BL$25)<IF($F$22="Yes", INT(BM$5), BM$5), "Actual gross capex ("&BM4&")", "") ->  | BN25: =IF(COUNTA($H$25:BM$25)<IF($F$22="Yes", INT(BN$5), BN$5), "Actual gross capex ("&BN4&")", "") ->  | BO25: =IF(COUNTA($H$25:BN$25)<IF($F$22="Yes", INT(BO$5), BO$5), "Actual gross capex ("&BO4&")", "") ->  | BP25: =IF(COUNTA($H$25:BO$25)<IF($F$22="Yes", INT(BP$5), BP$5), "Actual gross capex ("&BP4&")", "") ->  | BQ25: =IF(COUNTA($H$25:BP$25)<IF($F$22="Yes", INT(BQ$5), BQ$5), "Actual gross capex ("&BQ4&")", "") ->  | BR25: =IF(COUNTA($H$25:BQ$25)<IF($F$22="Yes", INT(BR$5), BR$5), "Actual gross capex ("&BR4&")", "") ->  | BS25: =IF(COUNTA($H$25:BR$25)<IF($F$22="Yes", INT(BS$5), BS$5), "Actual gross capex ("&BS4&")", "") ->  | BT25: =IF(COUNTA($H$25:BS$25)<IF($F$22="Yes", INT(BT$5), BT$5), "Actual gross capex ("&BT4&")", "") ->  | BU25: =IF(COUNTA($H$25:BT$25)<IF($F$22="Yes", INT(BU$5), BU$5), "Actual gross capex ("&BU4&")", "") ->  | BV25: =IF(COUNTA($H$25:BU$25)<IF($F$22="Yes", INT(BV$5), BV$5), "Actual gross capex ("&BV4&")", "") ->  | BW25: =IF(COUNTA($H$25:BV$25)<IF($F$22="Yes", INT(BW$5), BW$5), "Actual gross capex ("&BW4&")", "") ->  | BX25: =IF(COUNTA($H$25:BW$25)<IF($F$22="Yes", INT(BX$5), BX$5), "Actual gross capex ("&BX4&")", "") ->  | BY25: =IF(COUNTA($H$25:BX$25)<IF($F$22="Yes", INT(BY$5), BY$5), "Actual gross capex ("&BY4&")", "") ->  | BZ25: =IF(COUNTA($H$25:BY$25)<IF($F$22="Yes", INT(BZ$5), BZ$5), "Actual gross capex ("&BZ4&")", "") -> 
D27: 1 | E27: Subtransmission | G27: 181.8796403 | H27: 70.02897364 | I27: 37.34607385 | J27: 106.851192 | K27: 22.10312718 | L27: 42.53764651 | M27: 24.04422495 | N27: 56.42487448 | O27: 67.1070841 | P27: 110.5930602 | Q27: 4.77731703 | R27: 30.49153158 | S27: 131.213184 | T27: 1.50547982 | U27: 0.46842118 | V27: 84.52598111 | W27: 72.88054131
D28: 2 | E28: Distribution system assets | G28: 1732.467128 | H28: 179.552351 | I28: 227.88686 | J28: 173.0455022 | K28: 252.4549218 | L28: 230.8687647 | M28: 193.6013852 | N28: 258.4231367 | O28: 287.5445981 | P28: 251.8192835 | Q28: 420.4842087 | R28: 185.3733435 | S28: 292.9564121 | T28: 451.5922528 | U28: 467.6612829 | V28: 459.9760304 | W28: 487.7390073
D29: 3 | E29: Public lighting | G29: 17.47107389 | H29: 0 | I29: 0 | J29: 0 | K29: 0 | L29: 0 | M29: 0 | N29: 0 | O29: 0 | P29: 0 | Q29: 0 | R29: 0 | S29: 0 | T29: 0 | U29: 0 | V29: 0 | W29: 0
D30: 4 | E30: SCADA/Network control | G30: 9.805343502 | H30: 4.193461235 | I30: 2.622268269 | J30: 2.998369477 | K30: 3.102332391 | L30: 3.279216378 | M30: 3.710109371 | N30: 17.323667 | O30: 23.13464631 | P30: 25.03839396 | Q30: 20.18786627 | R30: 10.78579628 | S30: 4.12580955 | T30: 6.94577102 | U30: 6.94586489 | V30: 0.39697996 | W30: 8.731045165
D31: 5 | E31: Non-network general assets - IT | G31: 64.04314229 | H31: 17.55304698 | I31: 13.18808369 | J31: 13.28447682 | K31: 19.64575037 | L31: 44.62339127 | M31: 33.23610362 | N31: 22.670852 | O31: 21.54248322 | P31: 26.77138309 | Q31: 34.80915085 | R31: 17.82582329 | S31: 5.5161709 | T31: 7.76810886 | U31: 7.71809356 | V31: 7.1004551 | W31: 9.567351594
D32: 6 | E32: Non-network general assets - Other | G32: 135.2810595 | H32: 15.7164165 | I32: 8.79030351 | J32: 10.94356943 | K32: 28.8420789 | L32: 28.87442913 | M32: 33.34594557 | N32: 41.959437 | O32: 40.41639488 | P32: 48.6456357 | Q32: 43.43735354 | R32: 30.23968454 | S32: 34.38954712 | T32: 63.21257378 | U32: 58.2798121 | V32: 56.88018015 | W32: 31.67208201
D33: 7 | E33: VBRC | G33: 0 | H33: 0 | I33: 9.606667807 | J33: 23.05047978 | K33: 43.81464194 | L33: 22.97852849 | M33: 30.98839158 | N33: 13.28023 | O33: 2.225466148 | P33: 16.77533214 | Q33: 13.71430507 | R33: 2.048014498 | S33: 0 | T33: 0 | U33: 0 | V33: 0 | W33: 0
D34: 8 | E34: Land | G34: 0 | H34: 0 | I34: 0 | J34: 0 | K34: 0 | L34: 0 | M34: 0.8435181016 | N34: 11.880417 | O34: 8.88928924 | P34: 0.9832731877 | Q34: 0 | R34: 0 | S34: 0 | T34: 0 | U34: 0 | V34: 0 | W34: 0
D35: 9 | E35: Accelerated depreciation assets | G35: 0 | H35: 0 | I35: 0 | J35: 0 | K35: 0 | L35: 0 | M35: 0 | N35: 0 | O35: 0 | P35: 0 | Q35: 0 | R35: 0 | S35: 0 | T35: 0 | U35: 0 | V35: 0 | W35: 0
D36: 10 | S36: 0 | T36: 0 | U36: 0
D37: 11 | S37: 0 | T37: 0 | U37: 0
D38: 12 | S38: 0 | T38: 0 | U38: 0
D39: 13 | S39: 0 | T39: 0 | U39: 0
D40: 14 | S40: 0 | T40: 0 | U40: 0
D41: 15 | S41: 0 | T41: 0 | U41: 0
D42: 16 | S42: 0 | T42: 0 | U42: 0
D43: 17 | S43: 0 | T43: 0 | U43: 0
D44: 18 | S44: 0 | T44: 0 | U44: 0
D45: 19 | S45: 0 | T45: 0 | U45: 0
D46: 20 | S46: 0 | T46: 0 | U46: 0
D47: 21 | S47: 0 | T47: 0 | U47: 0
D48: 22 | S48: 0 | T48: 0 | U48: 0
D49: 23 | S49: 0 | T49: 0 | U49: 0
D50: 24 | S50: 0 | T50: 0 | U50: 0
D51: 25 | S51: 0 | T51: 0 | U51: 0
D52: 26 | S52: 0 | T52: 0 | U52: 0
D53: 27 | S53: 0 | T53: 0 | U53: 0
D54: 28 | S54: 0 | T54: 0 | U54: 0
D55: 29 | S55: 0 | T55: 0 | U55: 0
D56: 30 | S56: 0 | T56: 0 | U56: 0
D57: 31 | S57: 0 | T57: 0 | U57: 0
D58: 32 | S58: 0 | T58: 0 | U58: 0
D59: 33 | S59: 0 | T59: 0 | U59: 0
D60: 34 | S60: 0 | T60: 0 | U60: 0
D61: 35 | S61: 0 | T61: 0 | U61: 0
D62: 36 | S62: 0 | T62: 0 | U62: 0
D63: 37 | S63: 0 | T63: 0 | U63: 0
D64: 38 | S64: 0 | T64: 0 | U64: 0
D65: 39 | S65: 0 | T65: 0 | U65: 0
D66: 40 | S66: 0 | T66: 0 | U66: 0
D67: 41 | S67: 0 | T67: 0 | U67: 0
D68: 42 | S68: 0 | T68: 0 | U68: 0
D69: 43 | S69: 0 | T69: 0 | U69: 0
D70: 44 | S70: 0 | T70: 0 | U70: 0
D71: 45 | S71: 0 | T71: 0 | U71: 0
D72: 46 | S72: 0 | T72: 0 | U72: 0
D73: 47 | S73: 0 | T73: 0 | U73: 0
D74: 48 | S74: 0 | T74: 0 | U74: 0
D75: 49 | E75: in-house software | G75: 0 | H75: 0 | I75: 0 | J75: 0 | K75: 0 | L75: 0 | M75: 0 | N75: 0 | O75: 0 | P75: 0 | Q75: 0 | R75: 0 | S75: 21.98819423 | T75: 31.07243544 | U75: 30.87237421 | V75: 28.4018214 | W75: 30.04003621
D76: 50 | E76: Equity raising costs | G76: 0 | H76: 5.242220333 | I76: 0 | J76: 0 | K76: 0 | L76: 0 | M76: 13.74644332 | N76: 0 | O76: 0 | P76: 0 | Q76: 0 | R76: 1.764444213 | S76: 0 | T76: 0 | U76: 0 | V76: 0 | W76: 0
E77: Total | G77: =SUM(G27:G76) -> 2140.947388 | H77: =SUM(H27:H76) -> 292.2864697 | I77: 299.4402571 | J77: 330.1735897 | K77: 369.9628526 | L77: 373.1619764 | M77: 333.5161217 | N77: 421.9626142 | O77: 450.859962 | P77: 480.6263618 | Q77: 537.4102015 | R77: 278.5286379 | S77: =SUM(S27:S76) -> 490.1893179 | T77: 562.0966217 | U77: 571.9458489 | V77: 637.2814481 | W77: 640.6300636 | X77: 0 | Y77: 0 | Z77: 0 | AA77: 0 | AB77: 0 | AC77: 0 | AD77: 0 | AE77: 0 | AF77: 0 | AG77: 0 | AH77: 0 | AI77: 0 | AJ77: 0 | AK77: 0 | AL77: 0 | AM77: 0 | AN77: 0 | AO77: 0 | AP77: 0 | AQ77: 0 | AR77: 0 | AS77: 0 | AT77: 0 | AU77: 0 | AV77: 0 | AW77: 0 | AX77: 0 | AY77: 0 | AZ77: 0 | BA77: 0 | BB77: 0 | BC77: 0 | BD77: 0 | BE77: 0 | BF77: 0 | BG77: 0 | BH77: 0 | BI77: 0 | BJ77: 0 | BK77: 0 | BL77: 0 | BM77: 0 | BN77: 0 | BO77: 0 | BP77: 0 | BQ77: 0 | BR77: 0 | BS77: 0 | BT77: =SUM(BT27:BT76) -> 0 | BU77: 0 | BV77: 0 | BW77: 0 | BX77: 0 | BY77: 0 | BZ77: 0
D79: Actual asset disposals - As incurred ($m, nominal)
E80: =$E$25 -> Asset class | H80: =IF(H$25="", "", "Actual asset disposals ("&H$4&")") -> Actual asset disposals (2011) | I80: =IF(I$25="", "", "Actual asset disposals ("&I$4&")") -> Actual asset disposals (2012) | J80: Actual asset disposals (2013) | K80: Actual asset disposals (2014) | L80: Actual asset disposals (2015) | M80: Actual asset disposals (2016) | N80: Actual asset disposals (2017) | O80: Actual asset disposals (2018) | P80: Actual asset disposals (2019) | Q80: Actual asset disposals (2020) | R80: Actual asset disposals (2021) | S80: Actual asset disposals (2021-22) | T80: Actual asset disposals (2022-23) | U80: Actual asset disposals (2023-24) | V80: Actual asset disposals (2024-25) | W80: Actual asset disposals (2025-26) | BU80: =IF(BU$25="", "", "Actual asset disposals ("&BU$4&")") -> 
E81: =E27 -> Subtransmission | H81: 0 | I81: 0 | J81: 0 | K81: 0 | L81: 0 | M81: 0 | N81: 0 | O81: 0 | P81: 0 | Q81: 0 | R81: 0 | S81: 0 | T81: 0 | U81: 0 | V81: 0 | W81: 0
E82: Distribution system assets | H82: 0 | I82: 0 | J82: 0 | K82: 0 | L82: 0 | M82: 0 | N82: 0 | O82: 0 | P82: 0 | Q82: 0 | R82: 0 | S82: 19.39434845 | T82: 60.5951 | U82: 30.46907452 | V82: 0.019079 | W82: 3.966901129
E83: Public lighting | H83: 0 | I83: 0 | J83: 0 | K83: 0 | L83: 0 | M83: 0 | N83: 0 | O83: 0 | P83: 0 | Q83: 0 | R83: 0 | S83: 0 | T83: 0 | U83: 0 | V83: 0 | W83: 0
E84: SCADA/Network control | H84: 0 | I84: 0 | J84: 0 | K84: 0 | L84: 0 | M84: 0 | N84: 0 | O84: 0 | P84: 0 | Q84: 0 | R84: 0 | S84: 0 | T84: 0 | U84: 0 | V84: 0 | W84: 0
E85: Non-network general assets - IT | H85: 0 | I85: 0 | J85: 0 | K85: 0 | L85: 0 | M85: 0 | N85: 0 | O85: 0 | P85: 0 | Q85: 0 | R85: 0 | S85: 0 | T85: 0 | U85: 0 | V85: 0 | W85: 0
E86: Non-network general assets - Other | H86: 2.75993226 | I86: 1.86045434 | J86: 1.4472307 | K86: 1.47410471 | L86: 1.62532476 | M86: 1.73569101 | N86: 2.56185816 | O86: 3.7863832 | P86: 1.76461171 | Q86: 0.96249947 | R86: 2.04062765 | S86: 3.05522495 | T86: 1.33387998 | U86: 1.01834844 | V86: 1.312684 | W86: 1.355151052
E87: VBRC | H87: 0 | I87: 0 | J87: 0 | K87: 0 | L87: 0 | M87: 0 | N87: 0 | O87: 0 | P87: 0 | Q87: 0 | R87: 0 | S87: 0 | T87: 0 | U87: 0 | V87: 0 | W87: 0
E88: Land | H88: 0 | I88: 0 | J88: 0 | K88: 0 | L88: 0 | M88: 0 | N88: 0 | O88: 0 | P88: 0 | Q88: 0 | R88: 0 | S88: 0 | T88: 0 | U88: 0 | V88: 0 | W88: 0
E89: Accelerated depreciation assets | H89: 0 | I89: 0 | J89: 0 | K89: 0 | L89: 0 | M89: 0 | N89: 0 | O89: 0 | P89: 0 | Q89: 0 | R89: 0 | S89: 0 | T89: 0 | U89: 0 | V89: 0 | W89: 0
E90: 0
E91: 0
E92: 0
E93: 0
E94: 0
E95: 0
E96: 0
E97: 0
E98: 0
E99: 0
E100: 0
E101: 0
E102: 0
E103: 0
E104: 0
E105: 0
E106: 0
E107: 0
E108: 0
E109: 0
E110: 0
E111: 0
E112: 0
E113: =E59 -> 0
E114: 0
E115: 0
E116: 0
E117: 0
E118: 0
E119: 0
E120: 0
E121: 0
E122: 0
E123: 0
E124: 0
E125: 0
... 154 more rows

Sheet TAB input
E2: =IF('RAB input'!$F$8=$F$8, 'RAB input'!$F$8, $F$8) & " - TAB input - Elec DNSP "&Intro!$I$3&" - version "&Intro!$M$4 -> Powercor - TAB input - Elec DNSP RFM - Depreciation tracking module - version 1 | J2: Input cells in blue
E4: Year | F4: =IF(LEN($H$9)>4, CONCATENATE(LEFT($H$9, 4)-2 & "-" & IF(AND(RIGHT($H$9, 2)<"12", RIGHT($H$9, 2)>"01"), "0", "") & IF(RIGHT($H$9, 2)="00", "98", IF(RIGHT($H$9, 2)="01", "99", RIGHT($H$9, 2)-2))), $H$9-2) -> 2019-20 | G4: =IF(LEN(F4)>4,CONCATENATE(LEFT(F4,4)+1&"-"&IF(RIGHT(F4, 2)<"09", "0","")&IF(RIGHT(F4, 2)="99", "00", RIGHT(F4,2)+1)),F4+1) -> 2020-21 | H4: =IF(LEN(G4)>4,CONCATENATE(LEFT(G4,4)+1&"-"&IF(RIGHT(G4, 2)<"09", "0","")&IF(RIGHT(G4, 2)="99", "00", RIGHT(G4,2)+1)),G4+1) -> 2021-22 | I4: =IF(I$11<>"", IF(INT($G$5+SUM($H$11:H$11))=$G$5+SUM($H$11:H$11), VALUE(LEFT(I$10, 4)), CONCATENATE(LEFT(I$10,4)&"-"&IF(MID(I$10, 3, 2)<"09", "0","")&IF(MID(I$10, 3, 2)="99", "00", MID(I$10, 3, 2)+1))), IF(AND(I$5<>INT(I$5), COUNTA($H$4:H$4)=ROUNDUP(I$5, 0)), IF($G$5+SUM($11:$11)=INT($G$5+SUM($11:$11)), VALUE(CONCATENATE(IF(RIGHT(H$4, 2)="99", LEFT(H$4, 2)+1, LEFT(H$4, 2))&RIGHT(H$4, 2))), CONCATENATE(LEFT(H$4, 2)&RIGHT(H$4, 2)&"-"&IF(RIGHT(H$4, 2)<"09", "0", "")&IF(RIGHT(H$4, 2)="99", "00", RIGHT(H$4, 2)+1))), IF(LEN(H4)>4,CONCATENATE(LEFT(H4,4)+1&"-"&IF(RIGHT(H4, 2)<"09", "0","")&IF(RIGHT(H4, 2)="99", "00", RIGHT(H4,2)+1)),VALUE(H4+1)))) -> 2022-23 | J4: =IF(J$11<>"", IF(INT($G$5+SUM($H$11:I$11))=$G$5+SUM($H$11:I$11), VALUE(LEFT(J$10, 4)), CONCATENATE(LEFT(J$10,4)&"-"&IF(MID(J$10, 3, 2)<"09", "0","")&IF(MID(J$10, 3, 2)="99", "00", MID(J$10, 3, 2)+1))), IF(AND(J$5<>INT(J$5), COUNTA($H$4:I$4)=ROUNDUP(J$5, 0)), IF($G$5+SUM($11:$11)=INT($G$5+SUM($11:$11)), VALUE(CONCATENATE(IF(RIGHT(I$4, 2)="99", LEFT(I$4, 2)+1, LEFT(I$4, 2))&RIGHT(I$4, 2))), CONCATENATE(LEFT(I$4, 2)&RIGHT(I$4, 2)&"-"&IF(RIGHT(I$4, 2)<"09", "0", "")&IF(RIGHT(I$4, 2)="99", "00", RIGHT(I$4, 2)+1))), IF(LEN(I4)>4,CONCATENATE(LEFT(I4,4)+1&"-"&IF(RIGHT(I4, 2)<"09", "0","")&IF(RIGHT(I4, 2)="99", "00", RIGHT(I4,2)+1)),VALUE(I4+1)))) -> 2023-24 | K4: =IF(K$11<>"", IF(INT($G$5+SUM($H$11:J$11))=$G$5+SUM($H$11:J$11), VALUE(LEFT(K$10, 4)), CONCATENATE(LEFT(K$10,4)&"-"&IF(MID(K$10, 3, 2)<"09", "0","")&IF(MID(K$10, 3, 2)="99", "00", MID(K$10, 3, 2)+1))), IF(AND(K$5<>INT(K$5), COUNTA($H$4:J$4)=ROUNDUP(K$5, 0)), IF($G$5+SUM($11:$11)=INT($G$5+SUM($11:$11)), VALUE(CONCATENATE(IF(RIGHT(J$4, 2)="99", LEFT(J$4, 2)+1, LEFT(J$4, 2))&RIGHT(J$4, 2))), CONCATENATE(LEFT(J$4, 2)&RIGHT(J$4, 2)&"-"&IF(RIGHT(J$4, 2)<"09", "0", "")&IF(RIGHT(J$4, 2)="99", "00", RIGHT(J$4, 2)+1))), IF(LEN(J4)>4,CONCATENATE(LEFT(J4,4)+1&"-"&IF(RIGHT(J4, 2)<"09", "0","")&IF(RIGHT(J4, 2)="99", "00", RIGHT(J4,2)+1)),VALUE(J4+1)))) -> 2024-25 | L4: =IF(L$11<>"", IF(INT($G$5+SUM($H$11:K$11))=$G$5+SUM($H$11:K$11), VALUE(LEFT(L$10, 4)), CONCATENATE(LEFT(L$10,4)&"-"&IF(MID(L$10, 3, 2)<"09", "0","")&IF(MID(L$10, 3, 2)="99", "00", MID(L$10, 3, 2)+1))), IF(AND(L$5<>INT(L$5), COUNTA($H$4:K$4)=ROUNDUP(L$5, 0)), IF($G$5+SUM($11:$11)=INT($G$5+SUM($11:$11)), VALUE(CONCATENATE(IF(RIGHT(K$4, 2)="99", LEFT(K$4, 2)+1, LEFT(K$4, 2))&RIGHT(K$4, 2))), CONCATENATE(LEFT(K$4, 2)&RIGHT(K$4, 2)&"-"&IF(RIGHT(K$4, 2)<"09", "0", "")&IF(RIGHT(K$4, 2)="99", "00", RIGHT(K$4, 2)+1))), IF(LEN(K4)>4,CONCATENATE(LEFT(K4,4)+1&"-"&IF(RIGHT(K4, 2)<"09", "0","")&IF(RIGHT(K4, 2)="99", "00", RIGHT(K4,2)+1)),VALUE(K4+1)))) -> 2025-26 | M4: =IF(M$11<>"", IF(INT($G$5+SUM($H$11:L$11))=$G$5+SUM($H$11:L$11), VALUE(LEFT(M$10, 4)), CONCATENATE(LEFT(M$10,4)&"-"&IF(MID(M$10, 3, 2)<"09", "0","")&IF(MID(M$10, 3, 2)="99", "00", MID(M$10, 3, 2)+1))), IF(AND(M$5<>INT(M$5), COUNTA($H$4:L$4)=ROUNDUP(M$5, 0)), IF($G$5+SUM($11:$11)=INT($G$5+SUM($11:$11)), VALUE(CONCATENATE(IF(RIGHT(L$4, 2)="99", LEFT(L$4, 2)+1, LEFT(L$4, 2))&RIGHT(L$4, 2))), CONCATENATE(LEFT(L$4, 2)&RIGHT(L$4, 2)&"-"&IF(RIGHT(L$4, 2)<"09", "0", "")&IF(RIGHT(L$4, 2)="99", "00", RIGHT(L$4, 2)+1))), IF(LEN(L4)>4,CONCATENATE(LEFT(L4,4)+1&"-"&IF(RIGHT(L4, 2)<"09", "0","")&IF(RIGHT(L4, 2)="99", "00", RIGHT(L4,2)+1)),VALUE(L4+1)))) -> 2026-27 | N4: =IF(N$11<>"", IF(INT($G$5+SUM($H$11:M$11))=$G$5+SUM($H$11:M$11), VALUE(LEFT(N$10, 4)), CONCATENATE(LEFT(N$10,4)&"-"&IF(MID(N$10, 3, 2)<"09", "0","")&IF(MID(N$10, 3, 2)="99", "00", MID(N$10, 3, 2)+1))), IF(AND(N$5<>INT(N$5), COUNTA($H$4:M$4)=ROUNDUP(N$5, 0)), IF($G$5+SUM($11:$11)=INT($G$5+SUM($11:$11)), VALUE(CONCATENATE(IF(RIGHT(M$4, 2)="99", LEFT(M$4, 2)+1, LEFT(M$4, 2))&RIGHT(M$4, 2))), CONCATENATE(LEFT(M$4, 2)&RIGHT(M$4, 2)&"-"&IF(RIGHT(M$4, 2)<"09", "0", "")&IF(RIGHT(M$4, 2)="99", "00", RIGHT(M$4, 2)+1))), IF(LEN(M4)>4,CONCATENATE(LEFT(M4,4)+1&"-"&IF(RIGHT(M4, 2)<"09", "0","")&IF(RIGHT(M4, 2)="99", "00", RIGHT(M4,2)+1)),VALUE(M4+1)))) -> 2027-28 | O4: =IF(O$11<>"", IF(INT($G$5+SUM($H$11:N$11))=$G$5+SUM($H$11:N$11), VALUE(LEFT(O$10, 4)), CONCATENATE(LEFT(O$10,4)&"-"&IF(MID(O$10, 3, 2)<"09", "0","")&IF(MID(O$10, 3, 2)="99", "00", MID(O$10, 3, 2)+1))), IF(AND(O$5<>INT(O$5), COUNTA($H$4:N$4)=ROUNDUP(O$5, 0)), IF($G$5+SUM($11:$11)=INT($G$5+SUM($11:$11)), VALUE(CONCATENATE(IF(RIGHT(N$4, 2)="99", LEFT(N$4, 2)+1, LEFT(N$4, 2))&RIGHT(N$4, 2))), CONCATENATE(LEFT(N$4, 2)&RIGHT(N$4, 2)&"-"&IF(RIGHT(N$4, 2)<"09", "0", "")&IF(RIGHT(N$4, 2)="99", "00", RIGHT(N$4, 2)+1))), IF(LEN(N4)>4,CONCATENATE(LEFT(N4,4)+1&"-"&IF(RIGHT(N4, 2)<"09", "0","")&IF(RIGHT(N4, 2)="99", "00", RIGHT(N4,2)+1)),VALUE(N4+1)))) -> 2028-29 | P4: =IF(P$11<>"", IF(INT($G$5+SUM($H$11:O$11))=$G$5+SUM($H$11:O$11), VALUE(LEFT(P$10, 4)), CONCATENATE(LEFT(P$10,4)&"-"&IF(MID(P$10, 3, 2)<"09", "0","")&IF(MID(P$10, 3, 2)="99", "00", MID(P$10, 3, 2)+1))), IF(AND(P$5<>INT(P$5), COUNTA($H$4:O$4)=ROUNDUP(P$5, 0)), IF($G$5+SUM($11:$11)=INT($G$5+SUM($11:$11)), VALUE(CONCATENATE(IF(RIGHT(O$4, 2)="99", LEFT(O$4, 2)+1, LEFT(O$4, 2))&RIGHT(O$4, 2))), CONCATENATE(LEFT(O$4, 2)&RIGHT(O$4, 2)&"-"&IF(RIGHT(O$4, 2)<"09", "0", "")&IF(RIGHT(O$4, 2)="99", "00", RIGHT(O$4, 2)+1))), IF(LEN(O4)>4,CONCATENATE(LEFT(O4,4)+1&"-"&IF(RIGHT(O4, 2)<"09", "0","")&IF(RIGHT(O4, 2)="99", "00", RIGHT(O4,2)+1)),VALUE(O4+1)))) -> 2029-30 | Q4: =IF(Q$11<>"", IF(INT($G$5+SUM($H$11:P$11))=$G$5+SUM($H$11:P$11), VALUE(LEFT(Q$10, 4)), CONCATENATE(LEFT(Q$10,4)&"-"&IF(MID(Q$10, 3, 2)<"09", "0","")&IF(MID(Q$10, 3, 2)="99", "00", MID(Q$10, 3, 2)+1))), IF(AND(Q$5<>INT(Q$5), COUNTA($H$4:P$4)=ROUNDUP(Q$5, 0)), IF($G$5+SUM($11:$11)=INT($G$5+SUM($11:$11)), VALUE(CONCATENATE(IF(RIGHT(P$4, 2)="99", LEFT(P$4, 2)+1, LEFT(P$4, 2))&RIGHT(P$4, 2))), CONCATENATE(LEFT(P$4, 2)&RIGHT(P$4, 2)&"-"&IF(RIGHT(P$4, 2)<"09", "0", "")&IF(RIGHT(P$4, 2)="99", "00", RIGHT(P$4, 2)+1))), IF(LEN(P4)>4,CONCATENATE(LEFT(P4,4)+1&"-"&IF(RIGHT(P4, 2)<"09", "0","")&IF(RIGHT(P4, 2)="99", "00", RIGHT(P4,2)+1)),VALUE(P4+1)))) -> 2030-31 | R4: =IF(R$11<>"", IF(INT($G$5+SUM($H$11:Q$11))=$G$5+SUM($H$11:Q$11), VALUE(LEFT(R$10, 4)), CONCATENATE(LEFT(R$10,4)&"-"&IF(MID(R$10, 3, 2)<"09", "0","")&IF(MID(R$10, 3, 2)="99", "00", MID(R$10, 3, 2)+1))), IF(AND(R$5<>INT(R$5), COUNTA($H$4:Q$4)=ROUNDUP(R$5, 0)), IF($G$5+SUM($11:$11)=INT($G$5+SUM($11:$11)), VALUE(CONCATENATE(IF(RIGHT(Q$4, 2)="99", LEFT(Q$4, 2)+1, LEFT(Q$4, 2))&RIGHT(Q$4, 2))), CONCATENATE(LEFT(Q$4, 2)&RIGHT(Q$4, 2)&"-"&IF(RIGHT(Q$4, 2)<"09", "0", "")&IF(RIGHT(Q$4, 2)="99", "00", RIGHT(Q$4, 2)+1))), IF(LEN(Q4)>4,CONCATENATE(LEFT(Q4,4)+1&"-"&IF(RIGHT(Q4, 2)<"09", "0","")&IF(RIGHT(Q4, 2)="99", "00", RIGHT(Q4,2)+1)),VALUE(Q4+1)))) -> 2031-32 | S4: =IF(S$11<>"", IF(INT($G$5+SUM($H$11:R$11))=$G$5+SUM($H$11:R$11), VALUE(LEFT(S$10, 4)), CONCATENATE(LEFT(S$10,4)&"-"&IF(MID(S$10, 3, 2)<"09", "0","")&IF(MID(S$10, 3, 2)="99", "00", MID(S$10, 3, 2)+1))), IF(AND(S$5<>INT(S$5), COUNTA($H$4:R$4)=ROUNDUP(S$5, 0)), IF($G$5+SUM($11:$11)=INT($G$5+SUM($11:$11)), VALUE(CONCATENATE(IF(RIGHT(R$4, 2)="99", LEFT(R$4, 2)+1, LEFT(R$4, 2))&RIGHT(R$4, 2))), CONCATENATE(LEFT(R$4, 2)&RIGHT(R$4, 2)&"-"&IF(RIGHT(R$4, 2)<"09", "0", "")&IF(RIGHT(R$4, 2)="99", "00", RIGHT(R$4, 2)+1))), IF(LEN(R4)>4,CONCATENATE(LEFT(R4,4)+1&"-"&IF(RIGHT(R4, 2)<"09", "0","")&IF(RIGHT(R4, 2)="99", "00", RIGHT(R4,2)+1)),VALUE(R4+1)))) -> 2032-33 | T4: =IF(T$11<>"", IF(INT($G$5+SUM($H$11:S$11))=$G$5+SUM($H$11:S$11), VALUE(LEFT(T$10, 4)), CONCATENATE(LEFT(T$10,4)&"-"&IF(MID(T$10, 3, 2)<"09", "0","")&IF(MID(T$10, 3, 2)="99", "00", MID(T$10, 3, 2)+1))), IF(AND(T$5<>INT(T$5), COUNTA($H$4:S$4)=ROUNDUP(T$5, 0)), IF($G$5+SUM($11:$11)=INT($G$5+SUM($11:$11)), VALUE(CONCATENATE(IF(RIGHT(S$4, 2)="99", LEFT(S$4, 2)+1, LEFT(S$4, 2))&RIGHT(S$4, 2))), CONCATENATE(LEFT(S$4, 2)&RIGHT(S$4, 2)&"-"&IF(RIGHT(S$4, 2)<"09", "0", "")&IF(RIGHT(S$4, 2)="99", "00", RIGHT(S$4, 2)+1))), IF(LEN(S4)>4,CONCATENATE(LEFT(S4,4)+1&"-"&IF(RIGHT(S4, 2)<"09", "0","")&IF(RIGHT(S4, 2)="99", "00", RIGHT(S4,2)+1)),VALUE(S4+1)))) -> 2033-34 | U4: =IF(U$11<>"", IF(INT($G$5+SUM($H$11:T$11))=$G$5+SUM($H$11:T$11), VALUE(LEFT(U$10, 4)), CONCATENATE(LEFT(U$10,4)&"-"&IF(MID(U$10, 3, 2)<"09", "0","")&IF(MID(U$10, 3, 2)="99", "00", MID(U$10, 3, 2)+1))), IF(AND(U$5<>INT(U$5), COUNTA($H$4:T$4)=ROUNDUP(U$5, 0)), IF($G$5+SUM($11:$11)=INT($G$5+SUM($11:$11)), VALUE(CONCATENATE(IF(RIGHT(T$4, 2)="99", LEFT(T$4, 2)+1, LEFT(T$4, 2))&RIGHT(T$4, 2))), CONCATENATE(LEFT(T$4, 2)&RIGHT(T$4, 2)&"-"&IF(RIGHT(T$4, 2)<"09", "0", "")&IF(RIGHT(T$4, 2)="99", "00", RIGHT(T$4, 2)+1))), IF(LEN(T4)>4,CONCATENATE(LEFT(T4,4)+1&"-"&IF(RIGHT(T4, 2)<"09", "0","")&IF(RIGHT(T4, 2)="99", "00", RIGHT(T4,2)+1)),VALUE(T4+1)))) -> 2034-35 | V4: =IF(V$11<>"", IF(INT($G$5+SUM($H$11:U$11))=$G$5+SUM($H$11:U$11), VALUE(LEFT(V$10, 4)), CONCATENATE(LEFT(V$10,4)&"-"&IF(MID(V$10, 3, 2)<"09", "0","")&IF(MID(V$10, 3, 2)="99", "00", MID(V$10, 3, 2)+1))), IF(AND(V$5<>INT(V$5), COUNTA($H$4:U$4)=ROUNDUP(V$5, 0)), IF($G$5+SUM($11:$11)=INT($G$5+SUM($11:$11)), VALUE(CONCATENATE(IF(RIGHT(U$4, 2)="99", LEFT(U$4, 2)+1, LEFT(U$4, 2))&RIGHT(U$4, 2))), CONCATENATE(LEFT(U$4, 2)&RIGHT(U$4, 2)&"-"&IF(RIGHT(U$4, 2)<"09", "0", "")&IF(RIGHT(U$4, 2)="99", "00", RIGHT(U$4, 2)+1))), IF(LEN(U4)>4,CONCATENATE(LEFT(U4,4)+1&"-"&IF(RIGHT(U4, 2)<"09", "0","")&IF(RIGHT(U4, 2)="99", "00", RIGHT(U4,2)+1)),VALUE(U4+1)))) -> 2035-36 | W4: =IF(W$11<>"", IF(INT($G$5+SUM($H$11:V$11))=$G$5+SUM($H$11:V$11), VALUE(LEFT(W$10, 4)), CONCATENATE(LEFT(W$10,4)&"-"&IF(MID(W$10, 3, 2)<"09", "0","")&IF(MID(W$10, 3, 2)="99", "00", MID(W$10, 3, 2)+1))), IF(AND(W$5<>INT(W$5), COUNTA($H$4:V$4)=ROUNDUP(W$5, 0)), IF($G$5+SUM($11:$11)=INT($G$5+SUM($11:$11)), VALUE(CONCATENATE(IF(RIGHT(V$4, 2)="99", LEFT(V$4, 2)+1, LEFT(V$4, 2))&RIGHT(V$4, 2))), CONCATENATE(LEFT(V$4, 2)&RIGHT(V$4, 2)&"-"&IF(RIGHT(V$4, 2)<"09", "0", "")&IF(RIGHT(V$4, 2)="99", "00", RIGHT(V$4, 2)+1))), IF(LEN(V4)>4,CONCATENATE(LEFT(V4,4)+1&"-"&IF(RIGHT(V4, 2)<"09", "0","")&IF(RIGHT(V4, 2)="99", "00", RIGHT(V4,2)+1)),VALUE(V4+1)))) -> 2036-37 | X4: =IF(X$11<>"", IF(INT($G$5+SUM($H$11:W$11))=$G$5+SUM($H$11:W$11), VALUE(LEFT(X$10, 4)), CONCATENATE(LEFT(X$10,4)&"-"&IF(MID(X$10, 3, 2)<"09", "0","")&IF(MID(X$10, 3, 2)="99", "00", MID(X$10, 3, 2)+1))), IF(AND(X$5<>INT(X$5), COUNTA($H$4:W$4)=ROUNDUP(X$5, 0)), IF($G$5+SUM($11:$11)=INT($G$5+SUM($11:$11)), VALUE(CONCATENATE(IF(RIGHT(W$4, 2)="99", LEFT(W$4, 2)+1, LEFT(W$4, 2))&RIGHT(W$4, 2))), CONCATENATE(LEFT(W$4, 2)&RIGHT(W$4, 2)&"-"&IF(RIGHT(W$4, 2)<"09", "0", "")&IF(RIGHT(W$4, 2)="99", "00", RIGHT(W$4, 2)+1))), IF(LEN(W4)>4,CONCATENATE(LEFT(W4,4)+1&"-"&IF(RIGHT(W4, 2)<"09", "0","")&IF(RIGHT(W4, 2)="99", "00", RIGHT(W4,2)+1)),VALUE(W4+1)))) -> 2037-38 | Y4: =IF(Y$11<>"", IF(INT($G$5+SUM($H$11:X$11))=$G$5+SUM($H$11:X$11), VALUE(LEFT(Y$10, 4)), CONCATENATE(LEFT(Y$10,4)&"-"&IF(MID(Y$10, 3, 2)<"09", "0","")&IF(MID(Y$10, 3, 2)="99", "00", MID(Y$10, 3, 2)+1))), IF(AND(Y$5<>INT(Y$5), COUNTA($H$4:X$4)=ROUNDUP(Y$5, 0)), IF($G$5+SUM($11:$11)=INT($G$5+SUM($11:$11)), VALUE(CONCATENATE(IF(RIGHT(X$4, 2)="99", LEFT(X$4, 2)+1, LEFT(X$4, 2))&RIGHT(X$4, 2))), CONCATENATE(LEFT(X$4, 2)&RIGHT(X$4, 2)&"-"&IF(RIGHT(X$4, 2)<"09", "0", "")&IF(RIGHT(X$4, 2)="99", "00", RIGHT(X$4, 2)+1))), IF(LEN(X4)>4,CONCATENATE(LEFT(X4,4)+1&"-"&IF(RIGHT(X4, 2)<"09", "0","")&IF(RIGHT(X4, 2)="99", "00", RIGHT(X4,2)+1)),VALUE(X4+1)))) -> 2038-39 | Z4: =IF(Z$11<>"", IF(INT($G$5+SUM($H$11:Y$11))=$G$5+SUM($H$11:Y$11), VALUE(LEFT(Z$10, 4)), CONCATENATE(LEFT(Z$10,4)&"-"&IF(MID(Z$10, 3, 2)<"09", "0","")&IF(MID(Z$10, 3, 2)="99", "00", MID(Z$10, 3, 2)+1))), IF(AND(Z$5<>INT(Z$5), COUNTA($H$4:Y$4)=ROUNDUP(Z$5, 0)), IF($G$5+SUM($11:$11)=INT($G$5+SUM($11:$11)), VALUE(CONCATENATE(IF(RIGHT(Y$4, 2)="99", LEFT(Y$4, 2)+1, LEFT(Y$4, 2))&RIGHT(Y$4, 2))), CONCATENATE(LEFT(Y$4, 2)&RIGHT(Y$4, 2)&"-"&IF(RIGHT(Y$4, 2)<"09", "0", "")&IF(RIGHT(Y$4, 2)="99", "00", RIGHT(Y$4, 2)+1))), IF(LEN(Y4)>4,CONCATENATE(LEFT(Y4,4)+1&"-"&IF(RIGHT(Y4, 2)<"09", "0","")&IF(RIGHT(Y4, 2)="99", "00", RIGHT(Y4,2)+1)),VALUE(Y4+1)))) -> 2039-40 | AA4: =IF(AA$11<>"", IF(INT($G$5+SUM($H$11:Z$11))=$G$5+SUM($H$11:Z$11), VALUE(LEFT(AA$10, 4)), CONCATENATE(LEFT(AA$10,4)&"-"&IF(MID(AA$10, 3, 2)<"09", "0","")&IF(MID(AA$10, 3, 2)="99", "00", MID(AA$10, 3, 2)+1))), IF(AND(AA$5<>INT(AA$5), COUNTA($H$4:Z$4)=ROUNDUP(AA$5, 0)), IF($G$5+SUM($11:$11)=INT($G$5+SUM($11:$11)), VALUE(CONCATENATE(IF(RIGHT(Z$4, 2)="99", LEFT(Z$4, 2)+1, LEFT(Z$4, 2))&RIGHT(Z$4, 2))), CONCATENATE(LEFT(Z$4, 2)&RIGHT(Z$4, 2)&"-"&IF(RIGHT(Z$4, 2)<"09", "0", "")&IF(RIGHT(Z$4, 2)="99", "00", RIGHT(Z$4, 2)+1))), IF(LEN(Z4)>4,CONCATENATE(LEFT(Z4,4)+1&"-"&IF(RIGHT(Z4, 2)<"09", "0","")&IF(RIGHT(Z4, 2)="99", "00", RIGHT(Z4,2)+1)),VALUE(Z4+1)))) -> 2040-41 | AB4: =IF(AB$11<>"", IF(INT($G$5+SUM($H$11:AA$11))=$G$5+SUM($H$11:AA$11), VALUE(LEFT(AB$10, 4)), CONCATENATE(LEFT(AB$10,4)&"-"&IF(MID(AB$10, 3, 2)<"09", "0","")&IF(MID(AB$10, 3, 2)="99", "00", MID(AB$10, 3, 2)+1))), IF(AND(AB$5<>INT(AB$5), COUNTA($H$4:AA$4)=ROUNDUP(AB$5, 0)), IF($G$5+SUM($11:$11)=INT($G$5+SUM($11:$11)), VALUE(CONCATENATE(IF(RIGHT(AA$4, 2)="99", LEFT(AA$4, 2)+1, LEFT(AA$4, 2))&RIGHT(AA$4, 2))), CONCATENATE(LEFT(AA$4, 2)&RIGHT(AA$4, 2)&"-"&IF(RIGHT(AA$4, 2)<"09", "0", "")&IF(RIGHT(AA$4, 2)="99", "00", RIGHT(AA$4, 2)+1))), IF(LEN(AA4)>4,CONCATENATE(LEFT(AA4,4)+1&"-"&IF(RIGHT(AA4, 2)<"09", "0","")&IF(RIGHT(AA4, 2)="99", "00", RIGHT(AA4,2)+1)),VALUE(AA4+1)))) -> 2041-42 | AC4: =IF(AC$11<>"", IF(INT($G$5+SUM($H$11:AB$11))=$G$5+SUM($H$11:AB$11), VALUE(LEFT(AC$10, 4)), CONCATENATE(LEFT(AC$10,4)&"-"&IF(MID(AC$10, 3, 2)<"09", "0","")&IF(MID(AC$10, 3, 2)="99", "00", MID(AC$10, 3, 2)+1))), IF(AND(AC$5<>INT(AC$5), COUNTA($H$4:AB$4)=ROUNDUP(AC$5, 0)), IF($G$5+SUM($11:$11)=INT($G$5+SUM($11:$11)), VALUE(CONCATENATE(IF(RIGHT(AB$4, 2)="99", LEFT(AB$4, 2)+1, LEFT(AB$4, 2))&RIGHT(AB$4, 2))), CONCATENATE(LEFT(AB$4, 2)&RIGHT(AB$4, 2)&"-"&IF(RIGHT(AB$4, 2)<"09", "0", "")&IF(RIGHT(AB$4, 2)="99", "00", RIGHT(AB$4, 2)+1))), IF(LEN(AB4)>4,CONCATENATE(LEFT(AB4,4)+1&"-"&IF(RIGHT(AB4, 2)<"09", "0","")&IF(RIGHT(AB4, 2)="99", "00", RIGHT(AB4,2)+1)),VALUE(AB4+1)))) -> 2042-43 | AD4: =IF(AD$11<>"", IF(INT($G$5+SUM($H$11:AC$11))=$G$5+SUM($H$11:AC$11), VALUE(LEFT(AD$10, 4)), CONCATENATE(LEFT(AD$10,4)&"-"&IF(MID(AD$10, 3, 2)<"09", "0","")&IF(MID(AD$10, 3, 2)="99", "00", MID(AD$10, 3, 2)+1))), IF(AND(AD$5<>INT(AD$5), COUNTA($H$4:AC$4)=ROUNDUP(AD$5, 0)), IF($G$5+SUM($11:$11)=INT($G$5+SUM($11:$11)), VALUE(CONCATENATE(IF(RIGHT(AC$4, 2)="99", LEFT(AC$4, 2)+1, LEFT(AC$4, 2))&RIGHT(AC$4, 2))), CONCATENATE(LEFT(AC$4, 2)&RIGHT(AC$4, 2)&"-"&IF(RIGHT(AC$4, 2)<"09", "0", "")&IF(RIGHT(AC$4, 2)="99", "00", RIGHT(AC$4, 2)+1))), IF(LEN(AC4)>4,CONCATENATE(LEFT(AC4,4)+1&"-"&IF(RIGHT(AC4, 2)<"09", "0","")&IF(RIGHT(AC4, 2)="99", "00", RIGHT(AC4,2)+1)),VALUE(AC4+1)))) -> 2043-44 | AE4: =IF(AE$11<>"", IF(INT($G$5+SUM($H$11:AD$11))=$G$5+SUM($H$11:AD$11), VALUE(LEFT(AE$10, 4)), CONCATENATE(LEFT(AE$10,4)&"-"&IF(MID(AE$10, 3, 2)<"09", "0","")&IF(MID(AE$10, 3, 2)="99", "00", MID(AE$10, 3, 2)+1))), IF(AND(AE$5<>INT(AE$5), COUNTA($H$4:AD$4)=ROUNDUP(AE$5, 0)), IF($G$5+SUM($11:$11)=INT($G$5+SUM($11:$11)), VALUE(CONCATENATE(IF(RIGHT(AD$4, 2)="99", LEFT(AD$4, 2)+1, LEFT(AD$4, 2))&RIGHT(AD$4, 2))), CONCATENATE(LEFT(AD$4, 2)&RIGHT(AD$4, 2)&"-"&IF(RIGHT(AD$4, 2)<"09", "0", "")&IF(RIGHT(AD$4, 2)="99", "00", RIGHT(AD$4, 2)+1))), IF(LEN(AD4)>4,CONCATENATE(LEFT(AD4,4)+1&"-"&IF(RIGHT(AD4, 2)<"09", "0","")&IF(RIGHT(AD4, 2)="99", "00", RIGHT(AD4,2)+1)),VALUE(AD4+1)))) -> 2044-45 | AF4: =IF(AF$11<>"", IF(INT($G$5+SUM($H$11:AE$11))=$G$5+SUM($H$11:AE$11), VALUE(LEFT(AF$10, 4)), CONCATENATE(LEFT(AF$10,4)&"-"&IF(MID(AF$10, 3, 2)<"09", "0","")&IF(MID(AF$10, 3, 2)="99", "00", MID(AF$10, 3, 2)+1))), IF(AND(AF$5<>INT(AF$5), COUNTA($H$4:AE$4)=ROUNDUP(AF$5, 0)), IF($G$5+SUM($11:$11)=INT($G$5+SUM($11:$11)), VALUE(CONCATENATE(IF(RIGHT(AE$4, 2)="99", LEFT(AE$4, 2)+1, LEFT(AE$4, 2))&RIGHT(AE$4, 2))), CONCATENATE(LEFT(AE$4, 2)&RIGHT(AE$4, 2)&"-"&IF(RIGHT(AE$4, 2)<"09", "0", "")&IF(RIGHT(AE$4, 2)="99", "00", RIGHT(AE$4, 2)+1))), IF(LEN(AE4)>4,CONCATENATE(LEFT(AE4,4)+1&"-"&IF(RIGHT(AE4, 2)<"09", "0","")&IF(RIGHT(AE4, 2)="99", "00", RIGHT(AE4,2)+1)),VALUE(AE4+1)))) -> 2045-46 | AG4: =IF(AG$11<>"", IF(INT($G$5+SUM($H$11:AF$11))=$G$5+SUM($H$11:AF$11), VALUE(LEFT(AG$10, 4)), CONCATENATE(LEFT(AG$10,4)&"-"&IF(MID(AG$10, 3, 2)<"09", "0","")&IF(MID(AG$10, 3, 2)="99", "00", MID(AG$10, 3, 2)+1))), IF(AND(AG$5<>INT(AG$5), COUNTA($H$4:AF$4)=ROUNDUP(AG$5, 0)), IF($G$5+SUM($11:$11)=INT($G$5+SUM($11:$11)), VALUE(CONCATENATE(IF(RIGHT(AF$4, 2)="99", LEFT(AF$4, 2)+1, LEFT(AF$4, 2))&RIGHT(AF$4, 2))), CONCATENATE(LEFT(AF$4, 2)&RIGHT(AF$4, 2)&"-"&IF(RIGHT(AF$4, 2)<"09", "0", "")&IF(RIGHT(AF$4, 2)="99", "00", RIGHT(AF$4, 2)+1))), IF(LEN(AF4)>4,CONCATENATE(LEFT(AF4,4)+1&"-"&IF(RIGHT(AF4, 2)<"09", "0","")&IF(RIGHT(AF4, 2)="99", "00", RIGHT(AF4,2)+1)),VALUE(AF4+1)))) -> 2046-47 | AH4: =IF(AH$11<>"", IF(INT($G$5+SUM($H$11:AG$11))=$G$5+SUM($H$11:AG$11), VALUE(LEFT(AH$10, 4)), CONCATENATE(LEFT(AH$10,4)&"-"&IF(MID(AH$10, 3, 2)<"09", "0","")&IF(MID(AH$10, 3, 2)="99", "00", MID(AH$10, 3, 2)+1))), IF(AND(AH$5<>INT(AH$5), COUNTA($H$4:AG$4)=ROUNDUP(AH$5, 0)), IF($G$5+SUM($11:$11)=INT($G$5+SUM($11:$11)), VALUE(CONCATENATE(IF(RIGHT(AG$4, 2)="99", LEFT(AG$4, 2)+1, LEFT(AG$4, 2))&RIGHT(AG$4, 2))), CONCATENATE(LEFT(AG$4, 2)&RIGHT(AG$4, 2)&"-"&IF(RIGHT(AG$4, 2)<"09", "0", "")&IF(RIGHT(AG$4, 2)="99", "00", RIGHT(AG$4, 2)+1))), IF(LEN(AG4)>4,CONCATENATE(LEFT(AG4,4)+1&"-"&IF(RIGHT(AG4, 2)<"09", "0","")&IF(RIGHT(AG4, 2)="99", "00", RIGHT(AG4,2)+1)),VALUE(AG4+1)))) -> 2047-48 | AI4: =IF(AI$11<>"", IF(INT($G$5+SUM($H$11:AH$11))=$G$5+SUM($H$11:AH$11), VALUE(LEFT(AI$10, 4)), CONCATENATE(LEFT(AI$10,4)&"-"&IF(MID(AI$10, 3, 2)<"09", "0","")&IF(MID(AI$10, 3, 2)="99", "00", MID(AI$10, 3, 2)+1))), IF(AND(AI$5<>INT(AI$5), COUNTA($H$4:AH$4)=ROUNDUP(AI$5, 0)), IF($G$5+SUM($11:$11)=INT($G$5+SUM($11:$11)), VALUE(CONCATENATE(IF(RIGHT(AH$4, 2)="99", LEFT(AH$4, 2)+1, LEFT(AH$4, 2))&RIGHT(AH$4, 2))), CONCATENATE(LEFT(AH$4, 2)&RIGHT(AH$4, 2)&"-"&IF(RIGHT(AH$4, 2)<"09", "0", "")&IF(RIGHT(AH$4, 2)="99", "00", RIGHT(AH$4, 2)+1))), IF(LEN(AH4)>4,CONCATENATE(LEFT(AH4,4)+1&"-"&IF(RIGHT(AH4, 2)<"09", "0","")&IF(RIGHT(AH4, 2)="99", "00", RIGHT(AH4,2)+1)),VALUE(AH4+1)))) -> 2048-49 | AJ4: =IF(AJ$11<>"", IF(INT($G$5+SUM($H$11:AI$11))=$G$5+SUM($H$11:AI$11), VALUE(LEFT(AJ$10, 4)), CONCATENATE(LEFT(AJ$10,4)&"-"&IF(MID(AJ$10, 3, 2)<"09", "0","")&IF(MID(AJ$10, 3, 2)="99", "00", MID(AJ$10, 3, 2)+1))), IF(AND(AJ$5<>INT(AJ$5), COUNTA($H$4:AI$4)=ROUNDUP(AJ$5, 0)), IF($G$5+SUM($11:$11)=INT($G$5+SUM($11:$11)), VALUE(CONCATENATE(IF(RIGHT(AI$4, 2)="99", LEFT(AI$4, 2)+1, LEFT(AI$4, 2))&RIGHT(AI$4, 2))), CONCATENATE(LEFT(AI$4, 2)&RIGHT(AI$4, 2)&"-"&IF(RIGHT(AI$4, 2)<"09", "0", "")&IF(RIGHT(AI$4, 2)="99", "00", RIGHT(AI$4, 2)+1))), IF(LEN(AI4)>4,CONCATENATE(LEFT(AI4,4)+1&"-"&IF(RIGHT(AI4, 2)<"09", "0","")&IF(RIGHT(AI4, 2)="99", "00", RIGHT(AI4,2)+1)),VALUE(AI4+1)))) -> 2049-50 | AK4: =IF(AK$11<>"", IF(INT($G$5+SUM($H$11:AJ$11))=$G$5+SUM($H$11:AJ$11), VALUE(LEFT(AK$10, 4)), CONCATENATE(LEFT(AK$10,4)&"-"&IF(MID(AK$10, 3, 2)<"09", "0","")&IF(MID(AK$10, 3, 2)="99", "00", MID(AK$10, 3, 2)+1))), IF(AND(AK$5<>INT(AK$5), COUNTA($H$4:AJ$4)=ROUNDUP(AK$5, 0)), IF($G$5+SUM($11:$11)=INT($G$5+SUM($11:$11)), VALUE(CONCATENATE(IF(RIGHT(AJ$4, 2)="99", LEFT(AJ$4, 2)+1, LEFT(AJ$4, 2))&RIGHT(AJ$4, 2))), CONCATENATE(LEFT(AJ$4, 2)&RIGHT(AJ$4, 2)&"-"&IF(RIGHT(AJ$4, 2)<"09", "0", "")&IF(RIGHT(AJ$4, 2)="99", "00", RIGHT(AJ$4, 2)+1))), IF(LEN(AJ4)>4,CONCATENATE(LEFT(AJ4,4)+1&"-"&IF(RIGHT(AJ4, 2)<"09", "0","")&IF(RIGHT(AJ4, 2)="99", "00", RIGHT(AJ4,2)+1)),VALUE(AJ4+1)))) -> 2050-51 | AL4: =IF(AL$11<>"", IF(INT($G$5+SUM($H$11:AK$11))=$G$5+SUM($H$11:AK$11), VALUE(LEFT(AL$10, 4)), CONCATENATE(LEFT(AL$10,4)&"-"&IF(MID(AL$10, 3, 2)<"09", "0","")&IF(MID(AL$10, 3, 2)="99", "00", MID(AL$10, 3, 2)+1))), IF(AND(AL$5<>INT(AL$5), COUNTA($H$4:AK$4)=ROUNDUP(AL$5, 0)), IF($G$5+SUM($11:$11)=INT($G$5+SUM($11:$11)), VALUE(CONCATENATE(IF(RIGHT(AK$4, 2)="99", LEFT(AK$4, 2)+1, LEFT(AK$4, 2))&RIGHT(AK$4, 2))), CONCATENATE(LEFT(AK$4, 2)&RIGHT(AK$4, 2)&"-"&IF(RIGHT(AK$4, 2)<"09", "0", "")&IF(RIGHT(AK$4, 2)="99", "00", RIGHT(AK$4, 2)+1))), IF(LEN(AK4)>4,CONCATENATE(LEFT(AK4,4)+1&"-"&IF(RIGHT(AK4, 2)<"09", "0","")&IF(RIGHT(AK4, 2)="99", "00", RIGHT(AK4,2)+1)),VALUE(AK4+1)))) -> 2051-52 | AM4: =IF(AM$11<>"", IF(INT($G$5+SUM($H$11:AL$11))=$G$5+SUM($H$11:AL$11), VALUE(LEFT(AM$10, 4)), CONCATENATE(LEFT(AM$10,4)&"-"&IF(MID(AM$10, 3, 2)<"09", "0","")&IF(MID(AM$10, 3, 2)="99", "00", MID(AM$10, 3, 2)+1))), IF(AND(AM$5<>INT(AM$5), COUNTA($H$4:AL$4)=ROUNDUP(AM$5, 0)), IF($G$5+SUM($11:$11)=INT($G$5+SUM($11:$11)), VALUE(CONCATENATE(IF(RIGHT(AL$4, 2)="99", LEFT(AL$4, 2)+1, LEFT(AL$4, 2))&RIGHT(AL$4, 2))), CONCATENATE(LEFT(AL$4, 2)&RIGHT(AL$4, 2)&"-"&IF(RIGHT(AL$4, 2)<"09", "0", "")&IF(RIGHT(AL$4, 2)="99", "00", RIGHT(AL$4, 2)+1))), IF(LEN(AL4)>4,CONCATENATE(LEFT(AL4,4)+1&"-"&IF(RIGHT(AL4, 2)<"09", "0","")&IF(RIGHT(AL4, 2)="99", "00", RIGHT(AL4,2)+1)),VALUE(AL4+1)))) -> 2052-53 | AN4: =IF(AN$11<>"", IF(INT($G$5+SUM($H$11:AM$11))=$G$5+SUM($H$11:AM$11), VALUE(LEFT(AN$10, 4)), CONCATENATE(LEFT(AN$10,4)&"-"&IF(MID(AN$10, 3, 2)<"09", "0","")&IF(MID(AN$10, 3, 2)="99", "00", MID(AN$10, 3, 2)+1))), IF(AND(AN$5<>INT(AN$5), COUNTA($H$4:AM$4)=ROUNDUP(AN$5, 0)), IF($G$5+SUM($11:$11)=INT($G$5+SUM($11:$11)), VALUE(CONCATENATE(IF(RIGHT(AM$4, 2)="99", LEFT(AM$4, 2)+1, LEFT(AM$4, 2))&RIGHT(AM$4, 2))), CONCATENATE(LEFT(AM$4, 2)&RIGHT(AM$4, 2)&"-"&IF(RIGHT(AM$4, 2)<"09", "0", "")&IF(RIGHT(AM$4, 2)="99", "00", RIGHT(AM$4, 2)+1))), IF(LEN(AM4)>4,CONCATENATE(LEFT(AM4,4)+1&"-"&IF(RIGHT(AM4, 2)<"09", "0","")&IF(RIGHT(AM4, 2)="99", "00", RIGHT(AM4,2)+1)),VALUE(AM4+1)))) -> 2053-54 | AO4: =IF(AO$11<>"", IF(INT($G$5+SUM($H$11:AN$11))=$G$5+SUM($H$11:AN$11), VALUE(LEFT(AO$10, 4)), CONCATENATE(LEFT(AO$10,4)&"-"&IF(MID(AO$10, 3, 2)<"09", "0","")&IF(MID(AO$10, 3, 2)="99", "00", MID(AO$10, 3, 2)+1))), IF(AND(AO$5<>INT(AO$5), COUNTA($H$4:AN$4)=ROUNDUP(AO$5, 0)), IF($G$5+SUM($11:$11)=INT($G$5+SUM($11:$11)), VALUE(CONCATENATE(IF(RIGHT(AN$4, 2)="99", LEFT(AN$4, 2)+1, LEFT(AN$4, 2))&RIGHT(AN$4, 2))), CONCATENATE(LEFT(AN$4, 2)&RIGHT(AN$4, 2)&"-"&IF(RIGHT(AN$4, 2)<"09", "0", "")&IF(RIGHT(AN$4, 2)="99", "00", RIGHT(AN$4, 2)+1))), IF(LEN(AN4)>4,CONCATENATE(LEFT(AN4,4)+1&"-"&IF(RIGHT(AN4, 2)<"09", "0","")&IF(RIGHT(AN4, 2)="99", "00", RIGHT(AN4,2)+1)),VALUE(AN4+1)))) -> 2054-55 | AP4: =IF(AP$11<>"", IF(INT($G$5+SUM($H$11:AO$11))=$G$5+SUM($H$11:AO$11), VALUE(LEFT(AP$10, 4)), CONCATENATE(LEFT(AP$10,4)&"-"&IF(MID(AP$10, 3, 2)<"09", "0","")&IF(MID(AP$10, 3, 2)="99", "00", MID(AP$10, 3, 2)+1))), IF(AND(AP$5<>INT(AP$5), COUNTA($H$4:AO$4)=ROUNDUP(AP$5, 0)), IF($G$5+SUM($11:$11)=INT($G$5+SUM($11:$11)), VALUE(CONCATENATE(IF(RIGHT(AO$4, 2)="99", LEFT(AO$4, 2)+1, LEFT(AO$4, 2))&RIGHT(AO$4, 2))), CONCATENATE(LEFT(AO$4, 2)&RIGHT(AO$4, 2)&"-"&IF(RIGHT(AO$4, 2)<"09", "0", "")&IF(RIGHT(AO$4, 2)="99", "00", RIGHT(AO$4, 2)+1))), IF(LEN(AO4)>4,CONCATENATE(LEFT(AO4,4)+1&"-"&IF(RIGHT(AO4, 2)<"09", "0","")&IF(RIGHT(AO4, 2)="99", "00", RIGHT(AO4,2)+1)),VALUE(AO4+1)))) -> 2055-56 | AQ4: =IF(AQ$11<>"", IF(INT($G$5+SUM($H$11:AP$11))=$G$5+SUM($H$11:AP$11), VALUE(LEFT(AQ$10, 4)), CONCATENATE(LEFT(AQ$10,4)&"-"&IF(MID(AQ$10, 3, 2)<"09", "0","")&IF(MID(AQ$10, 3, 2)="99", "00", MID(AQ$10, 3, 2)+1))), IF(AND(AQ$5<>INT(AQ$5), COUNTA($H$4:AP$4)=ROUNDUP(AQ$5, 0)), IF($G$5+SUM($11:$11)=INT($G$5+SUM($11:$11)), VALUE(CONCATENATE(IF(RIGHT(AP$4, 2)="99", LEFT(AP$4, 2)+1, LEFT(AP$4, 2))&RIGHT(AP$4, 2))), CONCATENATE(LEFT(AP$4, 2)&RIGHT(AP$4, 2)&"-"&IF(RIGHT(AP$4, 2)<"09", "0", "")&IF(RIGHT(AP$4, 2)="99", "00", RIGHT(AP$4, 2)+1))), IF(LEN(AP4)>4,CONCATENATE(LEFT(AP4,4)+1&"-"&IF(RIGHT(AP4, 2)<"09", "0","")&IF(RIGHT(AP4, 2)="99", "00", RIGHT(AP4,2)+1)),VALUE(AP4+1)))) -> 2056-57 | AR4: =IF(AR$11<>"", IF(INT($G$5+SUM($H$11:AQ$11))=$G$5+SUM($H$11:AQ$11), VALUE(LEFT(AR$10, 4)), CONCATENATE(LEFT(AR$10,4)&"-"&IF(MID(AR$10, 3, 2)<"09", "0","")&IF(MID(AR$10, 3, 2)="99", "00", MID(AR$10, 3, 2)+1))), IF(AND(AR$5<>INT(AR$5), COUNTA($H$4:AQ$4)=ROUNDUP(AR$5, 0)), IF($G$5+SUM($11:$11)=INT($G$5+SUM($11:$11)), VALUE(CONCATENATE(IF(RIGHT(AQ$4, 2)="99", LEFT(AQ$4, 2)+1, LEFT(AQ$4, 2))&RIGHT(AQ$4, 2))), CONCATENATE(LEFT(AQ$4, 2)&RIGHT(AQ$4, 2)&"-"&IF(RIGHT(AQ$4, 2)<"09", "0", "")&IF(RIGHT(AQ$4, 2)="99", "00", RIGHT(AQ$4, 2)+1))), IF(LEN(AQ4)>4,CONCATENATE(LEFT(AQ4,4)+1&"-"&IF(RIGHT(AQ4, 2)<"09", "0","")&IF(RIGHT(AQ4, 2)="99", "00", RIGHT(AQ4,2)+1)),VALUE(AQ4+1)))) -> 2057-58 | AS4: =IF(AS$11<>"", IF(INT($G$5+SUM($H$11:AR$11))=$G$5+SUM($H$11:AR$11), VALUE(LEFT(AS$10, 4)), CONCATENATE(LEFT(AS$10,4)&"-"&IF(MID(AS$10, 3, 2)<"09", "0","")&IF(MID(AS$10, 3, 2)="99", "00", MID(AS$10, 3, 2)+1))), IF(AND(AS$5<>INT(AS$5), COUNTA($H$4:AR$4)=ROUNDUP(AS$5, 0)), IF($G$5+SUM($11:$11)=INT($G$5+SUM($11:$11)), VALUE(CONCATENATE(IF(RIGHT(AR$4, 2)="99", LEFT(AR$4, 2)+1, LEFT(AR$4, 2))&RIGHT(AR$4, 2))), CONCATENATE(LEFT(AR$4, 2)&RIGHT(AR$4, 2)&"-"&IF(RIGHT(AR$4, 2)<"09", "0", "")&IF(RIGHT(AR$4, 2)="99", "00", RIGHT(AR$4, 2)+1))), IF(LEN(AR4)>4,CONCATENATE(LEFT(AR4,4)+1&"-"&IF(RIGHT(AR4, 2)<"09", "0","")&IF(RIGHT(AR4, 2)="99", "00", RIGHT(AR4,2)+1)),VALUE(AR4+1)))) -> 2058-59 | AT4: =IF(AT$11<>"", IF(INT($G$5+SUM($H$11:AS$11))=$G$5+SUM($H$11:AS$11), VALUE(LEFT(AT$10, 4)), CONCATENATE(LEFT(AT$10,4)&"-"&IF(MID(AT$10, 3, 2)<"09", "0","")&IF(MID(AT$10, 3, 2)="99", "00", MID(AT$10, 3, 2)+1))), IF(AND(AT$5<>INT(AT$5), COUNTA($H$4:AS$4)=ROUNDUP(AT$5, 0)), IF($G$5+SUM($11:$11)=INT($G$5+SUM($11:$11)), VALUE(CONCATENATE(IF(RIGHT(AS$4, 2)="99", LEFT(AS$4, 2)+1, LEFT(AS$4, 2))&RIGHT(AS$4, 2))), CONCATENATE(LEFT(AS$4, 2)&RIGHT(AS$4, 2)&"-"&IF(RIGHT(AS$4, 2)<"09", "0", "")&IF(RIGHT(AS$4, 2)="99", "00", RIGHT(AS$4, 2)+1))), IF(LEN(AS4)>4,CONCATENATE(LEFT(AS4,4)+1&"-"&IF(RIGHT(AS4, 2)<"09", "0","")&IF(RIGHT(AS4, 2)="99", "00", RIGHT(AS4,2)+1)),VALUE(AS4+1)))) -> 2059-60 | AU4: =IF(AU$11<>"", IF(INT($G$5+SUM($H$11:AT$11))=$G$5+SUM($H$11:AT$11), VALUE(LEFT(AU$10, 4)), CONCATENATE(LEFT(AU$10,4)&"-"&IF(MID(AU$10, 3, 2)<"09", "0","")&IF(MID(AU$10, 3, 2)="99", "00", MID(AU$10, 3, 2)+1))), IF(AND(AU$5<>INT(AU$5), COUNTA($H$4:AT$4)=ROUNDUP(AU$5, 0)), IF($G$5+SUM($11:$11)=INT($G$5+SUM($11:$11)), VALUE(CONCATENATE(IF(RIGHT(AT$4, 2)="99", LEFT(AT$4, 2)+1, LEFT(AT$4, 2))&RIGHT(AT$4, 2))), CONCATENATE(LEFT(AT$4, 2)&RIGHT(AT$4, 2)&"-"&IF(RIGHT(AT$4, 2)<"09", "0", "")&IF(RIGHT(AT$4, 2)="99", "00", RIGHT(AT$4, 2)+1))), IF(LEN(AT4)>4,CONCATENATE(LEFT(AT4,4)+1&"-"&IF(RIGHT(AT4, 2)<"09", "0","")&IF(RIGHT(AT4, 2)="99", "00", RIGHT(AT4,2)+1)),VALUE(AT4+1)))) -> 2060-61 | AV4: =IF(AV$11<>"", IF(INT($G$5+SUM($H$11:AU$11))=$G$5+SUM($H$11:AU$11), VALUE(LEFT(AV$10, 4)), CONCATENATE(LEFT(AV$10,4)&"-"&IF(MID(AV$10, 3, 2)<"09", "0","")&IF(MID(AV$10, 3, 2)="99", "00", MID(AV$10, 3, 2)+1))), IF(AND(AV$5<>INT(AV$5), COUNTA($H$4:AU$4)=ROUNDUP(AV$5, 0)), IF($G$5+SUM($11:$11)=INT($G$5+SUM($11:$11)), VALUE(CONCATENATE(IF(RIGHT(AU$4, 2)="99", LEFT(AU$4, 2)+1, LEFT(AU$4, 2))&RIGHT(AU$4, 2))), CONCATENATE(LEFT(AU$4, 2)&RIGHT(AU$4, 2)&"-"&IF(RIGHT(AU$4, 2)<"09", "0", "")&IF(RIGHT(AU$4, 2)="99", "00", RIGHT(AU$4, 2)+1))), IF(LEN(AU4)>4,CONCATENATE(LEFT(AU4,4)+1&"-"&IF(RIGHT(AU4, 2)<"09", "0","")&IF(RIGHT(AU4, 2)="99", "00", RIGHT(AU4,2)+1)),VALUE(AU4+1)))) -> 2061-62 | AW4: =IF(AW$11<>"", IF(INT($G$5+SUM($H$11:AV$11))=$G$5+SUM($H$11:AV$11), VALUE(LEFT(AW$10, 4)), CONCATENATE(LEFT(AW$10,4)&"-"&IF(MID(AW$10, 3, 2)<"09", "0","")&IF(MID(AW$10, 3, 2)="99", "00", MID(AW$10, 3, 2)+1))), IF(AND(AW$5<>INT(AW$5), COUNTA($H$4:AV$4)=ROUNDUP(AW$5, 0)), IF($G$5+SUM($11:$11)=INT($G$5+SUM($11:$11)), VALUE(CONCATENATE(IF(RIGHT(AV$4, 2)="99", LEFT(AV$4, 2)+1, LEFT(AV$4, 2))&RIGHT(AV$4, 2))), CONCATENATE(LEFT(AV$4, 2)&RIGHT(AV$4, 2)&"-"&IF(RIGHT(AV$4, 2)<"09", "0", "")&IF(RIGHT(AV$4, 2)="99", "00", RIGHT(AV$4, 2)+1))), IF(LEN(AV4)>4,CONCATENATE(LEFT(AV4,4)+1&"-"&IF(RIGHT(AV4, 2)<"09", "0","")&IF(RIGHT(AV4, 2)="99", "00", RIGHT(AV4,2)+1)),VALUE(AV4+1)))) -> 2062-63 | AX4: =IF(AX$11<>"", IF(INT($G$5+SUM($H$11:AW$11))=$G$5+SUM($H$11:AW$11), VALUE(LEFT(AX$10, 4)), CONCATENATE(LEFT(AX$10,4)&"-"&IF(MID(AX$10, 3, 2)<"09", "0","")&IF(MID(AX$10, 3, 2)="99", "00", MID(AX$10, 3, 2)+1))), IF(AND(AX$5<>INT(AX$5), COUNTA($H$4:AW$4)=ROUNDUP(AX$5, 0)), IF($G$5+SUM($11:$11)=INT($G$5+SUM($11:$11)), VALUE(CONCATENATE(IF(RIGHT(AW$4, 2)="99", LEFT(AW$4, 2)+1, LEFT(AW$4, 2))&RIGHT(AW$4, 2))), CONCATENATE(LEFT(AW$4, 2)&RIGHT(AW$4, 2)&"-"&IF(RIGHT(AW$4, 2)<"09", "0", "")&IF(RIGHT(AW$4, 2)="99", "00", RIGHT(AW$4, 2)+1))), IF(LEN(AW4)>4,CONCATENATE(LEFT(AW4,4)+1&"-"&IF(RIGHT(AW4, 2)<"09", "0","")&IF(RIGHT(AW4, 2)="99", "00", RIGHT(AW4,2)+1)),VALUE(AW4+1)))) -> 2063-64 | AY4: =IF(AY$11<>"", IF(INT($G$5+SUM($H$11:AX$11))=$G$5+SUM($H$11:AX$11), VALUE(LEFT(AY$10, 4)), CONCATENATE(LEFT(AY$10,4)&"-"&IF(MID(AY$10, 3, 2)<"09", "0","")&IF(MID(AY$10, 3, 2)="99", "00", MID(AY$10, 3, 2)+1))), IF(AND(AY$5<>INT(AY$5), COUNTA($H$4:AX$4)=ROUNDUP(AY$5, 0)), IF($G$5+SUM($11:$11)=INT($G$5+SUM($11:$11)), VALUE(CONCATENATE(IF(RIGHT(AX$4, 2)="99", LEFT(AX$4, 2)+1, LEFT(AX$4, 2))&RIGHT(AX$4, 2))), CONCATENATE(LEFT(AX$4, 2)&RIGHT(AX$4, 2)&"-"&IF(RIGHT(AX$4, 2)<"09", "0", "")&IF(RIGHT(AX$4, 2)="99", "00", RIGHT(AX$4, 2)+1))), IF(LEN(AX4)>4,CONCATENATE(LEFT(AX4,4)+1&"-"&IF(RIGHT(AX4, 2)<"09", "0","")&IF(RIGHT(AX4, 2)="99", "00", RIGHT(AX4,2)+1)),VALUE(AX4+1)))) -> 2064-65 | AZ4: =IF(AZ$11<>"", IF(INT($G$5+SUM($H$11:AY$11))=$G$5+SUM($H$11:AY$11), VALUE(LEFT(AZ$10, 4)), CONCATENATE(LEFT(AZ$10,4)&"-"&IF(MID(AZ$10, 3, 2)<"09", "0","")&IF(MID(AZ$10, 3, 2)="99", "00", MID(AZ$10, 3, 2)+1))), IF(AND(AZ$5<>INT(AZ$5), COUNTA($H$4:AY$4)=ROUNDUP(AZ$5, 0)), IF($G$5+SUM($11:$11)=INT($G$5+SUM($11:$11)), VALUE(CONCATENATE(IF(RIGHT(AY$4, 2)="99", LEFT(AY$4, 2)+1, LEFT(AY$4, 2))&RIGHT(AY$4, 2))), CONCATENATE(LEFT(AY$4, 2)&RIGHT(AY$4, 2)&"-"&IF(RIGHT(AY$4, 2)<"09", "0", "")&IF(RIGHT(AY$4, 2)="99", "00", RIGHT(AY$4, 2)+1))), IF(LEN(AY4)>4,CONCATENATE(LEFT(AY4,4)+1&"-"&IF(RIGHT(AY4, 2)<"09", "0","")&IF(RIGHT(AY4, 2)="99", "00", RIGHT(AY4,2)+1)),VALUE(AY4+1)))) -> 2065-66 | BA4: =IF(BA$11<>"", IF(INT($G$5+SUM($H$11:AZ$11))=$G$5+SUM($H$11:AZ$11), VALUE(LEFT(BA$10, 4)), CONCATENATE(LEFT(BA$10,4)&"-"&IF(MID(BA$10, 3, 2)<"09", "0","")&IF(MID(BA$10, 3, 2)="99", "00", MID(BA$10, 3, 2)+1))), IF(AND(BA$5<>INT(BA$5), COUNTA($H$4:AZ$4)=ROUNDUP(BA$5, 0)), IF($G$5+SUM($11:$11)=INT($G$5+SUM($11:$11)), VALUE(CONCATENATE(IF(RIGHT(AZ$4, 2)="99", LEFT(AZ$4, 2)+1, LEFT(AZ$4, 2))&RIGHT(AZ$4, 2))), CONCATENATE(LEFT(AZ$4, 2)&RIGHT(AZ$4, 2)&"-"&IF(RIGHT(AZ$4, 2)<"09", "0", "")&IF(RIGHT(AZ$4, 2)="99", "00", RIGHT(AZ$4, 2)+1))), IF(LEN(AZ4)>4,CONCATENATE(LEFT(AZ4,4)+1&"-"&IF(RIGHT(AZ4, 2)<"09", "0","")&IF(RIGHT(AZ4, 2)="99", "00", RIGHT(AZ4,2)+1)),VALUE(AZ4+1)))) -> 2066-67 | BB4: =IF(BB$11<>"", IF(INT($G$5+SUM($H$11:BA$11))=$G$5+SUM($H$11:BA$11), VALUE(LEFT(BB$10, 4)), CONCATENATE(LEFT(BB$10,4)&"-"&IF(MID(BB$10, 3, 2)<"09", "0","")&IF(MID(BB$10, 3, 2)="99", "00", MID(BB$10, 3, 2)+1))), IF(AND(BB$5<>INT(BB$5), COUNTA($H$4:BA$4)=ROUNDUP(BB$5, 0)), IF($G$5+SUM($11:$11)=INT($G$5+SUM($11:$11)), VALUE(CONCATENATE(IF(RIGHT(BA$4, 2)="99", LEFT(BA$4, 2)+1, LEFT(BA$4, 2))&RIGHT(BA$4, 2))), CONCATENATE(LEFT(BA$4, 2)&RIGHT(BA$4, 2)&"-"&IF(RIGHT(BA$4, 2)<"09", "0", "")&IF(RIGHT(BA$4, 2)="99", "00", RIGHT(BA$4, 2)+1))), IF(LEN(BA4)>4,CONCATENATE(LEFT(BA4,4)+1&"-"&IF(RIGHT(BA4, 2)<"09", "0","")&IF(RIGHT(BA4, 2)="99", "00", RIGHT(BA4,2)+1)),VALUE(BA4+1)))) -> 2067-68 | BC4: =IF(BC$11<>"", IF(INT($G$5+SUM($H$11:BB$11))=$G$5+SUM($H$11:BB$11), VALUE(LEFT(BC$10, 4)), CONCATENATE(LEFT(BC$10,4)&"-"&IF(MID(BC$10, 3, 2)<"09", "0","")&IF(MID(BC$10, 3, 2)="99", "00", MID(BC$10, 3, 2)+1))), IF(AND(BC$5<>INT(BC$5), COUNTA($H$4:BB$4)=ROUNDUP(BC$5, 0)), IF($G$5+SUM($11:$11)=INT($G$5+SUM($11:$11)), VALUE(CONCATENATE(IF(RIGHT(BB$4, 2)="99", LEFT(BB$4, 2)+1, LEFT(BB$4, 2))&RIGHT(BB$4, 2))), CONCATENATE(LEFT(BB$4, 2)&RIGHT(BB$4, 2)&"-"&IF(RIGHT(BB$4, 2)<"09", "0", "")&IF(RIGHT(BB$4, 2)="99", "00", RIGHT(BB$4, 2)+1))), IF(LEN(BB4)>4,CONCATENATE(LEFT(BB4,4)+1&"-"&IF(RIGHT(BB4, 2)<"09", "0","")&IF(RIGHT(BB4, 2)="99", "00", RIGHT(BB4,2)+1)),VALUE(BB4+1)))) -> 2068-69 | BD4: =IF(BD$11<>"", IF(INT($G$5+SUM($H$11:BC$11))=$G$5+SUM($H$11:BC$11), VALUE(LEFT(BD$10, 4)), CONCATENATE(LEFT(BD$10,4)&"-"&IF(MID(BD$10, 3, 2)<"09", "0","")&IF(MID(BD$10, 3, 2)="99", "00", MID(BD$10, 3, 2)+1))), IF(AND(BD$5<>INT(BD$5), COUNTA($H$4:BC$4)=ROUNDUP(BD$5, 0)), IF($G$5+SUM($11:$11)=INT($G$5+SUM($11:$11)), VALUE(CONCATENATE(IF(RIGHT(BC$4, 2)="99", LEFT(BC$4, 2)+1, LEFT(BC$4, 2))&RIGHT(BC$4, 2))), CONCATENATE(LEFT(BC$4, 2)&RIGHT(BC$4, 2)&"-"&IF(RIGHT(BC$4, 2)<"09", "0", "")&IF(RIGHT(BC$4, 2)="99", "00", RIGHT(BC$4, 2)+1))), IF(LEN(BC4)>4,CONCATENATE(LEFT(BC4,4)+1&"-"&IF(RIGHT(BC4, 2)<"09", "0","")&IF(RIGHT(BC4, 2)="99", "00", RIGHT(BC4,2)+1)),VALUE(BC4+1)))) -> 2069-70 | BE4: =IF(BE$11<>"", IF(INT($G$5+SUM($H$11:BD$11))=$G$5+SUM($H$11:BD$11), VALUE(LEFT(BE$10, 4)), CONCATENATE(LEFT(BE$10,4)&"-"&IF(MID(BE$10, 3, 2)<"09", "0","")&IF(MID(BE$10, 3, 2)="99", "00", MID(BE$10, 3, 2)+1))), IF(AND(BE$5<>INT(BE$5), COUNTA($H$4:BD$4)=ROUNDUP(BE$5, 0)), IF($G$5+SUM($11:$11)=INT($G$5+SUM($11:$11)), VALUE(CONCATENATE(IF(RIGHT(BD$4, 2)="99", LEFT(BD$4, 2)+1, LEFT(BD$4, 2))&RIGHT(BD$4, 2))), CONCATENATE(LEFT(BD$4, 2)&RIGHT(BD$4, 2)&"-"&IF(RIGHT(BD$4, 2)<"09", "0", "")&IF(RIGHT(BD$4, 2)="99", "00", RIGHT(BD$4, 2)+1))), IF(LEN(BD4)>4,CONCATENATE(LEFT(BD4,4)+1&"-"&IF(RIGHT(BD4, 2)<"09", "0","")&IF(RIGHT(BD4, 2)="99", "00", RIGHT(BD4,2)+1)),VALUE(BD4+1)))) -> 2070-71 | BF4: =IF(BF$11<>"", IF(INT($G$5+SUM($H$11:BE$11))=$G$5+SUM($H$11:BE$11), VALUE(LEFT(BF$10, 4)), CONCATENATE(LEFT(BF$10,4)&"-"&IF(MID(BF$10, 3, 2)<"09", "0","")&IF(MID(BF$10, 3, 2)="99", "00", MID(BF$10, 3, 2)+1))), IF(AND(BF$5<>INT(BF$5), COUNTA($H$4:BE$4)=ROUNDUP(BF$5, 0)), IF($G$5+SUM($11:$11)=INT($G$5+SUM($11:$11)), VALUE(CONCATENATE(IF(RIGHT(BE$4, 2)="99", LEFT(BE$4, 2)+1, LEFT(BE$4, 2))&RIGHT(BE$4, 2))), CONCATENATE(LEFT(BE$4, 2)&RIGHT(BE$4, 2)&"-"&IF(RIGHT(BE$4, 2)<"09", "0", "")&IF(RIGHT(BE$4, 2)="99", "00", RIGHT(BE$4, 2)+1))), IF(LEN(BE4)>4,CONCATENATE(LEFT(BE4,4)+1&"-"&IF(RIGHT(BE4, 2)<"09", "0","")&IF(RIGHT(BE4, 2)="99", "00", RIGHT(BE4,2)+1)),VALUE(BE4+1)))) -> 2071-72 | BG4: =IF(BG$11<>"", IF(INT($G$5+SUM($H$11:BF$11))=$G$5+SUM($H$11:BF$11), VALUE(LEFT(BG$10, 4)), CONCATENATE(LEFT(BG$10,4)&"-"&IF(MID(BG$10, 3, 2)<"09", "0","")&IF(MID(BG$10, 3, 2)="99", "00", MID(BG$10, 3, 2)+1))), IF(AND(BG$5<>INT(BG$5), COUNTA($H$4:BF$4)=ROUNDUP(BG$5, 0)), IF($G$5+SUM($11:$11)=INT($G$5+SUM($11:$11)), VALUE(CONCATENATE(IF(RIGHT(BF$4, 2)="99", LEFT(BF$4, 2)+1, LEFT(BF$4, 2))&RIGHT(BF$4, 2))), CONCATENATE(LEFT(BF$4, 2)&RIGHT(BF$4, 2)&"-"&IF(RIGHT(BF$4, 2)<"09", "0", "")&IF(RIGHT(BF$4, 2)="99", "00", RIGHT(BF$4, 2)+1))), IF(LEN(BF4)>4,CONCATENATE(LEFT(BF4,4)+1&"-"&IF(RIGHT(BF4, 2)<"09", "0","")&IF(RIGHT(BF4, 2)="99", "00", RIGHT(BF4,2)+1)),VALUE(BF4+1)))) -> 2072-73 | BH4: =IF(BH$11<>"", IF(INT($G$5+SUM($H$11:BG$11))=$G$5+SUM($H$11:BG$11), VALUE(LEFT(BH$10, 4)), CONCATENATE(LEFT(BH$10,4)&"-"&IF(MID(BH$10, 3, 2)<"09", "0","")&IF(MID(BH$10, 3, 2)="99", "00", MID(BH$10, 3, 2)+1))), IF(AND(BH$5<>INT(BH$5), COUNTA($H$4:BG$4)=ROUNDUP(BH$5, 0)), IF($G$5+SUM($11:$11)=INT($G$5+SUM($11:$11)), VALUE(CONCATENATE(IF(RIGHT(BG$4, 2)="99", LEFT(BG$4, 2)+1, LEFT(BG$4, 2))&RIGHT(BG$4, 2))), CONCATENATE(LEFT(BG$4, 2)&RIGHT(BG$4, 2)&"-"&IF(RIGHT(BG$4, 2)<"09", "0", "")&IF(RIGHT(BG$4, 2)="99", "00", RIGHT(BG$4, 2)+1))), IF(LEN(BG4)>4,CONCATENATE(LEFT(BG4,4)+1&"-"&IF(RIGHT(BG4, 2)<"09", "0","")&IF(RIGHT(BG4, 2)="99", "00", RIGHT(BG4,2)+1)),VALUE(BG4+1)))) -> 2073-74 | BI4: =IF(BI$11<>"", IF(INT($G$5+SUM($H$11:BH$11))=$G$5+SUM($H$11:BH$11), VALUE(LEFT(BI$10, 4)), CONCATENATE(LEFT(BI$10,4)&"-"&IF(MID(BI$10, 3, 2)<"09", "0","")&IF(MID(BI$10, 3, 2)="99", "00", MID(BI$10, 3, 2)+1))), IF(AND(BI$5<>INT(BI$5), COUNTA($H$4:BH$4)=ROUNDUP(BI$5, 0)), IF($G$5+SUM($11:$11)=INT($G$5+SUM($11:$11)), VALUE(CONCATENATE(IF(RIGHT(BH$4, 2)="99", LEFT(BH$4, 2)+1, LEFT(BH$4, 2))&RIGHT(BH$4, 2))), CONCATENATE(LEFT(BH$4, 2)&RIGHT(BH$4, 2)&"-"&IF(RIGHT(BH$4, 2)<"09", "0", "")&IF(RIGHT(BH$4, 2)="99", "00", RIGHT(BH$4, 2)+1))), IF(LEN(BH4)>4,CONCATENATE(LEFT(BH4,4)+1&"-"&IF(RIGHT(BH4, 2)<"09", "0","")&IF(RIGHT(BH4, 2)="99", "00", RIGHT(BH4,2)+1)),VALUE(BH4+1)))) -> 2074-75 | BJ4: =IF(BJ$11<>"", IF(INT($G$5+SUM($H$11:BI$11))=$G$5+SUM($H$11:BI$11), VALUE(LEFT(BJ$10, 4)), CONCATENATE(LEFT(BJ$10,4)&"-"&IF(MID(BJ$10, 3, 2)<"09", "0","")&IF(MID(BJ$10, 3, 2)="99", "00", MID(BJ$10, 3, 2)+1))), IF(AND(BJ$5<>INT(BJ$5), COUNTA($H$4:BI$4)=ROUNDUP(BJ$5, 0)), IF($G$5+SUM($11:$11)=INT($G$5+SUM($11:$11)), VALUE(CONCATENATE(IF(RIGHT(BI$4, 2)="99", LEFT(BI$4, 2)+1, LEFT(BI$4, 2))&RIGHT(BI$4, 2))), CONCATENATE(LEFT(BI$4, 2)&RIGHT(BI$4, 2)&"-"&IF(RIGHT(BI$4, 2)<"09", "0", "")&IF(RIGHT(BI$4, 2)="99", "00", RIGHT(BI$4, 2)+1))), IF(LEN(BI4)>4,CONCATENATE(LEFT(BI4,4)+1&"-"&IF(RIGHT(BI4, 2)<"09", "0","")&IF(RIGHT(BI4, 2)="99", "00", RIGHT(BI4,2)+1)),VALUE(BI4+1)))) -> 2075-76 | BK4: =IF(BK$11<>"", IF(INT($G$5+SUM($H$11:BJ$11))=$G$5+SUM($H$11:BJ$11), VALUE(LEFT(BK$10, 4)), CONCATENATE(LEFT(BK$10,4)&"-"&IF(MID(BK$10, 3, 2)<"09", "0","")&IF(MID(BK$10, 3, 2)="99", "00", MID(BK$10, 3, 2)+1))), IF(AND(BK$5<>INT(BK$5), COUNTA($H$4:BJ$4)=ROUNDUP(BK$5, 0)), IF($G$5+SUM($11:$11)=INT($G$5+SUM($11:$11)), VALUE(CONCATENATE(IF(RIGHT(BJ$4, 2)="99", LEFT(BJ$4, 2)+1, LEFT(BJ$4, 2))&RIGHT(BJ$4, 2))), CONCATENATE(LEFT(BJ$4, 2)&RIGHT(BJ$4, 2)&"-"&IF(RIGHT(BJ$4, 2)<"09", "0", "")&IF(RIGHT(BJ$4, 2)="99", "00", RIGHT(BJ$4, 2)+1))), IF(LEN(BJ4)>4,CONCATENATE(LEFT(BJ4,4)+1&"-"&IF(RIGHT(BJ4, 2)<"09", "0","")&IF(RIGHT(BJ4, 2)="99", "00", RIGHT(BJ4,2)+1)),VALUE(BJ4+1)))) -> 2076-77 | BL4: =IF(BL$11<>"", IF(INT($G$5+SUM($H$11:BK$11))=$G$5+SUM($H$11:BK$11), VALUE(LEFT(BL$10, 4)), CONCATENATE(LEFT(BL$10,4)&"-"&IF(MID(BL$10, 3, 2)<"09", "0","")&IF(MID(BL$10, 3, 2)="99", "00", MID(BL$10, 3, 2)+1))), IF(AND(BL$5<>INT(BL$5), COUNTA($H$4:BK$4)=ROUNDUP(BL$5, 0)), IF($G$5+SUM($11:$11)=INT($G$5+SUM($11:$11)), VALUE(CONCATENATE(IF(RIGHT(BK$4, 2)="99", LEFT(BK$4, 2)+1, LEFT(BK$4, 2))&RIGHT(BK$4, 2))), CONCATENATE(LEFT(BK$4, 2)&RIGHT(BK$4, 2)&"-"&IF(RIGHT(BK$4, 2)<"09", "0", "")&IF(RIGHT(BK$4, 2)="99", "00", RIGHT(BK$4, 2)+1))), IF(LEN(BK4)>4,CONCATENATE(LEFT(BK4,4)+1&"-"&IF(RIGHT(BK4, 2)<"09", "0","")&IF(RIGHT(BK4, 2)="99", "00", RIGHT(BK4,2)+1)),VALUE(BK4+1)))) -> 2077-78 | BM4: =IF(BM$11<>"", IF(INT($G$5+SUM($H$11:BL$11))=$G$5+SUM($H$11:BL$11), VALUE(LEFT(BM$10, 4)), CONCATENATE(LEFT(BM$10,4)&"-"&IF(MID(BM$10, 3, 2)<"09", "0","")&IF(MID(BM$10, 3, 2)="99", "00", MID(BM$10, 3, 2)+1))), IF(AND(BM$5<>INT(BM$5), COUNTA($H$4:BL$4)=ROUNDUP(BM$5, 0)), IF($G$5+SUM($11:$11)=INT($G$5+SUM($11:$11)), VALUE(CONCATENATE(IF(RIGHT(BL$4, 2)="99", LEFT(BL$4, 2)+1, LEFT(BL$4, 2))&RIGHT(BL$4, 2))), CONCATENATE(LEFT(BL$4, 2)&RIGHT(BL$4, 2)&"-"&IF(RIGHT(BL$4, 2)<"09", "0", "")&IF(RIGHT(BL$4, 2)="99", "00", RIGHT(BL$4, 2)+1))), IF(LEN(BL4)>4,CONCATENATE(LEFT(BL4,4)+1&"-"&IF(RIGHT(BL4, 2)<"09", "0","")&IF(RIGHT(BL4, 2)="99", "00", RIGHT(BL4,2)+1)),VALUE(BL4+1)))) -> 2078-79 | BN4: =IF(BN$11<>"", IF(INT($G$5+SUM($H$11:BM$11))=$G$5+SUM($H$11:BM$11), VALUE(LEFT(BN$10, 4)), CONCATENATE(LEFT(BN$10,4)&"-"&IF(MID(BN$10, 3, 2)<"09", "0","")&IF(MID(BN$10, 3, 2)="99", "00", MID(BN$10, 3, 2)+1))), IF(AND(BN$5<>INT(BN$5), COUNTA($H$4:BM$4)=ROUNDUP(BN$5, 0)), IF($G$5+SUM($11:$11)=INT($G$5+SUM($11:$11)), VALUE(CONCATENATE(IF(RIGHT(BM$4, 2)="99", LEFT(BM$4, 2)+1, LEFT(BM$4, 2))&RIGHT(BM$4, 2))), CONCATENATE(LEFT(BM$4, 2)&RIGHT(BM$4, 2)&"-"&IF(RIGHT(BM$4, 2)<"09", "0", "")&IF(RIGHT(BM$4, 2)="99", "00", RIGHT(BM$4, 2)+1))), IF(LEN(BM4)>4,CONCATENATE(LEFT(BM4,4)+1&"-"&IF(RIGHT(BM4, 2)<"09", "0","")&IF(RIGHT(BM4, 2)="99", "00", RIGHT(BM4,2)+1)),VALUE(BM4+1)))) -> 2079-80 | BO4: =IF(BO$11<>"", IF(INT($G$5+SUM($H$11:BN$11))=$G$5+SUM($H$11:BN$11), VALUE(LEFT(BO$10, 4)), CONCATENATE(LEFT(BO$10,4)&"-"&IF(MID(BO$10, 3, 2)<"09", "0","")&IF(MID(BO$10, 3, 2)="99", "00", MID(BO$10, 3, 2)+1))), IF(AND(BO$5<>INT(BO$5), COUNTA($H$4:BN$4)=ROUNDUP(BO$5, 0)), IF($G$5+SUM($11:$11)=INT($G$5+SUM($11:$11)), VALUE(CONCATENATE(IF(RIGHT(BN$4, 2)="99", LEFT(BN$4, 2)+1, LEFT(BN$4, 2))&RIGHT(BN$4, 2))), CONCATENATE(LEFT(BN$4, 2)&RIGHT(BN$4, 2)&"-"&IF(RIGHT(BN$4, 2)<"09", "0", "")&IF(RIGHT(BN$4, 2)="99", "00", RIGHT(BN$4, 2)+1))), IF(LEN(BN4)>4,CONCATENATE(LEFT(BN4,4)+1&"-"&IF(RIGHT(BN4, 2)<"09", "0","")&IF(RIGHT(BN4, 2)="99", "00", RIGHT(BN4,2)+1)),VALUE(BN4+1)))) -> 2080-81 | BP4: =IF(BP$11<>"", IF(INT($G$5+SUM($H$11:BO$11))=$G$5+SUM($H$11:BO$11), VALUE(LEFT(BP$10, 4)), CONCATENATE(LEFT(BP$10,4)&"-"&IF(MID(BP$10, 3, 2)<"09", "0","")&IF(MID(BP$10, 3, 2)="99", "00", MID(BP$10, 3, 2)+1))), IF(AND(BP$5<>INT(BP$5), COUNTA($H$4:BO$4)=ROUNDUP(BP$5, 0)), IF($G$5+SUM($11:$11)=INT($G$5+SUM($11:$11)), VALUE(CONCATENATE(IF(RIGHT(BO$4, 2)="99", LEFT(BO$4, 2)+1, LEFT(BO$4, 2))&RIGHT(BO$4, 2))), CONCATENATE(LEFT(BO$4, 2)&RIGHT(BO$4, 2)&"-"&IF(RIGHT(BO$4, 2)<"09", "0", "")&IF(RIGHT(BO$4, 2)="99", "00", RIGHT(BO$4, 2)+1))), IF(LEN(BO4)>4,CONCATENATE(LEFT(BO4,4)+1&"-"&IF(RIGHT(BO4, 2)<"09", "0","")&IF(RIGHT(BO4, 2)="99", "00", RIGHT(BO4,2)+1)),VALUE(BO4+1)))) -> 2081-82 | BQ4: =IF(BQ$11<>"", IF(INT($G$5+SUM($H$11:BP$11))=$G$5+SUM($H$11:BP$11), VALUE(LEFT(BQ$10, 4)), CONCATENATE(LEFT(BQ$10,4)&"-"&IF(MID(BQ$10, 3, 2)<"09", "0","")&IF(MID(BQ$10, 3, 2)="99", "00", MID(BQ$10, 3, 2)+1))), IF(AND(BQ$5<>INT(BQ$5), COUNTA($H$4:BP$4)=ROUNDUP(BQ$5, 0)), IF($G$5+SUM($11:$11)=INT($G$5+SUM($11:$11)), VALUE(CONCATENATE(IF(RIGHT(BP$4, 2)="99", LEFT(BP$4, 2)+1, LEFT(BP$4, 2))&RIGHT(BP$4, 2))), CONCATENATE(LEFT(BP$4, 2)&RIGHT(BP$4, 2)&"-"&IF(RIGHT(BP$4, 2)<"09", "0", "")&IF(RIGHT(BP$4, 2)="99", "00", RIGHT(BP$4, 2)+1))), IF(LEN(BP4)>4,CONCATENATE(LEFT(BP4,4)+1&"-"&IF(RIGHT(BP4, 2)<"09", "0","")&IF(RIGHT(BP4, 2)="99", "00", RIGHT(BP4,2)+1)),VALUE(BP4+1)))) -> 2082-83 | BR4: =IF(BR$11<>"", IF(INT($G$5+SUM($H$11:BQ$11))=$G$5+SUM($H$11:BQ$11), VALUE(LEFT(BR$10, 4)), CONCATENATE(LEFT(BR$10,4)&"-"&IF(MID(BR$10, 3, 2)<"09", "0","")&IF(MID(BR$10, 3, 2)="99", "00", MID(BR$10, 3, 2)+1))), IF(AND(BR$5<>INT(BR$5), COUNTA($H$4:BQ$4)=ROUNDUP(BR$5, 0)), IF($G$5+SUM($11:$11)=INT($G$5+SUM($11:$11)), VALUE(CONCATENATE(IF(RIGHT(BQ$4, 2)="99", LEFT(BQ$4, 2)+1, LEFT(BQ$4, 2))&RIGHT(BQ$4, 2))), CONCATENATE(LEFT(BQ$4, 2)&RIGHT(BQ$4, 2)&"-"&IF(RIGHT(BQ$4, 2)<"09", "0", "")&IF(RIGHT(BQ$4, 2)="99", "00", RIGHT(BQ$4, 2)+1))), IF(LEN(BQ4)>4,CONCATENATE(LEFT(BQ4,4)+1&"-"&IF(RIGHT(BQ4, 2)<"09", "0","")&IF(RIGHT(BQ4, 2)="99", "00", RIGHT(BQ4,2)+1)),VALUE(BQ4+1)))) -> 2083-84 | BS4: =IF(BS$11<>"", IF(INT($G$5+SUM($H$11:BR$11))=$G$5+SUM($H$11:BR$11), VALUE(LEFT(BS$10, 4)), CONCATENATE(LEFT(BS$10,4)&"-"&IF(MID(BS$10, 3, 2)<"09", "0","")&IF(MID(BS$10, 3, 2)="99", "00", MID(BS$10, 3, 2)+1))), IF(AND(BS$5<>INT(BS$5), COUNTA($H$4:BR$4)=ROUNDUP(BS$5, 0)), IF($G$5+SUM($11:$11)=INT($G$5+SUM($11:$11)), VALUE(CONCATENATE(IF(RIGHT(BR$4, 2)="99", LEFT(BR$4, 2)+1, LEFT(BR$4, 2))&RIGHT(BR$4, 2))), CONCATENATE(LEFT(BR$4, 2)&RIGHT(BR$4, 2)&"-"&IF(RIGHT(BR$4, 2)<"09", "0", "")&IF(RIGHT(BR$4, 2)="99", "00", RIGHT(BR$4, 2)+1))), IF(LEN(BR4)>4,CONCATENATE(LEFT(BR4,4)+1&"-"&IF(RIGHT(BR4, 2)<"09", "0","")&IF(RIGHT(BR4, 2)="99", "00", RIGHT(BR4,2)+1)),VALUE(BR4+1)))) -> 2084-85 | BT4: =IF(BT$11<>"", IF(INT($G$5+SUM($H$11:BS$11))=$G$5+SUM($H$11:BS$11), VALUE(LEFT(BT$10, 4)), CONCATENATE(LEFT(BT$10,4)&"-"&IF(MID(BT$10, 3, 2)<"09", "0","")&IF(MID(BT$10, 3, 2)="99", "00", MID(BT$10, 3, 2)+1))), IF(AND(BT$5<>INT(BT$5), COUNTA($H$4:BS$4)=ROUNDUP(BT$5, 0)), IF($G$5+SUM($11:$11)=INT($G$5+SUM($11:$11)), VALUE(CONCATENATE(IF(RIGHT(BS$4, 2)="99", LEFT(BS$4, 2)+1, LEFT(BS$4, 2))&RIGHT(BS$4, 2))), CONCATENATE(LEFT(BS$4, 2)&RIGHT(BS$4, 2)&"-"&IF(RIGHT(BS$4, 2)<"09", "0", "")&IF(RIGHT(BS$4, 2)="99", "00", RIGHT(BS$4, 2)+1))), IF(LEN(BS4)>4,CONCATENATE(LEFT(BS4,4)+1&"-"&IF(RIGHT(BS4, 2)<"09", "0","")&IF(RIGHT(BS4, 2)="99", "00", RIGHT(BS4,2)+1)),VALUE(BS4+1)))) -> 2085-86 | BU4: =IF(BU$11<>"", IF(INT($G$5+SUM($H$11:BT$11))=$G$5+SUM($H$11:BT$11), VALUE(LEFT(BU$10, 4)), CONCATENATE(LEFT(BU$10,4)&"-"&IF(MID(BU$10, 3, 2)<"09", "0","")&IF(MID(BU$10, 3, 2)="99", "00", MID(BU$10, 3, 2)+1))), IF(AND(BU$5<>INT(BU$5), COUNTA($H$4:BT$4)=ROUNDUP(BU$5, 0)), IF($G$5+SUM($11:$11)=INT($G$5+SUM($11:$11)), VALUE(CONCATENATE(IF(RIGHT(BT$4, 2)="99", LEFT(BT$4, 2)+1, LEFT(BT$4, 2))&RIGHT(BT$4, 2))), CONCATENATE(LEFT(BT$4, 2)&RIGHT(BT$4, 2)&"-"&IF(RIGHT(BT$4, 2)<"09", "0", "")&IF(RIGHT(BT$4, 2)="99", "00", RIGHT(BT$4, 2)+1))), IF(LEN(BT4)>4,CONCATENATE(LEFT(BT4,4)+1&"-"&IF(RIGHT(BT4, 2)<"09", "0","")&IF(RIGHT(BT4, 2)="99", "00", RIGHT(BT4,2)+1)),VALUE(BT4+1)))) -> 2086-87 | BV4: =IF(BV$11<>"", IF(INT($G$5+SUM($H$11:BU$11))=$G$5+SUM($H$11:BU$11), VALUE(LEFT(BV$10, 4)), CONCATENATE(LEFT(BV$10,4)&"-"&IF(MID(BV$10, 3, 2)<"09", "0","")&IF(MID(BV$10, 3, 2)="99", "00", MID(BV$10, 3, 2)+1))), IF(AND(BV$5<>INT(BV$5), COUNTA($H$4:BU$4)=ROUNDUP(BV$5, 0)), IF($G$5+SUM($11:$11)=INT($G$5+SUM($11:$11)), VALUE(CONCATENATE(IF(RIGHT(BU$4, 2)="99", LEFT(BU$4, 2)+1, LEFT(BU$4, 2))&RIGHT(BU$4, 2))), CONCATENATE(LEFT(BU$4, 2)&RIGHT(BU$4, 2)&"-"&IF(RIGHT(BU$4, 2)<"09", "0", "")&IF(RIGHT(BU$4, 2)="99", "00", RIGHT(BU$4, 2)+1))), IF(LEN(BU4)>4,CONCATENATE(LEFT(BU4,4)+1&"-"&IF(RIGHT(BU4, 2)<"09", "0","")&IF(RIGHT(BU4, 2)="99", "00", RIGHT(BU4,2)+1)),VALUE(BU4+1)))) -> 2087-88 | BW4: =IF(BW$11<>"", IF(INT($G$5+SUM($H$11:BV$11))=$G$5+SUM($H$11:BV$11), VALUE(LEFT(BW$10, 4)), CONCATENATE(LEFT(BW$10,4)&"-"&IF(MID(BW$10, 3, 2)<"09", "0","")&IF(MID(BW$10, 3, 2)="99", "00", MID(BW$10, 3, 2)+1))), IF(AND(BW$5<>INT(BW$5), COUNTA($H$4:BV$4)=ROUNDUP(BW$5, 0)), IF($G$5+SUM($11:$11)=INT($G$5+SUM($11:$11)), VALUE(CONCATENATE(IF(RIGHT(BV$4, 2)="99", LEFT(BV$4, 2)+1, LEFT(BV$4, 2))&RIGHT(BV$4, 2))), CONCATENATE(LEFT(BV$4, 2)&RIGHT(BV$4, 2)&"-"&IF(RIGHT(BV$4, 2)<"09", "0", "")&IF(RIGHT(BV$4, 2)="99", "00", RIGHT(BV$4, 2)+1))), IF(LEN(BV4)>4,CONCATENATE(LEFT(BV4,4)+1&"-"&IF(RIGHT(BV4, 2)<"09", "0","")&IF(RIGHT(BV4, 2)="99", "00", RIGHT(BV4,2)+1)),VALUE(BV4+1)))) -> 2088-89 | BX4: =IF(BX$11<>"", IF(INT($G$5+SUM($H$11:BW$11))=$G$5+SUM($H$11:BW$11), VALUE(LEFT(BX$10, 4)), CONCATENATE(LEFT(BX$10,4)&"-"&IF(MID(BX$10, 3, 2)<"09", "0","")&IF(MID(BX$10, 3, 2)="99", "00", MID(BX$10, 3, 2)+1))), IF(AND(BX$5<>INT(BX$5), COUNTA($H$4:BW$4)=ROUNDUP(BX$5, 0)), IF($G$5+SUM($11:$11)=INT($G$5+SUM($11:$11)), VALUE(CONCATENATE(IF(RIGHT(BW$4, 2)="99", LEFT(BW$4, 2)+1, LEFT(BW$4, 2))&RIGHT(BW$4, 2))), CONCATENATE(LEFT(BW$4, 2)&RIGHT(BW$4, 2)&"-"&IF(RIGHT(BW$4, 2)<"09", "0", "")&IF(RIGHT(BW$4, 2)="99", "00", RIGHT(BW$4, 2)+1))), IF(LEN(BW4)>4,CONCATENATE(LEFT(BW4,4)+1&"-"&IF(RIGHT(BW4, 2)<"09", "0","")&IF(RIGHT(BW4, 2)="99", "00", RIGHT(BW4,2)+1)),VALUE(BW4+1)))) -> 2089-90 | BY4: =IF(BY$11<>"", IF(INT($G$5+SUM($H$11:BX$11))=$G$5+SUM($H$11:BX$11), VALUE(LEFT(BY$10, 4)), CONCATENATE(LEFT(BY$10,4)&"-"&IF(MID(BY$10, 3, 2)<"09", "0","")&IF(MID(BY$10, 3, 2)="99", "00", MID(BY$10, 3, 2)+1))), IF(AND(BY$5<>INT(BY$5), COUNTA($H$4:BX$4)=ROUNDUP(BY$5, 0)), IF($G$5+SUM($11:$11)=INT($G$5+SUM($11:$11)), VALUE(CONCATENATE(IF(RIGHT(BX$4, 2)="99", LEFT(BX$4, 2)+1, LEFT(BX$4, 2))&RIGHT(BX$4, 2))), CONCATENATE(LEFT(BX$4, 2)&RIGHT(BX$4, 2)&"-"&IF(RIGHT(BX$4, 2)<"09", "0", "")&IF(RIGHT(BX$4, 2)="99", "00", RIGHT(BX$4, 2)+1))), IF(LEN(BX4)>4,CONCATENATE(LEFT(BX4,4)+1&"-"&IF(RIGHT(BX4, 2)<"09", "0","")&IF(RIGHT(BX4, 2)="99", "00", RIGHT(BX4,2)+1)),VALUE(BX4+1)))) -> 2090-91 | BZ4: =IF(BZ$11<>"", IF(INT($G$5+SUM($H$11:BY$11))=$G$5+SUM($H$11:BY$11), VALUE(LEFT(BZ$10, 4)), CONCATENATE(LEFT(BZ$10,4)&"-"&IF(MID(BZ$10, 3, 2)<"09", "0","")&IF(MID(BZ$10, 3, 2)="99", "00", MID(BZ$10, 3, 2)+1))), IF(AND(BZ$5<>INT(BZ$5), COUNTA($H$4:BY$4)=ROUNDUP(BZ$5, 0)), IF($G$5+SUM($11:$11)=INT($G$5+SUM($11:$11)), VALUE(CONCATENATE(IF(RIGHT(BY$4, 2)="99", LEFT(BY$4, 2)+1, LEFT(BY$4, 2))&RIGHT(BY$4, 2))), CONCATENATE(LEFT(BY$4, 2)&RIGHT(BY$4, 2)&"-"&IF(RIGHT(BY$4, 2)<"09", "0", "")&IF(RIGHT(BY$4, 2)="99", "00", RIGHT(BY$4, 2)+1))), IF(LEN(BY4)>4,CONCATENATE(LEFT(BY4,4)+1&"-"&IF(RIGHT(BY4, 2)<"09", "0","")&IF(RIGHT(BY4, 2)="99", "00", RIGHT(BY4,2)+1)),VALUE(BY4+1)))) -> 2091-92
G5: =IF(LEN($H$9)=4, 0, IF(AND(ISNUMBER(SEARCH("Ausnet", $F$8)), Intro!$J$8="Electricity transmission module"), 0.25, 0.5)) -> 0.5 | H5: =H$11 -> 5 | I5: =IF(I$11<>"",SUM(ROUNDUP(H$5,0),I$11),H$5) -> 5 | J5: =IF(J$11<>"",SUM(ROUNDUP(I$5,0),J$11),I$5) -> 5 | K5: 5 | L5: 5 | M5: 5 | N5: 5 | O5: 5 | P5: 5 | Q5: 5 | R5: 5 | S5: 5 | T5: 5 | U5: 5 | V5: 5 | W5: 5 | X5: 5 | Y5: 5 | Z5: 5 | AA5: 5 | AB5: 5 | AC5: 5 | AD5: 5 | AE5: 5 | AF5: 5 | AG5: 5 | AH5: 5 | AI5: 5 | AJ5: 5 | AK5: 5 | AL5: 5 | AM5: 5 | AN5: 5 | AO5: 5 | AP5: 5 | AQ5: 5 | AR5: 5 | AS5: 5 | AT5: 5 | AU5: 5 | AV5: 5 | AW5: 5 | AX5: 5 | AY5: 5 | AZ5: 5 | BA5: 5 | BB5: 5 | BC5: 5 | BD5: 5 | BE5: 5 | BF5: 5 | BG5: 5 | BH5: 5 | BI5: 5 | BJ5: 5 | BK5: 5 | BL5: 5 | BM5: 5 | BN5: 5 | BO5: 5 | BP5: 5 | BQ5: 5 | BR5: 5 | BS5: 5 | BT5: 5 | BU5: 5 | BV5: 5 | BW5: 5 | BX5: 5 | BY5: 5 | BZ5: 5
D6: General information
E8: Business name | F8: ='RAB input'!$F$8 -> Powercor
E9: First regulatory year for tracking | H9: 2021-22 | I9: =IF(ROUNDUP(J$5, 0)=COUNTA($H$9:H$9), "Input for next period", "") ->  | J9: =IF(ROUNDUP(K$5, 0)=COUNTA($H$9:I$9), "Input for next period", "") ->  | K9: =IF(ROUNDUP(L$5, 0)=COUNTA($H$9:J$9), "Input for next period", "") ->  | L9: =IF(ROUNDUP(M$5, 0)=COUNTA($H$9:K$9), "Input for next period", "") ->  | M9: =IF(ROUNDUP(N$5, 0)=COUNTA($H$9:L$9), "Input for next period", "") -> Input for next period | N9: =IF(ROUNDUP(O$5, 0)=COUNTA($H$9:M$9), "Input for next period", "") ->  | O9: =IF(ROUNDUP(P$5, 0)=COUNTA($H$9:N$9), "Input for next period", "") ->  | P9: =IF(ROUNDUP(Q$5, 0)=COUNTA($H$9:O$9), "Input for next period", "") ->  | Q9: =IF(ROUNDUP(R$5, 0)=COUNTA($H$9:P$9), "Input for next period", "") ->  | R9: =IF(ROUNDUP(S$5, 0)=COUNTA($H$9:Q$9), "Input for next period", "") ->  | S9: =IF(ROUNDUP(T$5, 0)=COUNTA($H$9:R$9), "Input for next period", "") ->  | T9: =IF(ROUNDUP(U$5, 0)=COUNTA($H$9:S$9), "Input for next period", "") ->  | U9: =IF(ROUNDUP(V$5, 0)=COUNTA($H$9:T$9), "Input for next period", "") ->  | V9: =IF(ROUNDUP(W$5, 0)=COUNTA($H$9:U$9), "Input for next period", "") ->  | W9: =IF(ROUNDUP(X$5, 0)=COUNTA($H$9:V$9), "Input for next period", "") ->  | X9: =IF(ROUNDUP(Y$5, 0)=COUNTA($H$9:W$9), "Input for next period", "") ->  | Y9: =IF(ROUNDUP(Z$5, 0)=COUNTA($H$9:X$9), "Input for next period", "") ->  | Z9: =IF(ROUNDUP(AA$5, 0)=COUNTA($H$9:Y$9), "Input for next period", "") ->  | AA9: =IF(ROUNDUP(AB$5, 0)=COUNTA($H$9:Z$9), "Input for next period", "") ->  | AB9: =IF(ROUNDUP(AC$5, 0)=COUNTA($H$9:AA$9), "Input for next period", "") ->  | AC9: =IF(ROUNDUP(AD$5, 0)=COUNTA($H$9:AB$9), "Input for next period", "") ->  | AD9: =IF(ROUNDUP(AE$5, 0)=COUNTA($H$9:AC$9), "Input for next period", "") ->  | AE9: =IF(ROUNDUP(AF$5, 0)=COUNTA($H$9:AD$9), "Input for next period", "") ->  | AF9: =IF(ROUNDUP(AG$5, 0)=COUNTA($H$9:AE$9), "Input for next period", "") ->  | AG9: =IF(ROUNDUP(AH$5, 0)=COUNTA($H$9:AF$9), "Input for next period", "") ->  | AH9: =IF(ROUNDUP(AI$5, 0)=COUNTA($H$9:AG$9), "Input for next period", "") ->  | AI9: =IF(ROUNDUP(AJ$5, 0)=COUNTA($H$9:AH$9), "Input for next period", "") ->  | AJ9: =IF(ROUNDUP(AK$5, 0)=COUNTA($H$9:AI$9), "Input for next period", "") ->  | AK9: =IF(ROUNDUP(AL$5, 0)=COUNTA($H$9:AJ$9), "Input for next period", "") ->  | AL9: =IF(ROUNDUP(AM$5, 0)=COUNTA($H$9:AK$9), "Input for next period", "") ->  | AM9: =IF(ROUNDUP(AN$5, 0)=COUNTA($H$9:AL$9), "Input for next period", "") ->  | AN9: =IF(ROUNDUP(AO$5, 0)=COUNTA($H$9:AM$9), "Input for next period", "") ->  | AO9: =IF(ROUNDUP(AP$5, 0)=COUNTA($H$9:AN$9), "Input for next period", "") ->  | AP9: =IF(ROUNDUP(AQ$5, 0)=COUNTA($H$9:AO$9), "Input for next period", "") ->  | AQ9: =IF(ROUNDUP(AR$5, 0)=COUNTA($H$9:AP$9), "Input for next period", "") ->  | AR9: =IF(ROUNDUP(AS$5, 0)=COUNTA($H$9:AQ$9), "Input for next period", "") ->  | AS9: =IF(ROUNDUP(AT$5, 0)=COUNTA($H$9:AR$9), "Input for next period", "") ->  | AT9: =IF(ROUNDUP(AU$5, 0)=COUNTA($H$9:AS$9), "Input for next period", "") ->  | AU9: =IF(ROUNDUP(AV$5, 0)=COUNTA($H$9:AT$9), "Input for next period", "") ->  | AV9: =IF(ROUNDUP(AW$5, 0)=COUNTA($H$9:AU$9), "Input for next period", "") ->  | AW9: =IF(ROUNDUP(AX$5, 0)=COUNTA($H$9:AV$9), "Input for next period", "") ->  | AX9: =IF(ROUNDUP(AY$5, 0)=COUNTA($H$9:AW$9), "Input for next period", "") ->  | AY9: =IF(ROUNDUP(AZ$5, 0)=COUNTA($H$9:AX$9), "Input for next period", "") ->  | AZ9: =IF(ROUNDUP(BA$5, 0)=COUNTA($H$9:AY$9), "Input for next period", "") ->  | BA9: =IF(ROUNDUP(BB$5, 0)=COUNTA($H$9:AZ$9), "Input for next period", "") ->  | BB9: =IF(ROUNDUP(BC$5, 0)=COUNTA($H$9:BA$9), "Input for next period", "") ->  | BC9: =IF(ROUNDUP(BD$5, 0)=COUNTA($H$9:BB$9), "Input for next period", "") ->  | BD9: =IF(ROUNDUP(BE$5, 0)=COUNTA($H$9:BC$9), "Input for next period", "") ->  | BE9: =IF(ROUNDUP(BF$5, 0)=COUNTA($H$9:BD$9), "Input for next period", "") ->  | BF9: =IF(ROUNDUP(BG$5, 0)=COUNTA($H$9:BE$9), "Input for next period", "") ->  | BG9: =IF(ROUNDUP(BH$5, 0)=COUNTA($H$9:BF$9), "Input for next period", "") ->  | BH9: =IF(ROUNDUP(BI$5, 0)=COUNTA($H$9:BG$9), "Input for next period", "") ->  | BI9: =IF(ROUNDUP(BJ$5, 0)=COUNTA($H$9:BH$9), "Input for next period", "") ->  | BJ9: =IF(ROUNDUP(BK$5, 0)=COUNTA($H$9:BI$9), "Input for next period", "") ->  | BK9: =IF(ROUNDUP(BL$5, 0)=COUNTA($H$9:BJ$9), "Input for next period", "") ->  | BL9: =IF(ROUNDUP(BM$5, 0)=COUNTA($H$9:BK$9), "Input for next period", "") ->  | BM9: =IF(ROUNDUP(BN$5, 0)=COUNTA($H$9:BL$9), "Input for next period", "") ->  | BN9: =IF(ROUNDUP(BO$5, 0)=COUNTA($H$9:BM$9), "Input for next period", "") ->  | BO9: =IF(ROUNDUP(BP$5, 0)=COUNTA($H$9:BN$9), "Input for next period", "") ->  | BP9: =IF(ROUNDUP(BQ$5, 0)=COUNTA($H$9:BO$9), "Input for next period", "") ->  | BQ9: =IF(ROUNDUP(BR$5, 0)=COUNTA($H$9:BP$9), "Input for next period", "") ->  | BR9: =IF(ROUNDUP(BS$5, 0)=COUNTA($H$9:BQ$9), "Input for next period", "") ->  | BS9: =IF(ROUNDUP(BT$5, 0)=COUNTA($H$9:BR$9), "Input for next period", "") ->  | BT9: =IF(ROUNDUP(BU$5, 0)=COUNTA($H$9:BS$9), "Input for next period", "") ->  | BU9: =IF(ROUNDUP(BV$5, 0)=COUNTA($H$9:BT$9), "Input for next period", "") ->  | BV9: =IF(ROUNDUP(BW$5, 0)=COUNTA($H$9:BU$9), "Input for next period", "") ->  | BW9: =IF(ROUNDUP(BX$5, 0)=COUNTA($H$9:BV$9), "Input for next period", "") ->  | BX9: =IF(ROUNDUP(BY$5, 0)=COUNTA($H$9:BW$9), "Input for next period", "") ->  | BY9: =IF(ROUNDUP(BZ$5, 0)=COUNTA($H$9:BX$9), "Input for next period", "") ->  | BZ9: =IF(ROUNDUP(CA$5, 0)=COUNTA($H$9:BY$9), "Input for next period", "") -> 
E10: Regulatory period | H10: 2021-26
E11: Years in regulatory period | H11: 5
G12: =IF(OR(G$446:G$495="DV"), "DV input required", "") ->  | H12: =IF(AND(OR(H$446:H$495="DV"), H$13=""), "DV input required", "") ->  | I12: =IF(COUNTA($H$12:H$12)<ROUNDUP(I$5, 0), IF(AND(I$446:I$495=""), IF(AND(H$13<>"", I$13=""), "DV input required", H$12), IF(AND(OR(I$446:I$495="DV"), I$13=""), "DV input required", "")), "") ->  | J12: =IF(COUNTA($H$12:I$12)<ROUNDUP(J$5, 0), IF(AND(J$446:J$495=""), IF(AND(I$13<>"", J$13=""), "DV input required", I$12), IF(AND(OR(J$446:J$495="DV"), J$13=""), "DV input required", "")), "") ->  | K12: =IF(COUNTA($H$12:J$12)<ROUNDUP(K$5, 0), IF(AND(K$446:K$495=""), IF(AND(J$13<>"", K$13=""), "DV input required", J$12), IF(AND(OR(K$446:K$495="DV"), K$13=""), "DV input required", "")), "") ->  | L12: =IF(COUNTA($H$12:K$12)<ROUNDUP(L$5, 0), IF(AND(L$446:L$495=""), IF(AND(K$13<>"", L$13=""), "DV input required", K$12), IF(AND(OR(L$446:L$495="DV"), L$13=""), "DV input required", "")), "") ->  | M12: =IF(COUNTA($H$12:L$12)<ROUNDUP(M$5, 0), IF(AND(M$446:M$495=""), IF(AND(L$13<>"", M$13=""), "DV input required", L$12), IF(AND(OR(M$446:M$495="DV"), M$13=""), "DV input required", "")), "") ->  | N12: =IF(COUNTA($H$12:M$12)<ROUNDUP(N$5, 0), IF(AND(N$446:N$495=""), IF(AND(M$13<>"", N$13=""), "DV input required", M$12), IF(AND(OR(N$446:N$495="DV"), N$13=""), "DV input required", "")), "") ->  | O12: =IF(COUNTA($H$12:N$12)<ROUNDUP(O$5, 0), IF(AND(O$446:O$495=""), IF(AND(N$13<>"", O$13=""), "DV input required", N$12), IF(AND(OR(O$446:O$495="DV"), O$13=""), "DV input required", "")), "") ->  | P12: =IF(COUNTA($H$12:O$12)<ROUNDUP(P$5, 0), IF(AND(P$446:P$495=""), IF(AND(O$13<>"", P$13=""), "DV input required", O$12), IF(AND(OR(P$446:P$495="DV"), P$13=""), "DV input required", "")), "") ->  | Q12: =IF(COUNTA($H$12:P$12)<ROUNDUP(Q$5, 0), IF(AND(Q$446:Q$495=""), IF(AND(P$13<>"", Q$13=""), "DV input required", P$12), IF(AND(OR(Q$446:Q$495="DV"), Q$13=""), "DV input required", "")), "") ->  | R12: =IF(COUNTA($H$12:Q$12)<ROUNDUP(R$5, 0), IF(AND(R$446:R$495=""), IF(AND(Q$13<>"", R$13=""), "DV input required", Q$12), IF(AND(OR(R$446:R$495="DV"), R$13=""), "DV input required", "")), "") ->  | S12: =IF(COUNTA($H$12:R$12)<ROUNDUP(S$5, 0), IF(AND(S$446:S$495=""), IF(AND(R$13<>"", S$13=""), "DV input required", R$12), IF(AND(OR(S$446:S$495="DV"), S$13=""), "DV input required", "")), "") ->  | T12: =IF(COUNTA($H$12:S$12)<ROUNDUP(T$5, 0), IF(AND(T$446:T$495=""), IF(AND(S$13<>"", T$13=""), "DV input required", S$12), IF(AND(OR(T$446:T$495="DV"), T$13=""), "DV input required", "")), "") ->  | U12: =IF(COUNTA($H$12:T$12)<ROUNDUP(U$5, 0), IF(AND(U$446:U$495=""), IF(AND(T$13<>"", U$13=""), "DV input required", T$12), IF(AND(OR(U$446:U$495="DV"), U$13=""), "DV input required", "")), "") ->  | V12: =IF(COUNTA($H$12:U$12)<ROUNDUP(V$5, 0), IF(AND(V$446:V$495=""), IF(AND(U$13<>"", V$13=""), "DV input required", U$12), IF(AND(OR(V$446:V$495="DV"), V$13=""), "DV input required", "")), "") ->  | W12: =IF(COUNTA($H$12:V$12)<ROUNDUP(W$5, 0), IF(AND(W$446:W$495=""), IF(AND(V$13<>"", W$13=""), "DV input required", V$12), IF(AND(OR(W$446:W$495="DV"), W$13=""), "DV input required", "")), "") ->  | X12: =IF(COUNTA($H$12:W$12)<ROUNDUP(X$5, 0), IF(AND(X$446:X$495=""), IF(AND(W$13<>"", X$13=""), "DV input required", W$12), IF(AND(OR(X$446:X$495="DV"), X$13=""), "DV input required", "")), "") ->  | Y12: =IF(COUNTA($H$12:X$12)<ROUNDUP(Y$5, 0), IF(AND(Y$446:Y$495=""), IF(AND(X$13<>"", Y$13=""), "DV input required", X$12), IF(AND(OR(Y$446:Y$495="DV"), Y$13=""), "DV input required", "")), "") ->  | Z12: =IF(COUNTA($H$12:Y$12)<ROUNDUP(Z$5, 0), IF(AND(Z$446:Z$495=""), IF(AND(Y$13<>"", Z$13=""), "DV input required", Y$12), IF(AND(OR(Z$446:Z$495="DV"), Z$13=""), "DV input required", "")), "") ->  | AA12: =IF(COUNTA($H$12:Z$12)<ROUNDUP(AA$5, 0), IF(AND(AA$446:AA$495=""), IF(AND(Z$13<>"", AA$13=""), "DV input required", Z$12), IF(AND(OR(AA$446:AA$495="DV"), AA$13=""), "DV input required", "")), "") ->  | AB12: =IF(COUNTA($H$12:AA$12)<ROUNDUP(AB$5, 0), IF(AND(AB$446:AB$495=""), IF(AND(AA$13<>"", AB$13=""), "DV input required", AA$12), IF(AND(OR(AB$446:AB$495="DV"), AB$13=""), "DV input required", "")), "") ->  | AC12: =IF(COUNTA($H$12:AB$12)<ROUNDUP(AC$5, 0), IF(AND(AC$446:AC$495=""), IF(AND(AB$13<>"", AC$13=""), "DV input required", AB$12), IF(AND(OR(AC$446:AC$495="DV"), AC$13=""), "DV input required", "")), "") ->  | AD12: =IF(COUNTA($H$12:AC$12)<ROUNDUP(AD$5, 0), IF(AND(AD$446:AD$495=""), IF(AND(AC$13<>"", AD$13=""), "DV input required", AC$12), IF(AND(OR(AD$446:AD$495="DV"), AD$13=""), "DV input required", "")), "") ->  | AE12: =IF(COUNTA($H$12:AD$12)<ROUNDUP(AE$5, 0), IF(AND(AE$446:AE$495=""), IF(AND(AD$13<>"", AE$13=""), "DV input required", AD$12), IF(AND(OR(AE$446:AE$495="DV"), AE$13=""), "DV input required", "")), "") ->  | AF12: =IF(COUNTA($H$12:AE$12)<ROUNDUP(AF$5, 0), IF(AND(AF$446:AF$495=""), IF(AND(AE$13<>"", AF$13=""), "DV input required", AE$12), IF(AND(OR(AF$446:AF$495="DV"), AF$13=""), "DV input required", "")), "") ->  | AG12: =IF(COUNTA($H$12:AF$12)<ROUNDUP(AG$5, 0), IF(AND(AG$446:AG$495=""), IF(AND(AF$13<>"", AG$13=""), "DV input required", AF$12), IF(AND(OR(AG$446:AG$495="DV"), AG$13=""), "DV input required", "")), "") ->  | AH12: =IF(COUNTA($H$12:AG$12)<ROUNDUP(AH$5, 0), IF(AND(AH$446:AH$495=""), IF(AND(AG$13<>"", AH$13=""), "DV input required", AG$12), IF(AND(OR(AH$446:AH$495="DV"), AH$13=""), "DV input required", "")), "") ->  | AI12: =IF(COUNTA($H$12:AH$12)<ROUNDUP(AI$5, 0), IF(AND(AI$446:AI$495=""), IF(AND(AH$13<>"", AI$13=""), "DV input required", AH$12), IF(AND(OR(AI$446:AI$495="DV"), AI$13=""), "DV input required", "")), "") ->  | AJ12: =IF(COUNTA($H$12:AI$12)<ROUNDUP(AJ$5, 0), IF(AND(AJ$446:AJ$495=""), IF(AND(AI$13<>"", AJ$13=""), "DV input required", AI$12), IF(AND(OR(AJ$446:AJ$495="DV"), AJ$13=""), "DV input required", "")), "") ->  | AK12: =IF(COUNTA($H$12:AJ$12)<ROUNDUP(AK$5, 0), IF(AND(AK$446:AK$495=""), IF(AND(AJ$13<>"", AK$13=""), "DV input required", AJ$12), IF(AND(OR(AK$446:AK$495="DV"), AK$13=""), "DV input required", "")), "") ->  | AL12: =IF(COUNTA($H$12:AK$12)<ROUNDUP(AL$5, 0), IF(AND(AL$446:AL$495=""), IF(AND(AK$13<>"", AL$13=""), "DV input required", AK$12), IF(AND(OR(AL$446:AL$495="DV"), AL$13=""), "DV input required", "")), "") ->  | AM12: =IF(COUNTA($H$12:AL$12)<ROUNDUP(AM$5, 0), IF(AND(AM$446:AM$495=""), IF(AND(AL$13<>"", AM$13=""), "DV input required", AL$12), IF(AND(OR(AM$446:AM$495="DV"), AM$13=""), "DV input required", "")), "") ->  | AN12: =IF(COUNTA($H$12:AM$12)<ROUNDUP(AN$5, 0), IF(AND(AN$446:AN$495=""), IF(AND(AM$13<>"", AN$13=""), "DV input required", AM$12), IF(AND(OR(AN$446:AN$495="DV"), AN$13=""), "DV input required", "")), "") ->  | AO12: =IF(COUNTA($H$12:AN$12)<ROUNDUP(AO$5, 0), IF(AND(AO$446:AO$495=""), IF(AND(AN$13<>"", AO$13=""), "DV input required", AN$12), IF(AND(OR(AO$446:AO$495="DV"), AO$13=""), "DV input required", "")), "") ->  | AP12: =IF(COUNTA($H$12:AO$12)<ROUNDUP(AP$5, 0), IF(AND(AP$446:AP$495=""), IF(AND(AO$13<>"", AP$13=""), "DV input required", AO$12), IF(AND(OR(AP$446:AP$495="DV"), AP$13=""), "DV input required", "")), "") ->  | AQ12: =IF(COUNTA($H$12:AP$12)<ROUNDUP(AQ$5, 0), IF(AND(AQ$446:AQ$495=""), IF(AND(AP$13<>"", AQ$13=""), "DV input required", AP$12), IF(AND(OR(AQ$446:AQ$495="DV"), AQ$13=""), "DV input required", "")), "") ->  | AR12: =IF(COUNTA($H$12:AQ$12)<ROUNDUP(AR$5, 0), IF(AND(AR$446:AR$495=""), IF(AND(AQ$13<>"", AR$13=""), "DV input required", AQ$12), IF(AND(OR(AR$446:AR$495="DV"), AR$13=""), "DV input required", "")), "") ->  | AS12: =IF(COUNTA($H$12:AR$12)<ROUNDUP(AS$5, 0), IF(AND(AS$446:AS$495=""), IF(AND(AR$13<>"", AS$13=""), "DV input required", AR$12), IF(AND(OR(AS$446:AS$495="DV"), AS$13=""), "DV input required", "")), "") ->  | AT12: =IF(COUNTA($H$12:AS$12)<ROUNDUP(AT$5, 0), IF(AND(AT$446:AT$495=""), IF(AND(AS$13<>"", AT$13=""), "DV input required", AS$12), IF(AND(OR(AT$446:AT$495="DV"), AT$13=""), "DV input required", "")), "") ->  | AU12: =IF(COUNTA($H$12:AT$12)<ROUNDUP(AU$5, 0), IF(AND(AU$446:AU$495=""), IF(AND(AT$13<>"", AU$13=""), "DV input required", AT$12), IF(AND(OR(AU$446:AU$495="DV"), AU$13=""), "DV input required", "")), "") ->  | AV12: =IF(COUNTA($H$12:AU$12)<ROUNDUP(AV$5, 0), IF(AND(AV$446:AV$495=""), IF(AND(AU$13<>"", AV$13=""), "DV input required", AU$12), IF(AND(OR(AV$446:AV$495="DV"), AV$13=""), "DV input required", "")), "") ->  | AW12: =IF(COUNTA($H$12:AV$12)<ROUNDUP(AW$5, 0), IF(AND(AW$446:AW$495=""), IF(AND(AV$13<>"", AW$13=""), "DV input required", AV$12), IF(AND(OR(AW$446:AW$495="DV"), AW$13=""), "DV input required", "")), "") ->  | AX12: =IF(COUNTA($H$12:AW$12)<ROUNDUP(AX$5, 0), IF(AND(AX$446:AX$495=""), IF(AND(AW$13<>"", AX$13=""), "DV input required", AW$12), IF(AND(OR(AX$446:AX$495="DV"), AX$13=""), "DV input required", "")), "") ->  | AY12: =IF(COUNTA($H$12:AX$12)<ROUNDUP(AY$5, 0), IF(AND(AY$446:AY$495=""), IF(AND(AX$13<>"", AY$13=""), "DV input required", AX$12), IF(AND(OR(AY$446:AY$495="DV"), AY$13=""), "DV input required", "")), "") ->  | AZ12: =IF(COUNTA($H$12:AY$12)<ROUNDUP(AZ$5, 0), IF(AND(AZ$446:AZ$495=""), IF(AND(AY$13<>"", AZ$13=""), "DV input required", AY$12), IF(AND(OR(AZ$446:AZ$495="DV"), AZ$13=""), "DV input required", "")), "") ->  | BA12: =IF(COUNTA($H$12:AZ$12)<ROUNDUP(BA$5, 0), IF(AND(BA$446:BA$495=""), IF(AND(AZ$13<>"", BA$13=""), "DV input required", AZ$12), IF(AND(OR(BA$446:BA$495="DV"), BA$13=""), "DV input required", "")), "") ->  | BB12: =IF(COUNTA($H$12:BA$12)<ROUNDUP(BB$5, 0), IF(AND(BB$446:BB$495=""), IF(AND(BA$13<>"", BB$13=""), "DV input required", BA$12), IF(AND(OR(BB$446:BB$495="DV"), BB$13=""), "DV input required", "")), "") ->  | BC12: =IF(COUNTA($H$12:BB$12)<ROUNDUP(BC$5, 0), IF(AND(BC$446:BC$495=""), IF(AND(BB$13<>"", BC$13=""), "DV input required", BB$12), IF(AND(OR(BC$446:BC$495="DV"), BC$13=""), "DV input required", "")), "") ->  | BD12: =IF(COUNTA($H$12:BC$12)<ROUNDUP(BD$5, 0), IF(AND(BD$446:BD$495=""), IF(AND(BC$13<>"", BD$13=""), "DV input required", BC$12), IF(AND(OR(BD$446:BD$495="DV"), BD$13=""), "DV input required", "")), "") ->  | BE12: =IF(COUNTA($H$12:BD$12)<ROUNDUP(BE$5, 0), IF(AND(BE$446:BE$495=""), IF(AND(BD$13<>"", BE$13=""), "DV input required", BD$12), IF(AND(OR(BE$446:BE$495="DV"), BE$13=""), "DV input required", "")), "") ->  | BF12: =IF(COUNTA($H$12:BE$12)<ROUNDUP(BF$5, 0), IF(AND(BF$446:BF$495=""), IF(AND(BE$13<>"", BF$13=""), "DV input required", BE$12), IF(AND(OR(BF$446:BF$495="DV"), BF$13=""), "DV input required", "")), "") ->  | BG12: =IF(COUNTA($H$12:BF$12)<ROUNDUP(BG$5, 0), IF(AND(BG$446:BG$495=""), IF(AND(BF$13<>"", BG$13=""), "DV input required", BF$12), IF(AND(OR(BG$446:BG$495="DV"), BG$13=""), "DV input required", "")), "") ->  | BH12: =IF(COUNTA($H$12:BG$12)<ROUNDUP(BH$5, 0), IF(AND(BH$446:BH$495=""), IF(AND(BG$13<>"", BH$13=""), "DV input required", BG$12), IF(AND(OR(BH$446:BH$495="DV"), BH$13=""), "DV input required", "")), "") ->  | BI12: =IF(COUNTA($H$12:BH$12)<ROUNDUP(BI$5, 0), IF(AND(BI$446:BI$495=""), IF(AND(BH$13<>"", BI$13=""), "DV input required", BH$12), IF(AND(OR(BI$446:BI$495="DV"), BI$13=""), "DV input required", "")), "") ->  | BJ12: =IF(COUNTA($H$12:BI$12)<ROUNDUP(BJ$5, 0), IF(AND(BJ$446:BJ$495=""), IF(AND(BI$13<>"", BJ$13=""), "DV input required", BI$12), IF(AND(OR(BJ$446:BJ$495="DV"), BJ$13=""), "DV input required", "")), "") ->  | BK12: =IF(COUNTA($H$12:BJ$12)<ROUNDUP(BK$5, 0), IF(AND(BK$446:BK$495=""), IF(AND(BJ$13<>"", BK$13=""), "DV input required", BJ$12), IF(AND(OR(BK$446:BK$495="DV"), BK$13=""), "DV input required", "")), "") ->  | BL12: =IF(COUNTA($H$12:BK$12)<ROUNDUP(BL$5, 0), IF(AND(BL$446:BL$495=""), IF(AND(BK$13<>"", BL$13=""), "DV input required", BK$12), IF(AND(OR(BL$446:BL$495="DV"), BL$13=""), "DV input required", "")), "") ->  | BM12: =IF(COUNTA($H$12:BL$12)<ROUNDUP(BM$5, 0), IF(AND(BM$446:BM$495=""), IF(AND(BL$13<>"", BM$13=""), "DV input required", BL$12), IF(AND(OR(BM$446:BM$495="DV"), BM$13=""), "DV input required", "")), "") ->  | BN12: =IF(COUNTA($H$12:BM$12)<ROUNDUP(BN$5, 0), IF(AND(BN$446:BN$495=""), IF(AND(BM$13<>"", BN$13=""), "DV input required", BM$12), IF(AND(OR(BN$446:BN$495="DV"), BN$13=""), "DV input required", "")), "") ->  | BO12: =IF(COUNTA($H$12:BN$12)<ROUNDUP(BO$5, 0), IF(AND(BO$446:BO$495=""), IF(AND(BN$13<>"", BO$13=""), "DV input required", BN$12), IF(AND(OR(BO$446:BO$495="DV"), BO$13=""), "DV input required", "")), "") ->  | BP12: =IF(COUNTA($H$12:BO$12)<ROUNDUP(BP$5, 0), IF(AND(BP$446:BP$495=""), IF(AND(BO$13<>"", BP$13=""), "DV input required", BO$12), IF(AND(OR(BP$446:BP$495="DV"), BP$13=""), "DV input required", "")), "") ->  | BQ12: =IF(COUNTA($H$12:BP$12)<ROUNDUP(BQ$5, 0), IF(AND(BQ$446:BQ$495=""), IF(AND(BP$13<>"", BQ$13=""), "DV input required", BP$12), IF(AND(OR(BQ$446:BQ$495="DV"), BQ$13=""), "DV input required", "")), "") ->  | BR12: =IF(COUNTA($H$12:BQ$12)<ROUNDUP(BR$5, 0), IF(AND(BR$446:BR$495=""), IF(AND(BQ$13<>"", BR$13=""), "DV input required", BQ$12), IF(AND(OR(BR$446:BR$495="DV"), BR$13=""), "DV input required", "")), "") ->  | BS12: =IF(COUNTA($H$12:BR$12)<ROUNDUP(BS$5, 0), IF(AND(BS$446:BS$495=""), IF(AND(BR$13<>"", BS$13=""), "DV input required", BR$12), IF(AND(OR(BS$446:BS$495="DV"), BS$13=""), "DV input required", "")), "") ->  | BT12: =IF(COUNTA($H$12:BS$12)<ROUNDUP(BT$5, 0), IF(AND(BT$446:BT$495=""), IF(AND(BS$13<>"", BT$13=""), "DV input required", BS$12), IF(AND(OR(BT$446:BT$495="DV"), BT$13=""), "DV input required", "")), "") ->  | BU12: =IF(COUNTA($H$12:BT$12)<ROUNDUP(BU$5, 0), IF(AND(BU$446:BU$495=""), IF(AND(BT$13<>"", BU$13=""), "DV input required", BT$12), IF(AND(OR(BU$446:BU$495="DV"), BU$13=""), "DV input required", "")), "") ->  | BV12: =IF(COUNTA($H$12:BU$12)<ROUNDUP(BV$5, 0), IF(AND(BV$446:BV$495=""), IF(AND(BU$13<>"", BV$13=""), "DV input required", BU$12), IF(AND(OR(BV$446:BV$495="DV"), BV$13=""), "DV input required", "")), "") ->  | BW12: =IF(COUNTA($H$12:BV$12)<ROUNDUP(BW$5, 0), IF(AND(BW$446:BW$495=""), IF(AND(BV$13<>"", BW$13=""), "DV input required", BV$12), IF(AND(OR(BW$446:BW$495="DV"), BW$13=""), "DV input required", "")), "") ->  | BX12: =IF(COUNTA($H$12:BW$12)<ROUNDUP(BX$5, 0), IF(AND(BX$446:BX$495=""), IF(AND(BW$13<>"", BX$13=""), "DV input required", BW$12), IF(AND(OR(BX$446:BX$495="DV"), BX$13=""), "DV input required", "")), "") ->  | BY12: =IF(COUNTA($H$12:BX$12)<ROUNDUP(BY$5, 0), IF(AND(BY$446:BY$495=""), IF(AND(BX$13<>"", BY$13=""), "DV input required", BX$12), IF(AND(OR(BY$446:BY$495="DV"), BY$13=""), "DV input required", "")), "") ->  | BZ12: =IF(COUNTA($H$12:BY$12)<ROUNDUP(BZ$5, 0), IF(AND(BZ$446:BZ$495=""), IF(AND(BY$13<>"", BZ$13=""), "DV input required", BY$12), IF(AND(OR(BZ$446:BZ$495="DV"), BZ$13=""), "DV input required", "")), "") -> 
E13: Diminishing value multiplier | H13: 2 | I13: 2 | J13: 2 | K13: 2 | L13: 2
D15: Starting TAB and actual gross capex - As incurred ($m, nominal)
E16: Asset class | G16: ="TAB (opening as at "&$H$4&")" -> TAB (opening as at 2021-22) | H16: ="Actual gross capex ("&H$4&")" -> Actual gross capex (2021-22) | I16: =IF(COUNTA($H$16:H$16)<I$5, "Actual gross capex ("&I$4&")", "") -> Actual gross capex (2022-23) | J16: =IF(COUNTA($H$16:I$16)<J$5, "Actual gross capex ("&J$4&")", "") -> Actual gross capex (2023-24) | K16: =IF(COUNTA($H$16:J$16)<K$5, "Actual gross capex ("&K$4&")", "") -> Actual gross capex (2024-25) | L16: =IF(COUNTA($H$16:K$16)<L$5, "Actual gross capex ("&L$4&")", "") -> Actual gross capex (2025-26) | M16: =IF(COUNTA($H$16:L$16)<M$5, "Actual gross capex ("&M$4&")", "") ->  | N16: =IF(COUNTA($H$16:M$16)<N$5, "Actual gross capex ("&N$4&")", "") ->  | O16: =IF(COUNTA($H$16:N$16)<O$5, "Actual gross capex ("&O$4&")", "") ->  | P16: =IF(COUNTA($H$16:O$16)<P$5, "Actual gross capex ("&P$4&")", "") ->  | Q16: =IF(COUNTA($H$16:P$16)<Q$5, "Actual gross capex ("&Q$4&")", "") ->  | R16: =IF(COUNTA($H$16:Q$16)<R$5, "Actual gross capex ("&R$4&")", "") ->  | S16: =IF(COUNTA($H$16:R$16)<S$5, "Actual gross capex ("&S$4&")", "") ->  | T16: =IF(COUNTA($H$16:S$16)<T$5, "Actual gross capex ("&T$4&")", "") ->  | U16: =IF(COUNTA($H$16:T$16)<U$5, "Actual gross capex ("&U$4&")", "") ->  | V16: =IF(COUNTA($H$16:U$16)<V$5, "Actual gross capex ("&V$4&")", "") ->  | W16: =IF(COUNTA($H$16:V$16)<W$5, "Actual gross capex ("&W$4&")", "") ->  | X16: =IF(COUNTA($H$16:W$16)<X$5, "Actual gross capex ("&X$4&")", "") ->  | Y16: =IF(COUNTA($H$16:X$16)<Y$5, "Actual gross capex ("&Y$4&")", "") ->  | Z16: =IF(COUNTA($H$16:Y$16)<Z$5, "Actual gross capex ("&Z$4&")", "") ->  | AA16: =IF(COUNTA($H$16:Z$16)<AA$5, "Actual gross capex ("&AA$4&")", "") ->  | AB16: =IF(COUNTA($H$16:AA$16)<AB$5, "Actual gross capex ("&AB$4&")", "") ->  | AC16: =IF(COUNTA($H$16:AB$16)<AC$5, "Actual gross capex ("&AC$4&")", "") ->  | AD16: =IF(COUNTA($H$16:AC$16)<AD$5, "Actual gross capex ("&AD$4&")", "") ->  | AE16: =IF(COUNTA($H$16:AD$16)<AE$5, "Actual gross capex ("&AE$4&")", "") ->  | AF16: =IF(COUNTA($H$16:AE$16)<AF$5, "Actual gross capex ("&AF$4&")", "") ->  | AG16: =IF(COUNTA($H$16:AF$16)<AG$5, "Actual gross capex ("&AG$4&")", "") ->  | AH16: =IF(COUNTA($H$16:AG$16)<AH$5, "Actual gross capex ("&AH$4&")", "") ->  | AI16: =IF(COUNTA($H$16:AH$16)<AI$5, "Actual gross capex ("&AI$4&")", "") ->  | AJ16: =IF(COUNTA($H$16:AI$16)<AJ$5, "Actual gross capex ("&AJ$4&")", "") ->  | AK16: =IF(COUNTA($H$16:AJ$16)<AK$5, "Actual gross capex ("&AK$4&")", "") ->  | AL16: =IF(COUNTA($H$16:AK$16)<AL$5, "Actual gross capex ("&AL$4&")", "") ->  | AM16: =IF(COUNTA($H$16:AL$16)<AM$5, "Actual gross capex ("&AM$4&")", "") ->  | AN16: =IF(COUNTA($H$16:AM$16)<AN$5, "Actual gross capex ("&AN$4&")", "") ->  | AO16: =IF(COUNTA($H$16:AN$16)<AO$5, "Actual gross capex ("&AO$4&")", "") ->  | AP16: =IF(COUNTA($H$16:AO$16)<AP$5, "Actual gross capex ("&AP$4&")", "") ->  | AQ16: =IF(COUNTA($H$16:AP$16)<AQ$5, "Actual gross capex ("&AQ$4&")", "") ->  | AR16: =IF(COUNTA($H$16:AQ$16)<AR$5, "Actual gross capex ("&AR$4&")", "") ->  | AS16: =IF(COUNTA($H$16:AR$16)<AS$5, "Actual gross capex ("&AS$4&")", "") ->  | AT16: =IF(COUNTA($H$16:AS$16)<AT$5, "Actual gross capex ("&AT$4&")", "") ->  | AU16: =IF(COUNTA($H$16:AT$16)<AU$5, "Actual gross capex ("&AU$4&")", "") ->  | AV16: =IF(COUNTA($H$16:AU$16)<AV$5, "Actual gross capex ("&AV$4&")", "") ->  | AW16: =IF(COUNTA($H$16:AV$16)<AW$5, "Actual gross capex ("&AW$4&")", "") ->  | AX16: =IF(COUNTA($H$16:AW$16)<AX$5, "Actual gross capex ("&AX$4&")", "") ->  | AY16: =IF(COUNTA($H$16:AX$16)<AY$5, "Actual gross capex ("&AY$4&")", "") ->  | AZ16: =IF(COUNTA($H$16:AY$16)<AZ$5, "Actual gross capex ("&AZ$4&")", "") ->  | BA16: =IF(COUNTA($H$16:AZ$16)<BA$5, "Actual gross capex ("&BA$4&")", "") ->  | BB16: =IF(COUNTA($H$16:BA$16)<BB$5, "Actual gross capex ("&BB$4&")", "") ->  | BC16: =IF(COUNTA($H$16:BB$16)<BC$5, "Actual gross capex ("&BC$4&")", "") ->  | BD16: =IF(COUNTA($H$16:BC$16)<BD$5, "Actual gross capex ("&BD$4&")", "") ->  | BE16: =IF(COUNTA($H$16:BD$16)<BE$5, "Actual gross capex ("&BE$4&")", "") ->  | BF16: =IF(COUNTA($H$16:BE$16)<BF$5, "Actual gross capex ("&BF$4&")", "") ->  | BG16: =IF(COUNTA($H$16:BF$16)<BG$5, "Actual gross capex ("&BG$4&")", "") ->  | BH16: =IF(COUNTA($H$16:BG$16)<BH$5, "Actual gross capex ("&BH$4&")", "") ->  | BI16: =IF(COUNTA($H$16:BH$16)<BI$5, "Actual gross capex ("&BI$4&")", "") ->  | BJ16: =IF(COUNTA($H$16:BI$16)<BJ$5, "Actual gross capex ("&BJ$4&")", "") ->  | BK16: =IF(COUNTA($H$16:BJ$16)<BK$5, "Actual gross capex ("&BK$4&")", "") ->  | BL16: =IF(COUNTA($H$16:BK$16)<BL$5, "Actual gross capex ("&BL$4&")", "") ->  | BM16: =IF(COUNTA($H$16:BL$16)<BM$5, "Actual gross capex ("&BM$4&")", "") ->  | BN16: =IF(COUNTA($H$16:BM$16)<BN$5, "Actual gross capex ("&BN$4&")", "") ->  | BO16: =IF(COUNTA($H$16:BN$16)<BO$5, "Actual gross capex ("&BO$4&")", "") ->  | BP16: =IF(COUNTA($H$16:BO$16)<BP$5, "Actual gross capex ("&BP$4&")", "") ->  | BQ16: =IF(COUNTA($H$16:BP$16)<BQ$5, "Actual gross capex ("&BQ$4&")", "") ->  | BR16: =IF(COUNTA($H$16:BQ$16)<BR$5, "Actual gross capex ("&BR$4&")", "") ->  | BS16: =IF(COUNTA($H$16:BR$16)<BS$5, "Actual gross capex ("&BS$4&")", "") ->  | BT16: =IF(COUNTA($H$16:BS$16)<BT$5, "Actual gross capex ("&BT$4&")", "") ->  | BU16: =IF(COUNTA($H$16:BT$16)<BU$5, "Actual gross capex ("&BU$4&")", "") ->  | BV16: =IF(COUNTA($H$16:BU$16)<BV$5, "Actual gross capex ("&BV$4&")", "") ->  | BW16: =IF(COUNTA($H$16:BV$16)<BW$5, "Actual gross capex ("&BW$4&")", "") ->  | BX16: =IF(COUNTA($H$16:BW$16)<BX$5, "Actual gross capex ("&BX$4&")", "") ->  | BY16: =IF(COUNTA($H$16:BX$16)<BY$5, "Actual gross capex ("&BY$4&")", "") ->  | BZ16: =IF(COUNTA($H$16:BY$16)<BZ$5, "Actual gross capex ("&BZ$4&")", "") -> 
D18: 1 | E18: ='RAB input'!E27 -> Subtransmission | G18: 517.513355 | H18: =INDEX('RAB input'!$H$27:$XFD$76, MATCH($E18, 'RAB input'!$E$27:$E$76, 0), MATCH(H$4, RAB_years, 0)) -> 131.213184 | I18: =INDEX('RAB input'!$H$27:$XFD$76, MATCH($E18, 'RAB input'!$E$27:$E$76, 0), MATCH(I$4, RAB_years, 0)) -> 1.50547982 | J18: =INDEX('RAB input'!$H$27:$XFD$76, MATCH($E18, 'RAB input'!$E$27:$E$76, 0), MATCH(J$4, RAB_years, 0)) -> 0.46842118 | K18: =INDEX('RAB input'!$H$27:$XFD$76, MATCH($E18, 'RAB input'!$E$27:$E$76, 0), MATCH(K$4, RAB_years, 0)) -> 84.52598111 | L18: =INDEX('RAB input'!$H$27:$XFD$76, MATCH($E18, 'RAB input'!$E$27:$E$76, 0), MATCH(L$4, RAB_years, 0)) -> 72.88054131 | M18: =INDEX('RAB input'!$H$27:$XFD$76, MATCH($E18, 'RAB input'!$E$27:$E$76, 0), MATCH(M$4, RAB_years, 0)) -> 0 | N18: =INDEX('RAB input'!$H$27:$XFD$76, MATCH($E18, 'RAB input'!$E$27:$E$76, 0), MATCH(N$4, RAB_years, 0)) -> 0 | O18: =INDEX('RAB input'!$H$27:$XFD$76, MATCH($E18, 'RAB input'!$E$27:$E$76, 0), MATCH(O$4, RAB_years, 0)) -> 0 | P18: =INDEX('RAB input'!$H$27:$XFD$76, MATCH($E18, 'RAB input'!$E$27:$E$76, 0), MATCH(P$4, RAB_years, 0)) -> 0 | Q18: =INDEX('RAB input'!$H$27:$XFD$76, MATCH($E18, 'RAB input'!$E$27:$E$76, 0), MATCH(Q$4, RAB_years, 0)) -> 0 | R18: =INDEX('RAB input'!$H$27:$XFD$76, MATCH($E18, 'RAB input'!$E$27:$E$76, 0), MATCH(R$4, RAB_years, 0)) -> 0 | S18: =INDEX('RAB input'!$H$27:$XFD$76, MATCH($E18, 'RAB input'!$E$27:$E$76, 0), MATCH(S$4, RAB_years, 0)) -> 0 | T18: =INDEX('RAB input'!$H$27:$XFD$76, MATCH($E18, 'RAB input'!$E$27:$E$76, 0), MATCH(T$4, RAB_years, 0)) -> 0 | U18: =INDEX('RAB input'!$H$27:$XFD$76, MATCH($E18, 'RAB input'!$E$27:$E$76, 0), MATCH(U$4, RAB_years, 0)) -> 0 | V18: =INDEX('RAB input'!$H$27:$XFD$76, MATCH($E18, 'RAB input'!$E$27:$E$76, 0), MATCH(V$4, RAB_years, 0)) -> 0 | W18: =INDEX('RAB input'!$H$27:$XFD$76, MATCH($E18, 'RAB input'!$E$27:$E$76, 0), MATCH(W$4, RAB_years, 0)) -> 0 | X18: =INDEX('RAB input'!$H$27:$XFD$76, MATCH($E18, 'RAB input'!$E$27:$E$76, 0), MATCH(X$4, RAB_years, 0)) -> 0 | Y18: =INDEX('RAB input'!$H$27:$XFD$76, MATCH($E18, 'RAB input'!$E$27:$E$76, 0), MATCH(Y$4, RAB_years, 0)) -> 0 | Z18: =INDEX('RAB input'!$H$27:$XFD$76, MATCH($E18, 'RAB input'!$E$27:$E$76, 0), MATCH(Z$4, RAB_years, 0)) -> 0 | AA18: =INDEX('RAB input'!$H$27:$XFD$76, MATCH($E18, 'RAB input'!$E$27:$E$76, 0), MATCH(AA$4, RAB_years, 0)) -> 0 | AB18: =INDEX('RAB input'!$H$27:$XFD$76, MATCH($E18, 'RAB input'!$E$27:$E$76, 0), MATCH(AB$4, RAB_years, 0)) -> 0 | AC18: =INDEX('RAB input'!$H$27:$XFD$76, MATCH($E18, 'RAB input'!$E$27:$E$76, 0), MATCH(AC$4, RAB_years, 0)) -> 0 | AD18: =INDEX('RAB input'!$H$27:$XFD$76, MATCH($E18, 'RAB input'!$E$27:$E$76, 0), MATCH(AD$4, RAB_years, 0)) -> 0 | AE18: =INDEX('RAB input'!$H$27:$XFD$76, MATCH($E18, 'RAB input'!$E$27:$E$76, 0), MATCH(AE$4, RAB_years, 0)) -> 0 | AF18: =INDEX('RAB input'!$H$27:$XFD$76, MATCH($E18, 'RAB input'!$E$27:$E$76, 0), MATCH(AF$4, RAB_years, 0)) -> 0 | AG18: =INDEX('RAB input'!$H$27:$XFD$76, MATCH($E18, 'RAB input'!$E$27:$E$76, 0), MATCH(AG$4, RAB_years, 0)) -> 0 | AH18: =INDEX('RAB input'!$H$27:$XFD$76, MATCH($E18, 'RAB input'!$E$27:$E$76, 0), MATCH(AH$4, RAB_years, 0)) -> 0 | AI18: =INDEX('RAB input'!$H$27:$XFD$76, MATCH($E18, 'RAB input'!$E$27:$E$76, 0), MATCH(AI$4, RAB_years, 0)) -> 0 | AJ18: =INDEX('RAB input'!$H$27:$XFD$76, MATCH($E18, 'RAB input'!$E$27:$E$76, 0), MATCH(AJ$4, RAB_years, 0)) -> 0 | AK18: =INDEX('RAB input'!$H$27:$XFD$76, MATCH($E18, 'RAB input'!$E$27:$E$76, 0), MATCH(AK$4, RAB_years, 0)) -> 0 | AL18: =INDEX('RAB input'!$H$27:$XFD$76, MATCH($E18, 'RAB input'!$E$27:$E$76, 0), MATCH(AL$4, RAB_years, 0)) -> 0 | AM18: =INDEX('RAB input'!$H$27:$XFD$76, MATCH($E18, 'RAB input'!$E$27:$E$76, 0), MATCH(AM$4, RAB_years, 0)) -> 0 | AN18: =INDEX('RAB input'!$H$27:$XFD$76, MATCH($E18, 'RAB input'!$E$27:$E$76, 0), MATCH(AN$4, RAB_years, 0)) -> 0 | AO18: =INDEX('RAB input'!$H$27:$XFD$76, MATCH($E18, 'RAB input'!$E$27:$E$76, 0), MATCH(AO$4, RAB_years, 0)) -> 0 | AP18: =INDEX('RAB input'!$H$27:$XFD$76, MATCH($E18, 'RAB input'!$E$27:$E$76, 0), MATCH(AP$4, RAB_years, 0)) -> 0 | AQ18: =INDEX('RAB input'!$H$27:$XFD$76, MATCH($E18, 'RAB input'!$E$27:$E$76, 0), MATCH(AQ$4, RAB_years, 0)) -> 0 | AR18: =INDEX('RAB input'!$H$27:$XFD$76, MATCH($E18, 'RAB input'!$E$27:$E$76, 0), MATCH(AR$4, RAB_years, 0)) -> 0 | AS18: =INDEX('RAB input'!$H$27:$XFD$76, MATCH($E18, 'RAB input'!$E$27:$E$76, 0), MATCH(AS$4, RAB_years, 0)) -> 0 | AT18: =INDEX('RAB input'!$H$27:$XFD$76, MATCH($E18, 'RAB input'!$E$27:$E$76, 0), MATCH(AT$4, RAB_years, 0)) -> 0 | AU18: =INDEX('RAB input'!$H$27:$XFD$76, MATCH($E18, 'RAB input'!$E$27:$E$76, 0), MATCH(AU$4, RAB_years, 0)) -> 0 | AV18: =INDEX('RAB input'!$H$27:$XFD$76, MATCH($E18, 'RAB input'!$E$27:$E$76, 0), MATCH(AV$4, RAB_years, 0)) -> 0 | AW18: =INDEX('RAB input'!$H$27:$XFD$76, MATCH($E18, 'RAB input'!$E$27:$E$76, 0), MATCH(AW$4, RAB_years, 0)) -> 0 | AX18: =INDEX('RAB input'!$H$27:$XFD$76, MATCH($E18, 'RAB input'!$E$27:$E$76, 0), MATCH(AX$4, RAB_years, 0)) -> 0 | AY18: =INDEX('RAB input'!$H$27:$XFD$76, MATCH($E18, 'RAB input'!$E$27:$E$76, 0), MATCH(AY$4, RAB_years, 0)) -> 0 | AZ18: =INDEX('RAB input'!$H$27:$XFD$76, MATCH($E18, 'RAB input'!$E$27:$E$76, 0), MATCH(AZ$4, RAB_years, 0)) -> 0 | BA18: =INDEX('RAB input'!$H$27:$XFD$76, MATCH($E18, 'RAB input'!$E$27:$E$76, 0), MATCH(BA$4, RAB_years, 0)) -> 0 | BB18: =INDEX('RAB input'!$H$27:$XFD$76, MATCH($E18, 'RAB input'!$E$27:$E$76, 0), MATCH(BB$4, RAB_years, 0)) -> 0 | BC18: =INDEX('RAB input'!$H$27:$XFD$76, MATCH($E18, 'RAB input'!$E$27:$E$76, 0), MATCH(BC$4, RAB_years, 0)) -> 0 | BD18: =INDEX('RAB input'!$H$27:$XFD$76, MATCH($E18, 'RAB input'!$E$27:$E$76, 0), MATCH(BD$4, RAB_years, 0)) -> 0 | BE18: =INDEX('RAB input'!$H$27:$XFD$76, MATCH($E18, 'RAB input'!$E$27:$E$76, 0), MATCH(BE$4, RAB_years, 0)) -> 0 | BF18: =INDEX('RAB input'!$H$27:$XFD$76, MATCH($E18, 'RAB input'!$E$27:$E$76, 0), MATCH(BF$4, RAB_years, 0)) -> 0 | BG18: =INDEX('RAB input'!$H$27:$XFD$76, MATCH($E18, 'RAB input'!$E$27:$E$76, 0), MATCH(BG$4, RAB_years, 0)) -> 0 | BH18: =INDEX('RAB input'!$H$27:$XFD$76, MATCH($E18, 'RAB input'!$E$27:$E$76, 0), MATCH(BH$4, RAB_years, 0)) -> 0 | BI18: =INDEX('RAB input'!$H$27:$XFD$76, MATCH($E18, 'RAB input'!$E$27:$E$76, 0), MATCH(BI$4, RAB_years, 0)) -> 0 | BJ18: =INDEX('RAB input'!$H$27:$XFD$76, MATCH($E18, 'RAB input'!$E$27:$E$76, 0), MATCH(BJ$4, RAB_years, 0)) -> 0
D19: 2 | E19: ='RAB input'!E28 -> Distribution system assets | G19: 2960.826391 | H19: =INDEX('RAB input'!$H$27:$XFD$76, MATCH($E19, 'RAB input'!$E$27:$E$76, 0), MATCH(H$4, RAB_years, 0)) -> 292.9564121 | I19: =INDEX('RAB input'!$H$27:$XFD$76, MATCH($E19, 'RAB input'!$E$27:$E$76, 0), MATCH(I$4, RAB_years, 0)) -> 451.5922528 | J19: =INDEX('RAB input'!$H$27:$XFD$76, MATCH($E19, 'RAB input'!$E$27:$E$76, 0), MATCH(J$4, RAB_years, 0)) -> 467.6612829 | K19: =INDEX('RAB input'!$H$27:$XFD$76, MATCH($E19, 'RAB input'!$E$27:$E$76, 0), MATCH(K$4, RAB_years, 0)) -> 459.9760304 | L19: =INDEX('RAB input'!$H$27:$XFD$76, MATCH($E19, 'RAB input'!$E$27:$E$76, 0), MATCH(L$4, RAB_years, 0)) -> 487.7390073 | M19: =INDEX('RAB input'!$H$27:$XFD$76, MATCH($E19, 'RAB input'!$E$27:$E$76, 0), MATCH(M$4, RAB_years, 0)) -> 0 | N19: =INDEX('RAB input'!$H$27:$XFD$76, MATCH($E19, 'RAB input'!$E$27:$E$76, 0), MATCH(N$4, RAB_years, 0)) -> 0 | O19: =INDEX('RAB input'!$H$27:$XFD$76, MATCH($E19, 'RAB input'!$E$27:$E$76, 0), MATCH(O$4, RAB_years, 0)) -> 0 | P19: =INDEX('RAB input'!$H$27:$XFD$76, MATCH($E19, 'RAB input'!$E$27:$E$76, 0), MATCH(P$4, RAB_years, 0)) -> 0 | Q19: =INDEX('RAB input'!$H$27:$XFD$76, MATCH($E19, 'RAB input'!$E$27:$E$76, 0), MATCH(Q$4, RAB_years, 0)) -> 0 | R19: =INDEX('RAB input'!$H$27:$XFD$76, MATCH($E19, 'RAB input'!$E$27:$E$76, 0), MATCH(R$4, RAB_years, 0)) -> 0 | S19: =INDEX('RAB input'!$H$27:$XFD$76, MATCH($E19, 'RAB input'!$E$27:$E$76, 0), MATCH(S$4, RAB_years, 0)) -> 0 | T19: =INDEX('RAB input'!$H$27:$XFD$76, MATCH($E19, 'RAB input'!$E$27:$E$76, 0), MATCH(T$4, RAB_years, 0)) -> 0 | U19: =INDEX('RAB input'!$H$27:$XFD$76, MATCH($E19, 'RAB input'!$E$27:$E$76, 0), MATCH(U$4, RAB_years, 0)) -> 0 | V19: =INDEX('RAB input'!$H$27:$XFD$76, MATCH($E19, 'RAB input'!$E$27:$E$76, 0), MATCH(V$4, RAB_years, 0)) -> 0 | W19: =INDEX('RAB input'!$H$27:$XFD$76, MATCH($E19, 'RAB input'!$E$27:$E$76, 0), MATCH(W$4, RAB_years, 0)) -> 0 | X19: =INDEX('RAB input'!$H$27:$XFD$76, MATCH($E19, 'RAB input'!$E$27:$E$76, 0), MATCH(X$4, RAB_years, 0)) -> 0 | Y19: =INDEX('RAB input'!$H$27:$XFD$76, MATCH($E19, 'RAB input'!$E$27:$E$76, 0), MATCH(Y$4, RAB_years, 0)) -> 0 | Z19: =INDEX('RAB input'!$H$27:$XFD$76, MATCH($E19, 'RAB input'!$E$27:$E$76, 0), MATCH(Z$4, RAB_years, 0)) -> 0 | AA19: =INDEX('RAB input'!$H$27:$XFD$76, MATCH($E19, 'RAB input'!$E$27:$E$76, 0), MATCH(AA$4, RAB_years, 0)) -> 0 | AB19: =INDEX('RAB input'!$H$27:$XFD$76, MATCH($E19, 'RAB input'!$E$27:$E$76, 0), MATCH(AB$4, RAB_years, 0)) -> 0 | AC19: =INDEX('RAB input'!$H$27:$XFD$76, MATCH($E19, 'RAB input'!$E$27:$E$76, 0), MATCH(AC$4, RAB_years, 0)) -> 0 | AD19: =INDEX('RAB input'!$H$27:$XFD$76, MATCH($E19, 'RAB input'!$E$27:$E$76, 0), MATCH(AD$4, RAB_years, 0)) -> 0 | AE19: =INDEX('RAB input'!$H$27:$XFD$76, MATCH($E19, 'RAB input'!$E$27:$E$76, 0), MATCH(AE$4, RAB_years, 0)) -> 0 | AF19: =INDEX('RAB input'!$H$27:$XFD$76, MATCH($E19, 'RAB input'!$E$27:$E$76, 0), MATCH(AF$4, RAB_years, 0)) -> 0 | AG19: =INDEX('RAB input'!$H$27:$XFD$76, MATCH($E19, 'RAB input'!$E$27:$E$76, 0), MATCH(AG$4, RAB_years, 0)) -> 0 | AH19: =INDEX('RAB input'!$H$27:$XFD$76, MATCH($E19, 'RAB input'!$E$27:$E$76, 0), MATCH(AH$4, RAB_years, 0)) -> 0 | AI19: =INDEX('RAB input'!$H$27:$XFD$76, MATCH($E19, 'RAB input'!$E$27:$E$76, 0), MATCH(AI$4, RAB_years, 0)) -> 0 | AJ19: =INDEX('RAB input'!$H$27:$XFD$76, MATCH($E19, 'RAB input'!$E$27:$E$76, 0), MATCH(AJ$4, RAB_years, 0)) -> 0 | AK19: =INDEX('RAB input'!$H$27:$XFD$76, MATCH($E19, 'RAB input'!$E$27:$E$76, 0), MATCH(AK$4, RAB_years, 0)) -> 0 | AL19: =INDEX('RAB input'!$H$27:$XFD$76, MATCH($E19, 'RAB input'!$E$27:$E$76, 0), MATCH(AL$4, RAB_years, 0)) -> 0 | AM19: =INDEX('RAB input'!$H$27:$XFD$76, MATCH($E19, 'RAB input'!$E$27:$E$76, 0), MATCH(AM$4, RAB_years, 0)) -> 0 | AN19: =INDEX('RAB input'!$H$27:$XFD$76, MATCH($E19, 'RAB input'!$E$27:$E$76, 0), MATCH(AN$4, RAB_years, 0)) -> 0 | AO19: =INDEX('RAB input'!$H$27:$XFD$76, MATCH($E19, 'RAB input'!$E$27:$E$76, 0), MATCH(AO$4, RAB_years, 0)) -> 0 | AP19: =INDEX('RAB input'!$H$27:$XFD$76, MATCH($E19, 'RAB input'!$E$27:$E$76, 0), MATCH(AP$4, RAB_years, 0)) -> 0 | AQ19: =INDEX('RAB input'!$H$27:$XFD$76, MATCH($E19, 'RAB input'!$E$27:$E$76, 0), MATCH(AQ$4, RAB_years, 0)) -> 0 | AR19: =INDEX('RAB input'!$H$27:$XFD$76, MATCH($E19, 'RAB input'!$E$27:$E$76, 0), MATCH(AR$4, RAB_years, 0)) -> 0 | AS19: =INDEX('RAB input'!$H$27:$XFD$76, MATCH($E19, 'RAB input'!$E$27:$E$76, 0), MATCH(AS$4, RAB_years, 0)) -> 0 | AT19: =INDEX('RAB input'!$H$27:$XFD$76, MATCH($E19, 'RAB input'!$E$27:$E$76, 0), MATCH(AT$4, RAB_years, 0)) -> 0 | AU19: =INDEX('RAB input'!$H$27:$XFD$76, MATCH($E19, 'RAB input'!$E$27:$E$76, 0), MATCH(AU$4, RAB_years, 0)) -> 0 | AV19: =INDEX('RAB input'!$H$27:$XFD$76, MATCH($E19, 'RAB input'!$E$27:$E$76, 0), MATCH(AV$4, RAB_years, 0)) -> 0 | AW19: =INDEX('RAB input'!$H$27:$XFD$76, MATCH($E19, 'RAB input'!$E$27:$E$76, 0), MATCH(AW$4, RAB_years, 0)) -> 0 | AX19: =INDEX('RAB input'!$H$27:$XFD$76, MATCH($E19, 'RAB input'!$E$27:$E$76, 0), MATCH(AX$4, RAB_years, 0)) -> 0 | AY19: =INDEX('RAB input'!$H$27:$XFD$76, MATCH($E19, 'RAB input'!$E$27:$E$76, 0), MATCH(AY$4, RAB_years, 0)) -> 0 | AZ19: =INDEX('RAB input'!$H$27:$XFD$76, MATCH($E19, 'RAB input'!$E$27:$E$76, 0), MATCH(AZ$4, RAB_years, 0)) -> 0 | BA19: =INDEX('RAB input'!$H$27:$XFD$76, MATCH($E19, 'RAB input'!$E$27:$E$76, 0), MATCH(BA$4, RAB_years, 0)) -> 0 | BB19: =INDEX('RAB input'!$H$27:$XFD$76, MATCH($E19, 'RAB input'!$E$27:$E$76, 0), MATCH(BB$4, RAB_years, 0)) -> 0 | BC19: =INDEX('RAB input'!$H$27:$XFD$76, MATCH($E19, 'RAB input'!$E$27:$E$76, 0), MATCH(BC$4, RAB_years, 0)) -> 0 | BD19: =INDEX('RAB input'!$H$27:$XFD$76, MATCH($E19, 'RAB input'!$E$27:$E$76, 0), MATCH(BD$4, RAB_years, 0)) -> 0 | BE19: =INDEX('RAB input'!$H$27:$XFD$76, MATCH($E19, 'RAB input'!$E$27:$E$76, 0), MATCH(BE$4, RAB_years, 0)) -> 0 | BF19: =INDEX('RAB input'!$H$27:$XFD$76, MATCH($E19, 'RAB input'!$E$27:$E$76, 0), MATCH(BF$4, RAB_years, 0)) -> 0 | BG19: =INDEX('RAB input'!$H$27:$XFD$76, MATCH($E19, 'RAB input'!$E$27:$E$76, 0), MATCH(BG$4, RAB_years, 0)) -> 0 | BH19: =INDEX('RAB input'!$H$27:$XFD$76, MATCH($E19, 'RAB input'!$E$27:$E$76, 0), MATCH(BH$4, RAB_years, 0)) -> 0 | BI19: =INDEX('RAB input'!$H$27:$XFD$76, MATCH($E19, 'RAB input'!$E$27:$E$76, 0), MATCH(BI$4, RAB_years, 0)) -> 0 | BJ19: =INDEX('RAB input'!$H$27:$XFD$76, MATCH($E19, 'RAB input'!$E$27:$E$76, 0), MATCH(BJ$4, RAB_years, 0)) -> 0
D20: 3 | E20: ='RAB input'!E29 -> Public lighting | G20: 0 | H20: =INDEX('RAB input'!$H$27:$XFD$76, MATCH($E20, 'RAB input'!$E$27:$E$76, 0), MATCH(H$4, RAB_years, 0)) -> 0 | I20: =INDEX('RAB input'!$H$27:$XFD$76, MATCH($E20, 'RAB input'!$E$27:$E$76, 0), MATCH(I$4, RAB_years, 0)) -> 0 | J20: =INDEX('RAB input'!$H$27:$XFD$76, MATCH($E20, 'RAB input'!$E$27:$E$76, 0), MATCH(J$4, RAB_years, 0)) -> 0 | K20: =INDEX('RAB input'!$H$27:$XFD$76, MATCH($E20, 'RAB input'!$E$27:$E$76, 0), MATCH(K$4, RAB_years, 0)) -> 0 | L20: =INDEX('RAB input'!$H$27:$XFD$76, MATCH($E20, 'RAB input'!$E$27:$E$76, 0), MATCH(L$4, RAB_years, 0)) -> 0 | M20: =INDEX('RAB input'!$H$27:$XFD$76, MATCH($E20, 'RAB input'!$E$27:$E$76, 0), MATCH(M$4, RAB_years, 0)) -> 0 | N20: =INDEX('RAB input'!$H$27:$XFD$76, MATCH($E20, 'RAB input'!$E$27:$E$76, 0), MATCH(N$4, RAB_years, 0)) -> 0 | O20: =INDEX('RAB input'!$H$27:$XFD$76, MATCH($E20, 'RAB input'!$E$27:$E$76, 0), MATCH(O$4, RAB_years, 0)) -> 0 | P20: =INDEX('RAB input'!$H$27:$XFD$76, MATCH($E20, 'RAB input'!$E$27:$E$76, 0), MATCH(P$4, RAB_years, 0)) -> 0 | Q20: =INDEX('RAB input'!$H$27:$XFD$76, MATCH($E20, 'RAB input'!$E$27:$E$76, 0), MATCH(Q$4, RAB_years, 0)) -> 0 | R20: =INDEX('RAB input'!$H$27:$XFD$76, MATCH($E20, 'RAB input'!$E$27:$E$76, 0), MATCH(R$4, RAB_years, 0)) -> 0 | S20: =INDEX('RAB input'!$H$27:$XFD$76, MATCH($E20, 'RAB input'!$E$27:$E$76, 0), MATCH(S$4, RAB_years, 0)) -> 0 | T20: =INDEX('RAB input'!$H$27:$XFD$76, MATCH($E20, 'RAB input'!$E$27:$E$76, 0), MATCH(T$4, RAB_years, 0)) -> 0 | U20: =INDEX('RAB input'!$H$27:$XFD$76, MATCH($E20, 'RAB input'!$E$27:$E$76, 0), MATCH(U$4, RAB_years, 0)) -> 0 | V20: =INDEX('RAB input'!$H$27:$XFD$76, MATCH($E20, 'RAB input'!$E$27:$E$76, 0), MATCH(V$4, RAB_years, 0)) -> 0 | W20: =INDEX('RAB input'!$H$27:$XFD$76, MATCH($E20, 'RAB input'!$E$27:$E$76, 0), MATCH(W$4, RAB_years, 0)) -> 0 | X20: =INDEX('RAB input'!$H$27:$XFD$76, MATCH($E20, 'RAB input'!$E$27:$E$76, 0), MATCH(X$4, RAB_years, 0)) -> 0 | Y20: =INDEX('RAB input'!$H$27:$XFD$76, MATCH($E20, 'RAB input'!$E$27:$E$76, 0), MATCH(Y$4, RAB_years, 0)) -> 0 | Z20: =INDEX('RAB input'!$H$27:$XFD$76, MATCH($E20, 'RAB input'!$E$27:$E$76, 0), MATCH(Z$4, RAB_years, 0)) -> 0 | AA20: =INDEX('RAB input'!$H$27:$XFD$76, MATCH($E20, 'RAB input'!$E$27:$E$76, 0), MATCH(AA$4, RAB_years, 0)) -> 0 | AB20: =INDEX('RAB input'!$H$27:$XFD$76, MATCH($E20, 'RAB input'!$E$27:$E$76, 0), MATCH(AB$4, RAB_years, 0)) -> 0 | AC20: =INDEX('RAB input'!$H$27:$XFD$76, MATCH($E20, 'RAB input'!$E$27:$E$76, 0), MATCH(AC$4, RAB_years, 0)) -> 0 | AD20: =INDEX('RAB input'!$H$27:$XFD$76, MATCH($E20, 'RAB input'!$E$27:$E$76, 0), MATCH(AD$4, RAB_years, 0)) -> 0 | AE20: =INDEX('RAB input'!$H$27:$XFD$76, MATCH($E20, 'RAB input'!$E$27:$E$76, 0), MATCH(AE$4, RAB_years, 0)) -> 0 | AF20: =INDEX('RAB input'!$H$27:$XFD$76, MATCH($E20, 'RAB input'!$E$27:$E$76, 0), MATCH(AF$4, RAB_years, 0)) -> 0 | AG20: =INDEX('RAB input'!$H$27:$XFD$76, MATCH($E20, 'RAB input'!$E$27:$E$76, 0), MATCH(AG$4, RAB_years, 0)) -> 0 | AH20: =INDEX('RAB input'!$H$27:$XFD$76, MATCH($E20, 'RAB input'!$E$27:$E$76, 0), MATCH(AH$4, RAB_years, 0)) -> 0 | AI20: =INDEX('RAB input'!$H$27:$XFD$76, MATCH($E20, 'RAB input'!$E$27:$E$76, 0), MATCH(AI$4, RAB_years, 0)) -> 0 | AJ20: =INDEX('RAB input'!$H$27:$XFD$76, MATCH($E20, 'RAB input'!$E$27:$E$76, 0), MATCH(AJ$4, RAB_years, 0)) -> 0 | AK20: =INDEX('RAB input'!$H$27:$XFD$76, MATCH($E20, 'RAB input'!$E$27:$E$76, 0), MATCH(AK$4, RAB_years, 0)) -> 0 | AL20: =INDEX('RAB input'!$H$27:$XFD$76, MATCH($E20, 'RAB input'!$E$27:$E$76, 0), MATCH(AL$4, RAB_years, 0)) -> 0 | AM20: =INDEX('RAB input'!$H$27:$XFD$76, MATCH($E20, 'RAB input'!$E$27:$E$76, 0), MATCH(AM$4, RAB_years, 0)) -> 0 | AN20: =INDEX('RAB input'!$H$27:$XFD$76, MATCH($E20, 'RAB input'!$E$27:$E$76, 0), MATCH(AN$4, RAB_years, 0)) -> 0 | AO20: =INDEX('RAB input'!$H$27:$XFD$76, MATCH($E20, 'RAB input'!$E$27:$E$76, 0), MATCH(AO$4, RAB_years, 0)) -> 0 | AP20: =INDEX('RAB input'!$H$27:$XFD$76, MATCH($E20, 'RAB input'!$E$27:$E$76, 0), MATCH(AP$4, RAB_years, 0)) -> 0 | AQ20: =INDEX('RAB input'!$H$27:$XFD$76, MATCH($E20, 'RAB input'!$E$27:$E$76, 0), MATCH(AQ$4, RAB_years, 0)) -> 0 | AR20: =INDEX('RAB input'!$H$27:$XFD$76, MATCH($E20, 'RAB input'!$E$27:$E$76, 0), MATCH(AR$4, RAB_years, 0)) -> 0 | AS20: =INDEX('RAB input'!$H$27:$XFD$76, MATCH($E20, 'RAB input'!$E$27:$E$76, 0), MATCH(AS$4, RAB_years, 0)) -> 0 | AT20: =INDEX('RAB input'!$H$27:$XFD$76, MATCH($E20, 'RAB input'!$E$27:$E$76, 0), MATCH(AT$4, RAB_years, 0)) -> 0 | AU20: =INDEX('RAB input'!$H$27:$XFD$76, MATCH($E20, 'RAB input'!$E$27:$E$76, 0), MATCH(AU$4, RAB_years, 0)) -> 0 | AV20: =INDEX('RAB input'!$H$27:$XFD$76, MATCH($E20, 'RAB input'!$E$27:$E$76, 0), MATCH(AV$4, RAB_years, 0)) -> 0 | AW20: =INDEX('RAB input'!$H$27:$XFD$76, MATCH($E20, 'RAB input'!$E$27:$E$76, 0), MATCH(AW$4, RAB_years, 0)) -> 0 | AX20: =INDEX('RAB input'!$H$27:$XFD$76, MATCH($E20, 'RAB input'!$E$27:$E$76, 0), MATCH(AX$4, RAB_years, 0)) -> 0 | AY20: =INDEX('RAB input'!$H$27:$XFD$76, MATCH($E20, 'RAB input'!$E$27:$E$76, 0), MATCH(AY$4, RAB_years, 0)) -> 0 | AZ20: =INDEX('RAB input'!$H$27:$XFD$76, MATCH($E20, 'RAB input'!$E$27:$E$76, 0), MATCH(AZ$4, RAB_years, 0)) -> 0 | BA20: =INDEX('RAB input'!$H$27:$XFD$76, MATCH($E20, 'RAB input'!$E$27:$E$76, 0), MATCH(BA$4, RAB_years, 0)) -> 0 | BB20: =INDEX('RAB input'!$H$27:$XFD$76, MATCH($E20, 'RAB input'!$E$27:$E$76, 0), MATCH(BB$4, RAB_years, 0)) -> 0 | BC20: =INDEX('RAB input'!$H$27:$XFD$76, MATCH($E20, 'RAB input'!$E$27:$E$76, 0), MATCH(BC$4, RAB_years, 0)) -> 0 | BD20: =INDEX('RAB input'!$H$27:$XFD$76, MATCH($E20, 'RAB input'!$E$27:$E$76, 0), MATCH(BD$4, RAB_years, 0)) -> 0 | BE20: =INDEX('RAB input'!$H$27:$XFD$76, MATCH($E20, 'RAB input'!$E$27:$E$76, 0), MATCH(BE$4, RAB_years, 0)) -> 0 | BF20: =INDEX('RAB input'!$H$27:$XFD$76, MATCH($E20, 'RAB input'!$E$27:$E$76, 0), MATCH(BF$4, RAB_years, 0)) -> 0 | BG20: =INDEX('RAB input'!$H$27:$XFD$76, MATCH($E20, 'RAB input'!$E$27:$E$76, 0), MATCH(BG$4, RAB_years, 0)) -> 0 | BH20: =INDEX('RAB input'!$H$27:$XFD$76, MATCH($E20, 'RAB input'!$E$27:$E$76, 0), MATCH(BH$4, RAB_years, 0)) -> 0 | BI20: =INDEX('RAB input'!$H$27:$XFD$76, MATCH($E20, 'RAB input'!$E$27:$E$76, 0), MATCH(BI$4, RAB_years, 0)) -> 0 | BJ20: =INDEX('RAB input'!$H$27:$XFD$76, MATCH($E20, 'RAB input'!$E$27:$E$76, 0), MATCH(BJ$4, RAB_years, 0)) -> 0
D21: 4 | E21: ='RAB input'!E30 -> SCADA/Network control | G21: 90.03182419 | H21: =INDEX('RAB input'!$H$27:$XFD$76, MATCH($E21, 'RAB input'!$E$27:$E$76, 0), MATCH(H$4, RAB_years, 0)) -> 4.12580955 | I21: =INDEX('RAB input'!$H$27:$XFD$76, MATCH($E21, 'RAB input'!$E$27:$E$76, 0), MATCH(I$4, RAB_years, 0)) -> 6.94577102 | J21: =INDEX('RAB input'!$H$27:$XFD$76, MATCH($E21, 'RAB input'!$E$27:$E$76, 0), MATCH(J$4, RAB_years, 0)) -> 6.94586489 | K21: =INDEX('RAB input'!$H$27:$XFD$76, MATCH($E21, 'RAB input'!$E$27:$E$76, 0), MATCH(K$4, RAB_years, 0)) -> 0.39697996 | L21: =INDEX('RAB input'!$H$27:$XFD$76, MATCH($E21, 'RAB input'!$E$27:$E$76, 0), MATCH(L$4, RAB_years, 0)) -> 8.731045165 | M21: =INDEX('RAB input'!$H$27:$XFD$76, MATCH($E21, 'RAB input'!$E$27:$E$76, 0), MATCH(M$4, RAB_years, 0)) -> 0 | N21: =INDEX('RAB input'!$H$27:$XFD$76, MATCH($E21, 'RAB input'!$E$27:$E$76, 0), MATCH(N$4, RAB_years, 0)) -> 0 | O21: =INDEX('RAB input'!$H$27:$XFD$76, MATCH($E21, 'RAB input'!$E$27:$E$76, 0), MATCH(O$4, RAB_years, 0)) -> 0 | P21: =INDEX('RAB input'!$H$27:$XFD$76, MATCH($E21, 'RAB input'!$E$27:$E$76, 0), MATCH(P$4, RAB_years, 0)) -> 0 | Q21: =INDEX('RAB input'!$H$27:$XFD$76, MATCH($E21, 'RAB input'!$E$27:$E$76, 0), MATCH(Q$4, RAB_years, 0)) -> 0 | R21: =INDEX('RAB input'!$H$27:$XFD$76, MATCH($E21, 'RAB input'!$E$27:$E$76, 0), MATCH(R$4, RAB_years, 0)) -> 0 | S21: =INDEX('RAB input'!$H$27:$XFD$76, MATCH($E21, 'RAB input'!$E$27:$E$76, 0), MATCH(S$4, RAB_years, 0)) -> 0 | T21: =INDEX('RAB input'!$H$27:$XFD$76, MATCH($E21, 'RAB input'!$E$27:$E$76, 0), MATCH(T$4, RAB_years, 0)) -> 0 | U21: =INDEX('RAB input'!$H$27:$XFD$76, MATCH($E21, 'RAB input'!$E$27:$E$76, 0), MATCH(U$4, RAB_years, 0)) -> 0 | V21: =INDEX('RAB input'!$H$27:$XFD$76, MATCH($E21, 'RAB input'!$E$27:$E$76, 0), MATCH(V$4, RAB_years, 0)) -> 0 | W21: =INDEX('RAB input'!$H$27:$XFD$76, MATCH($E21, 'RAB input'!$E$27:$E$76, 0), MATCH(W$4, RAB_years, 0)) -> 0 | X21: =INDEX('RAB input'!$H$27:$XFD$76, MATCH($E21, 'RAB input'!$E$27:$E$76, 0), MATCH(X$4, RAB_years, 0)) -> 0 | Y21: =INDEX('RAB input'!$H$27:$XFD$76, MATCH($E21, 'RAB input'!$E$27:$E$76, 0), MATCH(Y$4, RAB_years, 0)) -> 0 | Z21: =INDEX('RAB input'!$H$27:$XFD$76, MATCH($E21, 'RAB input'!$E$27:$E$76, 0), MATCH(Z$4, RAB_years, 0)) -> 0 | AA21: =INDEX('RAB input'!$H$27:$XFD$76, MATCH($E21, 'RAB input'!$E$27:$E$76, 0), MATCH(AA$4, RAB_years, 0)) -> 0 | AB21: =INDEX('RAB input'!$H$27:$XFD$76, MATCH($E21, 'RAB input'!$E$27:$E$76, 0), MATCH(AB$4, RAB_years, 0)) -> 0 | AC21: =INDEX('RAB input'!$H$27:$XFD$76, MATCH($E21, 'RAB input'!$E$27:$E$76, 0), MATCH(AC$4, RAB_years, 0)) -> 0 | AD21: =INDEX('RAB input'!$H$27:$XFD$76, MATCH($E21, 'RAB input'!$E$27:$E$76, 0), MATCH(AD$4, RAB_years, 0)) -> 0 | AE21: =INDEX('RAB input'!$H$27:$XFD$76, MATCH($E21, 'RAB input'!$E$27:$E$76, 0), MATCH(AE$4, RAB_years, 0)) -> 0 | AF21: =INDEX('RAB input'!$H$27:$XFD$76, MATCH($E21, 'RAB input'!$E$27:$E$76, 0), MATCH(AF$4, RAB_years, 0)) -> 0 | AG21: =INDEX('RAB input'!$H$27:$XFD$76, MATCH($E21, 'RAB input'!$E$27:$E$76, 0), MATCH(AG$4, RAB_years, 0)) -> 0 | AH21: =INDEX('RAB input'!$H$27:$XFD$76, MATCH($E21, 'RAB input'!$E$27:$E$76, 0), MATCH(AH$4, RAB_years, 0)) -> 0 | AI21: =INDEX('RAB input'!$H$27:$XFD$76, MATCH($E21, 'RAB input'!$E$27:$E$76, 0), MATCH(AI$4, RAB_years, 0)) -> 0 | AJ21: =INDEX('RAB input'!$H$27:$XFD$76, MATCH($E21, 'RAB input'!$E$27:$E$76, 0), MATCH(AJ$4, RAB_years, 0)) -> 0 | AK21: =INDEX('RAB input'!$H$27:$XFD$76, MATCH($E21, 'RAB input'!$E$27:$E$76, 0), MATCH(AK$4, RAB_years, 0)) -> 0 | AL21: =INDEX('RAB input'!$H$27:$XFD$76, MATCH($E21, 'RAB input'!$E$27:$E$76, 0), MATCH(AL$4, RAB_years, 0)) -> 0 | AM21: =INDEX('RAB input'!$H$27:$XFD$76, MATCH($E21, 'RAB input'!$E$27:$E$76, 0), MATCH(AM$4, RAB_years, 0)) -> 0 | AN21: =INDEX('RAB input'!$H$27:$XFD$76, MATCH($E21, 'RAB input'!$E$27:$E$76, 0), MATCH(AN$4, RAB_years, 0)) -> 0 | AO21: =INDEX('RAB input'!$H$27:$XFD$76, MATCH($E21, 'RAB input'!$E$27:$E$76, 0), MATCH(AO$4, RAB_years, 0)) -> 0 | AP21: =INDEX('RAB input'!$H$27:$XFD$76, MATCH($E21, 'RAB input'!$E$27:$E$76, 0), MATCH(AP$4, RAB_years, 0)) -> 0 | AQ21: =INDEX('RAB input'!$H$27:$XFD$76, MATCH($E21, 'RAB input'!$E$27:$E$76, 0), MATCH(AQ$4, RAB_years, 0)) -> 0 | AR21: =INDEX('RAB input'!$H$27:$XFD$76, MATCH($E21, 'RAB input'!$E$27:$E$76, 0), MATCH(AR$4, RAB_years, 0)) -> 0 | AS21: =INDEX('RAB input'!$H$27:$XFD$76, MATCH($E21, 'RAB input'!$E$27:$E$76, 0), MATCH(AS$4, RAB_years, 0)) -> 0 | AT21: =INDEX('RAB input'!$H$27:$XFD$76, MATCH($E21, 'RAB input'!$E$27:$E$76, 0), MATCH(AT$4, RAB_years, 0)) -> 0 | AU21: =INDEX('RAB input'!$H$27:$XFD$76, MATCH($E21, 'RAB input'!$E$27:$E$76, 0), MATCH(AU$4, RAB_years, 0)) -> 0 | AV21: =INDEX('RAB input'!$H$27:$XFD$76, MATCH($E21, 'RAB input'!$E$27:$E$76, 0), MATCH(AV$4, RAB_years, 0)) -> 0 | AW21: =INDEX('RAB input'!$H$27:$XFD$76, MATCH($E21, 'RAB input'!$E$27:$E$76, 0), MATCH(AW$4, RAB_years, 0)) -> 0 | AX21: =INDEX('RAB input'!$H$27:$XFD$76, MATCH($E21, 'RAB input'!$E$27:$E$76, 0), MATCH(AX$4, RAB_years, 0)) -> 0 | AY21: =INDEX('RAB input'!$H$27:$XFD$76, MATCH($E21, 'RAB input'!$E$27:$E$76, 0), MATCH(AY$4, RAB_years, 0)) -> 0 | AZ21: =INDEX('RAB input'!$H$27:$XFD$76, MATCH($E21, 'RAB input'!$E$27:$E$76, 0), MATCH(AZ$4, RAB_years, 0)) -> 0 | BA21: =INDEX('RAB input'!$H$27:$XFD$76, MATCH($E21, 'RAB input'!$E$27:$E$76, 0), MATCH(BA$4, RAB_years, 0)) -> 0 | BB21: =INDEX('RAB input'!$H$27:$XFD$76, MATCH($E21, 'RAB input'!$E$27:$E$76, 0), MATCH(BB$4, RAB_years, 0)) -> 0 | BC21: =INDEX('RAB input'!$H$27:$XFD$76, MATCH($E21, 'RAB input'!$E$27:$E$76, 0), MATCH(BC$4, RAB_years, 0)) -> 0 | BD21: =INDEX('RAB input'!$H$27:$XFD$76, MATCH($E21, 'RAB input'!$E$27:$E$76, 0), MATCH(BD$4, RAB_years, 0)) -> 0 | BE21: =INDEX('RAB input'!$H$27:$XFD$76, MATCH($E21, 'RAB input'!$E$27:$E$76, 0), MATCH(BE$4, RAB_years, 0)) -> 0 | BF21: =INDEX('RAB input'!$H$27:$XFD$76, MATCH($E21, 'RAB input'!$E$27:$E$76, 0), MATCH(BF$4, RAB_years, 0)) -> 0 | BG21: =INDEX('RAB input'!$H$27:$XFD$76, MATCH($E21, 'RAB input'!$E$27:$E$76, 0), MATCH(BG$4, RAB_years, 0)) -> 0 | BH21: =INDEX('RAB input'!$H$27:$XFD$76, MATCH($E21, 'RAB input'!$E$27:$E$76, 0), MATCH(BH$4, RAB_years, 0)) -> 0 | BI21: =INDEX('RAB input'!$H$27:$XFD$76, MATCH($E21, 'RAB input'!$E$27:$E$76, 0), MATCH(BI$4, RAB_years, 0)) -> 0 | BJ21: =INDEX('RAB input'!$H$27:$XFD$76, MATCH($E21, 'RAB input'!$E$27:$E$76, 0), MATCH(BJ$4, RAB_years, 0)) -> 0
D22: 5 | E22: ='RAB input'!E31 -> Non-network general assets - IT | G22: 75.92823242 | H22: =INDEX('RAB input'!$H$27:$XFD$76, MATCH($E22, 'RAB input'!$E$27:$E$76, 0), MATCH(H$4, RAB_years, 0)) -> 5.5161709 | I22: =INDEX('RAB input'!$H$27:$XFD$76, MATCH($E22, 'RAB input'!$E$27:$E$76, 0), MATCH(I$4, RAB_years, 0)) -> 7.76810886 | J22: =INDEX('RAB input'!$H$27:$XFD$76, MATCH($E22, 'RAB input'!$E$27:$E$76, 0), MATCH(J$4, RAB_years, 0)) -> 7.71809356 | K22: =INDEX('RAB input'!$H$27:$XFD$76, MATCH($E22, 'RAB input'!$E$27:$E$76, 0), MATCH(K$4, RAB_years, 0)) -> 7.1004551 | L22: =INDEX('RAB input'!$H$27:$XFD$76, MATCH($E22, 'RAB input'!$E$27:$E$76, 0), MATCH(L$4, RAB_years, 0)) -> 9.567351594 | M22: =INDEX('RAB input'!$H$27:$XFD$76, MATCH($E22, 'RAB input'!$E$27:$E$76, 0), MATCH(M$4, RAB_years, 0)) -> 0 | N22: =INDEX('RAB input'!$H$27:$XFD$76, MATCH($E22, 'RAB input'!$E$27:$E$76, 0), MATCH(N$4, RAB_years, 0)) -> 0 | O22: =INDEX('RAB input'!$H$27:$XFD$76, MATCH($E22, 'RAB input'!$E$27:$E$76, 0), MATCH(O$4, RAB_years, 0)) -> 0 | P22: =INDEX('RAB input'!$H$27:$XFD$76, MATCH($E22, 'RAB input'!$E$27:$E$76, 0), MATCH(P$4, RAB_years, 0)) -> 0 | Q22: =INDEX('RAB input'!$H$27:$XFD$76, MATCH($E22, 'RAB input'!$E$27:$E$76, 0), MATCH(Q$4, RAB_years, 0)) -> 0 | R22: =INDEX('RAB input'!$H$27:$XFD$76, MATCH($E22, 'RAB input'!$E$27:$E$76, 0), MATCH(R$4, RAB_years, 0)) -> 0 | S22: =INDEX('RAB input'!$H$27:$XFD$76, MATCH($E22, 'RAB input'!$E$27:$E$76, 0), MATCH(S$4, RAB_years, 0)) -> 0 | T22: =INDEX('RAB input'!$H$27:$XFD$76, MATCH($E22, 'RAB input'!$E$27:$E$76, 0), MATCH(T$4, RAB_years, 0)) -> 0 | U22: =INDEX('RAB input'!$H$27:$XFD$76, MATCH($E22, 'RAB input'!$E$27:$E$76, 0), MATCH(U$4, RAB_years, 0)) -> 0 | V22: =INDEX('RAB input'!$H$27:$XFD$76, MATCH($E22, 'RAB input'!$E$27:$E$76, 0), MATCH(V$4, RAB_years, 0)) -> 0 | W22: =INDEX('RAB input'!$H$27:$XFD$76, MATCH($E22, 'RAB input'!$E$27:$E$76, 0), MATCH(W$4, RAB_years, 0)) -> 0 | X22: =INDEX('RAB input'!$H$27:$XFD$76, MATCH($E22, 'RAB input'!$E$27:$E$76, 0), MATCH(X$4, RAB_years, 0)) -> 0 | Y22: =INDEX('RAB input'!$H$27:$XFD$76, MATCH($E22, 'RAB input'!$E$27:$E$76, 0), MATCH(Y$4, RAB_years, 0)) -> 0 | Z22: =INDEX('RAB input'!$H$27:$XFD$76, MATCH($E22, 'RAB input'!$E$27:$E$76, 0), MATCH(Z$4, RAB_years, 0)) -> 0 | AA22: =INDEX('RAB input'!$H$27:$XFD$76, MATCH($E22, 'RAB input'!$E$27:$E$76, 0), MATCH(AA$4, RAB_years, 0)) -> 0 | AB22: =INDEX('RAB input'!$H$27:$XFD$76, MATCH($E22, 'RAB input'!$E$27:$E$76, 0), MATCH(AB$4, RAB_years, 0)) -> 0 | AC22: =INDEX('RAB input'!$H$27:$XFD$76, MATCH($E22, 'RAB input'!$E$27:$E$76, 0), MATCH(AC$4, RAB_years, 0)) -> 0 | AD22: =INDEX('RAB input'!$H$27:$XFD$76, MATCH($E22, 'RAB input'!$E$27:$E$76, 0), MATCH(AD$4, RAB_years, 0)) -> 0 | AE22: =INDEX('RAB input'!$H$27:$XFD$76, MATCH($E22, 'RAB input'!$E$27:$E$76, 0), MATCH(AE$4, RAB_years, 0)) -> 0 | AF22: =INDEX('RAB input'!$H$27:$XFD$76, MATCH($E22, 'RAB input'!$E$27:$E$76, 0), MATCH(AF$4, RAB_years, 0)) -> 0 | AG22: =INDEX('RAB input'!$H$27:$XFD$76, MATCH($E22, 'RAB input'!$E$27:$E$76, 0), MATCH(AG$4, RAB_years, 0)) -> 0 | AH22: =INDEX('RAB input'!$H$27:$XFD$76, MATCH($E22, 'RAB input'!$E$27:$E$76, 0), MATCH(AH$4, RAB_years, 0)) -> 0 | AI22: =INDEX('RAB input'!$H$27:$XFD$76, MATCH($E22, 'RAB input'!$E$27:$E$76, 0), MATCH(AI$4, RAB_years, 0)) -> 0 | AJ22: =INDEX('RAB input'!$H$27:$XFD$76, MATCH($E22, 'RAB input'!$E$27:$E$76, 0), MATCH(AJ$4, RAB_years, 0)) -> 0 | AK22: =INDEX('RAB input'!$H$27:$XFD$76, MATCH($E22, 'RAB input'!$E$27:$E$76, 0), MATCH(AK$4, RAB_years, 0)) -> 0 | AL22: =INDEX('RAB input'!$H$27:$XFD$76, MATCH($E22, 'RAB input'!$E$27:$E$76, 0), MATCH(AL$4, RAB_years, 0)) -> 0 | AM22: =INDEX('RAB input'!$H$27:$XFD$76, MATCH($E22, 'RAB input'!$E$27:$E$76, 0), MATCH(AM$4, RAB_years, 0)) -> 0 | AN22: =INDEX('RAB input'!$H$27:$XFD$76, MATCH($E22, 'RAB input'!$E$27:$E$76, 0), MATCH(AN$4, RAB_years, 0)) -> 0 | AO22: =INDEX('RAB input'!$H$27:$XFD$76, MATCH($E22, 'RAB input'!$E$27:$E$76, 0), MATCH(AO$4, RAB_years, 0)) -> 0 | AP22: =INDEX('RAB input'!$H$27:$XFD$76, MATCH($E22, 'RAB input'!$E$27:$E$76, 0), MATCH(AP$4, RAB_years, 0)) -> 0 | AQ22: =INDEX('RAB input'!$H$27:$XFD$76, MATCH($E22, 'RAB input'!$E$27:$E$76, 0), MATCH(AQ$4, RAB_years, 0)) -> 0 | AR22: =INDEX('RAB input'!$H$27:$XFD$76, MATCH($E22, 'RAB input'!$E$27:$E$76, 0), MATCH(AR$4, RAB_years, 0)) -> 0 | AS22: =INDEX('RAB input'!$H$27:$XFD$76, MATCH($E22, 'RAB input'!$E$27:$E$76, 0), MATCH(AS$4, RAB_years, 0)) -> 0 | AT22: =INDEX('RAB input'!$H$27:$XFD$76, MATCH($E22, 'RAB input'!$E$27:$E$76, 0), MATCH(AT$4, RAB_years, 0)) -> 0 | AU22: =INDEX('RAB input'!$H$27:$XFD$76, MATCH($E22, 'RAB input'!$E$27:$E$76, 0), MATCH(AU$4, RAB_years, 0)) -> 0 | AV22: =INDEX('RAB input'!$H$27:$XFD$76, MATCH($E22, 'RAB input'!$E$27:$E$76, 0), MATCH(AV$4, RAB_years, 0)) -> 0 | AW22: =INDEX('RAB input'!$H$27:$XFD$76, MATCH($E22, 'RAB input'!$E$27:$E$76, 0), MATCH(AW$4, RAB_years, 0)) -> 0 | AX22: =INDEX('RAB input'!$H$27:$XFD$76, MATCH($E22, 'RAB input'!$E$27:$E$76, 0), MATCH(AX$4, RAB_years, 0)) -> 0 | AY22: =INDEX('RAB input'!$H$27:$XFD$76, MATCH($E22, 'RAB input'!$E$27:$E$76, 0), MATCH(AY$4, RAB_years, 0)) -> 0 | AZ22: =INDEX('RAB input'!$H$27:$XFD$76, MATCH($E22, 'RAB input'!$E$27:$E$76, 0), MATCH(AZ$4, RAB_years, 0)) -> 0 | BA22: =INDEX('RAB input'!$H$27:$XFD$76, MATCH($E22, 'RAB input'!$E$27:$E$76, 0), MATCH(BA$4, RAB_years, 0)) -> 0 | BB22: =INDEX('RAB input'!$H$27:$XFD$76, MATCH($E22, 'RAB input'!$E$27:$E$76, 0), MATCH(BB$4, RAB_years, 0)) -> 0 | BC22: =INDEX('RAB input'!$H$27:$XFD$76, MATCH($E22, 'RAB input'!$E$27:$E$76, 0), MATCH(BC$4, RAB_years, 0)) -> 0 | BD22: =INDEX('RAB input'!$H$27:$XFD$76, MATCH($E22, 'RAB input'!$E$27:$E$76, 0), MATCH(BD$4, RAB_years, 0)) -> 0 | BE22: =INDEX('RAB input'!$H$27:$XFD$76, MATCH($E22, 'RAB input'!$E$27:$E$76, 0), MATCH(BE$4, RAB_years, 0)) -> 0 | BF22: =INDEX('RAB input'!$H$27:$XFD$76, MATCH($E22, 'RAB input'!$E$27:$E$76, 0), MATCH(BF$4, RAB_years, 0)) -> 0 | BG22: =INDEX('RAB input'!$H$27:$XFD$76, MATCH($E22, 'RAB input'!$E$27:$E$76, 0), MATCH(BG$4, RAB_years, 0)) -> 0 | BH22: =INDEX('RAB input'!$H$27:$XFD$76, MATCH($E22, 'RAB input'!$E$27:$E$76, 0), MATCH(BH$4, RAB_years, 0)) -> 0 | BI22: =INDEX('RAB input'!$H$27:$XFD$76, MATCH($E22, 'RAB input'!$E$27:$E$76, 0), MATCH(BI$4, RAB_years, 0)) -> 0 | BJ22: =INDEX('RAB input'!$H$27:$XFD$76, MATCH($E22, 'RAB input'!$E$27:$E$76, 0), MATCH(BJ$4, RAB_years, 0)) -> 0
D23: 6 | E23: ='RAB input'!E32 -> Non-network general assets - Other | G23: 210.77702 | H23: =INDEX('RAB input'!$H$27:$XFD$76, MATCH($E23, 'RAB input'!$E$27:$E$76, 0), MATCH(H$4, RAB_years, 0)) -> 34.38954712 | I23: =INDEX('RAB input'!$H$27:$XFD$76, MATCH($E23, 'RAB input'!$E$27:$E$76, 0), MATCH(I$4, RAB_years, 0)) -> 63.21257378 | J23: =INDEX('RAB input'!$H$27:$XFD$76, MATCH($E23, 'RAB input'!$E$27:$E$76, 0), MATCH(J$4, RAB_years, 0)) -> 58.2798121 | K23: =INDEX('RAB input'!$H$27:$XFD$76, MATCH($E23, 'RAB input'!$E$27:$E$76, 0), MATCH(K$4, RAB_years, 0)) -> 56.88018015 | L23: =INDEX('RAB input'!$H$27:$XFD$76, MATCH($E23, 'RAB input'!$E$27:$E$76, 0), MATCH(L$4, RAB_years, 0)) -> 31.67208201 | M23: =INDEX('RAB input'!$H$27:$XFD$76, MATCH($E23, 'RAB input'!$E$27:$E$76, 0), MATCH(M$4, RAB_years, 0)) -> 0 | N23: =INDEX('RAB input'!$H$27:$XFD$76, MATCH($E23, 'RAB input'!$E$27:$E$76, 0), MATCH(N$4, RAB_years, 0)) -> 0 | O23: =INDEX('RAB input'!$H$27:$XFD$76, MATCH($E23, 'RAB input'!$E$27:$E$76, 0), MATCH(O$4, RAB_years, 0)) -> 0 | P23: =INDEX('RAB input'!$H$27:$XFD$76, MATCH($E23, 'RAB input'!$E$27:$E$76, 0), MATCH(P$4, RAB_years, 0)) -> 0 | Q23: =INDEX('RAB input'!$H$27:$XFD$76, MATCH($E23, 'RAB input'!$E$27:$E$76, 0), MATCH(Q$4, RAB_years, 0)) -> 0 | R23: =INDEX('RAB input'!$H$27:$XFD$76, MATCH($E23, 'RAB input'!$E$27:$E$76, 0), MATCH(R$4, RAB_years, 0)) -> 0 | S23: =INDEX('RAB input'!$H$27:$XFD$76, MATCH($E23, 'RAB input'!$E$27:$E$76, 0), MATCH(S$4, RAB_years, 0)) -> 0 | T23: =INDEX('RAB input'!$H$27:$XFD$76, MATCH($E23, 'RAB input'!$E$27:$E$76, 0), MATCH(T$4, RAB_years, 0)) -> 0 | U23: =INDEX('RAB input'!$H$27:$XFD$76, MATCH($E23, 'RAB input'!$E$27:$E$76, 0), MATCH(U$4, RAB_years, 0)) -> 0 | V23: =INDEX('RAB input'!$H$27:$XFD$76, MATCH($E23, 'RAB input'!$E$27:$E$76, 0), MATCH(V$4, RAB_years, 0)) -> 0 | W23: =INDEX('RAB input'!$H$27:$XFD$76, MATCH($E23, 'RAB input'!$E$27:$E$76, 0), MATCH(W$4, RAB_years, 0)) -> 0 | X23: =INDEX('RAB input'!$H$27:$XFD$76, MATCH($E23, 'RAB input'!$E$27:$E$76, 0), MATCH(X$4, RAB_years, 0)) -> 0 | Y23: =INDEX('RAB input'!$H$27:$XFD$76, MATCH($E23, 'RAB input'!$E$27:$E$76, 0), MATCH(Y$4, RAB_years, 0)) -> 0 | Z23: =INDEX('RAB input'!$H$27:$XFD$76, MATCH($E23, 'RAB input'!$E$27:$E$76, 0), MATCH(Z$4, RAB_years, 0)) -> 0 | AA23: =INDEX('RAB input'!$H$27:$XFD$76, MATCH($E23, 'RAB input'!$E$27:$E$76, 0), MATCH(AA$4, RAB_years, 0)) -> 0 | AB23: =INDEX('RAB input'!$H$27:$XFD$76, MATCH($E23, 'RAB input'!$E$27:$E$76, 0), MATCH(AB$4, RAB_years, 0)) -> 0 | AC23: =INDEX('RAB input'!$H$27:$XFD$76, MATCH($E23, 'RAB input'!$E$27:$E$76, 0), MATCH(AC$4, RAB_years, 0)) -> 0 | AD23: =INDEX('RAB input'!$H$27:$XFD$76, MATCH($E23, 'RAB input'!$E$27:$E$76, 0), MATCH(AD$4, RAB_years, 0)) -> 0 | AE23: =INDEX('RAB input'!$H$27:$XFD$76, MATCH($E23, 'RAB input'!$E$27:$E$76, 0), MATCH(AE$4, RAB_years, 0)) -> 0 | AF23: =INDEX('RAB input'!$H$27:$XFD$76, MATCH($E23, 'RAB input'!$E$27:$E$76, 0), MATCH(AF$4, RAB_years, 0)) -> 0 | AG23: =INDEX('RAB input'!$H$27:$XFD$76, MATCH($E23, 'RAB input'!$E$27:$E$76, 0), MATCH(AG$4, RAB_years, 0)) -> 0 | AH23: =INDEX('RAB input'!$H$27:$XFD$76, MATCH($E23, 'RAB input'!$E$27:$E$76, 0), MATCH(AH$4, RAB_years, 0)) -> 0 | AI23: =INDEX('RAB input'!$H$27:$XFD$76, MATCH($E23, 'RAB input'!$E$27:$E$76, 0), MATCH(AI$4, RAB_years, 0)) -> 0 | AJ23: =INDEX('RAB input'!$H$27:$XFD$76, MATCH($E23, 'RAB input'!$E$27:$E$76, 0), MATCH(AJ$4, RAB_years, 0)) -> 0 | AK23: =INDEX('RAB input'!$H$27:$XFD$76, MATCH($E23, 'RAB input'!$E$27:$E$76, 0), MATCH(AK$4, RAB_years, 0)) -> 0 | AL23: =INDEX('RAB input'!$H$27:$XFD$76, MATCH($E23, 'RAB input'!$E$27:$E$76, 0), MATCH(AL$4, RAB_years, 0)) -> 0 | AM23: =INDEX('RAB input'!$H$27:$XFD$76, MATCH($E23, 'RAB input'!$E$27:$E$76, 0), MATCH(AM$4, RAB_years, 0)) -> 0 | AN23: =INDEX('RAB input'!$H$27:$XFD$76, MATCH($E23, 'RAB input'!$E$27:$E$76, 0), MATCH(AN$4, RAB_years, 0)) -> 0 | AO23: =INDEX('RAB input'!$H$27:$XFD$76, MATCH($E23, 'RAB input'!$E$27:$E$76, 0), MATCH(AO$4, RAB_years, 0)) -> 0 | AP23: =INDEX('RAB input'!$H$27:$XFD$76, MATCH($E23, 'RAB input'!$E$27:$E$76, 0), MATCH(AP$4, RAB_years, 0)) -> 0 | AQ23: =INDEX('RAB input'!$H$27:$XFD$76, MATCH($E23, 'RAB input'!$E$27:$E$76, 0), MATCH(AQ$4, RAB_years, 0)) -> 0 | AR23: =INDEX('RAB input'!$H$27:$XFD$76, MATCH($E23, 'RAB input'!$E$27:$E$76, 0), MATCH(AR$4, RAB_years, 0)) -> 0 | AS23: =INDEX('RAB input'!$H$27:$XFD$76, MATCH($E23, 'RAB input'!$E$27:$E$76, 0), MATCH(AS$4, RAB_years, 0)) -> 0 | AT23: =INDEX('RAB input'!$H$27:$XFD$76, MATCH($E23, 'RAB input'!$E$27:$E$76, 0), MATCH(AT$4, RAB_years, 0)) -> 0 | AU23: =INDEX('RAB input'!$H$27:$XFD$76, MATCH($E23, 'RAB input'!$E$27:$E$76, 0), MATCH(AU$4, RAB_years, 0)) -> 0 | AV23: =INDEX('RAB input'!$H$27:$XFD$76, MATCH($E23, 'RAB input'!$E$27:$E$76, 0), MATCH(AV$4, RAB_years, 0)) -> 0 | AW23: =INDEX('RAB input'!$H$27:$XFD$76, MATCH($E23, 'RAB input'!$E$27:$E$76, 0), MATCH(AW$4, RAB_years, 0)) -> 0 | AX23: =INDEX('RAB input'!$H$27:$XFD$76, MATCH($E23, 'RAB input'!$E$27:$E$76, 0), MATCH(AX$4, RAB_years, 0)) -> 0 | AY23: =INDEX('RAB input'!$H$27:$XFD$76, MATCH($E23, 'RAB input'!$E$27:$E$76, 0), MATCH(AY$4, RAB_years, 0)) -> 0 | AZ23: =INDEX('RAB input'!$H$27:$XFD$76, MATCH($E23, 'RAB input'!$E$27:$E$76, 0), MATCH(AZ$4, RAB_years, 0)) -> 0 | BA23: =INDEX('RAB input'!$H$27:$XFD$76, MATCH($E23, 'RAB input'!$E$27:$E$76, 0), MATCH(BA$4, RAB_years, 0)) -> 0 | BB23: =INDEX('RAB input'!$H$27:$XFD$76, MATCH($E23, 'RAB input'!$E$27:$E$76, 0), MATCH(BB$4, RAB_years, 0)) -> 0 | BC23: =INDEX('RAB input'!$H$27:$XFD$76, MATCH($E23, 'RAB input'!$E$27:$E$76, 0), MATCH(BC$4, RAB_years, 0)) -> 0 | BD23: =INDEX('RAB input'!$H$27:$XFD$76, MATCH($E23, 'RAB input'!$E$27:$E$76, 0), MATCH(BD$4, RAB_years, 0)) -> 0 | BE23: =INDEX('RAB input'!$H$27:$XFD$76, MATCH($E23, 'RAB input'!$E$27:$E$76, 0), MATCH(BE$4, RAB_years, 0)) -> 0 | BF23: =INDEX('RAB input'!$H$27:$XFD$76, MATCH($E23, 'RAB input'!$E$27:$E$76, 0), MATCH(BF$4, RAB_years, 0)) -> 0 | BG23: =INDEX('RAB input'!$H$27:$XFD$76, MATCH($E23, 'RAB input'!$E$27:$E$76, 0), MATCH(BG$4, RAB_years, 0)) -> 0 | BH23: =INDEX('RAB input'!$H$27:$XFD$76, MATCH($E23, 'RAB input'!$E$27:$E$76, 0), MATCH(BH$4, RAB_years, 0)) -> 0 | BI23: =INDEX('RAB input'!$H$27:$XFD$76, MATCH($E23, 'RAB input'!$E$27:$E$76, 0), MATCH(BI$4, RAB_years, 0)) -> 0 | BJ23: =INDEX('RAB input'!$H$27:$XFD$76, MATCH($E23, 'RAB input'!$E$27:$E$76, 0), MATCH(BJ$4, RAB_years, 0)) -> 0
D24: 7 | E24: ='RAB input'!E33 -> VBRC | G24: 138.401543 | H24: =INDEX('RAB input'!$H$27:$XFD$76, MATCH($E24, 'RAB input'!$E$27:$E$76, 0), MATCH(H$4, RAB_years, 0)) -> 0 | I24: =INDEX('RAB input'!$H$27:$XFD$76, MATCH($E24, 'RAB input'!$E$27:$E$76, 0), MATCH(I$4, RAB_years, 0)) -> 0 | J24: =INDEX('RAB input'!$H$27:$XFD$76, MATCH($E24, 'RAB input'!$E$27:$E$76, 0), MATCH(J$4, RAB_years, 0)) -> 0 | K24: =INDEX('RAB input'!$H$27:$XFD$76, MATCH($E24, 'RAB input'!$E$27:$E$76, 0), MATCH(K$4, RAB_years, 0)) -> 0 | L24: =INDEX('RAB input'!$H$27:$XFD$76, MATCH($E24, 'RAB input'!$E$27:$E$76, 0), MATCH(L$4, RAB_years, 0)) -> 0 | M24: =INDEX('RAB input'!$H$27:$XFD$76, MATCH($E24, 'RAB input'!$E$27:$E$76, 0), MATCH(M$4, RAB_years, 0)) -> 0 | N24: =INDEX('RAB input'!$H$27:$XFD$76, MATCH($E24, 'RAB input'!$E$27:$E$76, 0), MATCH(N$4, RAB_years, 0)) -> 0 | O24: =INDEX('RAB input'!$H$27:$XFD$76, MATCH($E24, 'RAB input'!$E$27:$E$76, 0), MATCH(O$4, RAB_years, 0)) -> 0 | P24: =INDEX('RAB input'!$H$27:$XFD$76, MATCH($E24, 'RAB input'!$E$27:$E$76, 0), MATCH(P$4, RAB_years, 0)) -> 0 | Q24: =INDEX('RAB input'!$H$27:$XFD$76, MATCH($E24, 'RAB input'!$E$27:$E$76, 0), MATCH(Q$4, RAB_years, 0)) -> 0 | R24: =INDEX('RAB input'!$H$27:$XFD$76, MATCH($E24, 'RAB input'!$E$27:$E$76, 0), MATCH(R$4, RAB_years, 0)) -> 0 | S24: =INDEX('RAB input'!$H$27:$XFD$76, MATCH($E24, 'RAB input'!$E$27:$E$76, 0), MATCH(S$4, RAB_years, 0)) -> 0 | T24: =INDEX('RAB input'!$H$27:$XFD$76, MATCH($E24, 'RAB input'!$E$27:$E$76, 0), MATCH(T$4, RAB_years, 0)) -> 0 | U24: =INDEX('RAB input'!$H$27:$XFD$76, MATCH($E24, 'RAB input'!$E$27:$E$76, 0), MATCH(U$4, RAB_years, 0)) -> 0 | V24: =INDEX('RAB input'!$H$27:$XFD$76, MATCH($E24, 'RAB input'!$E$27:$E$76, 0), MATCH(V$4, RAB_years, 0)) -> 0 | W24: =INDEX('RAB input'!$H$27:$XFD$76, MATCH($E24, 'RAB input'!$E$27:$E$76, 0), MATCH(W$4, RAB_years, 0)) -> 0 | X24: =INDEX('RAB input'!$H$27:$XFD$76, MATCH($E24, 'RAB input'!$E$27:$E$76, 0), MATCH(X$4, RAB_years, 0)) -> 0 | Y24: =INDEX('RAB input'!$H$27:$XFD$76, MATCH($E24, 'RAB input'!$E$27:$E$76, 0), MATCH(Y$4, RAB_years, 0)) -> 0 | Z24: =INDEX('RAB input'!$H$27:$XFD$76, MATCH($E24, 'RAB input'!$E$27:$E$76, 0), MATCH(Z$4, RAB_years, 0)) -> 0 | AA24: =INDEX('RAB input'!$H$27:$XFD$76, MATCH($E24, 'RAB input'!$E$27:$E$76, 0), MATCH(AA$4, RAB_years, 0)) -> 0 | AB24: =INDEX('RAB input'!$H$27:$XFD$76, MATCH($E24, 'RAB input'!$E$27:$E$76, 0), MATCH(AB$4, RAB_years, 0)) -> 0 | AC24: =INDEX('RAB input'!$H$27:$XFD$76, MATCH($E24, 'RAB input'!$E$27:$E$76, 0), MATCH(AC$4, RAB_years, 0)) -> 0 | AD24: =INDEX('RAB input'!$H$27:$XFD$76, MATCH($E24, 'RAB input'!$E$27:$E$76, 0), MATCH(AD$4, RAB_years, 0)) -> 0 | AE24: =INDEX('RAB input'!$H$27:$XFD$76, MATCH($E24, 'RAB input'!$E$27:$E$76, 0), MATCH(AE$4, RAB_years, 0)) -> 0 | AF24: =INDEX('RAB input'!$H$27:$XFD$76, MATCH($E24, 'RAB input'!$E$27:$E$76, 0), MATCH(AF$4, RAB_years, 0)) -> 0 | AG24: =INDEX('RAB input'!$H$27:$XFD$76, MATCH($E24, 'RAB input'!$E$27:$E$76, 0), MATCH(AG$4, RAB_years, 0)) -> 0 | AH24: =INDEX('RAB input'!$H$27:$XFD$76, MATCH($E24, 'RAB input'!$E$27:$E$76, 0), MATCH(AH$4, RAB_years, 0)) -> 0 | AI24: =INDEX('RAB input'!$H$27:$XFD$76, MATCH($E24, 'RAB input'!$E$27:$E$76, 0), MATCH(AI$4, RAB_years, 0)) -> 0 | AJ24: =INDEX('RAB input'!$H$27:$XFD$76, MATCH($E24, 'RAB input'!$E$27:$E$76, 0), MATCH(AJ$4, RAB_years, 0)) -> 0 | AK24: =INDEX('RAB input'!$H$27:$XFD$76, MATCH($E24, 'RAB input'!$E$27:$E$76, 0), MATCH(AK$4, RAB_years, 0)) -> 0 | AL24: =INDEX('RAB input'!$H$27:$XFD$76, MATCH($E24, 'RAB input'!$E$27:$E$76, 0), MATCH(AL$4, RAB_years, 0)) -> 0 | AM24: =INDEX('RAB input'!$H$27:$XFD$76, MATCH($E24, 'RAB input'!$E$27:$E$76, 0), MATCH(AM$4, RAB_years, 0)) -> 0 | AN24: =INDEX('RAB input'!$H$27:$XFD$76, MATCH($E24, 'RAB input'!$E$27:$E$76, 0), MATCH(AN$4, RAB_years, 0)) -> 0 | AO24: =INDEX('RAB input'!$H$27:$XFD$76, MATCH($E24, 'RAB input'!$E$27:$E$76, 0), MATCH(AO$4, RAB_years, 0)) -> 0 | AP24: =INDEX('RAB input'!$H$27:$XFD$76, MATCH($E24, 'RAB input'!$E$27:$E$76, 0), MATCH(AP$4, RAB_years, 0)) -> 0 | AQ24: =INDEX('RAB input'!$H$27:$XFD$76, MATCH($E24, 'RAB input'!$E$27:$E$76, 0), MATCH(AQ$4, RAB_years, 0)) -> 0 | AR24: =INDEX('RAB input'!$H$27:$XFD$76, MATCH($E24, 'RAB input'!$E$27:$E$76, 0), MATCH(AR$4, RAB_years, 0)) -> 0 | AS24: =INDEX('RAB input'!$H$27:$XFD$76, MATCH($E24, 'RAB input'!$E$27:$E$76, 0), MATCH(AS$4, RAB_years, 0)) -> 0 | AT24: =INDEX('RAB input'!$H$27:$XFD$76, MATCH($E24, 'RAB input'!$E$27:$E$76, 0), MATCH(AT$4, RAB_years, 0)) -> 0 | AU24: =INDEX('RAB input'!$H$27:$XFD$76, MATCH($E24, 'RAB input'!$E$27:$E$76, 0), MATCH(AU$4, RAB_years, 0)) -> 0 | AV24: =INDEX('RAB input'!$H$27:$XFD$76, MATCH($E24, 'RAB input'!$E$27:$E$76, 0), MATCH(AV$4, RAB_years, 0)) -> 0 | AW24: =INDEX('RAB input'!$H$27:$XFD$76, MATCH($E24, 'RAB input'!$E$27:$E$76, 0), MATCH(AW$4, RAB_years, 0)) -> 0 | AX24: =INDEX('RAB input'!$H$27:$XFD$76, MATCH($E24, 'RAB input'!$E$27:$E$76, 0), MATCH(AX$4, RAB_years, 0)) -> 0 | AY24: =INDEX('RAB input'!$H$27:$XFD$76, MATCH($E24, 'RAB input'!$E$27:$E$76, 0), MATCH(AY$4, RAB_years, 0)) -> 0 | AZ24: =INDEX('RAB input'!$H$27:$XFD$76, MATCH($E24, 'RAB input'!$E$27:$E$76, 0), MATCH(AZ$4, RAB_years, 0)) -> 0 | BA24: =INDEX('RAB input'!$H$27:$XFD$76, MATCH($E24, 'RAB input'!$E$27:$E$76, 0), MATCH(BA$4, RAB_years, 0)) -> 0 | BB24: =INDEX('RAB input'!$H$27:$XFD$76, MATCH($E24, 'RAB input'!$E$27:$E$76, 0), MATCH(BB$4, RAB_years, 0)) -> 0 | BC24: =INDEX('RAB input'!$H$27:$XFD$76, MATCH($E24, 'RAB input'!$E$27:$E$76, 0), MATCH(BC$4, RAB_years, 0)) -> 0 | BD24: =INDEX('RAB input'!$H$27:$XFD$76, MATCH($E24, 'RAB input'!$E$27:$E$76, 0), MATCH(BD$4, RAB_years, 0)) -> 0 | BE24: =INDEX('RAB input'!$H$27:$XFD$76, MATCH($E24, 'RAB input'!$E$27:$E$76, 0), MATCH(BE$4, RAB_years, 0)) -> 0 | BF24: =INDEX('RAB input'!$H$27:$XFD$76, MATCH($E24, 'RAB input'!$E$27:$E$76, 0), MATCH(BF$4, RAB_years, 0)) -> 0 | BG24: =INDEX('RAB input'!$H$27:$XFD$76, MATCH($E24, 'RAB input'!$E$27:$E$76, 0), MATCH(BG$4, RAB_years, 0)) -> 0 | BH24: =INDEX('RAB input'!$H$27:$XFD$76, MATCH($E24, 'RAB input'!$E$27:$E$76, 0), MATCH(BH$4, RAB_years, 0)) -> 0 | BI24: =INDEX('RAB input'!$H$27:$XFD$76, MATCH($E24, 'RAB input'!$E$27:$E$76, 0), MATCH(BI$4, RAB_years, 0)) -> 0 | BJ24: =INDEX('RAB input'!$H$27:$XFD$76, MATCH($E24, 'RAB input'!$E$27:$E$76, 0), MATCH(BJ$4, RAB_years, 0)) -> 0
D25: 8 | E25: ='RAB input'!E34 -> Land | G25: 32.3285171 | H25: =INDEX('RAB input'!$H$27:$XFD$76, MATCH($E25, 'RAB input'!$E$27:$E$76, 0), MATCH(H$4, RAB_years, 0)) -> 0 | I25: =INDEX('RAB input'!$H$27:$XFD$76, MATCH($E25, 'RAB input'!$E$27:$E$76, 0), MATCH(I$4, RAB_years, 0)) -> 0 | J25: =INDEX('RAB input'!$H$27:$XFD$76, MATCH($E25, 'RAB input'!$E$27:$E$76, 0), MATCH(J$4, RAB_years, 0)) -> 0 | K25: =INDEX('RAB input'!$H$27:$XFD$76, MATCH($E25, 'RAB input'!$E$27:$E$76, 0), MATCH(K$4, RAB_years, 0)) -> 0 | L25: =INDEX('RAB input'!$H$27:$XFD$76, MATCH($E25, 'RAB input'!$E$27:$E$76, 0), MATCH(L$4, RAB_years, 0)) -> 0 | M25: =INDEX('RAB input'!$H$27:$XFD$76, MATCH($E25, 'RAB input'!$E$27:$E$76, 0), MATCH(M$4, RAB_years, 0)) -> 0 | N25: =INDEX('RAB input'!$H$27:$XFD$76, MATCH($E25, 'RAB input'!$E$27:$E$76, 0), MATCH(N$4, RAB_years, 0)) -> 0 | O25: =INDEX('RAB input'!$H$27:$XFD$76, MATCH($E25, 'RAB input'!$E$27:$E$76, 0), MATCH(O$4, RAB_years, 0)) -> 0 | P25: =INDEX('RAB input'!$H$27:$XFD$76, MATCH($E25, 'RAB input'!$E$27:$E$76, 0), MATCH(P$4, RAB_years, 0)) -> 0 | Q25: =INDEX('RAB input'!$H$27:$XFD$76, MATCH($E25, 'RAB input'!$E$27:$E$76, 0), MATCH(Q$4, RAB_years, 0)) -> 0 | R25: =INDEX('RAB input'!$H$27:$XFD$76, MATCH($E25, 'RAB input'!$E$27:$E$76, 0), MATCH(R$4, RAB_years, 0)) -> 0 | S25: =INDEX('RAB input'!$H$27:$XFD$76, MATCH($E25, 'RAB input'!$E$27:$E$76, 0), MATCH(S$4, RAB_years, 0)) -> 0 | T25: =INDEX('RAB input'!$H$27:$XFD$76, MATCH($E25, 'RAB input'!$E$27:$E$76, 0), MATCH(T$4, RAB_years, 0)) -> 0 | U25: =INDEX('RAB input'!$H$27:$XFD$76, MATCH($E25, 'RAB input'!$E$27:$E$76, 0), MATCH(U$4, RAB_years, 0)) -> 0 | V25: =INDEX('RAB input'!$H$27:$XFD$76, MATCH($E25, 'RAB input'!$E$27:$E$76, 0), MATCH(V$4, RAB_years, 0)) -> 0 | W25: =INDEX('RAB input'!$H$27:$XFD$76, MATCH($E25, 'RAB input'!$E$27:$E$76, 0), MATCH(W$4, RAB_years, 0)) -> 0 | X25: =INDEX('RAB input'!$H$27:$XFD$76, MATCH($E25, 'RAB input'!$E$27:$E$76, 0), MATCH(X$4, RAB_years, 0)) -> 0 | Y25: =INDEX('RAB input'!$H$27:$XFD$76, MATCH($E25, 'RAB input'!$E$27:$E$76, 0), MATCH(Y$4, RAB_years, 0)) -> 0 | Z25: =INDEX('RAB input'!$H$27:$XFD$76, MATCH($E25, 'RAB input'!$E$27:$E$76, 0), MATCH(Z$4, RAB_years, 0)) -> 0 | AA25: =INDEX('RAB input'!$H$27:$XFD$76, MATCH($E25, 'RAB input'!$E$27:$E$76, 0), MATCH(AA$4, RAB_years, 0)) -> 0 | AB25: =INDEX('RAB input'!$H$27:$XFD$76, MATCH($E25, 'RAB input'!$E$27:$E$76, 0), MATCH(AB$4, RAB_years, 0)) -> 0 | AC25: =INDEX('RAB input'!$H$27:$XFD$76, MATCH($E25, 'RAB input'!$E$27:$E$76, 0), MATCH(AC$4, RAB_years, 0)) -> 0 | AD25: =INDEX('RAB input'!$H$27:$XFD$76, MATCH($E25, 'RAB input'!$E$27:$E$76, 0), MATCH(AD$4, RAB_years, 0)) -> 0 | AE25: =INDEX('RAB input'!$H$27:$XFD$76, MATCH($E25, 'RAB input'!$E$27:$E$76, 0), MATCH(AE$4, RAB_years, 0)) -> 0 | AF25: =INDEX('RAB input'!$H$27:$XFD$76, MATCH($E25, 'RAB input'!$E$27:$E$76, 0), MATCH(AF$4, RAB_years, 0)) -> 0 | AG25: =INDEX('RAB input'!$H$27:$XFD$76, MATCH($E25, 'RAB input'!$E$27:$E$76, 0), MATCH(AG$4, RAB_years, 0)) -> 0 | AH25: =INDEX('RAB input'!$H$27:$XFD$76, MATCH($E25, 'RAB input'!$E$27:$E$76, 0), MATCH(AH$4, RAB_years, 0)) -> 0 | AI25: =INDEX('RAB input'!$H$27:$XFD$76, MATCH($E25, 'RAB input'!$E$27:$E$76, 0), MATCH(AI$4, RAB_years, 0)) -> 0 | AJ25: =INDEX('RAB input'!$H$27:$XFD$76, MATCH($E25, 'RAB input'!$E$27:$E$76, 0), MATCH(AJ$4, RAB_years, 0)) -> 0 | AK25: =INDEX('RAB input'!$H$27:$XFD$76, MATCH($E25, 'RAB input'!$E$27:$E$76, 0), MATCH(AK$4, RAB_years, 0)) -> 0 | AL25: =INDEX('RAB input'!$H$27:$XFD$76, MATCH($E25, 'RAB input'!$E$27:$E$76, 0), MATCH(AL$4, RAB_years, 0)) -> 0 | AM25: =INDEX('RAB input'!$H$27:$XFD$76, MATCH($E25, 'RAB input'!$E$27:$E$76, 0), MATCH(AM$4, RAB_years, 0)) -> 0 | AN25: =INDEX('RAB input'!$H$27:$XFD$76, MATCH($E25, 'RAB input'!$E$27:$E$76, 0), MATCH(AN$4, RAB_years, 0)) -> 0 | AO25: =INDEX('RAB input'!$H$27:$XFD$76, MATCH($E25, 'RAB input'!$E$27:$E$76, 0), MATCH(AO$4, RAB_years, 0)) -> 0 | AP25: =INDEX('RAB input'!$H$27:$XFD$76, MATCH($E25, 'RAB input'!$E$27:$E$76, 0), MATCH(AP$4, RAB_years, 0)) -> 0 | AQ25: =INDEX('RAB input'!$H$27:$XFD$76, MATCH($E25, 'RAB input'!$E$27:$E$76, 0), MATCH(AQ$4, RAB_years, 0)) -> 0 | AR25: =INDEX('RAB input'!$H$27:$XFD$76, MATCH($E25, 'RAB input'!$E$27:$E$76, 0), MATCH(AR$4, RAB_years, 0)) -> 0 | AS25: =INDEX('RAB input'!$H$27:$XFD$76, MATCH($E25, 'RAB input'!$E$27:$E$76, 0), MATCH(AS$4, RAB_years, 0)) -> 0 | AT25: =INDEX('RAB input'!$H$27:$XFD$76, MATCH($E25, 'RAB input'!$E$27:$E$76, 0), MATCH(AT$4, RAB_years, 0)) -> 0 | AU25: =INDEX('RAB input'!$H$27:$XFD$76, MATCH($E25, 'RAB input'!$E$27:$E$76, 0), MATCH(AU$4, RAB_years, 0)) -> 0 | AV25: =INDEX('RAB input'!$H$27:$XFD$76, MATCH($E25, 'RAB input'!$E$27:$E$76, 0), MATCH(AV$4, RAB_years, 0)) -> 0 | AW25: =INDEX('RAB input'!$H$27:$XFD$76, MATCH($E25, 'RAB input'!$E$27:$E$76, 0), MATCH(AW$4, RAB_years, 0)) -> 0 | AX25: =INDEX('RAB input'!$H$27:$XFD$76, MATCH($E25, 'RAB input'!$E$27:$E$76, 0), MATCH(AX$4, RAB_years, 0)) -> 0 | AY25: =INDEX('RAB input'!$H$27:$XFD$76, MATCH($E25, 'RAB input'!$E$27:$E$76, 0), MATCH(AY$4, RAB_years, 0)) -> 0 | AZ25: =INDEX('RAB input'!$H$27:$XFD$76, MATCH($E25, 'RAB input'!$E$27:$E$76, 0), MATCH(AZ$4, RAB_years, 0)) -> 0 | BA25: =INDEX('RAB input'!$H$27:$XFD$76, MATCH($E25, 'RAB input'!$E$27:$E$76, 0), MATCH(BA$4, RAB_years, 0)) -> 0 | BB25: =INDEX('RAB input'!$H$27:$XFD$76, MATCH($E25, 'RAB input'!$E$27:$E$76, 0), MATCH(BB$4, RAB_years, 0)) -> 0 | BC25: =INDEX('RAB input'!$H$27:$XFD$76, MATCH($E25, 'RAB input'!$E$27:$E$76, 0), MATCH(BC$4, RAB_years, 0)) -> 0 | BD25: =INDEX('RAB input'!$H$27:$XFD$76, MATCH($E25, 'RAB input'!$E$27:$E$76, 0), MATCH(BD$4, RAB_years, 0)) -> 0 | BE25: =INDEX('RAB input'!$H$27:$XFD$76, MATCH($E25, 'RAB input'!$E$27:$E$76, 0), MATCH(BE$4, RAB_years, 0)) -> 0 | BF25: =INDEX('RAB input'!$H$27:$XFD$76, MATCH($E25, 'RAB input'!$E$27:$E$76, 0), MATCH(BF$4, RAB_years, 0)) -> 0 | BG25: =INDEX('RAB input'!$H$27:$XFD$76, MATCH($E25, 'RAB input'!$E$27:$E$76, 0), MATCH(BG$4, RAB_years, 0)) -> 0 | BH25: =INDEX('RAB input'!$H$27:$XFD$76, MATCH($E25, 'RAB input'!$E$27:$E$76, 0), MATCH(BH$4, RAB_years, 0)) -> 0 | BI25: =INDEX('RAB input'!$H$27:$XFD$76, MATCH($E25, 'RAB input'!$E$27:$E$76, 0), MATCH(BI$4, RAB_years, 0)) -> 0 | BJ25: =INDEX('RAB input'!$H$27:$XFD$76, MATCH($E25, 'RAB input'!$E$27:$E$76, 0), MATCH(BJ$4, RAB_years, 0)) -> 0
D26: 9 | E26: ='RAB input'!E35 -> Accelerated depreciation assets | G26: 25.48314733 | H26: =INDEX('RAB input'!$H$27:$XFD$76, MATCH($E26, 'RAB input'!$E$27:$E$76, 0), MATCH(H$4, RAB_years, 0)) -> 0 | I26: =INDEX('RAB input'!$H$27:$XFD$76, MATCH($E26, 'RAB input'!$E$27:$E$76, 0), MATCH(I$4, RAB_years, 0)) -> 0 | J26: =INDEX('RAB input'!$H$27:$XFD$76, MATCH($E26, 'RAB input'!$E$27:$E$76, 0), MATCH(J$4, RAB_years, 0)) -> 0 | K26: =INDEX('RAB input'!$H$27:$XFD$76, MATCH($E26, 'RAB input'!$E$27:$E$76, 0), MATCH(K$4, RAB_years, 0)) -> 0 | L26: =INDEX('RAB input'!$H$27:$XFD$76, MATCH($E26, 'RAB input'!$E$27:$E$76, 0), MATCH(L$4, RAB_years, 0)) -> 0 | M26: =INDEX('RAB input'!$H$27:$XFD$76, MATCH($E26, 'RAB input'!$E$27:$E$76, 0), MATCH(M$4, RAB_years, 0)) -> 0 | N26: =INDEX('RAB input'!$H$27:$XFD$76, MATCH($E26, 'RAB input'!$E$27:$E$76, 0), MATCH(N$4, RAB_years, 0)) -> 0 | O26: =INDEX('RAB input'!$H$27:$XFD$76, MATCH($E26, 'RAB input'!$E$27:$E$76, 0), MATCH(O$4, RAB_years, 0)) -> 0 | P26: =INDEX('RAB input'!$H$27:$XFD$76, MATCH($E26, 'RAB input'!$E$27:$E$76, 0), MATCH(P$4, RAB_years, 0)) -> 0 | Q26: =INDEX('RAB input'!$H$27:$XFD$76, MATCH($E26, 'RAB input'!$E$27:$E$76, 0), MATCH(Q$4, RAB_years, 0)) -> 0 | R26: =INDEX('RAB input'!$H$27:$XFD$76, MATCH($E26, 'RAB input'!$E$27:$E$76, 0), MATCH(R$4, RAB_years, 0)) -> 0 | S26: =INDEX('RAB input'!$H$27:$XFD$76, MATCH($E26, 'RAB input'!$E$27:$E$76, 0), MATCH(S$4, RAB_years, 0)) -> 0 | T26: =INDEX('RAB input'!$H$27:$XFD$76, MATCH($E26, 'RAB input'!$E$27:$E$76, 0), MATCH(T$4, RAB_years, 0)) -> 0 | U26: =INDEX('RAB input'!$H$27:$XFD$76, MATCH($E26, 'RAB input'!$E$27:$E$76, 0), MATCH(U$4, RAB_years, 0)) -> 0 | V26: =INDEX('RAB input'!$H$27:$XFD$76, MATCH($E26, 'RAB input'!$E$27:$E$76, 0), MATCH(V$4, RAB_years, 0)) -> 0 | W26: =INDEX('RAB input'!$H$27:$XFD$76, MATCH($E26, 'RAB input'!$E$27:$E$76, 0), MATCH(W$4, RAB_years, 0)) -> 0 | X26: =INDEX('RAB input'!$H$27:$XFD$76, MATCH($E26, 'RAB input'!$E$27:$E$76, 0), MATCH(X$4, RAB_years, 0)) -> 0 | Y26: =INDEX('RAB input'!$H$27:$XFD$76, MATCH($E26, 'RAB input'!$E$27:$E$76, 0), MATCH(Y$4, RAB_years, 0)) -> 0 | Z26: =INDEX('RAB input'!$H$27:$XFD$76, MATCH($E26, 'RAB input'!$E$27:$E$76, 0), MATCH(Z$4, RAB_years, 0)) -> 0 | AA26: =INDEX('RAB input'!$H$27:$XFD$76, MATCH($E26, 'RAB input'!$E$27:$E$76, 0), MATCH(AA$4, RAB_years, 0)) -> 0 | AB26: =INDEX('RAB input'!$H$27:$XFD$76, MATCH($E26, 'RAB input'!$E$27:$E$76, 0), MATCH(AB$4, RAB_years, 0)) -> 0 | AC26: =INDEX('RAB input'!$H$27:$XFD$76, MATCH($E26, 'RAB input'!$E$27:$E$76, 0), MATCH(AC$4, RAB_years, 0)) -> 0 | AD26: =INDEX('RAB input'!$H$27:$XFD$76, MATCH($E26, 'RAB input'!$E$27:$E$76, 0), MATCH(AD$4, RAB_years, 0)) -> 0 | AE26: =INDEX('RAB input'!$H$27:$XFD$76, MATCH($E26, 'RAB input'!$E$27:$E$76, 0), MATCH(AE$4, RAB_years, 0)) -> 0 | AF26: =INDEX('RAB input'!$H$27:$XFD$76, MATCH($E26, 'RAB input'!$E$27:$E$76, 0), MATCH(AF$4, RAB_years, 0)) -> 0 | AG26: =INDEX('RAB input'!$H$27:$XFD$76, MATCH($E26, 'RAB input'!$E$27:$E$76, 0), MATCH(AG$4, RAB_years, 0)) -> 0 | AH26: =INDEX('RAB input'!$H$27:$XFD$76, MATCH($E26, 'RAB input'!$E$27:$E$76, 0), MATCH(AH$4, RAB_years, 0)) -> 0 | AI26: =INDEX('RAB input'!$H$27:$XFD$76, MATCH($E26, 'RAB input'!$E$27:$E$76, 0), MATCH(AI$4, RAB_years, 0)) -> 0 | AJ26: =INDEX('RAB input'!$H$27:$XFD$76, MATCH($E26, 'RAB input'!$E$27:$E$76, 0), MATCH(AJ$4, RAB_years, 0)) -> 0 | AK26: =INDEX('RAB input'!$H$27:$XFD$76, MATCH($E26, 'RAB input'!$E$27:$E$76, 0), MATCH(AK$4, RAB_years, 0)) -> 0 | AL26: =INDEX('RAB input'!$H$27:$XFD$76, MATCH($E26, 'RAB input'!$E$27:$E$76, 0), MATCH(AL$4, RAB_years, 0)) -> 0 | AM26: =INDEX('RAB input'!$H$27:$XFD$76, MATCH($E26, 'RAB input'!$E$27:$E$76, 0), MATCH(AM$4, RAB_years, 0)) -> 0 | AN26: =INDEX('RAB input'!$H$27:$XFD$76, MATCH($E26, 'RAB input'!$E$27:$E$76, 0), MATCH(AN$4, RAB_years, 0)) -> 0 | AO26: =INDEX('RAB input'!$H$27:$XFD$76, MATCH($E26, 'RAB input'!$E$27:$E$76, 0), MATCH(AO$4, RAB_years, 0)) -> 0 | AP26: =INDEX('RAB input'!$H$27:$XFD$76, MATCH($E26, 'RAB input'!$E$27:$E$76, 0), MATCH(AP$4, RAB_years, 0)) -> 0 | AQ26: =INDEX('RAB input'!$H$27:$XFD$76, MATCH($E26, 'RAB input'!$E$27:$E$76, 0), MATCH(AQ$4, RAB_years, 0)) -> 0 | AR26: =INDEX('RAB input'!$H$27:$XFD$76, MATCH($E26, 'RAB input'!$E$27:$E$76, 0), MATCH(AR$4, RAB_years, 0)) -> 0 | AS26: =INDEX('RAB input'!$H$27:$XFD$76, MATCH($E26, 'RAB input'!$E$27:$E$76, 0), MATCH(AS$4, RAB_years, 0)) -> 0 | AT26: =INDEX('RAB input'!$H$27:$XFD$76, MATCH($E26, 'RAB input'!$E$27:$E$76, 0), MATCH(AT$4, RAB_years, 0)) -> 0 | AU26: =INDEX('RAB input'!$H$27:$XFD$76, MATCH($E26, 'RAB input'!$E$27:$E$76, 0), MATCH(AU$4, RAB_years, 0)) -> 0 | AV26: =INDEX('RAB input'!$H$27:$XFD$76, MATCH($E26, 'RAB input'!$E$27:$E$76, 0), MATCH(AV$4, RAB_years, 0)) -> 0 | AW26: =INDEX('RAB input'!$H$27:$XFD$76, MATCH($E26, 'RAB input'!$E$27:$E$76, 0), MATCH(AW$4, RAB_years, 0)) -> 0 | AX26: =INDEX('RAB input'!$H$27:$XFD$76, MATCH($E26, 'RAB input'!$E$27:$E$76, 0), MATCH(AX$4, RAB_years, 0)) -> 0 | AY26: =INDEX('RAB input'!$H$27:$XFD$76, MATCH($E26, 'RAB input'!$E$27:$E$76, 0), MATCH(AY$4, RAB_years, 0)) -> 0 | AZ26: =INDEX('RAB input'!$H$27:$XFD$76, MATCH($E26, 'RAB input'!$E$27:$E$76, 0), MATCH(AZ$4, RAB_years, 0)) -> 0 | BA26: =INDEX('RAB input'!$H$27:$XFD$76, MATCH($E26, 'RAB input'!$E$27:$E$76, 0), MATCH(BA$4, RAB_years, 0)) -> 0 | BB26: =INDEX('RAB input'!$H$27:$XFD$76, MATCH($E26, 'RAB input'!$E$27:$E$76, 0), MATCH(BB$4, RAB_years, 0)) -> 0 | BC26: =INDEX('RAB input'!$H$27:$XFD$76, MATCH($E26, 'RAB input'!$E$27:$E$76, 0), MATCH(BC$4, RAB_years, 0)) -> 0 | BD26: =INDEX('RAB input'!$H$27:$XFD$76, MATCH($E26, 'RAB input'!$E$27:$E$76, 0), MATCH(BD$4, RAB_years, 0)) -> 0 | BE26: =INDEX('RAB input'!$H$27:$XFD$76, MATCH($E26, 'RAB input'!$E$27:$E$76, 0), MATCH(BE$4, RAB_years, 0)) -> 0 | BF26: =INDEX('RAB input'!$H$27:$XFD$76, MATCH($E26, 'RAB input'!$E$27:$E$76, 0), MATCH(BF$4, RAB_years, 0)) -> 0 | BG26: =INDEX('RAB input'!$H$27:$XFD$76, MATCH($E26, 'RAB input'!$E$27:$E$76, 0), MATCH(BG$4, RAB_years, 0)) -> 0 | BH26: =INDEX('RAB input'!$H$27:$XFD$76, MATCH($E26, 'RAB input'!$E$27:$E$76, 0), MATCH(BH$4, RAB_years, 0)) -> 0 | BI26: =INDEX('RAB input'!$H$27:$XFD$76, MATCH($E26, 'RAB input'!$E$27:$E$76, 0), MATCH(BI$4, RAB_years, 0)) -> 0 | BJ26: =INDEX('RAB input'!$H$27:$XFD$76, MATCH($E26, 'RAB input'!$E$27:$E$76, 0), MATCH(BJ$4, RAB_years, 0)) -> 0
D27: 10
D28: 11
D29: 12
D30: 13
D31: 14
D32: 15
D33: 16
D34: 17
D35: 18
D36: 19
D37: 20
D38: 21
D39: 22
D40: 23
D41: 24
D42: 25
D43: 26
D44: 27
D45: 28
D46: 29
D47: 30
D48: 31
D49: 32
D50: 33
D51: 34
D52: 35
D53: 36
D54: 37
D55: 38
D56: 39
D57: 40
D58: 41
D59: 42
D60: 43
D61: 44
D62: 45
D63: 46
D64: 47
D65: 48
D66: 49 | E66: ='RAB input'!E75 -> in-house software | G66: 0 | H66: =INDEX('RAB input'!$H$27:$XFD$76, MATCH($E66, 'RAB input'!$E$27:$E$76, 0), MATCH(H$4, RAB_years, 0)) -> 21.98819423 | I66: =INDEX('RAB input'!$H$27:$XFD$76, MATCH($E66, 'RAB input'!$E$27:$E$76, 0), MATCH(I$4, RAB_years, 0)) -> 31.07243544 | J66: =INDEX('RAB input'!$H$27:$XFD$76, MATCH($E66, 'RAB input'!$E$27:$E$76, 0), MATCH(J$4, RAB_years, 0)) -> 30.87237421 | K66: =INDEX('RAB input'!$H$27:$XFD$76, MATCH($E66, 'RAB input'!$E$27:$E$76, 0), MATCH(K$4, RAB_years, 0)) -> 28.4018214 | L66: =INDEX('RAB input'!$H$27:$XFD$76, MATCH($E66, 'RAB input'!$E$27:$E$76, 0), MATCH(L$4, RAB_years, 0)) -> 30.04003621 | M66: =INDEX('RAB input'!$H$27:$XFD$76, MATCH($E66, 'RAB input'!$E$27:$E$76, 0), MATCH(M$4, RAB_years, 0)) -> 0 | N66: =INDEX('RAB input'!$H$27:$XFD$76, MATCH($E66, 'RAB input'!$E$27:$E$76, 0), MATCH(N$4, RAB_years, 0)) -> 0 | O66: =INDEX('RAB input'!$H$27:$XFD$76, MATCH($E66, 'RAB input'!$E$27:$E$76, 0), MATCH(O$4, RAB_years, 0)) -> 0 | P66: =INDEX('RAB input'!$H$27:$XFD$76, MATCH($E66, 'RAB input'!$E$27:$E$76, 0), MATCH(P$4, RAB_years, 0)) -> 0 | Q66: =INDEX('RAB input'!$H$27:$XFD$76, MATCH($E66, 'RAB input'!$E$27:$E$76, 0), MATCH(Q$4, RAB_years, 0)) -> 0 | R66: =INDEX('RAB input'!$H$27:$XFD$76, MATCH($E66, 'RAB input'!$E$27:$E$76, 0), MATCH(R$4, RAB_years, 0)) -> 0 | S66: =INDEX('RAB input'!$H$27:$XFD$76, MATCH($E66, 'RAB input'!$E$27:$E$76, 0), MATCH(S$4, RAB_years, 0)) -> 0 | T66: =INDEX('RAB input'!$H$27:$XFD$76, MATCH($E66, 'RAB input'!$E$27:$E$76, 0), MATCH(T$4, RAB_years, 0)) -> 0 | U66: =INDEX('RAB input'!$H$27:$XFD$76, MATCH($E66, 'RAB input'!$E$27:$E$76, 0), MATCH(U$4, RAB_years, 0)) -> 0 | V66: =INDEX('RAB input'!$H$27:$XFD$76, MATCH($E66, 'RAB input'!$E$27:$E$76, 0), MATCH(V$4, RAB_years, 0)) -> 0 | W66: =INDEX('RAB input'!$H$27:$XFD$76, MATCH($E66, 'RAB input'!$E$27:$E$76, 0), MATCH(W$4, RAB_years, 0)) -> 0 | X66: =INDEX('RAB input'!$H$27:$XFD$76, MATCH($E66, 'RAB input'!$E$27:$E$76, 0), MATCH(X$4, RAB_years, 0)) -> 0 | Y66: =INDEX('RAB input'!$H$27:$XFD$76, MATCH($E66, 'RAB input'!$E$27:$E$76, 0), MATCH(Y$4, RAB_years, 0)) -> 0 | Z66: =INDEX('RAB input'!$H$27:$XFD$76, MATCH($E66, 'RAB input'!$E$27:$E$76, 0), MATCH(Z$4, RAB_years, 0)) -> 0 | AA66: =INDEX('RAB input'!$H$27:$XFD$76, MATCH($E66, 'RAB input'!$E$27:$E$76, 0), MATCH(AA$4, RAB_years, 0)) -> 0 | AB66: =INDEX('RAB input'!$H$27:$XFD$76, MATCH($E66, 'RAB input'!$E$27:$E$76, 0), MATCH(AB$4, RAB_years, 0)) -> 0 | AC66: =INDEX('RAB input'!$H$27:$XFD$76, MATCH($E66, 'RAB input'!$E$27:$E$76, 0), MATCH(AC$4, RAB_years, 0)) -> 0 | AD66: =INDEX('RAB input'!$H$27:$XFD$76, MATCH($E66, 'RAB input'!$E$27:$E$76, 0), MATCH(AD$4, RAB_years, 0)) -> 0 | AE66: =INDEX('RAB input'!$H$27:$XFD$76, MATCH($E66, 'RAB input'!$E$27:$E$76, 0), MATCH(AE$4, RAB_years, 0)) -> 0 | AF66: =INDEX('RAB input'!$H$27:$XFD$76, MATCH($E66, 'RAB input'!$E$27:$E$76, 0), MATCH(AF$4, RAB_years, 0)) -> 0 | AG66: =INDEX('RAB input'!$H$27:$XFD$76, MATCH($E66, 'RAB input'!$E$27:$E$76, 0), MATCH(AG$4, RAB_years, 0)) -> 0 | AH66: =INDEX('RAB input'!$H$27:$XFD$76, MATCH($E66, 'RAB input'!$E$27:$E$76, 0), MATCH(AH$4, RAB_years, 0)) -> 0 | AI66: =INDEX('RAB input'!$H$27:$XFD$76, MATCH($E66, 'RAB input'!$E$27:$E$76, 0), MATCH(AI$4, RAB_years, 0)) -> 0 | AJ66: =INDEX('RAB input'!$H$27:$XFD$76, MATCH($E66, 'RAB input'!$E$27:$E$76, 0), MATCH(AJ$4, RAB_years, 0)) -> 0 | AK66: =INDEX('RAB input'!$H$27:$XFD$76, MATCH($E66, 'RAB input'!$E$27:$E$76, 0), MATCH(AK$4, RAB_years, 0)) -> 0 | AL66: =INDEX('RAB input'!$H$27:$XFD$76, MATCH($E66, 'RAB input'!$E$27:$E$76, 0), MATCH(AL$4, RAB_years, 0)) -> 0 | AM66: =INDEX('RAB input'!$H$27:$XFD$76, MATCH($E66, 'RAB input'!$E$27:$E$76, 0), MATCH(AM$4, RAB_years, 0)) -> 0 | AN66: =INDEX('RAB input'!$H$27:$XFD$76, MATCH($E66, 'RAB input'!$E$27:$E$76, 0), MATCH(AN$4, RAB_years, 0)) -> 0 | AO66: =INDEX('RAB input'!$H$27:$XFD$76, MATCH($E66, 'RAB input'!$E$27:$E$76, 0), MATCH(AO$4, RAB_years, 0)) -> 0 | AP66: =INDEX('RAB input'!$H$27:$XFD$76, MATCH($E66, 'RAB input'!$E$27:$E$76, 0), MATCH(AP$4, RAB_years, 0)) -> 0 | AQ66: =INDEX('RAB input'!$H$27:$XFD$76, MATCH($E66, 'RAB input'!$E$27:$E$76, 0), MATCH(AQ$4, RAB_years, 0)) -> 0 | AR66: =INDEX('RAB input'!$H$27:$XFD$76, MATCH($E66, 'RAB input'!$E$27:$E$76, 0), MATCH(AR$4, RAB_years, 0)) -> 0 | AS66: =INDEX('RAB input'!$H$27:$XFD$76, MATCH($E66, 'RAB input'!$E$27:$E$76, 0), MATCH(AS$4, RAB_years, 0)) -> 0 | AT66: =INDEX('RAB input'!$H$27:$XFD$76, MATCH($E66, 'RAB input'!$E$27:$E$76, 0), MATCH(AT$4, RAB_years, 0)) -> 0 | AU66: =INDEX('RAB input'!$H$27:$XFD$76, MATCH($E66, 'RAB input'!$E$27:$E$76, 0), MATCH(AU$4, RAB_years, 0)) -> 0 | AV66: =INDEX('RAB input'!$H$27:$XFD$76, MATCH($E66, 'RAB input'!$E$27:$E$76, 0), MATCH(AV$4, RAB_years, 0)) -> 0 | AW66: =INDEX('RAB input'!$H$27:$XFD$76, MATCH($E66, 'RAB input'!$E$27:$E$76, 0), MATCH(AW$4, RAB_years, 0)) -> 0 | AX66: =INDEX('RAB input'!$H$27:$XFD$76, MATCH($E66, 'RAB input'!$E$27:$E$76, 0), MATCH(AX$4, RAB_years, 0)) -> 0 | AY66: =INDEX('RAB input'!$H$27:$XFD$76, MATCH($E66, 'RAB input'!$E$27:$E$76, 0), MATCH(AY$4, RAB_years, 0)) -> 0 | AZ66: =INDEX('RAB input'!$H$27:$XFD$76, MATCH($E66, 'RAB input'!$E$27:$E$76, 0), MATCH(AZ$4, RAB_years, 0)) -> 0 | BA66: =INDEX('RAB input'!$H$27:$XFD$76, MATCH($E66, 'RAB input'!$E$27:$E$76, 0), MATCH(BA$4, RAB_years, 0)) -> 0 | BB66: =INDEX('RAB input'!$H$27:$XFD$76, MATCH($E66, 'RAB input'!$E$27:$E$76, 0), MATCH(BB$4, RAB_years, 0)) -> 0 | BC66: =INDEX('RAB input'!$H$27:$XFD$76, MATCH($E66, 'RAB input'!$E$27:$E$76, 0), MATCH(BC$4, RAB_years, 0)) -> 0 | BD66: =INDEX('RAB input'!$H$27:$XFD$76, MATCH($E66, 'RAB input'!$E$27:$E$76, 0), MATCH(BD$4, RAB_years, 0)) -> 0 | BE66: =INDEX('RAB input'!$H$27:$XFD$76, MATCH($E66, 'RAB input'!$E$27:$E$76, 0), MATCH(BE$4, RAB_years, 0)) -> 0 | BF66: =INDEX('RAB input'!$H$27:$XFD$76, MATCH($E66, 'RAB input'!$E$27:$E$76, 0), MATCH(BF$4, RAB_years, 0)) -> 0 | BG66: =INDEX('RAB input'!$H$27:$XFD$76, MATCH($E66, 'RAB input'!$E$27:$E$76, 0), MATCH(BG$4, RAB_years, 0)) -> 0 | BH66: =INDEX('RAB input'!$H$27:$XFD$76, MATCH($E66, 'RAB input'!$E$27:$E$76, 0), MATCH(BH$4, RAB_years, 0)) -> 0 | BI66: =INDEX('RAB input'!$H$27:$XFD$76, MATCH($E66, 'RAB input'!$E$27:$E$76, 0), MATCH(BI$4, RAB_years, 0)) -> 0 | BJ66: =INDEX('RAB input'!$H$27:$XFD$76, MATCH($E66, 'RAB input'!$E$27:$E$76, 0), MATCH(BJ$4, RAB_years, 0)) -> 0
D67: 50 | E67: ='RAB input'!E76 -> Equity raising costs | G67: 3.139088546 | H67: =INDEX('RAB input'!$H$27:$XFD$76, MATCH($E67, 'RAB input'!$E$27:$E$76, 0), MATCH(H$4, RAB_years, 0)) -> 0 | I67: =INDEX('RAB input'!$H$27:$XFD$76, MATCH($E67, 'RAB input'!$E$27:$E$76, 0), MATCH(I$4, RAB_years, 0)) -> 0 | J67: =INDEX('RAB input'!$H$27:$XFD$76, MATCH($E67, 'RAB input'!$E$27:$E$76, 0), MATCH(J$4, RAB_years, 0)) -> 0 | K67: =INDEX('RAB input'!$H$27:$XFD$76, MATCH($E67, 'RAB input'!$E$27:$E$76, 0), MATCH(K$4, RAB_years, 0)) -> 0 | L67: =INDEX('RAB input'!$H$27:$XFD$76, MATCH($E67, 'RAB input'!$E$27:$E$76, 0), MATCH(L$4, RAB_years, 0)) -> 0 | M67: =INDEX('RAB input'!$H$27:$XFD$76, MATCH($E67, 'RAB input'!$E$27:$E$76, 0), MATCH(M$4, RAB_years, 0)) -> 0 | N67: =INDEX('RAB input'!$H$27:$XFD$76, MATCH($E67, 'RAB input'!$E$27:$E$76, 0), MATCH(N$4, RAB_years, 0)) -> 0 | O67: =INDEX('RAB input'!$H$27:$XFD$76, MATCH($E67, 'RAB input'!$E$27:$E$76, 0), MATCH(O$4, RAB_years, 0)) -> 0 | P67: =INDEX('RAB input'!$H$27:$XFD$76, MATCH($E67, 'RAB input'!$E$27:$E$76, 0), MATCH(P$4, RAB_years, 0)) -> 0 | Q67: =INDEX('RAB input'!$H$27:$XFD$76, MATCH($E67, 'RAB input'!$E$27:$E$76, 0), MATCH(Q$4, RAB_years, 0)) -> 0 | R67: =INDEX('RAB input'!$H$27:$XFD$76, MATCH($E67, 'RAB input'!$E$27:$E$76, 0), MATCH(R$4, RAB_years, 0)) -> 0 | S67: =INDEX('RAB input'!$H$27:$XFD$76, MATCH($E67, 'RAB input'!$E$27:$E$76, 0), MATCH(S$4, RAB_years, 0)) -> 0 | T67: =INDEX('RAB input'!$H$27:$XFD$76, MATCH($E67, 'RAB input'!$E$27:$E$76, 0), MATCH(T$4, RAB_years, 0)) -> 0 | U67: =INDEX('RAB input'!$H$27:$XFD$76, MATCH($E67, 'RAB input'!$E$27:$E$76, 0), MATCH(U$4, RAB_years, 0)) -> 0 | V67: =INDEX('RAB input'!$H$27:$XFD$76, MATCH($E67, 'RAB input'!$E$27:$E$76, 0), MATCH(V$4, RAB_years, 0)) -> 0 | W67: =INDEX('RAB input'!$H$27:$XFD$76, MATCH($E67, 'RAB input'!$E$27:$E$76, 0), MATCH(W$4, RAB_years, 0)) -> 0 | X67: =INDEX('RAB input'!$H$27:$XFD$76, MATCH($E67, 'RAB input'!$E$27:$E$76, 0), MATCH(X$4, RAB_years, 0)) -> 0 | Y67: =INDEX('RAB input'!$H$27:$XFD$76, MATCH($E67, 'RAB input'!$E$27:$E$76, 0), MATCH(Y$4, RAB_years, 0)) -> 0 | Z67: =INDEX('RAB input'!$H$27:$XFD$76, MATCH($E67, 'RAB input'!$E$27:$E$76, 0), MATCH(Z$4, RAB_years, 0)) -> 0 | AA67: =INDEX('RAB input'!$H$27:$XFD$76, MATCH($E67, 'RAB input'!$E$27:$E$76, 0), MATCH(AA$4, RAB_years, 0)) -> 0 | AB67: =INDEX('RAB input'!$H$27:$XFD$76, MATCH($E67, 'RAB input'!$E$27:$E$76, 0), MATCH(AB$4, RAB_years, 0)) -> 0 | AC67: =INDEX('RAB input'!$H$27:$XFD$76, MATCH($E67, 'RAB input'!$E$27:$E$76, 0), MATCH(AC$4, RAB_years, 0)) -> 0 | AD67: =INDEX('RAB input'!$H$27:$XFD$76, MATCH($E67, 'RAB input'!$E$27:$E$76, 0), MATCH(AD$4, RAB_years, 0)) -> 0 | AE67: =INDEX('RAB input'!$H$27:$XFD$76, MATCH($E67, 'RAB input'!$E$27:$E$76, 0), MATCH(AE$4, RAB_years, 0)) -> 0 | AF67: =INDEX('RAB input'!$H$27:$XFD$76, MATCH($E67, 'RAB input'!$E$27:$E$76, 0), MATCH(AF$4, RAB_years, 0)) -> 0 | AG67: =INDEX('RAB input'!$H$27:$XFD$76, MATCH($E67, 'RAB input'!$E$27:$E$76, 0), MATCH(AG$4, RAB_years, 0)) -> 0 | AH67: =INDEX('RAB input'!$H$27:$XFD$76, MATCH($E67, 'RAB input'!$E$27:$E$76, 0), MATCH(AH$4, RAB_years, 0)) -> 0 | AI67: =INDEX('RAB input'!$H$27:$XFD$76, MATCH($E67, 'RAB input'!$E$27:$E$76, 0), MATCH(AI$4, RAB_years, 0)) -> 0 | AJ67: =INDEX('RAB input'!$H$27:$XFD$76, MATCH($E67, 'RAB input'!$E$27:$E$76, 0), MATCH(AJ$4, RAB_years, 0)) -> 0 | AK67: =INDEX('RAB input'!$H$27:$XFD$76, MATCH($E67, 'RAB input'!$E$27:$E$76, 0), MATCH(AK$4, RAB_years, 0)) -> 0 | AL67: =INDEX('RAB input'!$H$27:$XFD$76, MATCH($E67, 'RAB input'!$E$27:$E$76, 0), MATCH(AL$4, RAB_years, 0)) -> 0 | AM67: =INDEX('RAB input'!$H$27:$XFD$76, MATCH($E67, 'RAB input'!$E$27:$E$76, 0), MATCH(AM$4, RAB_years, 0)) -> 0 | AN67: =INDEX('RAB input'!$H$27:$XFD$76, MATCH($E67, 'RAB input'!$E$27:$E$76, 0), MATCH(AN$4, RAB_years, 0)) -> 0 | AO67: =INDEX('RAB input'!$H$27:$XFD$76, MATCH($E67, 'RAB input'!$E$27:$E$76, 0), MATCH(AO$4, RAB_years, 0)) -> 0 | AP67: =INDEX('RAB input'!$H$27:$XFD$76, MATCH($E67, 'RAB input'!$E$27:$E$76, 0), MATCH(AP$4, RAB_years, 0)) -> 0 | AQ67: =INDEX('RAB input'!$H$27:$XFD$76, MATCH($E67, 'RAB input'!$E$27:$E$76, 0), MATCH(AQ$4, RAB_years, 0)) -> 0 | AR67: =INDEX('RAB input'!$H$27:$XFD$76, MATCH($E67, 'RAB input'!$E$27:$E$76, 0), MATCH(AR$4, RAB_years, 0)) -> 0 | AS67: =INDEX('RAB input'!$H$27:$XFD$76, MATCH($E67, 'RAB input'!$E$27:$E$76, 0), MATCH(AS$4, RAB_years, 0)) -> 0 | AT67: =INDEX('RAB input'!$H$27:$XFD$76, MATCH($E67, 'RAB input'!$E$27:$E$76, 0), MATCH(AT$4, RAB_years, 0)) -> 0 | AU67: =INDEX('RAB input'!$H$27:$XFD$76, MATCH($E67, 'RAB input'!$E$27:$E$76, 0), MATCH(AU$4, RAB_years, 0)) -> 0 | AV67: =INDEX('RAB input'!$H$27:$XFD$76, MATCH($E67, 'RAB input'!$E$27:$E$76, 0), MATCH(AV$4, RAB_years, 0)) -> 0 | AW67: =INDEX('RAB input'!$H$27:$XFD$76, MATCH($E67, 'RAB input'!$E$27:$E$76, 0), MATCH(AW$4, RAB_years, 0)) -> 0 | AX67: =INDEX('RAB input'!$H$27:$XFD$76, MATCH($E67, 'RAB input'!$E$27:$E$76, 0), MATCH(AX$4, RAB_years, 0)) -> 0 | AY67: =INDEX('RAB input'!$H$27:$XFD$76, MATCH($E67, 'RAB input'!$E$27:$E$76, 0), MATCH(AY$4, RAB_years, 0)) -> 0 | AZ67: =INDEX('RAB input'!$H$27:$XFD$76, MATCH($E67, 'RAB input'!$E$27:$E$76, 0), MATCH(AZ$4, RAB_years, 0)) -> 0 | BA67: =INDEX('RAB input'!$H$27:$XFD$76, MATCH($E67, 'RAB input'!$E$27:$E$76, 0), MATCH(BA$4, RAB_years, 0)) -> 0 | BB67: =INDEX('RAB input'!$H$27:$XFD$76, MATCH($E67, 'RAB input'!$E$27:$E$76, 0), MATCH(BB$4, RAB_years, 0)) -> 0 | BC67: =INDEX('RAB input'!$H$27:$XFD$76, MATCH($E67, 'RAB input'!$E$27:$E$76, 0), MATCH(BC$4, RAB_years, 0)) -> 0 | BD67: =INDEX('RAB input'!$H$27:$XFD$76, MATCH($E67, 'RAB input'!$E$27:$E$76, 0), MATCH(BD$4, RAB_years, 0)) -> 0 | BE67: =INDEX('RAB input'!$H$27:$XFD$76, MATCH($E67, 'RAB input'!$E$27:$E$76, 0), MATCH(BE$4, RAB_years, 0)) -> 0 | BF67: =INDEX('RAB input'!$H$27:$XFD$76, MATCH($E67, 'RAB input'!$E$27:$E$76, 0), MATCH(BF$4, RAB_years, 0)) -> 0 | BG67: =INDEX('RAB input'!$H$27:$XFD$76, MATCH($E67, 'RAB input'!$E$27:$E$76, 0), MATCH(BG$4, RAB_years, 0)) -> 0 | BH67: =INDEX('RAB input'!$H$27:$XFD$76, MATCH($E67, 'RAB input'!$E$27:$E$76, 0), MATCH(BH$4, RAB_years, 0)) -> 0 | BI67: =INDEX('RAB input'!$H$27:$XFD$76, MATCH($E67, 'RAB input'!$E$27:$E$76, 0), MATCH(BI$4, RAB_years, 0)) -> 0 | BJ67: =INDEX('RAB input'!$H$27:$XFD$76, MATCH($E67, 'RAB input'!$E$27:$E$76, 0), MATCH(BJ$4, RAB_years, 0)) -> 0
E68: Total | G68: =SUM(G18:G67) -> 4054.429118 | H68: =SUM(H18:H67) -> 490.1893179 | I68: 562.0966217 | J68: 571.9458489 | K68: 637.2814481 | L68: 640.6300636 | M68: 0 | N68: 0 | O68: 0 | P68: 0 | Q68: 0 | R68: 0 | S68: 0 | T68: 0 | U68: 0 | V68: 0 | W68: 0 | X68: 0 | Y68: 0 | Z68: 0 | AA68: 0 | AB68: 0 | AC68: 0 | AD68: 0 | AE68: 0 | AF68: 0 | AG68: 0 | AH68: 0 | AI68: 0 | AJ68: 0 | AK68: 0 | AL68: 0 | AM68: 0 | AN68: 0 | AO68: 0 | AP68: 0 | AQ68: 0 | AR68: 0 | AS68: 0 | AT68: 0 | AU68: 0 | AV68: 0 | AW68: 0 | AX68: 0 | AY68: 0 | AZ68: 0 | BA68: 0 | BB68: 0 | BC68: 0 | BD68: 0 | BE68: 0 | BF68: 0 | BG68: 0 | BH68: 0 | BI68: 0 | BJ68: 0 | BK68: 0 | BL68: 0 | BM68: 0 | BN68: 0 | BO68: 0 | BP68: 0 | BQ68: 0 | BR68: 0 | BS68: 0 | BT68: =SUM(BT18:BT67) -> 0 | BU68: 0 | BV68: 0 | BW68: 0 | BX68: 0 | BY68: 0 | BZ68: 0
D70: Actual immediately expensed capex - As incurred ($m, nominal)
E71: =$E$16 -> Asset class | H71: =IF(H$16="", "", "Actual immediately expensed capex (" & H$4 & ")") -> Actual immediately expensed capex (2021-22) | I71: =IF(I$16="", "", "Actual immediately expensed capex (" & I$4 & ")") -> Actual immediately expensed capex (2022-23) | J71: Actual immediately expensed capex (2023-24) | K71: Actual immediately expensed capex (2024-25) | L71: Actual immediately expensed capex (2025-26) | BU71: =IF(BU$16="", "", "Actual immediately expensed capex (" & BU$4 & ")") -> 
E72: =E18 -> Subtransmission | H72: 62.77188725 | I72: 0.777108 | J72: 0.29263744 | K72: 45.222493 | L72: 42.17770944
E73: Distribution system assets | H73: 140.1485068 | I73: 233.107548 | J73: 289.8519074 | K73: 246.093122 | L73: 302.2654303
E74: Public lighting | H74: 0 | I74: 0 | J74: 0 | K74: 0 | L74: 0
E75: SCADA/Network control | H75: 0.63939114 | I75: 1.083707 | J75: 1.09655679 | K75: 0.060021 | L75: 2.308997596
E76: Non-network general assets - IT | H76: 0 | I76: 0 | J76: 0 | K76: 0 | L76: 0
E77: Non-network general assets - Other | H77: 0 | I77: 0 | J77: 0 | K77: 0 | L77: 0
E78: VBRC | H78: 0 | I78: 0 | J78: 0 | K78: 0 | L78: 0
E79: Land | H79: 0 | I79: 0 | J79: 0 | K79: 0 | L79: 0
E80: Accelerated depreciation assets | H80: 0 | I80: 0 | J80: 0 | K80: 0 | L80: 0
E81: 0
E82: 0
E83: 0
E84: 0
E85: 0
E86: 0
E87: 0
E88: 0
E89: 0
E90: 0
E91: 0
E92: 0
E93: 0
E94: 0
E95: 0
E96: 0
E97: 0
E98: 0
E99: 0
E100: 0
E101: 0
E102: 0
E103: 0
E104: =E50 -> 0
E105: 0
E106: 0
E107: 0
E108: 0
E109: 0
E110: 0
E111: 0
E112: 0
E113: 0
E114: 0
E115: 0
E116: 0
E117: 0
E118: 0
E119: 0
E120: in-house software | H120: 0 | I120: 0 | J120: 0 | K120: 0 | L120: 0
E121: Equity raising costs | H121: 0 | I121: 0 | J121: 0 | K121: 0 | L121: 0
E122: Total | H122: =SUM(H72:H121) -> 203.5597852 | I122: 234.968363 | J122: 291.2411016 | K122: 291.375636 | L122: 346.7521373 | M122: 0 | N122: 0 | O122: 0 | P122: 0 | Q122: 0 | R122: 0 | S122: 0 | T122: 0 | U122: 0 | V122: 0 | W122: 0 | X122: 0 | Y122: 0 | Z122: 0 | AA122: 0 | AB122: 0 | AC122: 0 | AD122: 0 | AE122: 0 | AF122: 0 | AG122: 0 | AH122: 0 | AI122: 0 | AJ122: 0 | AK122: 0 | AL122: 0 | AM122: 0 | AN122: 0 | AO122: 0 | AP122: 0 | AQ122: 0 | AR122: 0 | AS122: 0 | AT122: 0 | AU122: 0 | AV122: 0 | AW122: 0 | AX122: 0 | AY122: 0 | AZ122: 0 | BA122: 0 | BB122: 0 | BC122: 0 | BD122: 0 | BE122: 0 | BF122: 0 | BG122: 0 | BH122: 0 | BI122: 0 | BJ122: 0 | BK122: 0 | BL122: 0 | BM122: 0 | BN122: 0 | BO122: 0 | BP122: 0 | BQ122: 0 | BR122: 0 | BS122: =SUM(BS72:BS121) -> 0 | BT122: 0 | BU122: 0 | BV122: 0 | BW122: 0 | BX122: 0 | BY122: 0 | BZ122: 0
D124: Actual asset disposals - As incurred ($m, nominal)
E125: =$E$16 -> Asset class | H125: =IF(H$16="", "", "Actual asset disposals (" & H$4 & ")") -> Actual asset disposals (2021-22) | I125: =IF(I$16="", "", "Actual asset disposals (" & I$4 & ")") -> Actual asset disposals (2022-23) | J125: Actual asset disposals (2023-24) | K125: Actual asset disposals (2024-25) | L125: Actual asset disposals (2025-26) | BU125: =IF(BU$16="", "", "Actual asset disposals (" & BU$4 & ")") -> 
... 153 more rows

Sheet RAB tracking
F2: =IF('RAB input'!$F$8='TAB input'!$F$8, 'RAB input'!$F$8, 'TAB input'!$F$8) & " - RAB tracking - Elec DNSP "&Intro!$I$3&" - version "&Intro!$M$4 -> Powercor - RAB tracking - Elec DNSP RFM - Depreciation tracking module - version 1
F4: ="Year ($m, real "&'RAB input'!$G$4&")" -> Year ($m, real 2010) | G4: ='RAB input'!G$4 -> 2010 | H4: ='RAB input'!H$4 -> 2011 | I4: ='RAB input'!I$4 -> 2012 | J4: ='RAB input'!J$4 -> 2013 | K4: ='RAB input'!K$4 -> 2014 | L4: ='RAB input'!L$4 -> 2015 | M4: ='RAB input'!M$4 -> 2016 | N4: ='RAB input'!N$4 -> 2017 | O4: ='RAB input'!O$4 -> 2018 | P4: ='RAB input'!P$4 -> 2019 | Q4: ='RAB input'!Q$4 -> 2020 | R4: ='RAB input'!R$4 -> 2021 | S4: ='RAB input'!S$4 -> 2021-22 | T4: ='RAB input'!T$4 -> 2022-23 | U4: ='RAB input'!U$4 -> 2023-24 | V4: ='RAB input'!V$4 -> 2024-25 | W4: ='RAB input'!W$4 -> 2025-26 | X4: ='RAB input'!X$4 -> 2026-27 | Y4: ='RAB input'!Y$4 -> 2027-28 | Z4: ='RAB input'!Z$4 -> 2028-29 | AA4: ='RAB input'!AA$4 -> 2029-30 | AB4: ='RAB input'!AB$4 -> 2030-31 | AC4: ='RAB input'!AC$4 -> 2031-32 | AD4: ='RAB input'!AD$4 -> 2032-33 | AE4: ='RAB input'!AE$4 -> 2033-34 | AF4: ='RAB input'!AF$4 -> 2034-35 | AG4: ='RAB input'!AG$4 -> 2035-36 | AH4: ='RAB input'!AH$4 -> 2036-37 | AI4: ='RAB input'!AI$4 -> 2037-38 | AJ4: ='RAB input'!AJ$4 -> 2038-39 | AK4: ='RAB input'!AK$4 -> 2039-40 | AL4: ='RAB input'!AL$4 -> 2040-41 | AM4: ='RAB input'!AM$4 -> 2041-42 | AN4: ='RAB input'!AN$4 -> 2042-43 | AO4: ='RAB input'!AO$4 -> 2043-44 | AP4: ='RAB input'!AP$4 -> 2044-45 | AQ4: ='RAB input'!AQ$4 -> 2045-46 | AR4: ='RAB input'!AR$4 -> 2046-47 | AS4: ='RAB input'!AS$4 -> 2047-48 | AT4: ='RAB input'!AT$4 -> 2048-49 | AU4: ='RAB input'!AU$4 -> 2049-50 | AV4: ='RAB input'!AV$4 -> 2050-51 | AW4: ='RAB input'!AW$4 -> 2051-52 | AX4: ='RAB input'!AX$4 -> 2052-53 | AY4: ='RAB input'!AY$4 -> 2053-54 | AZ4: ='RAB input'!AZ$4 -> 2054-55 | BA4: ='RAB input'!BA$4 -> 2055-56 | BB4: ='RAB input'!BB$4 -> 2056-57 | BC4: ='RAB input'!BC$4 -> 2057-58 | BD4: ='RAB input'!BD$4 -> 2058-59 | BE4: ='RAB input'!BE$4 -> 2059-60 | BF4: ='RAB input'!BF$4 -> 2060-61 | BG4: ='RAB input'!BG$4 -> 2061-62 | BH4: ='RAB input'!BH$4 -> 2062-63 | BI4: ='RAB input'!BI$4 -> 2063-64 | BJ4: ='RAB input'!BJ$4 -> 2064-65 | BK4: ='RAB input'!BK$4 -> 2065-66 | BL4: ='RAB input'!BL$4 -> 2066-67 | BM4: ='RAB input'!BM$4 -> 2067-68 | BN4: ='RAB input'!BN$4 -> 2068-69 | BO4: ='RAB input'!BO$4 -> 2069-70 | BP4: ='RAB input'!BP$4 -> 2070-71 | BQ4: ='RAB input'!BQ$4 -> 2071-72 | BR4: ='RAB input'!BR$4 -> 2072-73 | BS4: ='RAB input'!BS$4 -> 2073-74 | BT4: ='RAB input'!BT$4 -> 2074-75 | BU4: ='RAB input'!BU$4 -> 2075-76 | BV4: ='RAB input'!BV$4 -> 2076-77 | BW4: ='RAB input'!BW$4 -> 2077-78 | BX4: ='RAB input'!BX$4 -> 2078-79 | BY4: ='RAB input'!BY$4 -> 2079-80 | BZ4: ='RAB input'!BZ$4 -> 2080-81
G5: 0 | H5: =G5+IF(AND(COUNTA($H$4:H$4)=ROUNDUP('RAB input'!H$5, 0), 'RAB input'!H$5<>INT('RAB input'!H$5)), 'RAB input'!H$5-INT('RAB input'!H$5), 1) -> 1 | I5: =H5+IF(AND(COUNTA($H$4:I$4)=ROUNDUP('RAB input'!I$5, 0), 'RAB input'!I$5<>INT('RAB input'!I$5)), 'RAB input'!I$5-INT('RAB input'!I$5), 1) -> 2 | J5: =I5+IF(AND(COUNTA($H$4:J$4)=ROUNDUP('RAB input'!J$5, 0), 'RAB input'!J$5<>INT('RAB input'!J$5)), 'RAB input'!J$5-INT('RAB input'!J$5), 1) -> 3 | K5: =J5+IF(AND(COUNTA($H$4:K$4)=ROUNDUP('RAB input'!K$5, 0), 'RAB input'!K$5<>INT('RAB input'!K$5)), 'RAB input'!K$5-INT('RAB input'!K$5), 1) -> 4 | L5: =K5+IF(AND(COUNTA($H$4:L$4)=ROUNDUP('RAB input'!L$5, 0), 'RAB input'!L$5<>INT('RAB input'!L$5)), 'RAB input'!L$5-INT('RAB input'!L$5), 1) -> 5 | M5: =L5+IF(AND(COUNTA($H$4:M$4)=ROUNDUP('RAB input'!M$5, 0), 'RAB input'!M$5<>INT('RAB input'!M$5)), 'RAB input'!M$5-INT('RAB input'!M$5), 1) -> 6 | N5: =M5+IF(AND(COUNTA($H$4:N$4)=ROUNDUP('RAB input'!N$5, 0), 'RAB input'!N$5<>INT('RAB input'!N$5)), 'RAB input'!N$5-INT('RAB input'!N$5), 1) -> 7 | O5: =N5+IF(AND(COUNTA($H$4:O$4)=ROUNDUP('RAB input'!O$5, 0), 'RAB input'!O$5<>INT('RAB input'!O$5)), 'RAB input'!O$5-INT('RAB input'!O$5), 1) -> 8 | P5: =O5+IF(AND(COUNTA($H$4:P$4)=ROUNDUP('RAB input'!P$5, 0), 'RAB input'!P$5<>INT('RAB input'!P$5)), 'RAB input'!P$5-INT('RAB input'!P$5), 1) -> 9 | Q5: =P5+IF(AND(COUNTA($H$4:Q$4)=ROUNDUP('RAB input'!Q$5, 0), 'RAB input'!Q$5<>INT('RAB input'!Q$5)), 'RAB input'!Q$5-INT('RAB input'!Q$5), 1) -> 10 | R5: =Q5+IF(AND(COUNTA($H$4:R$4)=ROUNDUP('RAB input'!R$5, 0), 'RAB input'!R$5<>INT('RAB input'!R$5)), 'RAB input'!R$5-INT('RAB input'!R$5), 1) -> 10.5 | S5: =R5+IF(AND(COUNTA($H$4:S$4)=ROUNDUP('RAB input'!S$5, 0), 'RAB input'!S$5<>INT('RAB input'!S$5)), 'RAB input'!S$5-INT('RAB input'!S$5), 1) -> 11.5 | T5: =S5+IF(AND(COUNTA($H$4:T$4)=ROUNDUP('RAB input'!T$5, 0), 'RAB input'!T$5<>INT('RAB input'!T$5)), 'RAB input'!T$5-INT('RAB input'!T$5), 1) -> 12.5 | U5: =T5+IF(AND(COUNTA($H$4:U$4)=ROUNDUP('RAB input'!U$5, 0), 'RAB input'!U$5<>INT('RAB input'!U$5)), 'RAB input'!U$5-INT('RAB input'!U$5), 1) -> 13.5 | V5: =U5+IF(AND(COUNTA($H$4:V$4)=ROUNDUP('RAB input'!V$5, 0), 'RAB input'!V$5<>INT('RAB input'!V$5)), 'RAB input'!V$5-INT('RAB input'!V$5), 1) -> 14.5 | W5: =V5+IF(AND(COUNTA($H$4:W$4)=ROUNDUP('RAB input'!W$5, 0), 'RAB input'!W$5<>INT('RAB input'!W$5)), 'RAB input'!W$5-INT('RAB input'!W$5), 1) -> 15.5 | X5: =W5+IF(AND(COUNTA($H$4:X$4)=ROUNDUP('RAB input'!X$5, 0), 'RAB input'!X$5<>INT('RAB input'!X$5)), 'RAB input'!X$5-INT('RAB input'!X$5), 1) -> 16.5 | Y5: =X5+IF(AND(COUNTA($H$4:Y$4)=ROUNDUP('RAB input'!Y$5, 0), 'RAB input'!Y$5<>INT('RAB input'!Y$5)), 'RAB input'!Y$5-INT('RAB input'!Y$5), 1) -> 17.5 | Z5: =Y5+IF(AND(COUNTA($H$4:Z$4)=ROUNDUP('RAB input'!Z$5, 0), 'RAB input'!Z$5<>INT('RAB input'!Z$5)), 'RAB input'!Z$5-INT('RAB input'!Z$5), 1) -> 18.5 | AA5: =Z5+IF(AND(COUNTA($H$4:AA$4)=ROUNDUP('RAB input'!AA$5, 0), 'RAB input'!AA$5<>INT('RAB input'!AA$5)), 'RAB input'!AA$5-INT('RAB input'!AA$5), 1) -> 19.5 | AB5: =AA5+IF(AND(COUNTA($H$4:AB$4)=ROUNDUP('RAB input'!AB$5, 0), 'RAB input'!AB$5<>INT('RAB input'!AB$5)), 'RAB input'!AB$5-INT('RAB input'!AB$5), 1) -> 20.5 | AC5: =AB5+IF(AND(COUNTA($H$4:AC$4)=ROUNDUP('RAB input'!AC$5, 0), 'RAB input'!AC$5<>INT('RAB input'!AC$5)), 'RAB input'!AC$5-INT('RAB input'!AC$5), 1) -> 21.5 | AD5: =AC5+IF(AND(COUNTA($H$4:AD$4)=ROUNDUP('RAB input'!AD$5, 0), 'RAB input'!AD$5<>INT('RAB input'!AD$5)), 'RAB input'!AD$5-INT('RAB input'!AD$5), 1) -> 22.5 | AE5: =AD5+IF(AND(COUNTA($H$4:AE$4)=ROUNDUP('RAB input'!AE$5, 0), 'RAB input'!AE$5<>INT('RAB input'!AE$5)), 'RAB input'!AE$5-INT('RAB input'!AE$5), 1) -> 23.5 | AF5: =AE5+IF(AND(COUNTA($H$4:AF$4)=ROUNDUP('RAB input'!AF$5, 0), 'RAB input'!AF$5<>INT('RAB input'!AF$5)), 'RAB input'!AF$5-INT('RAB input'!AF$5), 1) -> 24.5 | AG5: =AF5+IF(AND(COUNTA($H$4:AG$4)=ROUNDUP('RAB input'!AG$5, 0), 'RAB input'!AG$5<>INT('RAB input'!AG$5)), 'RAB input'!AG$5-INT('RAB input'!AG$5), 1) -> 25.5 | AH5: =AG5+IF(AND(COUNTA($H$4:AH$4)=ROUNDUP('RAB input'!AH$5, 0), 'RAB input'!AH$5<>INT('RAB input'!AH$5)), 'RAB input'!AH$5-INT('RAB input'!AH$5), 1) -> 26.5 | AI5: =AH5+IF(AND(COUNTA($H$4:AI$4)=ROUNDUP('RAB input'!AI$5, 0), 'RAB input'!AI$5<>INT('RAB input'!AI$5)), 'RAB input'!AI$5-INT('RAB input'!AI$5), 1) -> 27.5 | AJ5: =AI5+IF(AND(COUNTA($H$4:AJ$4)=ROUNDUP('RAB input'!AJ$5, 0), 'RAB input'!AJ$5<>INT('RAB input'!AJ$5)), 'RAB input'!AJ$5-INT('RAB input'!AJ$5), 1) -> 28.5 | AK5: =AJ5+IF(AND(COUNTA($H$4:AK$4)=ROUNDUP('RAB input'!AK$5, 0), 'RAB input'!AK$5<>INT('RAB input'!AK$5)), 'RAB input'!AK$5-INT('RAB input'!AK$5), 1) -> 29.5 | AL5: =AK5+IF(AND(COUNTA($H$4:AL$4)=ROUNDUP('RAB input'!AL$5, 0), 'RAB input'!AL$5<>INT('RAB input'!AL$5)), 'RAB input'!AL$5-INT('RAB input'!AL$5), 1) -> 30.5 | AM5: =AL5+IF(AND(COUNTA($H$4:AM$4)=ROUNDUP('RAB input'!AM$5, 0), 'RAB input'!AM$5<>INT('RAB input'!AM$5)), 'RAB input'!AM$5-INT('RAB input'!AM$5), 1) -> 31.5 | AN5: =AM5+IF(AND(COUNTA($H$4:AN$4)=ROUNDUP('RAB input'!AN$5, 0), 'RAB input'!AN$5<>INT('RAB input'!AN$5)), 'RAB input'!AN$5-INT('RAB input'!AN$5), 1) -> 32.5 | AO5: =AN5+IF(AND(COUNTA($H$4:AO$4)=ROUNDUP('RAB input'!AO$5, 0), 'RAB input'!AO$5<>INT('RAB input'!AO$5)), 'RAB input'!AO$5-INT('RAB input'!AO$5), 1) -> 33.5 | AP5: =AO5+IF(AND(COUNTA($H$4:AP$4)=ROUNDUP('RAB input'!AP$5, 0), 'RAB input'!AP$5<>INT('RAB input'!AP$5)), 'RAB input'!AP$5-INT('RAB input'!AP$5), 1) -> 34.5 | AQ5: =AP5+IF(AND(COUNTA($H$4:AQ$4)=ROUNDUP('RAB input'!AQ$5, 0), 'RAB input'!AQ$5<>INT('RAB input'!AQ$5)), 'RAB input'!AQ$5-INT('RAB input'!AQ$5), 1) -> 35.5 | AR5: =AQ5+IF(AND(COUNTA($H$4:AR$4)=ROUNDUP('RAB input'!AR$5, 0), 'RAB input'!AR$5<>INT('RAB input'!AR$5)), 'RAB input'!AR$5-INT('RAB input'!AR$5), 1) -> 36.5 | AS5: =AR5+IF(AND(COUNTA($H$4:AS$4)=ROUNDUP('RAB input'!AS$5, 0), 'RAB input'!AS$5<>INT('RAB input'!AS$5)), 'RAB input'!AS$5-INT('RAB input'!AS$5), 1) -> 37.5 | AT5: =AS5+IF(AND(COUNTA($H$4:AT$4)=ROUNDUP('RAB input'!AT$5, 0), 'RAB input'!AT$5<>INT('RAB input'!AT$5)), 'RAB input'!AT$5-INT('RAB input'!AT$5), 1) -> 38.5 | AU5: =AT5+IF(AND(COUNTA($H$4:AU$4)=ROUNDUP('RAB input'!AU$5, 0), 'RAB input'!AU$5<>INT('RAB input'!AU$5)), 'RAB input'!AU$5-INT('RAB input'!AU$5), 1) -> 39.5 | AV5: =AU5+IF(AND(COUNTA($H$4:AV$4)=ROUNDUP('RAB input'!AV$5, 0), 'RAB input'!AV$5<>INT('RAB input'!AV$5)), 'RAB input'!AV$5-INT('RAB input'!AV$5), 1) -> 40.5 | AW5: =AV5+IF(AND(COUNTA($H$4:AW$4)=ROUNDUP('RAB input'!AW$5, 0), 'RAB input'!AW$5<>INT('RAB input'!AW$5)), 'RAB input'!AW$5-INT('RAB input'!AW$5), 1) -> 41.5 | AX5: =AW5+IF(AND(COUNTA($H$4:AX$4)=ROUNDUP('RAB input'!AX$5, 0), 'RAB input'!AX$5<>INT('RAB input'!AX$5)), 'RAB input'!AX$5-INT('RAB input'!AX$5), 1) -> 42.5 | AY5: =AX5+IF(AND(COUNTA($H$4:AY$4)=ROUNDUP('RAB input'!AY$5, 0), 'RAB input'!AY$5<>INT('RAB input'!AY$5)), 'RAB input'!AY$5-INT('RAB input'!AY$5), 1) -> 43.5 | AZ5: =AY5+IF(AND(COUNTA($H$4:AZ$4)=ROUNDUP('RAB input'!AZ$5, 0), 'RAB input'!AZ$5<>INT('RAB input'!AZ$5)), 'RAB input'!AZ$5-INT('RAB input'!AZ$5), 1) -> 44.5 | BA5: =AZ5+IF(AND(COUNTA($H$4:BA$4)=ROUNDUP('RAB input'!BA$5, 0), 'RAB input'!BA$5<>INT('RAB input'!BA$5)), 'RAB input'!BA$5-INT('RAB input'!BA$5), 1) -> 45.5 | BB5: =BA5+IF(AND(COUNTA($H$4:BB$4)=ROUNDUP('RAB input'!BB$5, 0), 'RAB input'!BB$5<>INT('RAB input'!BB$5)), 'RAB input'!BB$5-INT('RAB input'!BB$5), 1) -> 46.5 | BC5: =BB5+IF(AND(COUNTA($H$4:BC$4)=ROUNDUP('RAB input'!BC$5, 0), 'RAB input'!BC$5<>INT('RAB input'!BC$5)), 'RAB input'!BC$5-INT('RAB input'!BC$5), 1) -> 47.5 | BD5: =BC5+IF(AND(COUNTA($H$4:BD$4)=ROUNDUP('RAB input'!BD$5, 0), 'RAB input'!BD$5<>INT('RAB input'!BD$5)), 'RAB input'!BD$5-INT('RAB input'!BD$5), 1) -> 48.5 | BE5: =BD5+IF(AND(COUNTA($H$4:BE$4)=ROUNDUP('RAB input'!BE$5, 0), 'RAB input'!BE$5<>INT('RAB input'!BE$5)), 'RAB input'!BE$5-INT('RAB input'!BE$5), 1) -> 49.5 | BF5: =BE5+IF(AND(COUNTA($H$4:BF$4)=ROUNDUP('RAB input'!BF$5, 0), 'RAB input'!BF$5<>INT('RAB input'!BF$5)), 'RAB input'!BF$5-INT('RAB input'!BF$5), 1) -> 50.5 | BG5: =BF5+IF(AND(COUNTA($H$4:BG$4)=ROUNDUP('RAB input'!BG$5, 0), 'RAB input'!BG$5<>INT('RAB input'!BG$5)), 'RAB input'!BG$5-INT('RAB input'!BG$5), 1) -> 51.5 | BH5: =BG5+IF(AND(COUNTA($H$4:BH$4)=ROUNDUP('RAB input'!BH$5, 0), 'RAB input'!BH$5<>INT('RAB input'!BH$5)), 'RAB input'!BH$5-INT('RAB input'!BH$5), 1) -> 52.5 | BI5: =BH5+IF(AND(COUNTA($H$4:BI$4)=ROUNDUP('RAB input'!BI$5, 0), 'RAB input'!BI$5<>INT('RAB input'!BI$5)), 'RAB input'!BI$5-INT('RAB input'!BI$5), 1) -> 53.5 | BJ5: =BI5+IF(AND(COUNTA($H$4:BJ$4)=ROUNDUP('RAB input'!BJ$5, 0), 'RAB input'!BJ$5<>INT('RAB input'!BJ$5)), 'RAB input'!BJ$5-INT('RAB input'!BJ$5), 1) -> 54.5 | BK5: =BJ5+IF(AND(COUNTA($H$4:BK$4)=ROUNDUP('RAB input'!BK$5, 0), 'RAB input'!BK$5<>INT('RAB input'!BK$5)), 'RAB input'!BK$5-INT('RAB input'!BK$5), 1) -> 55.5 | BL5: =BK5+IF(AND(COUNTA($H$4:BL$4)=ROUNDUP('RAB input'!BL$5, 0), 'RAB input'!BL$5<>INT('RAB input'!BL$5)), 'RAB input'!BL$5-INT('RAB input'!BL$5), 1) -> 56.5 | BM5: =BL5+IF(AND(COUNTA($H$4:BM$4)=ROUNDUP('RAB input'!BM$5, 0), 'RAB input'!BM$5<>INT('RAB input'!BM$5)), 'RAB input'!BM$5-INT('RAB input'!BM$5), 1) -> 57.5 | BN5: =BM5+IF(AND(COUNTA($H$4:BN$4)=ROUNDUP('RAB input'!BN$5, 0), 'RAB input'!BN$5<>INT('RAB input'!BN$5)), 'RAB input'!BN$5-INT('RAB input'!BN$5), 1) -> 58.5 | BO5: =BN5+IF(AND(COUNTA($H$4:BO$4)=ROUNDUP('RAB input'!BO$5, 0), 'RAB input'!BO$5<>INT('RAB input'!BO$5)), 'RAB input'!BO$5-INT('RAB input'!BO$5), 1) -> 59.5 | BP5: =BO5+IF(AND(COUNTA($H$4:BP$4)=ROUNDUP('RAB input'!BP$5, 0), 'RAB input'!BP$5<>INT('RAB input'!BP$5)), 'RAB input'!BP$5-INT('RAB input'!BP$5), 1) -> 60.5 | BQ5: =BP5+IF(AND(COUNTA($H$4:BQ$4)=ROUNDUP('RAB input'!BQ$5, 0), 'RAB input'!BQ$5<>INT('RAB input'!BQ$5)), 'RAB input'!BQ$5-INT('RAB input'!BQ$5), 1) -> 61.5 | BR5: =BQ5+IF(AND(COUNTA($H$4:BR$4)=ROUNDUP('RAB input'!BR$5, 0), 'RAB input'!BR$5<>INT('RAB input'!BR$5)), 'RAB input'!BR$5-INT('RAB input'!BR$5), 1) -> 62.5 | BS5: =BR5+IF(AND(COUNTA($H$4:BS$4)=ROUNDUP('RAB input'!BS$5, 0), 'RAB input'!BS$5<>INT('RAB input'!BS$5)), 'RAB input'!BS$5-INT('RAB input'!BS$5), 1) -> 63.5 | BT5: =BS5+IF(AND(COUNTA($H$4:BT$4)=ROUNDUP('RAB input'!BT$5, 0), 'RAB input'!BT$5<>INT('RAB input'!BT$5)), 'RAB input'!BT$5-INT('RAB input'!BT$5), 1) -> 64.5 | BU5: =BT5+IF(AND(COUNTA($H$4:BU$4)=ROUNDUP('RAB input'!BU$5, 0), 'RAB input'!BU$5<>INT('RAB input'!BU$5)), 'RAB input'!BU$5-INT('RAB input'!BU$5), 1) -> 65.5 | BV5: =BU5+IF(AND(COUNTA($H$4:BV$4)=ROUNDUP('RAB input'!BV$5, 0), 'RAB input'!BV$5<>INT('RAB input'!BV$5)), 'RAB input'!BV$5-INT('RAB input'!BV$5), 1) -> 66.5 | BW5: =BV5+IF(AND(COUNTA($H$4:BW$4)=ROUNDUP('RAB input'!BW$5, 0), 'RAB input'!BW$5<>INT('RAB input'!BW$5)), 'RAB input'!BW$5-INT('RAB input'!BW$5), 1) -> 67.5 | BX5: =BW5+IF(AND(COUNTA($H$4:BX$4)=ROUNDUP('RAB input'!BX$5, 0), 'RAB input'!BX$5<>INT('RAB input'!BX$5)), 'RAB input'!BX$5-INT('RAB input'!BX$5), 1) -> 68.5 | BY5: =BX5+IF(AND(COUNTA($H$4:BY$4)=ROUNDUP('RAB input'!BY$5, 0), 'RAB input'!BY$5<>INT('RAB input'!BY$5)), 'RAB input'!BY$5-INT('RAB input'!BY$5), 1) -> 69.5 | BZ5: =BY5+IF(AND(COUNTA($H$4:BZ$4)=ROUNDUP('RAB input'!BZ$5, 0), 'RAB input'!BZ$5<>INT('RAB input'!BZ$5)), 'RAB input'!BZ$5-INT('RAB input'!BZ$5), 1) -> 70.5
E6: ="Asset class "&E7 -> Asset class 1 | F6: =INDEX('RAB input'!$E$27:$E$76, MATCH($E7, 'RAB input'!$D$27:$D$76, 0)) -> Subtransmission
E7: 1 | F7: Value of starting RAB and net capex addition | G7: =INDEX('RAB input'!$G$27:$G$76, $E7)/'RAB input'!G$15 -> 181.8796403 | H7: =(INDEX('RAB input'!H$27:H$76,$E7)-INDEX('RAB input'!H$81:H$130,$E7)-INDEX('RAB input'!H$135:H$184,$E7))/'RAB input'!H$15*(1+'RAB input'!H$17)^0.5 -> 54.82869071 | I7: =(INDEX('RAB input'!I$27:I$76,$E7)-INDEX('RAB input'!I$81:I$130,$E7)-INDEX('RAB input'!I$135:I$184,$E7))/'RAB input'!I$15*(1+'RAB input'!I$17)^0.5 -> 31.35339775 | J7: =(INDEX('RAB input'!J$27:J$76,$E7)-INDEX('RAB input'!J$81:J$130,$E7)-INDEX('RAB input'!J$135:J$184,$E7))/'RAB input'!J$15*(1+'RAB input'!J$17)^0.5 -> 88.33563109 | K7: =(INDEX('RAB input'!K$27:K$76,$E7)-INDEX('RAB input'!K$81:K$130,$E7)-INDEX('RAB input'!K$135:K$184,$E7))/'RAB input'!K$15*(1+'RAB input'!K$17)^0.5 -> 18.12869702 | L7: =(INDEX('RAB input'!L$27:L$76,$E7)-INDEX('RAB input'!L$81:L$130,$E7)-INDEX('RAB input'!L$135:L$184,$E7))/'RAB input'!L$15*(1+'RAB input'!L$17)^0.5 -> 33.67448258 | M7: =(INDEX('RAB input'!M$27:M$76,$E7)-INDEX('RAB input'!M$81:M$130,$E7)-INDEX('RAB input'!M$135:M$184,$E7))/'RAB input'!M$15*(1+'RAB input'!M$17)^0.5 -> 16.53072786 | N7: =(INDEX('RAB input'!N$27:N$76,$E7)-INDEX('RAB input'!N$81:N$130,$E7)-INDEX('RAB input'!N$135:N$184,$E7))/'RAB input'!N$15*(1+'RAB input'!N$17)^0.5 -> 36.39082035 | O7: =(INDEX('RAB input'!O$27:O$76,$E7)-INDEX('RAB input'!O$81:O$130,$E7)-INDEX('RAB input'!O$135:O$184,$E7))/'RAB input'!O$15*(1+'RAB input'!O$17)^0.5 -> 41.81908649 | P7: =(INDEX('RAB input'!P$27:P$76,$E7)-INDEX('RAB input'!P$81:P$130,$E7)-INDEX('RAB input'!P$135:P$184,$E7))/'RAB input'!P$15*(1+'RAB input'!P$17)^0.5 -> 62.90869205 | Q7: =(INDEX('RAB input'!Q$27:Q$76,$E7)-INDEX('RAB input'!Q$81:Q$130,$E7)-INDEX('RAB input'!Q$135:Q$184,$E7))/'RAB input'!Q$15*(1+'RAB input'!Q$17)^0.5 -> 2.789534783 | R7: =(INDEX('RAB input'!R$27:R$76,$E7)-INDEX('RAB input'!R$81:R$130,$E7)-INDEX('RAB input'!R$135:R$184,$E7))/'RAB input'!R$15*(1+'RAB input'!R$17)^0.5 -> 18.72580136 | S7: =(INDEX('RAB input'!S$27:S$76,$E7)-INDEX('RAB input'!S$81:S$130,$E7)-INDEX('RAB input'!S$135:S$184,$E7))/'RAB input'!S$15*(1+'RAB input'!S$17)^0.5 -> 80.51214055 | T7: =(INDEX('RAB input'!T$27:T$76,$E7)-INDEX('RAB input'!T$81:T$130,$E7)-INDEX('RAB input'!T$135:T$184,$E7))/'RAB input'!T$15*(1+'RAB input'!T$17)^0.5 -> -0.3577205948 | U7: =(INDEX('RAB input'!U$27:U$76,$E7)-INDEX('RAB input'!U$81:U$130,$E7)-INDEX('RAB input'!U$135:U$184,$E7))/'RAB input'!U$15*(1+'RAB input'!U$17)^0.5 -> 0.03736950909 | V7: =(INDEX('RAB input'!V$27:V$76,$E7)-INDEX('RAB input'!V$81:V$130,$E7)-INDEX('RAB input'!V$135:V$184,$E7))/'RAB input'!V$15*(1+'RAB input'!V$17)^0.5 -> 42.3453793 | W7: =(INDEX('RAB input'!W$27:W$76,$E7)-INDEX('RAB input'!W$81:W$130,$E7)-INDEX('RAB input'!W$135:W$184,$E7))/'RAB input'!W$15*(1+'RAB input'!W$17)^0.5 -> 38.31721015 | X7: =(INDEX('RAB input'!X$27:X$76,$E7)-INDEX('RAB input'!X$81:X$130,$E7)-INDEX('RAB input'!X$135:X$184,$E7))/'RAB input'!X$15*(1+'RAB input'!X$17)^0.5 -> 0 | Y7: =(INDEX('RAB input'!Y$27:Y$76,$E7)-INDEX('RAB input'!Y$81:Y$130,$E7)-INDEX('RAB input'!Y$135:Y$184,$E7))/'RAB input'!Y$15*(1+'RAB input'!Y$17)^0.5 -> 0 | Z7: =(INDEX('RAB input'!Z$27:Z$76,$E7)-INDEX('RAB input'!Z$81:Z$130,$E7)-INDEX('RAB input'!Z$135:Z$184,$E7))/'RAB input'!Z$15*(1+'RAB input'!Z$17)^0.5 -> 0 | AA7: =(INDEX('RAB input'!AA$27:AA$76,$E7)-INDEX('RAB input'!AA$81:AA$130,$E7)-INDEX('RAB input'!AA$135:AA$184,$E7))/'RAB input'!AA$15*(1+'RAB input'!AA$17)^0.5 -> 0 | AB7: =(INDEX('RAB input'!AB$27:AB$76,$E7)-INDEX('RAB input'!AB$81:AB$130,$E7)-INDEX('RAB input'!AB$135:AB$184,$E7))/'RAB input'!AB$15*(1+'RAB input'!AB$17)^0.5 -> 0 | AC7: =(INDEX('RAB input'!AC$27:AC$76,$E7)-INDEX('RAB input'!AC$81:AC$130,$E7)-INDEX('RAB input'!AC$135:AC$184,$E7))/'RAB input'!AC$15*(1+'RAB input'!AC$17)^0.5 -> 0 | AD7: =(INDEX('RAB input'!AD$27:AD$76,$E7)-INDEX('RAB input'!AD$81:AD$130,$E7)-INDEX('RAB input'!AD$135:AD$184,$E7))/'RAB input'!AD$15*(1+'RAB input'!AD$17)^0.5 -> 0 | AE7: =(INDEX('RAB input'!AE$27:AE$76,$E7)-INDEX('RAB input'!AE$81:AE$130,$E7)-INDEX('RAB input'!AE$135:AE$184,$E7))/'RAB input'!AE$15*(1+'RAB input'!AE$17)^0.5 -> 0 | AF7: =(INDEX('RAB input'!AF$27:AF$76,$E7)-INDEX('RAB input'!AF$81:AF$130,$E7)-INDEX('RAB input'!AF$135:AF$184,$E7))/'RAB input'!AF$15*(1+'RAB input'!AF$17)^0.5 -> 0 | AG7: =(INDEX('RAB input'!AG$27:AG$76,$E7)-INDEX('RAB input'!AG$81:AG$130,$E7)-INDEX('RAB input'!AG$135:AG$184,$E7))/'RAB input'!AG$15*(1+'RAB input'!AG$17)^0.5 -> 0 | AH7: =(INDEX('RAB input'!AH$27:AH$76,$E7)-INDEX('RAB input'!AH$81:AH$130,$E7)-INDEX('RAB input'!AH$135:AH$184,$E7))/'RAB input'!AH$15*(1+'RAB input'!AH$17)^0.5 -> 0 | AI7: =(INDEX('RAB input'!AI$27:AI$76,$E7)-INDEX('RAB input'!AI$81:AI$130,$E7)-INDEX('RAB input'!AI$135:AI$184,$E7))/'RAB input'!AI$15*(1+'RAB input'!AI$17)^0.5 -> 0 | AJ7: =(INDEX('RAB input'!AJ$27:AJ$76,$E7)-INDEX('RAB input'!AJ$81:AJ$130,$E7)-INDEX('RAB input'!AJ$135:AJ$184,$E7))/'RAB input'!AJ$15*(1+'RAB input'!AJ$17)^0.5 -> 0 | AK7: =(INDEX('RAB input'!AK$27:AK$76,$E7)-INDEX('RAB input'!AK$81:AK$130,$E7)-INDEX('RAB input'!AK$135:AK$184,$E7))/'RAB input'!AK$15*(1+'RAB input'!AK$17)^0.5 -> 0 | AL7: =(INDEX('RAB input'!AL$27:AL$76,$E7)-INDEX('RAB input'!AL$81:AL$130,$E7)-INDEX('RAB input'!AL$135:AL$184,$E7))/'RAB input'!AL$15*(1+'RAB input'!AL$17)^0.5 -> 0 | AM7: =(INDEX('RAB input'!AM$27:AM$76,$E7)-INDEX('RAB input'!AM$81:AM$130,$E7)-INDEX('RAB input'!AM$135:AM$184,$E7))/'RAB input'!AM$15*(1+'RAB input'!AM$17)^0.5 -> 0 | AN7: =(INDEX('RAB input'!AN$27:AN$76,$E7)-INDEX('RAB input'!AN$81:AN$130,$E7)-INDEX('RAB input'!AN$135:AN$184,$E7))/'RAB input'!AN$15*(1+'RAB input'!AN$17)^0.5 -> 0 | AO7: =(INDEX('RAB input'!AO$27:AO$76,$E7)-INDEX('RAB input'!AO$81:AO$130,$E7)-INDEX('RAB input'!AO$135:AO$184,$E7))/'RAB input'!AO$15*(1+'RAB input'!AO$17)^0.5 -> 0 | AP7: =(INDEX('RAB input'!AP$27:AP$76,$E7)-INDEX('RAB input'!AP$81:AP$130,$E7)-INDEX('RAB input'!AP$135:AP$184,$E7))/'RAB input'!AP$15*(1+'RAB input'!AP$17)^0.5 -> 0 | AQ7: =(INDEX('RAB input'!AQ$27:AQ$76,$E7)-INDEX('RAB input'!AQ$81:AQ$130,$E7)-INDEX('RAB input'!AQ$135:AQ$184,$E7))/'RAB input'!AQ$15*(1+'RAB input'!AQ$17)^0.5 -> 0 | AR7: =(INDEX('RAB input'!AR$27:AR$76,$E7)-INDEX('RAB input'!AR$81:AR$130,$E7)-INDEX('RAB input'!AR$135:AR$184,$E7))/'RAB input'!AR$15*(1+'RAB input'!AR$17)^0.5 -> 0 | AS7: =(INDEX('RAB input'!AS$27:AS$76,$E7)-INDEX('RAB input'!AS$81:AS$130,$E7)-INDEX('RAB input'!AS$135:AS$184,$E7))/'RAB input'!AS$15*(1+'RAB input'!AS$17)^0.5 -> 0 | AT7: =(INDEX('RAB input'!AT$27:AT$76,$E7)-INDEX('RAB input'!AT$81:AT$130,$E7)-INDEX('RAB input'!AT$135:AT$184,$E7))/'RAB input'!AT$15*(1+'RAB input'!AT$17)^0.5 -> 0 | AU7: =(INDEX('RAB input'!AU$27:AU$76,$E7)-INDEX('RAB input'!AU$81:AU$130,$E7)-INDEX('RAB input'!AU$135:AU$184,$E7))/'RAB input'!AU$15*(1+'RAB input'!AU$17)^0.5 -> 0 | AV7: =(INDEX('RAB input'!AV$27:AV$76,$E7)-INDEX('RAB input'!AV$81:AV$130,$E7)-INDEX('RAB input'!AV$135:AV$184,$E7))/'RAB input'!AV$15*(1+'RAB input'!AV$17)^0.5 -> 0 | AW7: =(INDEX('RAB input'!AW$27:AW$76,$E7)-INDEX('RAB input'!AW$81:AW$130,$E7)-INDEX('RAB input'!AW$135:AW$184,$E7))/'RAB input'!AW$15*(1+'RAB input'!AW$17)^0.5 -> 0 | AX7: =(INDEX('RAB input'!AX$27:AX$76,$E7)-INDEX('RAB input'!AX$81:AX$130,$E7)-INDEX('RAB input'!AX$135:AX$184,$E7))/'RAB input'!AX$15*(1+'RAB input'!AX$17)^0.5 -> 0 | AY7: =(INDEX('RAB input'!AY$27:AY$76,$E7)-INDEX('RAB input'!AY$81:AY$130,$E7)-INDEX('RAB input'!AY$135:AY$184,$E7))/'RAB input'!AY$15*(1+'RAB input'!AY$17)^0.5 -> 0 | AZ7: =(INDEX('RAB input'!AZ$27:AZ$76,$E7)-INDEX('RAB input'!AZ$81:AZ$130,$E7)-INDEX('RAB input'!AZ$135:AZ$184,$E7))/'RAB input'!AZ$15*(1+'RAB input'!AZ$17)^0.5 -> 0 | BA7: =(INDEX('RAB input'!BA$27:BA$76,$E7)-INDEX('RAB input'!BA$81:BA$130,$E7)-INDEX('RAB input'!BA$135:BA$184,$E7))/'RAB input'!BA$15*(1+'RAB input'!BA$17)^0.5 -> 0 | BB7: =(INDEX('RAB input'!BB$27:BB$76,$E7)-INDEX('RAB input'!BB$81:BB$130,$E7)-INDEX('RAB input'!BB$135:BB$184,$E7))/'RAB input'!BB$15*(1+'RAB input'!BB$17)^0.5 -> 0 | BC7: =(INDEX('RAB input'!BC$27:BC$76,$E7)-INDEX('RAB input'!BC$81:BC$130,$E7)-INDEX('RAB input'!BC$135:BC$184,$E7))/'RAB input'!BC$15*(1+'RAB input'!BC$17)^0.5 -> 0 | BD7: =(INDEX('RAB input'!BD$27:BD$76,$E7)-INDEX('RAB input'!BD$81:BD$130,$E7)-INDEX('RAB input'!BD$135:BD$184,$E7))/'RAB input'!BD$15*(1+'RAB input'!BD$17)^0.5 -> 0 | BE7: =(INDEX('RAB input'!BE$27:BE$76,$E7)-INDEX('RAB input'!BE$81:BE$130,$E7)-INDEX('RAB input'!BE$135:BE$184,$E7))/'RAB input'!BE$15*(1+'RAB input'!BE$17)^0.5 -> 0 | BF7: =(INDEX('RAB input'!BF$27:BF$76,$E7)-INDEX('RAB input'!BF$81:BF$130,$E7)-INDEX('RAB input'!BF$135:BF$184,$E7))/'RAB input'!BF$15*(1+'RAB input'!BF$17)^0.5 -> 0 | BG7: =(INDEX('RAB input'!BG$27:BG$76,$E7)-INDEX('RAB input'!BG$81:BG$130,$E7)-INDEX('RAB input'!BG$135:BG$184,$E7))/'RAB input'!BG$15*(1+'RAB input'!BG$17)^0.5 -> 0 | BH7: =(INDEX('RAB input'!BH$27:BH$76,$E7)-INDEX('RAB input'!BH$81:BH$130,$E7)-INDEX('RAB input'!BH$135:BH$184,$E7))/'RAB input'!BH$15*(1+'RAB input'!BH$17)^0.5 -> 0 | BI7: =(INDEX('RAB input'!BI$27:BI$76,$E7)-INDEX('RAB input'!BI$81:BI$130,$E7)-INDEX('RAB input'!BI$135:BI$184,$E7))/'RAB input'!BI$15*(1+'RAB input'!BI$17)^0.5 -> 0 | BJ7: =(INDEX('RAB input'!BJ$27:BJ$76,$E7)-INDEX('RAB input'!BJ$81:BJ$130,$E7)-INDEX('RAB input'!BJ$135:BJ$184,$E7))/'RAB input'!BJ$15*(1+'RAB input'!BJ$17)^0.5 -> 0 | BK7: =(INDEX('RAB input'!BK$27:BK$76,$E7)-INDEX('RAB input'!BK$81:BK$130,$E7)-INDEX('RAB input'!BK$135:BK$184,$E7))/'RAB input'!BK$15*(1+'RAB input'!BK$17)^0.5 -> 0 | BL7: =(INDEX('RAB input'!BL$27:BL$76,$E7)-INDEX('RAB input'!BL$81:BL$130,$E7)-INDEX('RAB input'!BL$135:BL$184,$E7))/'RAB input'!BL$15*(1+'RAB input'!BL$17)^0.5 -> 0 | BM7: =(INDEX('RAB input'!BM$27:BM$76,$E7)-INDEX('RAB input'!BM$81:BM$130,$E7)-INDEX('RAB input'!BM$135:BM$184,$E7))/'RAB input'!BM$15*(1+'RAB input'!BM$17)^0.5 -> 0 | BN7: =(INDEX('RAB input'!BN$27:BN$76,$E7)-INDEX('RAB input'!BN$81:BN$130,$E7)-INDEX('RAB input'!BN$135:BN$184,$E7))/'RAB input'!BN$15*(1+'RAB input'!BN$17)^0.5 -> 0 | BO7: =(INDEX('RAB input'!BO$27:BO$76,$E7)-INDEX('RAB input'!BO$81:BO$130,$E7)-INDEX('RAB input'!BO$135:BO$184,$E7))/'RAB input'!BO$15*(1+'RAB input'!BO$17)^0.5 -> 0 | BP7: =(INDEX('RAB input'!BP$27:BP$76,$E7)-INDEX('RAB input'!BP$81:BP$130,$E7)-INDEX('RAB input'!BP$135:BP$184,$E7))/'RAB input'!BP$15*(1+'RAB input'!BP$17)^0.5 -> 0 | BQ7: =(INDEX('RAB input'!BQ$27:BQ$76,$E7)-INDEX('RAB input'!BQ$81:BQ$130,$E7)-INDEX('RAB input'!BQ$135:BQ$184,$E7))/'RAB input'!BQ$15*(1+'RAB input'!BQ$17)^0.5 -> 0 | BR7: =(INDEX('RAB input'!BR$27:BR$76,$E7)-INDEX('RAB input'!BR$81:BR$130,$E7)-INDEX('RAB input'!BR$135:BR$184,$E7))/'RAB input'!BR$15*(1+'RAB input'!BR$17)^0.5 -> 0 | BS7: =(INDEX('RAB input'!BS$27:BS$76,$E7)-INDEX('RAB input'!BS$81:BS$130,$E7)-INDEX('RAB input'!BS$135:BS$184,$E7))/'RAB input'!BS$15*(1+'RAB input'!BS$17)^0.5 -> 0 | BT7: =(INDEX('RAB input'!BT$27:BT$76,$E7)-INDEX('RAB input'!BT$81:BT$130,$E7)-INDEX('RAB input'!BT$135:BT$184,$E7))/'RAB input'!BT$15*(1+'RAB input'!BT$17)^0.5 -> 0 | BU7: =(INDEX('RAB input'!BU$27:BU$76,$E7)-INDEX('RAB input'!BU$81:BU$130,$E7)-INDEX('RAB input'!BU$135:BU$184,$E7))/'RAB input'!BU$15*(1+'RAB input'!BU$17)^0.5 -> 0 | BV7: =(INDEX('RAB input'!BV$27:BV$76,$E7)-INDEX('RAB input'!BV$81:BV$130,$E7)-INDEX('RAB input'!BV$135:BV$184,$E7))/'RAB input'!BV$15*(1+'RAB input'!BV$17)^0.5 -> 0 | BW7: =(INDEX('RAB input'!BW$27:BW$76,$E7)-INDEX('RAB input'!BW$81:BW$130,$E7)-INDEX('RAB input'!BW$135:BW$184,$E7))/'RAB input'!BW$15*(1+'RAB input'!BW$17)^0.5 -> 0 | BX7: =(INDEX('RAB input'!BX$27:BX$76,$E7)-INDEX('RAB input'!BX$81:BX$130,$E7)-INDEX('RAB input'!BX$135:BX$184,$E7))/'RAB input'!BX$15*(1+'RAB input'!BX$17)^0.5 -> 0 | BY7: =(INDEX('RAB input'!BY$27:BY$76,$E7)-INDEX('RAB input'!BY$81:BY$130,$E7)-INDEX('RAB input'!BY$135:BY$184,$E7))/'RAB input'!BY$15*(1+'RAB input'!BY$17)^0.5 -> 0 | BZ7: =(INDEX('RAB input'!BZ$27:BZ$76,$E7)-INDEX('RAB input'!BZ$81:BZ$130,$E7)-INDEX('RAB input'!BZ$135:BZ$184,$E7))/'RAB input'!BZ$15*(1+'RAB input'!BZ$17)^0.5 -> 0
F8: Initial remaining life and standard lives (years) | G8: =IF(INDEX('RAB input'!$G$189:$G$238, $E7)="", IF($G7=0, 0, F8), INDEX('RAB input'!$G$189:$G$238, $E7)) -> 26.44441797 | H8: =IF(INDEX('RAB input'!H$189:H$238, $E7)="", G8, INDEX('RAB input'!H$189:H$238, $E7)) -> 50 | I8: =IF(INDEX('RAB input'!I$189:I$238, $E7)="", H8, INDEX('RAB input'!I$189:I$238, $E7)) -> 50 | J8: =IF(INDEX('RAB input'!J$189:J$238, $E7)="", I8, INDEX('RAB input'!J$189:J$238, $E7)) -> 50 | K8: =IF(INDEX('RAB input'!K$189:K$238, $E7)="", J8, INDEX('RAB input'!K$189:K$238, $E7)) -> 50 | L8: =IF(INDEX('RAB input'!L$189:L$238, $E7)="", K8, INDEX('RAB input'!L$189:L$238, $E7)) -> 50 | M8: =IF(INDEX('RAB input'!M$189:M$238, $E7)="", L8, INDEX('RAB input'!M$189:M$238, $E7)) -> 50 | N8: =IF(INDEX('RAB input'!N$189:N$238, $E7)="", M8, INDEX('RAB input'!N$189:N$238, $E7)) -> 50 | O8: =IF(INDEX('RAB input'!O$189:O$238, $E7)="", N8, INDEX('RAB input'!O$189:O$238, $E7)) -> 50 | P8: =IF(INDEX('RAB input'!P$189:P$238, $E7)="", O8, INDEX('RAB input'!P$189:P$238, $E7)) -> 50 | Q8: =IF(INDEX('RAB input'!Q$189:Q$238, $E7)="", P8, INDEX('RAB input'!Q$189:Q$238, $E7)) -> 50 | R8: =IF(INDEX('RAB input'!R$189:R$238, $E7)="", Q8, INDEX('RAB input'!R$189:R$238, $E7)) -> 50 | S8: =IF(INDEX('RAB input'!S$189:S$238, $E7)="", R8, INDEX('RAB input'!S$189:S$238, $E7)) -> 50 | T8: =IF(INDEX('RAB input'!T$189:T$238, $E7)="", S8, INDEX('RAB input'!T$189:T$238, $E7)) -> 50 | U8: =IF(INDEX('RAB input'!U$189:U$238, $E7)="", T8, INDEX('RAB input'!U$189:U$238, $E7)) -> 50 | V8: =IF(INDEX('RAB input'!V$189:V$238, $E7)="", U8, INDEX('RAB input'!V$189:V$238, $E7)) -> 50 | W8: =IF(INDEX('RAB input'!W$189:W$238, $E7)="", V8, INDEX('RAB input'!W$189:W$238, $E7)) -> 50 | X8: =IF(INDEX('RAB input'!X$189:X$238, $E7)="", W8, INDEX('RAB input'!X$189:X$238, $E7)) -> 50 | Y8: =IF(INDEX('RAB input'!Y$189:Y$238, $E7)="", X8, INDEX('RAB input'!Y$189:Y$238, $E7)) -> 50 | Z8: =IF(INDEX('RAB input'!Z$189:Z$238, $E7)="", Y8, INDEX('RAB input'!Z$189:Z$238, $E7)) -> 50 | AA8: =IF(INDEX('RAB input'!AA$189:AA$238, $E7)="", Z8, INDEX('RAB input'!AA$189:AA$238, $E7)) -> 50 | AB8: =IF(INDEX('RAB input'!AB$189:AB$238, $E7)="", AA8, INDEX('RAB input'!AB$189:AB$238, $E7)) -> 50 | AC8: =IF(INDEX('RAB input'!AC$189:AC$238, $E7)="", AB8, INDEX('RAB input'!AC$189:AC$238, $E7)) -> 50 | AD8: =IF(INDEX('RAB input'!AD$189:AD$238, $E7)="", AC8, INDEX('RAB input'!AD$189:AD$238, $E7)) -> 50 | AE8: =IF(INDEX('RAB input'!AE$189:AE$238, $E7)="", AD8, INDEX('RAB input'!AE$189:AE$238, $E7)) -> 50 | AF8: =IF(INDEX('RAB input'!AF$189:AF$238, $E7)="", AE8, INDEX('RAB input'!AF$189:AF$238, $E7)) -> 50 | AG8: =IF(INDEX('RAB input'!AG$189:AG$238, $E7)="", AF8, INDEX('RAB input'!AG$189:AG$238, $E7)) -> 50 | AH8: =IF(INDEX('RAB input'!AH$189:AH$238, $E7)="", AG8, INDEX('RAB input'!AH$189:AH$238, $E7)) -> 50 | AI8: =IF(INDEX('RAB input'!AI$189:AI$238, $E7)="", AH8, INDEX('RAB input'!AI$189:AI$238, $E7)) -> 50 | AJ8: =IF(INDEX('RAB input'!AJ$189:AJ$238, $E7)="", AI8, INDEX('RAB input'!AJ$189:AJ$238, $E7)) -> 50 | AK8: =IF(INDEX('RAB input'!AK$189:AK$238, $E7)="", AJ8, INDEX('RAB input'!AK$189:AK$238, $E7)) -> 50 | AL8: =IF(INDEX('RAB input'!AL$189:AL$238, $E7)="", AK8, INDEX('RAB input'!AL$189:AL$238, $E7)) -> 50 | AM8: =IF(INDEX('RAB input'!AM$189:AM$238, $E7)="", AL8, INDEX('RAB input'!AM$189:AM$238, $E7)) -> 50 | AN8: =IF(INDEX('RAB input'!AN$189:AN$238, $E7)="", AM8, INDEX('RAB input'!AN$189:AN$238, $E7)) -> 50 | AO8: =IF(INDEX('RAB input'!AO$189:AO$238, $E7)="", AN8, INDEX('RAB input'!AO$189:AO$238, $E7)) -> 50 | AP8: =IF(INDEX('RAB input'!AP$189:AP$238, $E7)="", AO8, INDEX('RAB input'!AP$189:AP$238, $E7)) -> 50 | AQ8: =IF(INDEX('RAB input'!AQ$189:AQ$238, $E7)="", AP8, INDEX('RAB input'!AQ$189:AQ$238, $E7)) -> 50 | AR8: =IF(INDEX('RAB input'!AR$189:AR$238, $E7)="", AQ8, INDEX('RAB input'!AR$189:AR$238, $E7)) -> 50 | AS8: =IF(INDEX('RAB input'!AS$189:AS$238, $E7)="", AR8, INDEX('RAB input'!AS$189:AS$238, $E7)) -> 50 | AT8: =IF(INDEX('RAB input'!AT$189:AT$238, $E7)="", AS8, INDEX('RAB input'!AT$189:AT$238, $E7)) -> 50 | AU8: =IF(INDEX('RAB input'!AU$189:AU$238, $E7)="", AT8, INDEX('RAB input'!AU$189:AU$238, $E7)) -> 50 | AV8: =IF(INDEX('RAB input'!AV$189:AV$238, $E7)="", AU8, INDEX('RAB input'!AV$189:AV$238, $E7)) -> 50 | AW8: =IF(INDEX('RAB input'!AW$189:AW$238, $E7)="", AV8, INDEX('RAB input'!AW$189:AW$238, $E7)) -> 50 | AX8: =IF(INDEX('RAB input'!AX$189:AX$238, $E7)="", AW8, INDEX('RAB input'!AX$189:AX$238, $E7)) -> 50 | AY8: =IF(INDEX('RAB input'!AY$189:AY$238, $E7)="", AX8, INDEX('RAB input'!AY$189:AY$238, $E7)) -> 50 | AZ8: =IF(INDEX('RAB input'!AZ$189:AZ$238, $E7)="", AY8, INDEX('RAB input'!AZ$189:AZ$238, $E7)) -> 50 | BA8: =IF(INDEX('RAB input'!BA$189:BA$238, $E7)="", AZ8, INDEX('RAB input'!BA$189:BA$238, $E7)) -> 50 | BB8: =IF(INDEX('RAB input'!BB$189:BB$238, $E7)="", BA8, INDEX('RAB input'!BB$189:BB$238, $E7)) -> 50 | BC8: =IF(INDEX('RAB input'!BC$189:BC$238, $E7)="", BB8, INDEX('RAB input'!BC$189:BC$238, $E7)) -> 50 | BD8: =IF(INDEX('RAB input'!BD$189:BD$238, $E7)="", BC8, INDEX('RAB input'!BD$189:BD$238, $E7)) -> 50 | BE8: =IF(INDEX('RAB input'!BE$189:BE$238, $E7)="", BD8, INDEX('RAB input'!BE$189:BE$238, $E7)) -> 50 | BF8: =IF(INDEX('RAB input'!BF$189:BF$238, $E7)="", BE8, INDEX('RAB input'!BF$189:BF$238, $E7)) -> 50 | BG8: =IF(INDEX('RAB input'!BG$189:BG$238, $E7)="", BF8, INDEX('RAB input'!BG$189:BG$238, $E7)) -> 50 | BH8: =IF(INDEX('RAB input'!BH$189:BH$238, $E7)="", BG8, INDEX('RAB input'!BH$189:BH$238, $E7)) -> 50 | BI8: =IF(INDEX('RAB input'!BI$189:BI$238, $E7)="", BH8, INDEX('RAB input'!BI$189:BI$238, $E7)) -> 50 | BJ8: =IF(INDEX('RAB input'!BJ$189:BJ$238, $E7)="", BI8, INDEX('RAB input'!BJ$189:BJ$238, $E7)) -> 50 | BK8: =IF(INDEX('RAB input'!BK$189:BK$238, $E7)="", BJ8, INDEX('RAB input'!BK$189:BK$238, $E7)) -> 50 | BL8: =IF(INDEX('RAB input'!BL$189:BL$238, $E7)="", BK8, INDEX('RAB input'!BL$189:BL$238, $E7)) -> 50 | BM8: =IF(INDEX('RAB input'!BM$189:BM$238, $E7)="", BL8, INDEX('RAB input'!BM$189:BM$238, $E7)) -> 50 | BN8: =IF(INDEX('RAB input'!BN$189:BN$238, $E7)="", BM8, INDEX('RAB input'!BN$189:BN$238, $E7)) -> 50 | BO8: =IF(INDEX('RAB input'!BO$189:BO$238, $E7)="", BN8, INDEX('RAB input'!BO$189:BO$238, $E7)) -> 50 | BP8: =IF(INDEX('RAB input'!BP$189:BP$238, $E7)="", BO8, INDEX('RAB input'!BP$189:BP$238, $E7)) -> 50 | BQ8: =IF(INDEX('RAB input'!BQ$189:BQ$238, $E7)="", BP8, INDEX('RAB input'!BQ$189:BQ$238, $E7)) -> 50 | BR8: =IF(INDEX('RAB input'!BR$189:BR$238, $E7)="", BQ8, INDEX('RAB input'!BR$189:BR$238, $E7)) -> 50 | BS8: =IF(INDEX('RAB input'!BS$189:BS$238, $E7)="", BR8, INDEX('RAB input'!BS$189:BS$238, $E7)) -> 50 | BT8: =IF(INDEX('RAB input'!BT$189:BT$238, $E7)="", BS8, INDEX('RAB input'!BT$189:BT$238, $E7)) -> 50 | BU8: =IF(INDEX('RAB input'!BU$189:BU$238, $E7)="", BT8, INDEX('RAB input'!BU$189:BU$238, $E7)) -> 50 | BV8: =IF(INDEX('RAB input'!BV$189:BV$238, $E7)="", BU8, INDEX('RAB input'!BV$189:BV$238, $E7)) -> 50 | BW8: =IF(INDEX('RAB input'!BW$189:BW$238, $E7)="", BV8, INDEX('RAB input'!BW$189:BW$238, $E7)) -> 50 | BX8: =IF(INDEX('RAB input'!BX$189:BX$238, $E7)="", BW8, INDEX('RAB input'!BX$189:BX$238, $E7)) -> 50 | BY8: =IF(INDEX('RAB input'!BY$189:BY$238, $E7)="", BX8, INDEX('RAB input'!BY$189:BY$238, $E7)) -> 50 | BZ8: =IF(INDEX('RAB input'!BZ$189:BZ$238, $E7)="", BY8, INDEX('RAB input'!BZ$189:BZ$238, $E7)) -> 50
F9: Adjustment for difference in t-1 capex | G9: =INDEX('RAB input'!$G$349:$G$398, $E7)/INDEX(CPI, 'RAB input'!H$5+2)*INDEX(nvanillaWACC, 'RAB input'!H$5+2) -> -14.94986215 | H9: =IF('RAB input'!I$11="", 0, INDEX('RAB input'!H$349:H$398, $E7)/'RAB input'!H$15*(INDEX(rvanillaWACC, 'RAB input'!I$5+2)/'RAB input'!H$20-1)) -> 0 | I9: =IF('RAB input'!J$11="", 0, INDEX('RAB input'!I$349:I$398, $E7)/'RAB input'!I$15*(INDEX(rvanillaWACC, 'RAB input'!J$5+2)/'RAB input'!I$20-1)) -> 0 | J9: =IF('RAB input'!K$11="", 0, INDEX('RAB input'!J$349:J$398, $E7)/'RAB input'!J$15*(INDEX(rvanillaWACC, 'RAB input'!K$5+2)/'RAB input'!J$20-1)) -> 0 | K9: =IF('RAB input'!L$11="", 0, INDEX('RAB input'!K$349:K$398, $E7)/'RAB input'!K$15*(INDEX(rvanillaWACC, 'RAB input'!L$5+2)/'RAB input'!K$20-1)) -> 0 | L9: =IF('RAB input'!M$11="", 0, INDEX('RAB input'!L$349:L$398, $E7)/'RAB input'!L$15*(INDEX(rvanillaWACC, 'RAB input'!M$5+2)/'RAB input'!L$20-1)) -> -0.07760242886 | M9: =IF('RAB input'!N$11="", 0, INDEX('RAB input'!M$349:M$398, $E7)/'RAB input'!M$15*(INDEX(rvanillaWACC, 'RAB input'!N$5+2)/'RAB input'!M$20-1)) -> 0 | N9: =IF('RAB input'!O$11="", 0, INDEX('RAB input'!N$349:N$398, $E7)/'RAB input'!N$15*(INDEX(rvanillaWACC, 'RAB input'!O$5+2)/'RAB input'!N$20-1)) -> 0 | O9: =IF('RAB input'!P$11="", 0, INDEX('RAB input'!O$349:O$398, $E7)/'RAB input'!O$15*(INDEX(rvanillaWACC, 'RAB input'!P$5+2)/'RAB input'!O$20-1)) -> 0 | P9: =IF('RAB input'!Q$11="", 0, INDEX('RAB input'!P$349:P$398, $E7)/'RAB input'!P$15*(INDEX(rvanillaWACC, 'RAB input'!Q$5+2)/'RAB input'!P$20-1)) -> 0 | Q9: =IF('RAB input'!R$11="", 0, INDEX('RAB input'!Q$349:Q$398, $E7)/'RAB input'!Q$15*(INDEX(rvanillaWACC, 'RAB input'!R$5+2)/'RAB input'!Q$20-1)) -> 0 | R9: =IF('RAB input'!S$11="", 0, INDEX('RAB input'!R$349:R$398, $E7)/'RAB input'!R$15*(INDEX(rvanillaWACC, 'RAB input'!S$5+2)/'RAB input'!R$20-1)) -> -0.9895344257 | S9: =IF('RAB input'!T$11="", 0, INDEX('RAB input'!S$349:S$398, $E7)/'RAB input'!S$15*(INDEX(rvanillaWACC, 'RAB input'!T$5+2)/'RAB input'!S$20-1)) -> 0 | T9: =IF('RAB input'!U$11="", 0, INDEX('RAB input'!T$349:T$398, $E7)/'RAB input'!T$15*(INDEX(rvanillaWACC, 'RAB input'!U$5+2)/'RAB input'!T$20-1)) -> 0 | U9: =IF('RAB input'!V$11="", 0, INDEX('RAB input'!U$349:U$398, $E7)/'RAB input'!U$15*(INDEX(rvanillaWACC, 'RAB input'!V$5+2)/'RAB input'!U$20-1)) -> 0 | V9: =IF('RAB input'!W$11="", 0, INDEX('RAB input'!V$349:V$398, $E7)/'RAB input'!V$15*(INDEX(rvanillaWACC, 'RAB input'!W$5+2)/'RAB input'!V$20-1)) -> 0 | W9: =IF('RAB input'!X$11="", 0, INDEX('RAB input'!W$349:W$398, $E7)/'RAB input'!W$15*(INDEX(rvanillaWACC, 'RAB input'!X$5+2)/'RAB input'!W$20-1)) -> 0 | X9: =IF('RAB input'!Y$11="", 0, INDEX('RAB input'!X$349:X$398, $E7)/'RAB input'!X$15*(INDEX(rvanillaWACC, 'RAB input'!Y$5+2)/'RAB input'!X$20-1)) -> 0 | Y9: =IF('RAB input'!Z$11="", 0, INDEX('RAB input'!Y$349:Y$398, $E7)/'RAB input'!Y$15*(INDEX(rvanillaWACC, 'RAB input'!Z$5+2)/'RAB input'!Y$20-1)) -> 0 | Z9: =IF('RAB input'!AA$11="", 0, INDEX('RAB input'!Z$349:Z$398, $E7)/'RAB input'!Z$15*(INDEX(rvanillaWACC, 'RAB input'!AA$5+2)/'RAB input'!Z$20-1)) -> 0 | AA9: =IF('RAB input'!AB$11="", 0, INDEX('RAB input'!AA$349:AA$398, $E7)/'RAB input'!AA$15*(INDEX(rvanillaWACC, 'RAB input'!AB$5+2)/'RAB input'!AA$20-1)) -> 0 | AB9: =IF('RAB input'!AC$11="", 0, INDEX('RAB input'!AB$349:AB$398, $E7)/'RAB input'!AB$15*(INDEX(rvanillaWACC, 'RAB input'!AC$5+2)/'RAB input'!AB$20-1)) -> 0 | AC9: =IF('RAB input'!AD$11="", 0, INDEX('RAB input'!AC$349:AC$398, $E7)/'RAB input'!AC$15*(INDEX(rvanillaWACC, 'RAB input'!AD$5+2)/'RAB input'!AC$20-1)) -> 0 | AD9: =IF('RAB input'!AE$11="", 0, INDEX('RAB input'!AD$349:AD$398, $E7)/'RAB input'!AD$15*(INDEX(rvanillaWACC, 'RAB input'!AE$5+2)/'RAB input'!AD$20-1)) -> 0 | AE9: =IF('RAB input'!AF$11="", 0, INDEX('RAB input'!AE$349:AE$398, $E7)/'RAB input'!AE$15*(INDEX(rvanillaWACC, 'RAB input'!AF$5+2)/'RAB input'!AE$20-1)) -> 0 | AF9: =IF('RAB input'!AG$11="", 0, INDEX('RAB input'!AF$349:AF$398, $E7)/'RAB input'!AF$15*(INDEX(rvanillaWACC, 'RAB input'!AG$5+2)/'RAB input'!AF$20-1)) -> 0 | AG9: =IF('RAB input'!AH$11="", 0, INDEX('RAB input'!AG$349:AG$398, $E7)/'RAB input'!AG$15*(INDEX(rvanillaWACC, 'RAB input'!AH$5+2)/'RAB input'!AG$20-1)) -> 0 | AH9: =IF('RAB input'!AI$11="", 0, INDEX('RAB input'!AH$349:AH$398, $E7)/'RAB input'!AH$15*(INDEX(rvanillaWACC, 'RAB input'!AI$5+2)/'RAB input'!AH$20-1)) -> 0 | AI9: =IF('RAB input'!AJ$11="", 0, INDEX('RAB input'!AI$349:AI$398, $E7)/'RAB input'!AI$15*(INDEX(rvanillaWACC, 'RAB input'!AJ$5+2)/'RAB input'!AI$20-1)) -> 0 | AJ9: =IF('RAB input'!AK$11="", 0, INDEX('RAB input'!AJ$349:AJ$398, $E7)/'RAB input'!AJ$15*(INDEX(rvanillaWACC, 'RAB input'!AK$5+2)/'RAB input'!AJ$20-1)) -> 0 | AK9: =IF('RAB input'!AL$11="", 0, INDEX('RAB input'!AK$349:AK$398, $E7)/'RAB input'!AK$15*(INDEX(rvanillaWACC, 'RAB input'!AL$5+2)/'RAB input'!AK$20-1)) -> 0 | AL9: =IF('RAB input'!AM$11="", 0, INDEX('RAB input'!AL$349:AL$398, $E7)/'RAB input'!AL$15*(INDEX(rvanillaWACC, 'RAB input'!AM$5+2)/'RAB input'!AL$20-1)) -> 0 | AM9: =IF('RAB input'!AN$11="", 0, INDEX('RAB input'!AM$349:AM$398, $E7)/'RAB input'!AM$15*(INDEX(rvanillaWACC, 'RAB input'!AN$5+2)/'RAB input'!AM$20-1)) -> 0 | AN9: =IF('RAB input'!AO$11="", 0, INDEX('RAB input'!AN$349:AN$398, $E7)/'RAB input'!AN$15*(INDEX(rvanillaWACC, 'RAB input'!AO$5+2)/'RAB input'!AN$20-1)) -> 0 | AO9: =IF('RAB input'!AP$11="", 0, INDEX('RAB input'!AO$349:AO$398, $E7)/'RAB input'!AO$15*(INDEX(rvanillaWACC, 'RAB input'!AP$5+2)/'RAB input'!AO$20-1)) -> 0 | AP9: =IF('RAB input'!AQ$11="", 0, INDEX('RAB input'!AP$349:AP$398, $E7)/'RAB input'!AP$15*(INDEX(rvanillaWACC, 'RAB input'!AQ$5+2)/'RAB input'!AP$20-1)) -> 0 | AQ9: =IF('RAB input'!AR$11="", 0, INDEX('RAB input'!AQ$349:AQ$398, $E7)/'RAB input'!AQ$15*(INDEX(rvanillaWACC, 'RAB input'!AR$5+2)/'RAB input'!AQ$20-1)) -> 0 | AR9: =IF('RAB input'!AS$11="", 0, INDEX('RAB input'!AR$349:AR$398, $E7)/'RAB input'!AR$15*(INDEX(rvanillaWACC, 'RAB input'!AS$5+2)/'RAB input'!AR$20-1)) -> 0 | AS9: =IF('RAB input'!AT$11="", 0, INDEX('RAB input'!AS$349:AS$398, $E7)/'RAB input'!AS$15*(INDEX(rvanillaWACC, 'RAB input'!AT$5+2)/'RAB input'!AS$20-1)) -> 0 | AT9: =IF('RAB input'!AU$11="", 0, INDEX('RAB input'!AT$349:AT$398, $E7)/'RAB input'!AT$15*(INDEX(rvanillaWACC, 'RAB input'!AU$5+2)/'RAB input'!AT$20-1)) -> 0 | AU9: =IF('RAB input'!AV$11="", 0, INDEX('RAB input'!AU$349:AU$398, $E7)/'RAB input'!AU$15*(INDEX(rvanillaWACC, 'RAB input'!AV$5+2)/'RAB input'!AU$20-1)) -> 0 | AV9: =IF('RAB input'!AW$11="", 0, INDEX('RAB input'!AV$349:AV$398, $E7)/'RAB input'!AV$15*(INDEX(rvanillaWACC, 'RAB input'!AW$5+2)/'RAB input'!AV$20-1)) -> 0 | AW9: =IF('RAB input'!AX$11="", 0, INDEX('RAB input'!AW$349:AW$398, $E7)/'RAB input'!AW$15*(INDEX(rvanillaWACC, 'RAB input'!AX$5+2)/'RAB input'!AW$20-1)) -> 0 | AX9: =IF('RAB input'!AY$11="", 0, INDEX('RAB input'!AX$349:AX$398, $E7)/'RAB input'!AX$15*(INDEX(rvanillaWACC, 'RAB input'!AY$5+2)/'RAB input'!AX$20-1)) -> 0 | AY9: =IF('RAB input'!AZ$11="", 0, INDEX('RAB input'!AY$349:AY$398, $E7)/'RAB input'!AY$15*(INDEX(rvanillaWACC, 'RAB input'!AZ$5+2)/'RAB input'!AY$20-1)) -> 0 | AZ9: =IF('RAB input'!BA$11="", 0, INDEX('RAB input'!AZ$349:AZ$398, $E7)/'RAB input'!AZ$15*(INDEX(rvanillaWACC, 'RAB input'!BA$5+2)/'RAB input'!AZ$20-1)) -> 0 | BA9: =IF('RAB input'!BB$11="", 0, INDEX('RAB input'!BA$349:BA$398, $E7)/'RAB input'!BA$15*(INDEX(rvanillaWACC, 'RAB input'!BB$5+2)/'RAB input'!BA$20-1)) -> 0 | BB9: =IF('RAB input'!BC$11="", 0, INDEX('RAB input'!BB$349:BB$398, $E7)/'RAB input'!BB$15*(INDEX(rvanillaWACC, 'RAB input'!BC$5+2)/'RAB input'!BB$20-1)) -> 0 | BC9: =IF('RAB input'!BD$11="", 0, INDEX('RAB input'!BC$349:BC$398, $E7)/'RAB input'!BC$15*(INDEX(rvanillaWACC, 'RAB input'!BD$5+2)/'RAB input'!BC$20-1)) -> 0 | BD9: =IF('RAB input'!BE$11="", 0, INDEX('RAB input'!BD$349:BD$398, $E7)/'RAB input'!BD$15*(INDEX(rvanillaWACC, 'RAB input'!BE$5+2)/'RAB input'!BD$20-1)) -> 0 | BE9: =IF('RAB input'!BF$11="", 0, INDEX('RAB input'!BE$349:BE$398, $E7)/'RAB input'!BE$15*(INDEX(rvanillaWACC, 'RAB input'!BF$5+2)/'RAB input'!BE$20-1)) -> 0 | BF9: =IF('RAB input'!BG$11="", 0, INDEX('RAB input'!BF$349:BF$398, $E7)/'RAB input'!BF$15*(INDEX(rvanillaWACC, 'RAB input'!BG$5+2)/'RAB input'!BF$20-1)) -> 0 | BG9: =IF('RAB input'!BH$11="", 0, INDEX('RAB input'!BG$349:BG$398, $E7)/'RAB input'!BG$15*(INDEX(rvanillaWACC, 'RAB input'!BH$5+2)/'RAB input'!BG$20-1)) -> 0 | BH9: =IF('RAB input'!BI$11="", 0, INDEX('RAB input'!BH$349:BH$398, $E7)/'RAB input'!BH$15*(INDEX(rvanillaWACC, 'RAB input'!BI$5+2)/'RAB input'!BH$20-1)) -> 0 | BI9: =IF('RAB input'!BJ$11="", 0, INDEX('RAB input'!BI$349:BI$398, $E7)/'RAB input'!BI$15*(INDEX(rvanillaWACC, 'RAB input'!BJ$5+2)/'RAB input'!BI$20-1)) -> 0 | BJ9: =IF('RAB input'!BK$11="", 0, INDEX('RAB input'!BJ$349:BJ$398, $E7)/'RAB input'!BJ$15*(INDEX(rvanillaWACC, 'RAB input'!BK$5+2)/'RAB input'!BJ$20-1)) -> 0 | BK9: =IF('RAB input'!BL$11="", 0, INDEX('RAB input'!BK$349:BK$398, $E7)/'RAB input'!BK$15*(INDEX(rvanillaWACC, 'RAB input'!BL$5+2)/'RAB input'!BK$20-1)) -> 0 | BL9: =IF('RAB input'!BM$11="", 0, INDEX('RAB input'!BL$349:BL$398, $E7)/'RAB input'!BL$15*(INDEX(rvanillaWACC, 'RAB input'!BM$5+2)/'RAB input'!BL$20-1)) -> 0 | BM9: =IF('RAB input'!BN$11="", 0, INDEX('RAB input'!BM$349:BM$398, $E7)/'RAB input'!BM$15*(INDEX(rvanillaWACC, 'RAB input'!BN$5+2)/'RAB input'!BM$20-1)) -> 0 | BN9: =IF('RAB input'!BO$11="", 0, INDEX('RAB input'!BN$349:BN$398, $E7)/'RAB input'!BN$15*(INDEX(rvanillaWACC, 'RAB input'!BO$5+2)/'RAB input'!BN$20-1)) -> 0 | BO9: =IF('RAB input'!BP$11="", 0, INDEX('RAB input'!BO$349:BO$398, $E7)/'RAB input'!BO$15*(INDEX(rvanillaWACC, 'RAB input'!BP$5+2)/'RAB input'!BO$20-1)) -> 0 | BP9: =IF('RAB input'!BQ$11="", 0, INDEX('RAB input'!BP$349:BP$398, $E7)/'RAB input'!BP$15*(INDEX(rvanillaWACC, 'RAB input'!BQ$5+2)/'RAB input'!BP$20-1)) -> 0 | BQ9: =IF('RAB input'!BR$11="", 0, INDEX('RAB input'!BQ$349:BQ$398, $E7)/'RAB input'!BQ$15*(INDEX(rvanillaWACC, 'RAB input'!BR$5+2)/'RAB input'!BQ$20-1)) -> 0 | BR9: =IF('RAB input'!BS$11="", 0, INDEX('RAB input'!BR$349:BR$398, $E7)/'RAB input'!BR$15*(INDEX(rvanillaWACC, 'RAB input'!BS$5+2)/'RAB input'!BR$20-1)) -> 0 | BS9: =IF('RAB input'!BT$11="", 0, INDEX('RAB input'!BS$349:BS$398, $E7)/'RAB input'!BS$15*(INDEX(rvanillaWACC, 'RAB input'!BT$5+2)/'RAB input'!BS$20-1)) -> 0 | BT9: =IF('RAB input'!BU$11="", 0, INDEX('RAB input'!BT$349:BT$398, $E7)/'RAB input'!BT$15*(INDEX(rvanillaWACC, 'RAB input'!BU$5+2)/'RAB input'!BT$20-1)) -> 0 | BU9: =IF('RAB input'!BV$11="", 0, INDEX('RAB input'!BU$349:BU$398, $E7)/'RAB input'!BU$15*(INDEX(rvanillaWACC, 'RAB input'!BV$5+2)/'RAB input'!BU$20-1)) -> 0 | BV9: =IF('RAB input'!BW$11="", 0, INDEX('RAB input'!BV$349:BV$398, $E7)/'RAB input'!BV$15*(INDEX(rvanillaWACC, 'RAB input'!BW$5+2)/'RAB input'!BV$20-1)) -> 0 | BW9: =IF('RAB input'!BX$11="", 0, INDEX('RAB input'!BW$349:BW$398, $E7)/'RAB input'!BW$15*(INDEX(rvanillaWACC, 'RAB input'!BX$5+2)/'RAB input'!BW$20-1)) -> 0 | BX9: =IF('RAB input'!BY$11="", 0, INDEX('RAB input'!BX$349:BX$398, $E7)/'RAB input'!BX$15*(INDEX(rvanillaWACC, 'RAB input'!BY$5+2)/'RAB input'!BX$20-1)) -> 0 | BY9: =IF('RAB input'!BZ$11="", 0, INDEX('RAB input'!BY$349:BY$398, $E7)/'RAB input'!BY$15*(INDEX(rvanillaWACC, 'RAB input'!BZ$5+2)/'RAB input'!BY$20-1)) -> 0 | BZ9: =IF('RAB input'!CA$11="", 0, INDEX('RAB input'!BZ$349:BZ$398, $E7)/'RAB input'!BZ$15*(INDEX(rvanillaWACC, 'RAB input'!CA$5+2)/'RAB input'!BZ$20-1)) -> 0
F10: Remaining life of adjustment for t-1 capex (years) | G10: =IF(G9<>0, IF(G8<>"n/a", INDEX('RAB input'!$F$189:$F$238, $E7)-'RAB input'!$H$11, "n/a"), 0) -> 45 | H10: =IF(H9<>0, IF(H8<>"n/a", H8-ROUNDDOWN('RAB input'!I$11, 0), "n/a"), 0) -> 0 | I10: =IF(I9<>0, IF(I8<>"n/a", I8-ROUNDDOWN('RAB input'!J$11, 0), "n/a"), 0) -> 0 | J10: =IF(J9<>0, IF(J8<>"n/a", J8-ROUNDDOWN('RAB input'!K$11, 0), "n/a"), 0) -> 0 | K10: =IF(K9<>0, IF(K8<>"n/a", K8-ROUNDDOWN('RAB input'!L$11, 0), "n/a"), 0) -> 0 | L10: =IF(L9<>0, IF(L8<>"n/a", L8-ROUNDDOWN('RAB input'!M$11, 0), "n/a"), 0) -> 45 | M10: =IF(M9<>0, IF(M8<>"n/a", M8-ROUNDDOWN('RAB input'!N$11, 0), "n/a"), 0) -> 0 | N10: =IF(N9<>0, IF(N8<>"n/a", N8-ROUNDDOWN('RAB input'!O$11, 0), "n/a"), 0) -> 0 | O10: =IF(O9<>0, IF(O8<>"n/a", O8-ROUNDDOWN('RAB input'!P$11, 0), "n/a"), 0) -> 0 | P10: =IF(P9<>0, IF(P8<>"n/a", P8-ROUNDDOWN('RAB input'!Q$11, 0), "n/a"), 0) -> 0 | Q10: =IF(Q9<>0, IF(Q8<>"n/a", Q8-ROUNDDOWN('RAB input'!R$11, 0), "n/a"), 0) -> 0 | R10: =IF(R9<>0, IF(R8<>"n/a", R8-ROUNDDOWN('RAB input'!S$11, 0), "n/a"), 0) -> 45 | S10: =IF(S9<>0, IF(S8<>"n/a", S8-ROUNDDOWN('RAB input'!T$11, 0), "n/a"), 0) -> 0 | T10: =IF(T9<>0, IF(T8<>"n/a", T8-ROUNDDOWN('RAB input'!U$11, 0), "n/a"), 0) -> 0 | U10: =IF(U9<>0, IF(U8<>"n/a", U8-ROUNDDOWN('RAB input'!V$11, 0), "n/a"), 0) -> 0 | V10: =IF(V9<>0, IF(V8<>"n/a", V8-ROUNDDOWN('RAB input'!W$11, 0), "n/a"), 0) -> 0 | W10: =IF(W9<>0, IF(W8<>"n/a", W8-ROUNDDOWN('RAB input'!X$11, 0), "n/a"), 0) -> 0 | X10: =IF(X9<>0, IF(X8<>"n/a", X8-ROUNDDOWN('RAB input'!Y$11, 0), "n/a"), 0) -> 0 | Y10: =IF(Y9<>0, IF(Y8<>"n/a", Y8-ROUNDDOWN('RAB input'!Z$11, 0), "n/a"), 0) -> 0 | Z10: =IF(Z9<>0, IF(Z8<>"n/a", Z8-ROUNDDOWN('RAB input'!AA$11, 0), "n/a"), 0) -> 0 | AA10: =IF(AA9<>0, IF(AA8<>"n/a", AA8-ROUNDDOWN('RAB input'!AB$11, 0), "n/a"), 0) -> 0 | AB10: =IF(AB9<>0, IF(AB8<>"n/a", AB8-ROUNDDOWN('RAB input'!AC$11, 0), "n/a"), 0) -> 0 | AC10: =IF(AC9<>0, IF(AC8<>"n/a", AC8-ROUNDDOWN('RAB input'!AD$11, 0), "n/a"), 0) -> 0 | AD10: =IF(AD9<>0, IF(AD8<>"n/a", AD8-ROUNDDOWN('RAB input'!AE$11, 0), "n/a"), 0) -> 0 | AE10: =IF(AE9<>0, IF(AE8<>"n/a", AE8-ROUNDDOWN('RAB input'!AF$11, 0), "n/a"), 0) -> 0 | AF10: =IF(AF9<>0, IF(AF8<>"n/a", AF8-ROUNDDOWN('RAB input'!AG$11, 0), "n/a"), 0) -> 0 | AG10: =IF(AG9<>0, IF(AG8<>"n/a", AG8-ROUNDDOWN('RAB input'!AH$11, 0), "n/a"), 0) -> 0 | AH10: =IF(AH9<>0, IF(AH8<>"n/a", AH8-ROUNDDOWN('RAB input'!AI$11, 0), "n/a"), 0) -> 0 | AI10: =IF(AI9<>0, IF(AI8<>"n/a", AI8-ROUNDDOWN('RAB input'!AJ$11, 0), "n/a"), 0) -> 0 | AJ10: =IF(AJ9<>0, IF(AJ8<>"n/a", AJ8-ROUNDDOWN('RAB input'!AK$11, 0), "n/a"), 0) -> 0 | AK10: =IF(AK9<>0, IF(AK8<>"n/a", AK8-ROUNDDOWN('RAB input'!AL$11, 0), "n/a"), 0) -> 0 | AL10: =IF(AL9<>0, IF(AL8<>"n/a", AL8-ROUNDDOWN('RAB input'!AM$11, 0), "n/a"), 0) -> 0 | AM10: =IF(AM9<>0, IF(AM8<>"n/a", AM8-ROUNDDOWN('RAB input'!AN$11, 0), "n/a"), 0) -> 0 | AN10: =IF(AN9<>0, IF(AN8<>"n/a", AN8-ROUNDDOWN('RAB input'!AO$11, 0), "n/a"), 0) -> 0 | AO10: =IF(AO9<>0, IF(AO8<>"n/a", AO8-ROUNDDOWN('RAB input'!AP$11, 0), "n/a"), 0) -> 0 | AP10: =IF(AP9<>0, IF(AP8<>"n/a", AP8-ROUNDDOWN('RAB input'!AQ$11, 0), "n/a"), 0) -> 0 | AQ10: =IF(AQ9<>0, IF(AQ8<>"n/a", AQ8-ROUNDDOWN('RAB input'!AR$11, 0), "n/a"), 0) -> 0 | AR10: =IF(AR9<>0, IF(AR8<>"n/a", AR8-ROUNDDOWN('RAB input'!AS$11, 0), "n/a"), 0) -> 0 | AS10: =IF(AS9<>0, IF(AS8<>"n/a", AS8-ROUNDDOWN('RAB input'!AT$11, 0), "n/a"), 0) -> 0 | AT10: =IF(AT9<>0, IF(AT8<>"n/a", AT8-ROUNDDOWN('RAB input'!AU$11, 0), "n/a"), 0) -> 0 | AU10: =IF(AU9<>0, IF(AU8<>"n/a", AU8-ROUNDDOWN('RAB input'!AV$11, 0), "n/a"), 0) -> 0 | AV10: =IF(AV9<>0, IF(AV8<>"n/a", AV8-ROUNDDOWN('RAB input'!AW$11, 0), "n/a"), 0) -> 0 | AW10: =IF(AW9<>0, IF(AW8<>"n/a", AW8-ROUNDDOWN('RAB input'!AX$11, 0), "n/a"), 0) -> 0 | AX10: =IF(AX9<>0, IF(AX8<>"n/a", AX8-ROUNDDOWN('RAB input'!AY$11, 0), "n/a"), 0) -> 0 | AY10: =IF(AY9<>0, IF(AY8<>"n/a", AY8-ROUNDDOWN('RAB input'!AZ$11, 0), "n/a"), 0) -> 0 | AZ10: =IF(AZ9<>0, IF(AZ8<>"n/a", AZ8-ROUNDDOWN('RAB input'!BA$11, 0), "n/a"), 0) -> 0 | BA10: =IF(BA9<>0, IF(BA8<>"n/a", BA8-ROUNDDOWN('RAB input'!BB$11, 0), "n/a"), 0) -> 0 | BB10: =IF(BB9<>0, IF(BB8<>"n/a", BB8-ROUNDDOWN('RAB input'!BC$11, 0), "n/a"), 0) -> 0 | BC10: =IF(BC9<>0, IF(BC8<>"n/a", BC8-ROUNDDOWN('RAB input'!BD$11, 0), "n/a"), 0) -> 0 | BD10: =IF(BD9<>0, IF(BD8<>"n/a", BD8-ROUNDDOWN('RAB input'!BE$11, 0), "n/a"), 0) -> 0 | BE10: =IF(BE9<>0, IF(BE8<>"n/a", BE8-ROUNDDOWN('RAB input'!BF$11, 0), "n/a"), 0) -> 0 | BF10: =IF(BF9<>0, IF(BF8<>"n/a", BF8-ROUNDDOWN('RAB input'!BG$11, 0), "n/a"), 0) -> 0 | BG10: =IF(BG9<>0, IF(BG8<>"n/a", BG8-ROUNDDOWN('RAB input'!BH$11, 0), "n/a"), 0) -> 0 | BH10: =IF(BH9<>0, IF(BH8<>"n/a", BH8-ROUNDDOWN('RAB input'!BI$11, 0), "n/a"), 0) -> 0 | BI10: =IF(BI9<>0, IF(BI8<>"n/a", BI8-ROUNDDOWN('RAB input'!BJ$11, 0), "n/a"), 0) -> 0 | BJ10: =IF(BJ9<>0, IF(BJ8<>"n/a", BJ8-ROUNDDOWN('RAB input'!BK$11, 0), "n/a"), 0) -> 0 | BK10: =IF(BK9<>0, IF(BK8<>"n/a", BK8-ROUNDDOWN('RAB input'!BL$11, 0), "n/a"), 0) -> 0 | BL10: =IF(BL9<>0, IF(BL8<>"n/a", BL8-ROUNDDOWN('RAB input'!BM$11, 0), "n/a"), 0) -> 0 | BM10: =IF(BM9<>0, IF(BM8<>"n/a", BM8-ROUNDDOWN('RAB input'!BN$11, 0), "n/a"), 0) -> 0 | BN10: =IF(BN9<>0, IF(BN8<>"n/a", BN8-ROUNDDOWN('RAB input'!BO$11, 0), "n/a"), 0) -> 0 | BO10: =IF(BO9<>0, IF(BO8<>"n/a", BO8-ROUNDDOWN('RAB input'!BP$11, 0), "n/a"), 0) -> 0 | BP10: =IF(BP9<>0, IF(BP8<>"n/a", BP8-ROUNDDOWN('RAB input'!BQ$11, 0), "n/a"), 0) -> 0 | BQ10: =IF(BQ9<>0, IF(BQ8<>"n/a", BQ8-ROUNDDOWN('RAB input'!BR$11, 0), "n/a"), 0) -> 0 | BR10: =IF(BR9<>0, IF(BR8<>"n/a", BR8-ROUNDDOWN('RAB input'!BS$11, 0), "n/a"), 0) -> 0 | BS10: =IF(BS9<>0, IF(BS8<>"n/a", BS8-ROUNDDOWN('RAB input'!BT$11, 0), "n/a"), 0) -> 0 | BT10: =IF(BT9<>0, IF(BT8<>"n/a", BT8-ROUNDDOWN('RAB input'!BU$11, 0), "n/a"), 0) -> 0 | BU10: =IF(BU9<>0, IF(BU8<>"n/a", BU8-ROUNDDOWN('RAB input'!BV$11, 0), "n/a"), 0) -> 0 | BV10: =IF(BV9<>0, IF(BV8<>"n/a", BV8-ROUNDDOWN('RAB input'!BW$11, 0), "n/a"), 0) -> 0 | BW10: =IF(BW9<>0, IF(BW8<>"n/a", BW8-ROUNDDOWN('RAB input'!BX$11, 0), "n/a"), 0) -> 0 | BX10: =IF(BX9<>0, IF(BX8<>"n/a", BX8-ROUNDDOWN('RAB input'!BY$11, 0), "n/a"), 0) -> 0 | BY10: =IF(BY9<>0, IF(BY8<>"n/a", BY8-ROUNDDOWN('RAB input'!BZ$11, 0), "n/a"), 0) -> 0 | BZ10: =IF(BZ9<>0, IF(BZ8<>"n/a", BZ8-ROUNDDOWN('RAB input'!CA$11, 0), "n/a"), 0) -> 0
F11: Adjustment for excluded t-2 capex | G11: =INDEX('RAB input'!$F$403:$F$452, $E7)/INDEX(CPI, 'RAB input'!$H$11+2)*INDEX(nvanillaWACC, 'RAB input'!$H$11+2) -> 0 | H11: =IF('RAB input'!I$11="", 0, INDEX('RAB input'!G$403:G$452,$E7)/'RAB input'!H$15*(INDEX(rvanillaWACC, SUM('RAB input'!$H$11:I$11, 2))/'RAB input'!H$20-1)) -> 0 | I11: =IF('RAB input'!J$11="", 0, INDEX('RAB input'!H$403:H$452,$E7)/'RAB input'!I$15*(INDEX(rvanillaWACC, SUM('RAB input'!$H$11:J$11, 2))/'RAB input'!I$20-1)) -> 0 | J11: =IF('RAB input'!K$11="", 0, INDEX('RAB input'!I$403:I$452,$E7)/'RAB input'!J$15*(INDEX(rvanillaWACC, SUM('RAB input'!$H$11:K$11, 2))/'RAB input'!J$20-1)) -> 0 | K11: =IF('RAB input'!L$11="", 0, INDEX('RAB input'!J$403:J$452,$E7)/'RAB input'!K$15*(INDEX(rvanillaWACC, SUM('RAB input'!$H$11:L$11, 2))/'RAB input'!K$20-1)) -> 0 | L11: =IF('RAB input'!M$11="", 0, INDEX('RAB input'!K$403:K$452,$E7)/'RAB input'!L$15*(INDEX(rvanillaWACC, SUM('RAB input'!$H$11:M$11, 2))/'RAB input'!L$20-1)) -> 0 | M11: =IF('RAB input'!N$11="", 0, INDEX('RAB input'!L$403:L$452,$E7)/'RAB input'!M$15*(INDEX(rvanillaWACC, SUM('RAB input'!$H$11:N$11, 2))/'RAB input'!M$20-1)) -> 0 | N11: =IF('RAB input'!O$11="", 0, INDEX('RAB input'!M$403:M$452,$E7)/'RAB input'!N$15*(INDEX(rvanillaWACC, SUM('RAB input'!$H$11:O$11, 2))/'RAB input'!N$20-1)) -> 0 | O11: =IF('RAB input'!P$11="", 0, INDEX('RAB input'!N$403:N$452,$E7)/'RAB input'!O$15*(INDEX(rvanillaWACC, SUM('RAB input'!$H$11:P$11, 2))/'RAB input'!O$20-1)) -> 0 | P11: =IF('RAB input'!Q$11="", 0, INDEX('RAB input'!O$403:O$452,$E7)/'RAB input'!P$15*(INDEX(rvanillaWACC, SUM('RAB input'!$H$11:Q$11, 2))/'RAB input'!P$20-1)) -> 0 | Q11: =IF('RAB input'!R$11="", 0, INDEX('RAB input'!P$403:P$452,$E7)/'RAB input'!Q$15*(INDEX(rvanillaWACC, SUM('RAB input'!$H$11:R$11, 2))/'RAB input'!Q$20-1)) -> 0 | R11: =IF('RAB input'!S$11="", 0, INDEX('RAB input'!Q$403:Q$452,$E7)/'RAB input'!R$15*(INDEX(rvanillaWACC, SUM('RAB input'!$H$11:S$11, 2))/'RAB input'!R$20-1)) -> 0 | S11: =IF('RAB input'!T$11="", 0, INDEX('RAB input'!R$403:R$452,$E7)/'RAB input'!S$15*(INDEX(rvanillaWACC, SUM('RAB input'!$H$11:T$11, 2))/'RAB input'!S$20-1)) -> 0 | T11: =IF('RAB input'!U$11="", 0, INDEX('RAB input'!S$403:S$452,$E7)/'RAB input'!T$15*(INDEX(rvanillaWACC, SUM('RAB input'!$H$11:U$11, 2))/'RAB input'!T$20-1)) -> 0 | U11: =IF('RAB input'!V$11="", 0, INDEX('RAB input'!T$403:T$452,$E7)/'RAB input'!U$15*(INDEX(rvanillaWACC, SUM('RAB input'!$H$11:V$11, 2))/'RAB input'!U$20-1)) -> 0 | V11: =IF('RAB input'!W$11="", 0, INDEX('RAB input'!U$403:U$452,$E7)/'RAB input'!V$15*(INDEX(rvanillaWACC, SUM('RAB input'!$H$11:W$11, 2))/'RAB input'!V$20-1)) -> 0 | W11: =IF('RAB input'!X$11="", 0, INDEX('RAB input'!V$403:V$452,$E7)/'RAB input'!W$15*(INDEX(rvanillaWACC, SUM('RAB input'!$H$11:X$11, 2))/'RAB input'!W$20-1)) -> 0 | X11: =IF('RAB input'!Y$11="", 0, INDEX('RAB input'!W$403:W$452,$E7)/'RAB input'!X$15*(INDEX(rvanillaWACC, SUM('RAB input'!$H$11:Y$11, 2))/'RAB input'!X$20-1)) -> 0 | Y11: =IF('RAB input'!Z$11="", 0, INDEX('RAB input'!X$403:X$452,$E7)/'RAB input'!Y$15*(INDEX(rvanillaWACC, SUM('RAB input'!$H$11:Z$11, 2))/'RAB input'!Y$20-1)) -> 0 | Z11: =IF('RAB input'!AA$11="", 0, INDEX('RAB input'!Y$403:Y$452,$E7)/'RAB input'!Z$15*(INDEX(rvanillaWACC, SUM('RAB input'!$H$11:AA$11, 2))/'RAB input'!Z$20-1)) -> 0 | AA11: =IF('RAB input'!AB$11="", 0, INDEX('RAB input'!Z$403:Z$452,$E7)/'RAB input'!AA$15*(INDEX(rvanillaWACC, SUM('RAB input'!$H$11:AB$11, 2))/'RAB input'!AA$20-1)) -> 0 | AB11: =IF('RAB input'!AC$11="", 0, INDEX('RAB input'!AA$403:AA$452,$E7)/'RAB input'!AB$15*(INDEX(rvanillaWACC, SUM('RAB input'!$H$11:AC$11, 2))/'RAB input'!AB$20-1)) -> 0 | AC11: =IF('RAB input'!AD$11="", 0, INDEX('RAB input'!AB$403:AB$452,$E7)/'RAB input'!AC$15*(INDEX(rvanillaWACC, SUM('RAB input'!$H$11:AD$11, 2))/'RAB input'!AC$20-1)) -> 0 | AD11: =IF('RAB input'!AE$11="", 0, INDEX('RAB input'!AC$403:AC$452,$E7)/'RAB input'!AD$15*(INDEX(rvanillaWACC, SUM('RAB input'!$H$11:AE$11, 2))/'RAB input'!AD$20-1)) -> 0 | AE11: =IF('RAB input'!AF$11="", 0, INDEX('RAB input'!AD$403:AD$452,$E7)/'RAB input'!AE$15*(INDEX(rvanillaWACC, SUM('RAB input'!$H$11:AF$11, 2))/'RAB input'!AE$20-1)) -> 0 | AF11: =IF('RAB input'!AG$11="", 0, INDEX('RAB input'!AE$403:AE$452,$E7)/'RAB input'!AF$15*(INDEX(rvanillaWACC, SUM('RAB input'!$H$11:AG$11, 2))/'RAB input'!AF$20-1)) -> 0 | AG11: =IF('RAB input'!AH$11="", 0, INDEX('RAB input'!AF$403:AF$452,$E7)/'RAB input'!AG$15*(INDEX(rvanillaWACC, SUM('RAB input'!$H$11:AH$11, 2))/'RAB input'!AG$20-1)) -> 0 | AH11: =IF('RAB input'!AI$11="", 0, INDEX('RAB input'!AG$403:AG$452,$E7)/'RAB input'!AH$15*(INDEX(rvanillaWACC, SUM('RAB input'!$H$11:AI$11, 2))/'RAB input'!AH$20-1)) -> 0 | AI11: =IF('RAB input'!AJ$11="", 0, INDEX('RAB input'!AH$403:AH$452,$E7)/'RAB input'!AI$15*(INDEX(rvanillaWACC, SUM('RAB input'!$H$11:AJ$11, 2))/'RAB input'!AI$20-1)) -> 0 | AJ11: =IF('RAB input'!AK$11="", 0, INDEX('RAB input'!AI$403:AI$452,$E7)/'RAB input'!AJ$15*(INDEX(rvanillaWACC, SUM('RAB input'!$H$11:AK$11, 2))/'RAB input'!AJ$20-1)) -> 0 | AK11: =IF('RAB input'!AL$11="", 0, INDEX('RAB input'!AJ$403:AJ$452,$E7)/'RAB input'!AK$15*(INDEX(rvanillaWACC, SUM('RAB input'!$H$11:AL$11, 2))/'RAB input'!AK$20-1)) -> 0 | AL11: =IF('RAB input'!AM$11="", 0, INDEX('RAB input'!AK$403:AK$452,$E7)/'RAB input'!AL$15*(INDEX(rvanillaWACC, SUM('RAB input'!$H$11:AM$11, 2))/'RAB input'!AL$20-1)) -> 0 | AM11: =IF('RAB input'!AN$11="", 0, INDEX('RAB input'!AL$403:AL$452,$E7)/'RAB input'!AM$15*(INDEX(rvanillaWACC, SUM('RAB input'!$H$11:AN$11, 2))/'RAB input'!AM$20-1)) -> 0 | AN11: =IF('RAB input'!AO$11="", 0, INDEX('RAB input'!AM$403:AM$452,$E7)/'RAB input'!AN$15*(INDEX(rvanillaWACC, SUM('RAB input'!$H$11:AO$11, 2))/'RAB input'!AN$20-1)) -> 0 | AO11: =IF('RAB input'!AP$11="", 0, INDEX('RAB input'!AN$403:AN$452,$E7)/'RAB input'!AO$15*(INDEX(rvanillaWACC, SUM('RAB input'!$H$11:AP$11, 2))/'RAB input'!AO$20-1)) -> 0 | AP11: =IF('RAB input'!AQ$11="", 0, INDEX('RAB input'!AO$403:AO$452,$E7)/'RAB input'!AP$15*(INDEX(rvanillaWACC, SUM('RAB input'!$H$11:AQ$11, 2))/'RAB input'!AP$20-1)) -> 0 | AQ11: =IF('RAB input'!AR$11="", 0, INDEX('RAB input'!AP$403:AP$452,$E7)/'RAB input'!AQ$15*(INDEX(rvanillaWACC, SUM('RAB input'!$H$11:AR$11, 2))/'RAB input'!AQ$20-1)) -> 0 | AR11: =IF('RAB input'!AS$11="", 0, INDEX('RAB input'!AQ$403:AQ$452,$E7)/'RAB input'!AR$15*(INDEX(rvanillaWACC, SUM('RAB input'!$H$11:AS$11, 2))/'RAB input'!AR$20-1)) -> 0 | AS11: =IF('RAB input'!AT$11="", 0, INDEX('RAB input'!AR$403:AR$452,$E7)/'RAB input'!AS$15*(INDEX(rvanillaWACC, SUM('RAB input'!$H$11:AT$11, 2))/'RAB input'!AS$20-1)) -> 0 | AT11: =IF('RAB input'!AU$11="", 0, INDEX('RAB input'!AS$403:AS$452,$E7)/'RAB input'!AT$15*(INDEX(rvanillaWACC, SUM('RAB input'!$H$11:AU$11, 2))/'RAB input'!AT$20-1)) -> 0 | AU11: =IF('RAB input'!AV$11="", 0, INDEX('RAB input'!AT$403:AT$452,$E7)/'RAB input'!AU$15*(INDEX(rvanillaWACC, SUM('RAB input'!$H$11:AV$11, 2))/'RAB input'!AU$20-1)) -> 0 | AV11: =IF('RAB input'!AW$11="", 0, INDEX('RAB input'!AU$403:AU$452,$E7)/'RAB input'!AV$15*(INDEX(rvanillaWACC, SUM('RAB input'!$H$11:AW$11, 2))/'RAB input'!AV$20-1)) -> 0 | AW11: =IF('RAB input'!AX$11="", 0, INDEX('RAB input'!AV$403:AV$452,$E7)/'RAB input'!AW$15*(INDEX(rvanillaWACC, SUM('RAB input'!$H$11:AX$11, 2))/'RAB input'!AW$20-1)) -> 0 | AX11: =IF('RAB input'!AY$11="", 0, INDEX('RAB input'!AW$403:AW$452,$E7)/'RAB input'!AX$15*(INDEX(rvanillaWACC, SUM('RAB input'!$H$11:AY$11, 2))/'RAB input'!AX$20-1)) -> 0 | AY11: =IF('RAB input'!AZ$11="", 0, INDEX('RAB input'!AX$403:AX$452,$E7)/'RAB input'!AY$15*(INDEX(rvanillaWACC, SUM('RAB input'!$H$11:AZ$11, 2))/'RAB input'!AY$20-1)) -> 0 | AZ11: =IF('RAB input'!BA$11="", 0, INDEX('RAB input'!AY$403:AY$452,$E7)/'RAB input'!AZ$15*(INDEX(rvanillaWACC, SUM('RAB input'!$H$11:BA$11, 2))/'RAB input'!AZ$20-1)) -> 0 | BA11: =IF('RAB input'!BB$11="", 0, INDEX('RAB input'!AZ$403:AZ$452,$E7)/'RAB input'!BA$15*(INDEX(rvanillaWACC, SUM('RAB input'!$H$11:BB$11, 2))/'RAB input'!BA$20-1)) -> 0 | BB11: =IF('RAB input'!BC$11="", 0, INDEX('RAB input'!BA$403:BA$452,$E7)/'RAB input'!BB$15*(INDEX(rvanillaWACC, SUM('RAB input'!$H$11:BC$11, 2))/'RAB input'!BB$20-1)) -> 0 | BC11: =IF('RAB input'!BD$11="", 0, INDEX('RAB input'!BB$403:BB$452,$E7)/'RAB input'!BC$15*(INDEX(rvanillaWACC, SUM('RAB input'!$H$11:BD$11, 2))/'RAB input'!BC$20-1)) -> 0 | BD11: =IF('RAB input'!BE$11="", 0, INDEX('RAB input'!BC$403:BC$452,$E7)/'RAB input'!BD$15*(INDEX(rvanillaWACC, SUM('RAB input'!$H$11:BE$11, 2))/'RAB input'!BD$20-1)) -> 0 | BE11: =IF('RAB input'!BF$11="", 0, INDEX('RAB input'!BD$403:BD$452,$E7)/'RAB input'!BE$15*(INDEX(rvanillaWACC, SUM('RAB input'!$H$11:BF$11, 2))/'RAB input'!BE$20-1)) -> 0 | BF11: =IF('RAB input'!BG$11="", 0, INDEX('RAB input'!BE$403:BE$452,$E7)/'RAB input'!BF$15*(INDEX(rvanillaWACC, SUM('RAB input'!$H$11:BG$11, 2))/'RAB input'!BF$20-1)) -> 0 | BG11: =IF('RAB input'!BH$11="", 0, INDEX('RAB input'!BF$403:BF$452,$E7)/'RAB input'!BG$15*(INDEX(rvanillaWACC, SUM('RAB input'!$H$11:BH$11, 2))/'RAB input'!BG$20-1)) -> 0 | BH11: =IF('RAB input'!BI$11="", 0, INDEX('RAB input'!BG$403:BG$452,$E7)/'RAB input'!BH$15*(INDEX(rvanillaWACC, SUM('RAB input'!$H$11:BI$11, 2))/'RAB input'!BH$20-1)) -> 0 | BI11: =IF('RAB input'!BJ$11="", 0, INDEX('RAB input'!BH$403:BH$452,$E7)/'RAB input'!BI$15*(INDEX(rvanillaWACC, SUM('RAB input'!$H$11:BJ$11, 2))/'RAB input'!BI$20-1)) -> 0 | BJ11: =IF('RAB input'!BK$11="", 0, INDEX('RAB input'!BI$403:BI$452,$E7)/'RAB input'!BJ$15*(INDEX(rvanillaWACC, SUM('RAB input'!$H$11:BK$11, 2))/'RAB input'!BJ$20-1)) -> 0 | BK11: =IF('RAB input'!BL$11="", 0, INDEX('RAB input'!BJ$403:BJ$452,$E7)/'RAB input'!BK$15*(INDEX(rvanillaWACC, SUM('RAB input'!$H$11:BL$11, 2))/'RAB input'!BK$20-1)) -> 0 | BL11: =IF('RAB input'!BM$11="", 0, INDEX('RAB input'!BK$403:BK$452,$E7)/'RAB input'!BL$15*(INDEX(rvanillaWACC, SUM('RAB input'!$H$11:BM$11, 2))/'RAB input'!BL$20-1)) -> 0 | BM11: =IF('RAB input'!BN$11="", 0, INDEX('RAB input'!BL$403:BL$452,$E7)/'RAB input'!BM$15*(INDEX(rvanillaWACC, SUM('RAB input'!$H$11:BN$11, 2))/'RAB input'!BM$20-1)) -> 0 | BN11: =IF('RAB input'!BO$11="", 0, INDEX('RAB input'!BM$403:BM$452,$E7)/'RAB input'!BN$15*(INDEX(rvanillaWACC, SUM('RAB input'!$H$11:BO$11, 2))/'RAB input'!BN$20-1)) -> 0 | BO11: =IF('RAB input'!BP$11="", 0, INDEX('RAB input'!BN$403:BN$452,$E7)/'RAB input'!BO$15*(INDEX(rvanillaWACC, SUM('RAB input'!$H$11:BP$11, 2))/'RAB input'!BO$20-1)) -> 0 | BP11: =IF('RAB input'!BQ$11="", 0, INDEX('RAB input'!BO$403:BO$452,$E7)/'RAB input'!BP$15*(INDEX(rvanillaWACC, SUM('RAB input'!$H$11:BQ$11, 2))/'RAB input'!BP$20-1)) -> 0 | BQ11: =IF('RAB input'!BR$11="", 0, INDEX('RAB input'!BP$403:BP$452,$E7)/'RAB input'!BQ$15*(INDEX(rvanillaWACC, SUM('RAB input'!$H$11:BR$11, 2))/'RAB input'!BQ$20-1)) -> 0 | BR11: =IF('RAB input'!BS$11="", 0, INDEX('RAB input'!BQ$403:BQ$452,$E7)/'RAB input'!BR$15*(INDEX(rvanillaWACC, SUM('RAB input'!$H$11:BS$11, 2))/'RAB input'!BR$20-1)) -> 0 | BS11: =IF('RAB input'!BT$11="", 0, INDEX('RAB input'!BR$403:BR$452,$E7)/'RAB input'!BS$15*(INDEX(rvanillaWACC, SUM('RAB input'!$H$11:BT$11, 2))/'RAB input'!BS$20-1)) -> 0 | BT11: =IF('RAB input'!BU$11="", 0, INDEX('RAB input'!BS$403:BS$452,$E7)/'RAB input'!BT$15*(INDEX(rvanillaWACC, SUM('RAB input'!$H$11:BU$11, 2))/'RAB input'!BT$20-1)) -> 0 | BU11: =IF('RAB input'!BV$11="", 0, INDEX('RAB input'!BT$403:BT$452,$E7)/'RAB input'!BU$15*(INDEX(rvanillaWACC, SUM('RAB input'!$H$11:BV$11, 2))/'RAB input'!BU$20-1)) -> 0 | BV11: =IF('RAB input'!BW$11="", 0, INDEX('RAB input'!BU$403:BU$452,$E7)/'RAB input'!BV$15*(INDEX(rvanillaWACC, SUM('RAB input'!$H$11:BW$11, 2))/'RAB input'!BV$20-1)) -> 0 | BW11: =IF('RAB input'!BX$11="", 0, INDEX('RAB input'!BV$403:BV$452,$E7)/'RAB input'!BW$15*(INDEX(rvanillaWACC, SUM('RAB input'!$H$11:BX$11, 2))/'RAB input'!BW$20-1)) -> 0 | BX11: =IF('RAB input'!BY$11="", 0, INDEX('RAB input'!BW$403:BW$452,$E7)/'RAB input'!BX$15*(INDEX(rvanillaWACC, SUM('RAB input'!$H$11:BY$11, 2))/'RAB input'!BX$20-1)) -> 0 | BY11: =IF('RAB input'!BZ$11="", 0, INDEX('RAB input'!BX$403:BX$452,$E7)/'RAB input'!BY$15*(INDEX(rvanillaWACC, SUM('RAB input'!$H$11:BZ$11, 2))/'RAB input'!BY$20-1)) -> 0 | BZ11: =IF('RAB input'!CA$11="", 0, INDEX('RAB input'!BY$403:BY$452,$E7)/'RAB input'!BZ$15*(INDEX(rvanillaWACC, SUM('RAB input'!$H$11:CA$11, 2))/'RAB input'!BZ$20-1)) -> 0
F12: Remaining life of adjustment for t-2 capex (years) | G12: =IF(G11<>0, IF(G8<>"n/a", INDEX('RAB input'!$F$189:$F$238, $E7)-'RAB input'!$H$11-1, "n/a"), 0) -> 0 | H12: =IF(H11<>0, IF(H8<>"n/a", H8-'RAB input'!I$11-1, "n/a"), 0) -> 0 | I12: =IF(I11<>0, IF(I8<>"n/a", I8-'RAB input'!J$11-1, "n/a"), 0) -> 0 | J12: =IF(J11<>0, IF(J8<>"n/a", J8-'RAB input'!K$11-1, "n/a"), 0) -> 0 | K12: =IF(K11<>0, IF(K8<>"n/a", K8-'RAB input'!L$11-1, "n/a"), 0) -> 0 | L12: =IF(L11<>0, IF(L8<>"n/a", L8-'RAB input'!M$11-1, "n/a"), 0) -> 0 | M12: =IF(M11<>0, IF(M8<>"n/a", M8-'RAB input'!N$11-1, "n/a"), 0) -> 0 | N12: =IF(N11<>0, IF(N8<>"n/a", N8-'RAB input'!O$11-1, "n/a"), 0) -> 0 | O12: =IF(O11<>0, IF(O8<>"n/a", O8-'RAB input'!P$11-1, "n/a"), 0) -> 0 | P12: =IF(P11<>0, IF(P8<>"n/a", P8-'RAB input'!Q$11-1, "n/a"), 0) -> 0 | Q12: =IF(Q11<>0, IF(Q8<>"n/a", Q8-'RAB input'!R$11-1, "n/a"), 0) -> 0 | R12: =IF(R11<>0, IF(R8<>"n/a", R8-'RAB input'!S$11-1, "n/a"), 0) -> 0 | S12: =IF(S11<>0, IF(S8<>"n/a", S8-'RAB input'!T$11-1, "n/a"), 0) -> 0 | T12: =IF(T11<>0, IF(T8<>"n/a", T8-'RAB input'!U$11-1, "n/a"), 0) -> 0 | U12: =IF(U11<>0, IF(U8<>"n/a", U8-'RAB input'!V$11-1, "n/a"), 0) -> 0 | V12: =IF(V11<>0, IF(V8<>"n/a", V8-'RAB input'!W$11-1, "n/a"), 0) -> 0 | W12: =IF(W11<>0, IF(W8<>"n/a", W8-'RAB input'!X$11-1, "n/a"), 0) -> 0 | X12: =IF(X11<>0, IF(X8<>"n/a", X8-'RAB input'!Y$11-1, "n/a"), 0) -> 0 | Y12: =IF(Y11<>0, IF(Y8<>"n/a", Y8-'RAB input'!Z$11-1, "n/a"), 0) -> 0 | Z12: =IF(Z11<>0, IF(Z8<>"n/a", Z8-'RAB input'!AA$11-1, "n/a"), 0) -> 0 | AA12: =IF(AA11<>0, IF(AA8<>"n/a", AA8-'RAB input'!AB$11-1, "n/a"), 0) -> 0 | AB12: =IF(AB11<>0, IF(AB8<>"n/a", AB8-'RAB input'!AC$11-1, "n/a"), 0) -> 0 | AC12: =IF(AC11<>0, IF(AC8<>"n/a", AC8-'RAB input'!AD$11-1, "n/a"), 0) -> 0 | AD12: =IF(AD11<>0, IF(AD8<>"n/a", AD8-'RAB input'!AE$11-1, "n/a"), 0) -> 0 | AE12: =IF(AE11<>0, IF(AE8<>"n/a", AE8-'RAB input'!AF$11-1, "n/a"), 0) -> 0 | AF12: =IF(AF11<>0, IF(AF8<>"n/a", AF8-'RAB input'!AG$11-1, "n/a"), 0) -> 0 | AG12: =IF(AG11<>0, IF(AG8<>"n/a", AG8-'RAB input'!AH$11-1, "n/a"), 0) -> 0 | AH12: =IF(AH11<>0, IF(AH8<>"n/a", AH8-'RAB input'!AI$11-1, "n/a"), 0) -> 0 | AI12: =IF(AI11<>0, IF(AI8<>"n/a", AI8-'RAB input'!AJ$11-1, "n/a"), 0) -> 0 | AJ12: =IF(AJ11<>0, IF(AJ8<>"n/a", AJ8-'RAB input'!AK$11-1, "n/a"), 0) -> 0 | AK12: =IF(AK11<>0, IF(AK8<>"n/a", AK8-'RAB input'!AL$11-1, "n/a"), 0) -> 0 | AL12: =IF(AL11<>0, IF(AL8<>"n/a", AL8-'RAB input'!AM$11-1, "n/a"), 0) -> 0 | AM12: =IF(AM11<>0, IF(AM8<>"n/a", AM8-'RAB input'!AN$11-1, "n/a"), 0) -> 0 | AN12: =IF(AN11<>0, IF(AN8<>"n/a", AN8-'RAB input'!AO$11-1, "n/a"), 0) -> 0 | AO12: =IF(AO11<>0, IF(AO8<>"n/a", AO8-'RAB input'!AP$11-1, "n/a"), 0) -> 0 | AP12: =IF(AP11<>0, IF(AP8<>"n/a", AP8-'RAB input'!AQ$11-1, "n/a"), 0) -> 0 | AQ12: =IF(AQ11<>0, IF(AQ8<>"n/a", AQ8-'RAB input'!AR$11-1, "n/a"), 0) -> 0 | AR12: =IF(AR11<>0, IF(AR8<>"n/a", AR8-'RAB input'!AS$11-1, "n/a"), 0) -> 0 | AS12: =IF(AS11<>0, IF(AS8<>"n/a", AS8-'RAB input'!AT$11-1, "n/a"), 0) -> 0 | AT12: =IF(AT11<>0, IF(AT8<>"n/a", AT8-'RAB input'!AU$11-1, "n/a"), 0) -> 0 | AU12: =IF(AU11<>0, IF(AU8<>"n/a", AU8-'RAB input'!AV$11-1, "n/a"), 0) -> 0 | AV12: =IF(AV11<>0, IF(AV8<>"n/a", AV8-'RAB input'!AW$11-1, "n/a"), 0) -> 0 | AW12: =IF(AW11<>0, IF(AW8<>"n/a", AW8-'RAB input'!AX$11-1, "n/a"), 0) -> 0 | AX12: =IF(AX11<>0, IF(AX8<>"n/a", AX8-'RAB input'!AY$11-1, "n/a"), 0) -> 0 | AY12: =IF(AY11<>0, IF(AY8<>"n/a", AY8-'RAB input'!AZ$11-1, "n/a"), 0) -> 0 | AZ12: =IF(AZ11<>0, IF(AZ8<>"n/a", AZ8-'RAB input'!BA$11-1, "n/a"), 0) -> 0 | BA12: =IF(BA11<>0, IF(BA8<>"n/a", BA8-'RAB input'!BB$11-1, "n/a"), 0) -> 0 | BB12: =IF(BB11<>0, IF(BB8<>"n/a", BB8-'RAB input'!BC$11-1, "n/a"), 0) -> 0 | BC12: =IF(BC11<>0, IF(BC8<>"n/a", BC8-'RAB input'!BD$11-1, "n/a"), 0) -> 0 | BD12: =IF(BD11<>0, IF(BD8<>"n/a", BD8-'RAB input'!BE$11-1, "n/a"), 0) -> 0 | BE12: =IF(BE11<>0, IF(BE8<>"n/a", BE8-'RAB input'!BF$11-1, "n/a"), 0) -> 0 | BF12: =IF(BF11<>0, IF(BF8<>"n/a", BF8-'RAB input'!BG$11-1, "n/a"), 0) -> 0 | BG12: =IF(BG11<>0, IF(BG8<>"n/a", BG8-'RAB input'!BH$11-1, "n/a"), 0) -> 0 | BH12: =IF(BH11<>0, IF(BH8<>"n/a", BH8-'RAB input'!BI$11-1, "n/a"), 0) -> 0 | BI12: =IF(BI11<>0, IF(BI8<>"n/a", BI8-'RAB input'!BJ$11-1, "n/a"), 0) -> 0 | BJ12: =IF(BJ11<>0, IF(BJ8<>"n/a", BJ8-'RAB input'!BK$11-1, "n/a"), 0) -> 0 | BK12: =IF(BK11<>0, IF(BK8<>"n/a", BK8-'RAB input'!BL$11-1, "n/a"), 0) -> 0 | BL12: =IF(BL11<>0, IF(BL8<>"n/a", BL8-'RAB input'!BM$11-1, "n/a"), 0) -> 0 | BM12: =IF(BM11<>0, IF(BM8<>"n/a", BM8-'RAB input'!BN$11-1, "n/a"), 0) -> 0 | BN12: =IF(BN11<>0, IF(BN8<>"n/a", BN8-'RAB input'!BO$11-1, "n/a"), 0) -> 0 | BO12: =IF(BO11<>0, IF(BO8<>"n/a", BO8-'RAB input'!BP$11-1, "n/a"), 0) -> 0 | BP12: =IF(BP11<>0, IF(BP8<>"n/a", BP8-'RAB input'!BQ$11-1, "n/a"), 0) -> 0 | BQ12: =IF(BQ11<>0, IF(BQ8<>"n/a", BQ8-'RAB input'!BR$11-1, "n/a"), 0) -> 0 | BR12: =IF(BR11<>0, IF(BR8<>"n/a", BR8-'RAB input'!BS$11-1, "n/a"), 0) -> 0 | BS12: =IF(BS11<>0, IF(BS8<>"n/a", BS8-'RAB input'!BT$11-1, "n/a"), 0) -> 0 | BT12: =IF(BT11<>0, IF(BT8<>"n/a", BT8-'RAB input'!BU$11-1, "n/a"), 0) -> 0 | BU12: =IF(BU11<>0, IF(BU8<>"n/a", BU8-'RAB input'!BV$11-1, "n/a"), 0) -> 0 | BV12: =IF(BV11<>0, IF(BV8<>"n/a", BV8-'RAB input'!BW$11-1, "n/a"), 0) -> 0 | BW12: =IF(BW11<>0, IF(BW8<>"n/a", BW8-'RAB input'!BX$11-1, "n/a"), 0) -> 0 | BX12: =IF(BX11<>0, IF(BX8<>"n/a", BX8-'RAB input'!BY$11-1, "n/a"), 0) -> 0 | BY12: =IF(BY11<>0, IF(BY8<>"n/a", BY8-'RAB input'!BZ$11-1, "n/a"), 0) -> 0 | BZ12: =IF(BZ11<>0, IF(BZ8<>"n/a", BZ8-'RAB input'!CA$11-1, "n/a"), 0) -> 0
